Workbook

Sheet Projects
A1: STIP / TIP Report
A2: 2013-06-20
A3: Required Fields | Z3: Optional Fields | AE3: ='MDOT FTA Detail'!B1 -> E-File v. 3.4 (04.26.13)
A4: Fiscal Year | B4: County | C4: Respon-sible Agency | D4: Project Name | E4: Limits | F4: Length | G4: Primary Work Type | H4: Project Description | I4: Phase | J4: Advance Construct | K4: Federal Cost ($1000s) | L4: Federal Fund Source | M4: State Cost ($1000s) | N4: State Fund Source | O4: Local Cost ($1000s) | P4: Local Fund Source | Q4: Total Phase Cost ($1000s) | R4: MDOT Job No. | S4: Local ID No. | T4: MPO/ Rural Action Date | U4: Amend-ment Type | V4: Air Quality | W4: Comments | X4: Total Project Cost ($1000s) | Y4: x | Z4: Local Priority | AA4: EJ | AB4: Federal Approval Date | AC4: Capped Federal Cost ($1000s) | AD4: Date Obligated | AE4: Amount Obligated ($1000s) | AF4: Let Date
A5: 2014 | B5: Berrien | C5: MDOT | D5: I-94 WB | E5: On I-94 WB from Red Arrow Highway (Exit 16) for 7.4 miles northeasterly to 0.5 miles northeast of Puetz Road. I-94 WB exit and entrance ramps at Exit 16 and Exit 22 extensions. | F5: 7.391 | G5: Restore and Rehabilitate | H5: Mill existing and place two course HMA Overlay. Shoulder reconstruction. Median grading, replace or repair all cuvlerts under I-94 WB except 84" Tanner Creek. Channel excavation of Thornton County Drain. Crown relocation to between center and outside lane. Underdrain installation. Dune grass planting. Ramp accel/decel extensions. | I5: ROW | K5: 45000 | L5: IM | M5: 5000 | N5: M | Q5: =SUM(K5+M5+O5) -> 50000 | R5: 113585 | T5: 2013-06-17 | W5: Added to TIP 6/2013 | X5: 15000000
A6: 2014 | B6: Berrien | C6: Village of Shoreham | D6: Brown School Road | E6: Lakeshore Drive,east to CSX railroad tracks | F6: 0.3 | G6: Reconstruct | H6: Remove extg. road materials; lower subase; install storm sewer, stormwater detention basin; install concrete curb & gutter; install new aggregate base and HMA surface; install sidewalks, mark bike paths on each side. | I6: CON | K6: 400000 | L6: STUL | O6: 99000 | P6: VLG | Q6: =SUM(K6+M6+O6) -> 499000 | T6: 2013-06-17 | W6: Added to TIP 6/2013 | X6: 520000
A7: 2014 | B7: Berrien | C7: Berrien County Road Commission | D7: Brown School Road | E7: St. Joseph Township from Cleveland Avenue West to Village of Shoreham | F7: 0.3 | G7: Resurface | H7: Resurface and place 5 foot wide paved shoulders. | I7: CON | K7: 135080 | L7: STUL | O7: 33187 | P7: TWP | Q7: 168267 | T7: 2013-06-17 | W7: Added to TIP 6/2013 | X7: 170000
A8: 2014 | B8: Berrien | C8: Berrien County Road Commission | D8: Hollywood Road | E8: Hollywood Road: M-63 to 500 feet south of Glenlord; and Palladium Drive: Hollywood Road to 1000 feet west; and Maiden La | F8: 1.3 | G8: Restore and Rehabilitate | H8: Restore and rehabilitate | I8: CON | J8: ACC | K8: 286444 | L8: STUL | Q8: 286444 | T8: 2013-06-17 | W8: Added to TIP 6/2013 | X8: 714416
A9: 2015 | B9: Berrien | C9: MDOT | D9: I-94 | E9: Urban: Empire Road over I-94, 1.7 mile E of Benton Harbor. Rural: Carmody Road over I-94, 2.3 miles E of I-196. County Line Road over I-94, 8.6 miles E of I-196 | F9: 2.643 | G9: Bridge - other | H9: Concrete Shallow overlay, Beam and substructure repair, Paint bearings, Joints, Railing retrofit, and approaches | I9: CON | K9: 511520 | L9: IM | M9: 56836 | N9: M | Q9: =SUM(K9+M9+O9) -> 568356 | T9: 2013-06-17 | W9: Added to TIP 6/2013
A10: 2015 | B10: Berrien | C10: MDOT | D10: US-31 | E10: at Napier Avenue | F10: 0 | G10: Roadside Facilitiy | H10: Carpool Lot Expansion and Resurface | I10: PE | K10: 8185 | L10: ST | M10: 1815 | N10: M | Q10: 10000 | T10: 2013-06-17 | W10: Added to TIP 6/2013
A11: 2015 | B11: Berrien | C11: MDOT | D11: I-94 | E11: Urban: Empire Road over I-94, 1.7 mile E of Benton Harbor. Rural: Carmody Road over I-94, 2.3 miles E of I-196. County L | F11: 2.6 | G11: Bridge - other | H11: Concrete Shallow overlay, Beam and substructure repair, Paint bearings, Joints, Railing retrofit, and approaches. | I11: CON | K11: 1611593 | L11: IM | M11: 179067 | N11: M | Q11: 1790660 | T11: 2013-06-17 | W11: Added to TIP 6/2013
A12: 2015 | B12: Berrien | C12: Berrien County Road Commission | D12: Marquette Woods Road | E12: St. Joseph Ave. East to Roosevelt Rd. | F12: 0.5 | G12: Restore and Rehabilitate | H12: Improve the existing pavement section from the existing 22 feet edge to edge to 32 feet wide hot mix asphalt paved section including 8 foot shoulders consisting of 5 feet paved and 3 foot aggregate. Additionally, concrete sidewalks will be completed on both north and south sides or Marquette Woods Road to facilitate all modes of pedestrian traffic. | I12: CON | K12: 407000 | L12: STUL | O12: 101400 | P12: TWP | Q12: 508400 | T12: 2013-06-17 | W12: Added to TIP 6/2013
A13: 2015 | B13: Berrien | C13: City of St. Joseph | D13: Botham Avenue | E13: Botham Avenue - Niles Avenue (M-63) to Morton Avenue | F13: 0.3 | G13: Reconstruct | H13: Full reconstruction of Botham Avenue from Niles Road to Morton Avenue. Work is anticipated to include new utilities: storm sewer, sanitary sewer and water main. Existing concrete pavement with curb and gutter will be replaced with HMA pavement and curb and gutter or concrete curb and gutter, dependent upon which option is the most cost effective. Sidewalk ramps will be replaced to meet current standards. | I13: CON | J13: AC | K13: 430634 | L13: STUL | O13: 1017200 | P13: CITY | Q13: 1447834 | T13: 2013-06-17 | W13: Added to TIP 6/2013
A14: 2016 | B14: Berrien | C14: City of St. Joseph | D14: Botham Avenue | E14: Botham Avenue - Niles Avenue (M-63) to Morton Avenue | F14: 0.3 | G14: Reconstruct | H14: Full reconstruction of Botham Avenue from Niles Road to Morton Avenue. Work is anticipated to include new utilities: storm sewer, sanitary sewer and water main. Existing concrete pavement with curb and gutter will be replaced with HMA pavement and curb and gutter or concrete curb and gutter, dependent upon which option is the most cost effective. Sidewalk ramps will be replaced to meet current standards. | I14: CON | J14: ACC | K14: 205333 | L14: STUL | Q14: 205333 | T14: 2013-06-17 | W14: Added to TIP 6/2013
A15: 2016 | B15: Berrien | C15: MDOT | D15: I-94 WB | E15: Red Arrow Highway (Exit 16) to I-94 BL (Exit 23) | F15: 7.4 | G15: Restore & rehabilitate | H15: Mill Existing and Multiple Course HMA Overlay | I15: CON | K15: 11655000 | L15: IM | M15: 1295000 | N15: M | Q15: 12950000 | T15: 2013-06-17 | W15: Added to TIP 6/2013
A16: 2016 | B16: Berrien | C16: MDOT | D16: US-31 | E16: at Napier Avenue | F16: 0 | G16: Roadside facility | H16: Carpool Lot Expansion and Resurface | I16: CON | K16: 63025 | L16: ST | M16: 13975 | N16: M | Q16: 77000 | T16: 2013-06-17 | W16: Added to TIP 6/2013
A17: 2016 | B17: Berrien | C17: Berrien County Road Commission | D17: Shawnee Road | E17: Jericho to Date | F17: 0.5 | G17: Resurface | H17: 5 foot wide paved shoulders and resurfacing | I17: CON | K17: 373658 | L17: STUL | O17: 91066 | P17: TWP | Q17: 464724 | T17: 2013-06-17 | W17: Added to TIP 6/2013
A18: 2016 | B18: Berrien | C18: City of Benton Harbor | D18: Colfax Avenue | E18: May St to Britain Ave | F18: 0.8 | G18: Resurface | H18: Cold mill and resurface Colfax Avenue from May St to Britain Avenue including ADA ramp replacements and minor drainage improvements. | I18: CON | K18: 277333 | L18: STUL | O18: 69066 | P18: CITY | Q18: 346399 | T18: 2013-06-17 | W18: Added to TIP 6/2013
A19: 2017 | B19: Berrien | C19: Berrien County Road Commission | D19: John Beers Road: | E19: Hollywood Road thence West 0.51 Miles to West Township Line | F19: 0.5 | G19: Resurface | H19: Resurface existing pavement that already has 4 foot wide paved shoulders. | I19: CON | K19: 192163 | L19: STUL | O19: 46600 | P19: TWP | Q19: 238763 | T19: 2013-06-17 | W19: Added to TIP 6/2013
A20: 2017 | B20: Berrien | C20: Berrien County Road Commission | D20: Hilltop Road | E20: M-63 (Niles Road) to BL-94 (Lakeshore Drive) | F20: 0.6 | G20: Miscellaneous | H20: Hot patch and micro surface | I20: CON | K20: 652000 | L20: STUL | O20: 130400 | P20: TWP | Q20: 782400 | T20: 2013-06-17 | W20: Added to TIP 6/2013- City of St. Joseph and St. Joseph City will both be contributing towards local match on this project.
A21: 2014 | B21: Berrien | C21: Berrien County Transportation (Berrien Bus) | D21: Rural Operating Funds | E21: Rural Portions of TwinCATS MPO Area | F21: 0 | G21: Transit Operations | H21: Public Transit Operations | I21: T-Ops | K21: 26030 | L21: 5311 | M21: 26030 | N21: M | Q21: 52060 | T21: 2013-06-17 | W21: Added to TIP 6/2013
A22: 2015 | B22: Berrien | C22: Berrien County Transportation (Berrien Bus) | D22: Rural Operating Funds | E22: Rural Portions of TwinCATS MPO Area | F22: 0 | G22: Transit Operations | H22: Public Transit Operations | I22: T-Ops | K22: 26030 | L22: 5311 | M22: 26030 | N22: M | Q22: 52060 | T22: 2013-06-17 | W22: Added to TIP 6/2013
A23: 2016 | B23: Berrien | C23: Berrien County Transportation (Berrien Bus) | D23: Rural Operating Funds | E23: Rural Portions of TwinCATS MPO Area | F23: 0 | G23: Transit Operations | H23: Public Transit Operations | I23: T-Ops | K23: 26030 | L23: 5311 | M23: 26030 | N23: M | Q23: 52060 | T23: 2013-06-17 | W23: Added to TIP 6/2013
A24: 2017 | B24: Berrien | C24: Berrien County Transportation (Berrien Bus) | D24: Rural Operating Funds | E24: Rural Portions of TwinCATS MPO Area | F24: 0 | G24: Transit Operations | H24: Public Transit Operations | I24: T-Ops | K24: 26030 | L24: 5311 | M24: 26030 | N24: M | Q24: 52060 | T24: 2013-06-17 | W24: Added to TIP 6/2013
A25: 2014 | B25: Berrien | C25: TCATA | D25: Public Transportation | E25: Benton Harbor, St. Joseph, Benton Township | F25: 0 | G25: Transit operations | H25: Bus operations | I25: T-Ops | K25: 680000 | L25: 5307 | M25: 704343 | N25: CTF | O25: 445657 | P25: CITY | Q25: 1830000 | T25: 2013-06-17 | W25: Added to TIP 6/2013
A26: 2014 | B26: Berrien | C26: TCATA | D26: New Line haul | E26: Benton Harbor, St. Joseph, Benton Township, | F26: 0 | G26: Transit operations | H26: It's a commuter route that takes low income passengers to an area that has potentially 70 employees | I26: T-Ops | K26: 106000 | L26: 5316 | M26: 106000 | N26: CTF | Q26: 212000 | T26: 2013-06-17 | W26: Added to TIP 6/2013
A27: 2014 | B27: Berrien | C27: TCATA | D27: Expanded Hours | E27: Benton Harbor, St. Joseph, Benton Township | F27: 0 | G27: Transit operations | H27: Provide fixed route service during times beyond the normal systems service hours | I27: T-Ops | K27: 87000 | L27: 5316 | Q27: 87000 | T27: 2013-06-17 | W27: Added to TIP 6/2013
A28: 2014 | B28: Berrien | C28: TCATA | D28: Mobility Manager | E28: Benton Harbor, St. Joseph, Benton Township | F28: 0 | G28: Transit operations | H28: Mobility Manager to coordinate transportation for the disabled passengers | I28: T-Ops | K28: 75000 | L28: 5317 | Q28: 75000 | T28: 2013-06-17 | W28: Added to TIP 6/2013
A29: 2016 | B29: Berrien | C29: TCATA | D29: Replacement Buses | E29: Benton Harbor, St. Joseph, Benton Township | F29: 0 | G29: Transit Vehicle Replacements/Additions | H29: Bus Replacement - replace two (2) 2010 cutaway buses with a 2016 or newer cutaway bus | I29: T-Cap | K29: 100000 | L29: CM | O29: 25000 | P29: CITY | Q29: 125000 | T29: 2013-06-17 | W29: Added to TIP 6/2013
A30: 2017 | B30: Berrien | C30: TCATA | D30: Replacement Buses | E30: Benton Harbor, St. Joseph, Benton Township | F30: 0 | G30: Transit Vehicle Replacements/Additions | H30: Bus Replacement - replace three (3) 2010 cutaway buses with a 2016 or newer cutaway bus | I30: T-Cap | K30: 168000 | L30: CM | O30: 42000 | P30: CITY | Q30: 210000 | T30: 2013-06-17 | W30: Added to TIP 6/2013
A31: 2017 | B31: Berrien | C31: Berrien Bus | D31: Replacement Buses | E31: Rural Portions of TwinCATS MPO Area | F31: 0 | G31: Transit Vehicle Replacements/Additions | H31: Bus Replacement - replace four (4) less than 30' small buses with four (4) 2017 or newer less than 30' small buses | I31: T-Cap | K31: 312000 | L31: CM | M31: 78000 | N31: CTF | Q31: 390000 | T31: 2013-06-17 | W31: Added to TIP 6/2013
A32: 2015 | B32: Berrien | C32: Berrien County Road Commission | D32: Napier Avenue at Pipestone St. | E32: Napier Avenue at Pipestone St. | F32: 0 | G32: Traffic Signal Upgrade | H32: Traffic signal modernization including removal of existing signals and new mast arms, LED traffic signals, video detection, base mount controller & cabinet, sidewalk ramp upgrades, and preparations for corridor-wide interconnection | I32: CON | K32: 160000 | L32: CM | Q32: 160000 | T32: 2013-06-17 | W32: Added to TIP 6/2013 | X32: 160000
A33: 2014 | B33: Berrien | C33: Berrien County Road Commission | D33: Roosevelt Road | E33: From Hidden Pines trail South 1700 Ft | F33: 0 | G33: Non-motorized Improvements | H33: 1,700 lineal feet of 10 ft. wide, HMA non-motorized trail parallel to existing roadway. Work includes tree removal, machine grading, sand subbase, agg base, HMA surface, striping, detectable warning strips. | I33: CON | K33: 92800 | L33: CM | O33: 23200 | P33: TWP | Q33: 116000 | T33: 2013-06-17 | W33: Added to TIP 6/2013 | X33: 116000
A34: 2014 | B34: Berrien | C34: City of Benton Harbor | D34: Pipestone St at Empire Avenue | E34: Pipestone St at Empire Avenue | F34: 0 | G34: Traffic Signal Upgrade | H34: Traffic signal modernization including removal of existing signals and new mast arms, LED traffic signals, video detection, base mount controller & cabinet, sidewalk ramp upgrades, and preparations for corridor-wide interconnection | I34: CON | K34: 220000 | L34: CM | Q34: 220000 | T34: 2013-06-17 | W34: Added to TIP 6/2013 | X34: 220000
A35: 2015 | B35: Berrien | C35: City of Benton Harbor | D35: Pipestone St at Britain Avenue | E35: Pipestone St at Britain Avenue | F35: 0 | G35: Traffic Signal Upgrade | H35: Traffic Signal improvements including new controller, video detection, conduits and fiber optic cable, and other preparations for corridor-wide interconnection | I35: CON | K35: 116000 | L35: CM | Q35: 116000 | T35: 2013-06-17 | W35: Added to TIP 6/2013 | X35: 116000
A36: 2016 | B36: Berrien | C36: City of Benton Harbor | D36: Pipestone St at Wall St | E36: Pipestone St at Wall St | F36: 0 | G36: Traffic Signal Upgrade | H36: Traffic Signal improvements including new controller, video detection, and preparations for corridor-wide interconnection | I36: CON | K36: 65000 | L36: CM | Q36: 65000 | T36: 2013-06-17 | W36: Added to TIP 6/2013 | X36: 65000
A37: 2017 | B37: Berrien | C37: City of Benton Harbor | D37: Pipestone St at Jefferson St | E37: Pipestone St at Jefferson St | F37: 0 | G37: Traffic Signal Upgrade | H37: Traffic signal modernization including removal of existing signals and new mast arms, LED traffic signals, video detection, base mount controller & cabinet, sidewalk ramp upgrades, and other preparations for corridor-wide interconnection | I37: CON | K37: 240000 | L37: CM | Q37: 240000 | T37: 2013-06-17 | W37: Added to TIP 6/2013 | X37: 240000
A38: 2017 | B38: Berrien | C38: City of Benton Harbor | D38: Pipestone St at Market St | E38: Pipestone St at Market St | F38: 0 | G38: Traffic Signal Upgrade | H38: Traffic Signal improvements including new controller, video detection, conduits and fiber optic cable, and final preparations for corridor-wide interconnection | I38: CON | K38: 209000 | L38: CM | Q38: 209000 | T38: 2013-06-17 | W38: Added to TIP 6/2013 | X38: 209000
A39: 2014 | B39: Berrien | C39: MDOT | D39: M-139 | E39: at Nickerson Avenue carpool lot off M-139, Benton Township, Berrien County. Lot # 711005 | F39: 0 | G39: Roadside Facility | H39: Reseal joints in existing concrete parking lot, replace pavement markings, and install sidewalk ramp. | I39: CON | K39: 19644 | L39: STUT | N39: M | Q39: 19644 | R39: 103293 | T39: 2013-05-20 | U39: Year | W39: 5/20/13 Delay letting from FY 12 to FY 14; minor scope revision | X39: 30500
A40: 2014 | B40: BERRIEN | C40: Berrien County | D40: Date Road | E40: over Keelo Creek | F40: 0 | G40: Bridge replacement | H40: Bridge Replacement | I40: CON | K40: 720000 | L40: BRO | M40: 135000 | N40: M | O40: 45000 | P40: CNTY | Q40: 900000 | R40: 115768 | T40: 2012-02-27 | V40: Exempt | X40: 900000 | AB40: 2012-06-07
A41: 2014 | B41: BERRIEN | C41: Benton Harbor | D41: Broadway Ave | E41: Pipestone St to Empire Ave | F41: 0.9 | G41: Resurface | H41: Mill and resurface road, minor drainage improvements, ADA sidewalk ramp replacements | I41: CON | K41: 240000 | L41: STUL | O41: 60000 | P41: CITY | Q41: 300000 | R41: 112087 | T41: 2012-12-17 | V41: Exempt | W41: 12/17/12- Project moved from 2012 to 2014 | X41: 485762 | AB41: 2013-03-06
A42: 2014 | B42: Berrien | C42: MDOT | D42: I-94 | E42: Westbound off ramp at Pipestone Road | F42: 0.172 | G42: Reconstruct | H42: Geometric improvement to realign ramp. Realignment will reduce congestion in the vicinity of the interchange. | I42: A | K42: 1000000 | L42: CM | M42: 250000 | N42: M | Q42: 1250000 | R42: 114962 | T42: 2012-11-19 | V42: Exempt | W42: 11/2012 added to 2011-2014 TIP; November 2012; November 29 spoke with MDOT rep E. Jolivette and not clear if MDOT will pursue these projects | X42: 1250000 | AB42: 2012-12-27
A43: 2014 | B43: Berrien | C43: SWMPC | D43: Berrien County Rideshare | E43: Berrien County | F43: 0 | G43: Miscellaneous | H43: Southwest Michigan Planning Commission Rideshare Program to assist the community which includes citizens and businesses. | K43: 12000 | L43: CMG | Q43: 12000 | R43: 116815 | T43: 2012-11-19 | V43: Exempt | W43: 11/2012 added to 2011-2014 TIP | X43: 12000 | AB43: 2012-12-27
A44: 2014 | B44: Berrien | C44: MDOT | D44: M-63 | E44: M-139 to I-94 | F44: 1.609 | G44: GPA | H44: Two course HMA Overlay and paved shoulders. | I44: ROW | K44: 16370 | L44: NH | M44: 3630 | N44: M | Q44: 20000 | R44: 118928 | T44: 2013-07-15 | U44: Add | W44: Added to TIP 7/15/13; Construction Anticipated 2018 | X44: 2950000
A45: 2014 | B45: Berrien | C45: MDOT | D45: M-63 | E45: M-139 to I-94 | F45: 1.609 | G45: GPA | H45: Two course HMA Overlay and paved shoulders. | I45: PE | K45: 245550 | L45: NH | M45: 54450 | N45: M | Q45: 300000 | R45: 118928 | T45: 2013-07-15 | U45: Add | W45: Added to TIP 7/15/13; Construction Anticipated 2018 | X45: 2950000
A46: 2014 | B46: Berrien | C46: MDOT | D46: I-196 | E46: I-94 to 0.5 miles South of M-63 (Exit 7) | F46: 8.089 | G46: Restore & rehabilitate | H46: Mill Existing & Multiple Course HMA Overlay | I46: PE | K46: 1620000 | L46: IM | M46: 180000 | N46: M | Q46: 1800000 | R46: 118792 | T46: 2013-07-15 | U46: Add | W46: Added to TIP 7/15/13; Construction Anticipated 2018 | X46: 28425000

Sheet FY 2014
B1: FY 2014
A2: Highway Program | B2: Estimated Federal Commitments | C2: Estimated Non-Federal Commitments | D2: Total Proposed Commitments
A3: MDOT AC & M Program | C3: =D3 -> 0 | D3: =SUM('MDOT FTA Detail'!F129:F157)+'MDOT FTA Detail'!F159 -> 0
A4: MDOT FA Program | B4: =SUM('MDOT FTA Detail'!D6:D104) -> 2946564 | C4: =D4-B4 -> 493080 | D4: =SUM('MDOT FTA Detail'!F6:F104) -> 3439644
A5: Sub-Total MDOT | B5: =B4 -> 2946564 | C5: =C3+C4 -> 493080 | D5: =D3+D4 -> 3439644
A6: Local STP | B6: =SUM('Local Detail'!D73,'Local Detail'!D74,'Local Detail'!D77:D92,'Local Detail'!D67:D68,'Local Detail'!D49:D50) -> 1061524 | C6: =D6-B6 -> 192187 | D6: =SUM('Local Detail'!F73,'Local Detail'!F74,'Local Detail'!F77:F92,'Local Detail'!F67:F68,'Local Detail'!F49:F50) -> 1253711
A7: Local Bridge | B7: =SUM('Local Detail'!D6:D9,'Local Detail'!D13:D16,'Local Detail'!D97,'Local Detail'!D11:D11,'Local Detail'!D39) -> 720000 | C7: 180000 | D7: =SUM('Local Detail'!F6:F9,'Local Detail'!F13:F16,'Local Detail'!F97,'Local Detail'!F11:F11,'Local Detail'!F39) -> 900000
A8: Local CMAQ | B8: =SUM('Local Detail'!D19:D20) -> 324800 | C8: 23200 | D8: =SUM('Local Detail'!F19:F20) -> 348000
A9: Local Safety | B9: =SUM('Local Detail'!D42,'Local Detail'!D44,'Local Detail'!D75:D76) -> 0 | C9: 0 | D9: =SUM('Local Detail'!F42,'Local Detail'!F44,'Local Detail'!F75:F76) -> 0
A10: Local Equity Bonus (TEDF) | B10: =SUM('Local Detail'!D27:D34) -> 0 | C10: 0 | D10: =SUM('Local Detail'!F27:F34) -> 0
A11: Local Other FHWA | B11: =SUM('Local Detail'!D10,'Local Detail'!D12,'Local Detail'!D17:D18,'Local Detail'!D21:D26,'Local Detail'!D35:D38,'Local Detail'!D40:D41,'Local Detail'!D43,'Local Detail'!D45:D48,'Local Detail'!D51:D66,'Local Detail'!D98:D104,'Local Detail'!D93:D96,'Local Detail'!D69:D72) -> 0 | C11: 0 | D11: =SUM('Local Detail'!F10,'Local Detail'!F12,'Local Detail'!F17:F18,'Local Detail'!F21:F26,'Local Detail'!F35:F38,'Local Detail'!F40:F41,'Local Detail'!F43,'Local Detail'!F45:F48,'Local Detail'!F51:F66,'Local Detail'!F98:F104,'Local Detail'!F93:F96,'Local Detail'!F69:F72) -> 0
A12: Local AC Starts | C12: =D12 -> 0 | D12: ='Local Detail'!F136 -> 0
A13: Local Non-Federal | C13: =D13 -> 0 | D13: =SUM('Local Detail'!F106:F134) -> 0
A14: Sub-Total Local | B14: =SUM(B6:B11) -> 2106324 | C14: =SUM(C6:C13) -> 395387 | D14: =SUM(D6:D13) -> 2501711
A15: Total Highway | B15: =B14+B5 -> 5052888 | C15: =C14+C5 -> 888467 | D15: =D14+D5 -> 5941355
A18: Transit Fund Source | B18: Estimated Federal Commitments | C18: Estimated Non-Federal Commitments | D18: Total Proposed Commitments
A19: CTF - Comprehensive Transit Fund | C19: ='MDOT FTA Detail'!E128+'Local Detail'!E105 -> 0 | D19: =C19 -> 0
A20: Section 3038 - Over the Road Bus Program | B20: ='MDOT FTA Detail'!D105 -> 0 | C20: =D20-B20 -> 0 | D20: ='MDOT FTA Detail'!F105 -> 0
A21: Section 3045 - National Fuel Cell Technology Development Program | B21: ='MDOT FTA Detail'!D106 -> 0 | C21: =D21-B21 -> 0 | D21: ='MDOT FTA Detail'!F106 -> 0
A22: Section 5303 - Metropolitan Transportation Planning | B22: ='MDOT FTA Detail'!D107 -> 0 | C22: 0 | D22: ='MDOT FTA Detail'!F107 -> 0
A23: Section 5304 - Statewide Transportation Planning | B23: ='MDOT FTA Detail'!D108 -> 0 | C23: 0 | D23: ='MDOT FTA Detail'!F108 -> 0
A24: Section 5305 - Metropolitan and Statewide Planning | B24: ='MDOT FTA Detail'!D109 -> 0 | C24: 0 | D24: ='MDOT FTA Detail'!F109 -> 0
A25: Section 5307 - UZA Formula | B25: ='MDOT FTA Detail'!D110 -> 680000 | C25: 1150000 | D25: ='MDOT FTA Detail'!F110 -> 1830000
A26: Section 5308 - Clean Fuels Program | B26: ='MDOT FTA Detail'!D111 -> 0 | C26: 0 | D26: ='MDOT FTA Detail'!F111 -> 0
A27: Section 5309 - Fixed Guideway Capital Investment Grant | B27: ='MDOT FTA Detail'!D112 -> 0 | C27: 0 | D27: ='MDOT FTA Detail'!F112 -> 0
A28: Section 5310 - Enhanced Mobility of Seniors and Individuals with Disabilities | B28: ='MDOT FTA Detail'!D113 -> 0 | C28: 0 | D28: ='MDOT FTA Detail'!F113 -> 0
A29: Section 5311 - Non-UZA | B29: ='MDOT FTA Detail'!D114 -> 26030 | C29: 26030 | D29: ='MDOT FTA Detail'!F114 -> 52060
A30: Section 5312 - Research, Development, Demonstration, and Deployment | B30: ='MDOT FTA Detail'!D115 -> 0 | C30: =D30-B30 -> 0 | D30: ='MDOT FTA Detail'!F115 -> 0
A31: Section 5313 - Transit Cooperative Research Program | B31: ='MDOT FTA Detail'!D116 -> 0 | C31: 0 | D31: ='MDOT FTA Detail'!F116 -> 0
A32: Section 5314 - Technical Assistance and Standards | B32: ='MDOT FTA Detail'!D117 -> 0 | C32: 0 | D32: ='MDOT FTA Detail'!F117 -> 0
A33: Section 5316 - Transit - Section 5316 - Job Access/Reverse Commute | B33: ='MDOT FTA Detail'!D118 -> 193000 | C33: 106000 | D33: ='MDOT FTA Detail'!F118 -> 299000
A34: Section 5317 - Transit - Section 5317 - New Freedom Initiative | B34: ='MDOT FTA Detail'!D119 -> 75000 | C34: 0 | D34: ='MDOT FTA Detail'!F119 -> 75000
A35: Section 5320 - Alternative Transportation in Parks and Public Lands | B35: ='MDOT FTA Detail'!D120 -> 0 | C35: 0 | D35: ='MDOT FTA Detail'!F120 -> 0
A36: Section 5322 - Human Resources and Training | B36: ='MDOT FTA Detail'!D121 -> 0 | C36: =D36-B36 -> 0 | D36: ='MDOT FTA Detail'!F121 -> 0
A37: Section 5324 - Emergency Relief | B37: ='MDOT FTA Detail'!D122 -> 0 | C37: =D37-B37 -> 0 | D37: ='MDOT FTA Detail'!F122 -> 0
A38: Section 5326 - Asset Management Provisions | B38: ='MDOT FTA Detail'!D123 -> 0 | C38: =D38-B38 -> 0 | D38: ='MDOT FTA Detail'!F123 -> 0
A39: Section 5329 - Safety | B39: ='MDOT FTA Detail'!D124 -> 0 | C39: =D39-B39 -> 0 | D39: ='MDOT FTA Detail'!F124 -> 0
A40: Section 5337 - State of Good Repair Grants | B40: ='MDOT FTA Detail'!D125 -> 0 | C40: =D40-B40 -> 0 | D40: ='MDOT FTA Detail'!F125 -> 0
A41: Section 5339 - Bus and Bus Facilities | B41: ='MDOT FTA Detail'!D126 -> 0 | C41: 0 | D41: ='MDOT FTA Detail'!F126 -> 0
A42: Section 5505 - University Transportation Centers Program | B42: ='MDOT FTA Detail'!D127 -> 0 | C42: 0 | D42: ='MDOT FTA Detail'!F127 -> 0
A43: Total Transit | B43: =SUM(B19:B42) -> 974030 | C43: =SUM(C19:C42) -> 1282030 | D43: =SUM(D19:D42) -> 2256060
A44: Grand Total | B44: =B43+B15 -> 6026918 | C44: =C43+C15 -> 2170497 | D44: =D43+D15 -> 8197415

Sheet FY 2015
B1: FY 2015
A2: Highway Program | B2: Estimated Federal Commitments | C2: Estimated Non-Federal Commitments | D2: Total Proposed Commitments
A3: MDOT AC & M Program | C3: =D3 -> 0 | D3: =SUM('MDOT FTA Detail'!I129:I157)+'MDOT FTA Detail'!I159 -> 0
A4: MDOT FA Program | B4: =SUM('MDOT FTA Detail'!G6:G104) -> 2131298 | C4: =D4-B4 -> 237718 | D4: =SUM('MDOT FTA Detail'!I6:I104) -> 2369016
A5: Sub-Total MDOT | B5: =B4 -> 2131298 | C5: =C3+C4 -> 237718 | D5: =D3+D4 -> 2369016
A6: Local STP | B6: =SUM('Local Detail'!G73,'Local Detail'!G74,'Local Detail'!G77:G92,'Local Detail'!G67:G68,'Local Detail'!G49:G50) -> 837634 | C6: =D6-B6 -> 101400 | D6: =SUM('Local Detail'!I73,'Local Detail'!I74,'Local Detail'!I77:I92,'Local Detail'!I67:I68,'Local Detail'!I49:I50) -> 939034
A7: Local Bridge | B7: =SUM('Local Detail'!G6:G9,'Local Detail'!G13:G16,'Local Detail'!G97,'Local Detail'!G11:G11,'Local Detail'!G39) -> 0 | C7: 0 | D7: =SUM('Local Detail'!I6:I9,'Local Detail'!I13:I16,'Local Detail'!I97,'Local Detail'!I11:I11,'Local Detail'!I39) -> 0
A8: Local CMAQ | B8: =SUM('Local Detail'!G19:G20) -> 276000 | C8: 0 | D8: =SUM('Local Detail'!I19:I20) -> 276000
A9: Local Safety | B9: =SUM('Local Detail'!G42,'Local Detail'!G44,'Local Detail'!G75:G76) -> 0 | C9: 0 | D9: =SUM('Local Detail'!I42,'Local Detail'!I44,'Local Detail'!I75:I76) -> 0
A10: Local Equity Bonus (TEDF) | B10: =SUM('Local Detail'!G27:G34) -> 0 | C10: 0 | D10: =SUM('Local Detail'!I27:I34) -> 0
A11: Local Other FHWA | B11: =SUM('Local Detail'!G10,'Local Detail'!G12,'Local Detail'!G17:G18,'Local Detail'!G21:G26,'Local Detail'!G35:G38,'Local Detail'!G40:G41,'Local Detail'!G43,'Local Detail'!G45:G48,'Local Detail'!G51:G66,'Local Detail'!G98:G104,'Local Detail'!G93:G96,'Local Detail'!G69:G72) -> 0 | C11: 0 | D11: =SUM('Local Detail'!I10,'Local Detail'!I12,'Local Detail'!I17:I18,'Local Detail'!I21:I26,'Local Detail'!I35:I38,'Local Detail'!I40:I41,'Local Detail'!I43,'Local Detail'!I45:I48,'Local Detail'!I51:I66,'Local Detail'!I98:I104,'Local Detail'!I93:I96,'Local Detail'!I69:I72) -> 0
A12: Local AC Starts | C12: =D12 -> 1017200 | D12: ='Local Detail'!I136 -> 1017200
A13: Local Non-Federal | C13: =D13 -> 0 | D13: =SUM('Local Detail'!I106:I134) -> 0
A14: Sub-Total Local | B14: =SUM(B6:B11) -> 1113634 | C14: =SUM(C6:C13) -> 1118600 | D14: =SUM(D6:D13) -> 2232234
A15: Total Highway | B15: =B14+B5 -> 3244932 | C15: =C14+C5 -> 1356318 | D15: =D14+D5 -> 4601250
A18: Transit Fund Source | B18: Estimated Federal Commitments | C18: Estimated Non-Federal Commitments | D18: Total Proposed Commitments
A19: CTF - Comprehensive Transit Fund | C19: ='MDOT FTA Detail'!H128+'Local Detail'!H105 -> 0 | D19: =C19 -> 0
A20: Section 3038 - Over the Road Bus Program | B20: ='MDOT FTA Detail'!G105 -> 0 | C20: =D20-B20 -> 0 | D20: ='MDOT FTA Detail'!I105 -> 0
A21: Section 3045 - National Fuel Cell Technology Development Program | B21: ='MDOT FTA Detail'!G106 -> 0 | C21: =D21-B21 -> 0 | D21: ='MDOT FTA Detail'!I106 -> 0
A22: Section 5303 - Metropolitan Transportation Planning | B22: ='MDOT FTA Detail'!G107 -> 0 | C22: 0 | D22: ='MDOT FTA Detail'!I107 -> 0
A23: Section 5304 - Statewide Transportation Planning | B23: ='MDOT FTA Detail'!G108 -> 0 | C23: 0 | D23: ='MDOT FTA Detail'!I108 -> 0
A24: Section 5305 - Metropolitan and Statewide Planning | B24: ='MDOT FTA Detail'!G109 -> 0 | C24: 0 | D24: ='MDOT FTA Detail'!I109 -> 0
A25: Section 5307 - UZA Formula | B25: ='MDOT FTA Detail'!G110 -> 0 | C25: 0 | D25: ='MDOT FTA Detail'!I110 -> 0
A26: Section 5308 - Clean Fuels Program | B26: ='MDOT FTA Detail'!G111 -> 0 | C26: 0 | D26: ='MDOT FTA Detail'!I111 -> 0
A27: Section 5309 - Fixed Guideway Capital Investment Grant | B27: ='MDOT FTA Detail'!G112 -> 0 | C27: 0 | D27: ='MDOT FTA Detail'!I112 -> 0
A28: Section 5310 - Enhanced Mobility of Seniors and Individuals with Disabilities | B28: ='MDOT FTA Detail'!G113 -> 0 | C28: 0 | D28: ='MDOT FTA Detail'!I113 -> 0
A29: Section 5311 - Non-UZA | B29: ='MDOT FTA Detail'!G114 -> 26030 | C29: 26030 | D29: ='MDOT FTA Detail'!I114 -> 52060
A30: Section 5312 - Research, Development, Demonstration, and Deployment | B30: ='MDOT FTA Detail'!G115 -> 0 | C30: =D30-B30 -> 0 | D30: ='MDOT FTA Detail'!I115 -> 0
A31: Section 5313 - Transit Cooperative Research Program | B31: ='MDOT FTA Detail'!G116 -> 0 | C31: 0 | D31: ='MDOT FTA Detail'!I116 -> 0
A32: Section 5314 - Technical Assistance and Standards | B32: ='MDOT FTA Detail'!G117 -> 0 | C32: 0 | D32: ='MDOT FTA Detail'!I117 -> 0
A33: Section 5316 - Transit - Section 5316 - Job Access/Reverse Commute | B33: ='MDOT FTA Detail'!G118 -> 0 | C33: 0 | D33: ='MDOT FTA Detail'!I118 -> 0
A34: Section 5317 - Transit - Section 5317 - New Freedom Initiative | B34: ='MDOT FTA Detail'!G119 -> 0 | C34: 0 | D34: ='MDOT FTA Detail'!I119 -> 0
A35: Section 5320 - Alternative Transportation in Parks and Public Lands | B35: ='MDOT FTA Detail'!G120 -> 0 | C35: 0 | D35: ='MDOT FTA Detail'!I120 -> 0
A36: Section 5322 - Human Resources and Training | B36: ='MDOT FTA Detail'!G121 -> 0 | C36: =D36-B36 -> 0 | D36: ='MDOT FTA Detail'!I121 -> 0
A37: Section 5324 - Emergency Relief | B37: ='MDOT FTA Detail'!G122 -> 0 | C37: =D37-B37 -> 0 | D37: ='MDOT FTA Detail'!I122 -> 0
A38: Section 5326 - Asset Management Provisions | B38: ='MDOT FTA Detail'!G123 -> 0 | C38: =D38-B38 -> 0 | D38: ='MDOT FTA Detail'!I123 -> 0
A39: Section 5329 - Safety | B39: ='MDOT FTA Detail'!G124 -> 0 | C39: =D39-B39 -> 0 | D39: ='MDOT FTA Detail'!I124 -> 0
A40: Section 5337 - State of Good Repair Grants | B40: ='MDOT FTA Detail'!G125 -> 0 | C40: =D40-B40 -> 0 | D40: ='MDOT FTA Detail'!I125 -> 0
A41: Section 5339 - Bus and Bus Facilities | B41: ='MDOT FTA Detail'!G126 -> 0 | C41: 0 | D41: ='MDOT FTA Detail'!I126 -> 0
A42: Section 5505 - University Transportation Centers Program | B42: ='MDOT FTA Detail'!G127 -> 0 | C42: 0 | D42: ='MDOT FTA Detail'!I127 -> 0
A43: Total Transit | B43: =SUM(B19:B42) -> 26030 | C43: =SUM(C19:C42) -> 26030 | D43: =SUM(D19:D42) -> 52060
A44: Grand Total | B44: =B43+B15 -> 3270962 | C44: =C43+C15 -> 1382348 | D44: =D43+D15 -> 4653310

Sheet FY 2016
B1: FY 2016
A2: Highway Program | B2: Estimated Federal Commitments | C2: Estimated Non-Federal Commitments | D2: Total Proposed Commitments
A3: MDOT AC & M Program | C3: =D3 -> 0 | D3: =SUM('MDOT FTA Detail'!L129:L157)+'MDOT FTA Detail'!L159 -> 0
A4: MDOT FA Program | B4: =SUM('MDOT FTA Detail'!J6:J104) -> 11718025 | C4: =D4-B4 -> 1308975 | D4: =SUM('MDOT FTA Detail'!L6:L104) -> 13027000
A5: Sub-Total MDOT | B5: =B4 -> 11718025 | C5: =C3+C4 -> 1308975 | D5: =D3+D4 -> 13027000
A6: Local STP | B6: =SUM('Local Detail'!J73,'Local Detail'!J74,'Local Detail'!J77:J92,'Local Detail'!J67:J68,'Local Detail'!J49:J50) -> 856324 | C6: =D6-B6 -> 160132 | D6: =SUM('Local Detail'!L73,'Local Detail'!L74,'Local Detail'!L77:L92,'Local Detail'!L67:L68,'Local Detail'!L49:L50) -> 1016456
A7: Local Bridge | B7: =SUM('Local Detail'!J6:J9,'Local Detail'!J13:J16,'Local Detail'!J97,'Local Detail'!J11:J11,'Local Detail'!J39) -> 0 | C7: 0 | D7: =SUM('Local Detail'!L6:L9,'Local Detail'!L13:L16,'Local Detail'!L97,'Local Detail'!L11:L11,'Local Detail'!L39) -> 0
A8: Local CMAQ | B8: =SUM('Local Detail'!J19:J20) -> 165000 | C8: 25000 | D8: =SUM('Local Detail'!L19:L20) -> 190000
A9: Local Safety | B9: =SUM('Local Detail'!J42,'Local Detail'!J44,'Local Detail'!J75:J76) -> 0 | C9: 0 | D9: =SUM('Local Detail'!L42,'Local Detail'!L44,'Local Detail'!L75:L76) -> 0
A10: Local Equity Bonus (TEDF) | B10: =SUM('Local Detail'!J27:J34) -> 0 | C10: 0 | D10: =SUM('Local Detail'!L27:L34) -> 0
A11: Local Other FHWA | B11: =SUM('Local Detail'!J10,'Local Detail'!J12,'Local Detail'!J17:J18,'Local Detail'!J21:J26,'Local Detail'!J35:J38,'Local Detail'!J40:J41,'Local Detail'!J43,'Local Detail'!J45:J48,'Local Detail'!J51:J66,'Local Detail'!J98:J104,'Local Detail'!J93:J96,'Local Detail'!J69:J72) -> 0 | C11: 0 | D11: =SUM('Local Detail'!L10,'Local Detail'!L12,'Local Detail'!L17:L18,'Local Detail'!L21:L26,'Local Detail'!L35:L38,'Local Detail'!L40:L41,'Local Detail'!L43,'Local Detail'!L45:L48,'Local Detail'!L51:L66,'Local Detail'!L98:L104,'Local Detail'!L93:L96,'Local Detail'!L69:L72) -> 0
A12: Local AC Starts | C12: =D12 -> 0 | D12: ='Local Detail'!L136 -> 0
A13: Local Non-Federal | C13: =D13 -> 0 | D13: =SUM('Local Detail'!L106:L134) -> 0
A14: Sub-Total Local | B14: =SUM(B6:B11) -> 1021324 | C14: =SUM(C6:C13) -> 185132 | D14: =SUM(D6:D13) -> 1206456
A15: Total Highway | B15: =B14+B5 -> 12739349 | C15: =C14+C5 -> 1494107 | D15: =D14+D5 -> 14233456
A18: Transit Fund Source | B18: Estimated Federal Commitments | C18: Estimated Non-Federal Commitments | D18: Total Proposed Commitments
A19: CTF - Comprehensive Transit Fund | C19: ='MDOT FTA Detail'!K128+'Local Detail'!K105 -> 0 | D19: =C19 -> 0
A20: Section 3038 - Over the Road Bus Program | B20: ='MDOT FTA Detail'!J105 -> 0 | C20: =D20-B20 -> 0 | D20: ='MDOT FTA Detail'!L105 -> 0
A21: Section 3045 - National Fuel Cell Technology Development Program | B21: ='MDOT FTA Detail'!J106 -> 0 | C21: =D21-B21 -> 0 | D21: ='MDOT FTA Detail'!L106 -> 0
A22: Section 5303 - Metropolitan Transportation Planning | B22: ='MDOT FTA Detail'!J107 -> 0 | C22: 0 | D22: ='MDOT FTA Detail'!L107 -> 0
A23: Section 5304 - Statewide Transportation Planning | B23: ='MDOT FTA Detail'!J108 -> 0 | C23: 0 | D23: ='MDOT FTA Detail'!L108 -> 0
A24: Section 5305 - Metropolitan and Statewide Planning | B24: ='MDOT FTA Detail'!J109 -> 0 | C24: 0 | D24: ='MDOT FTA Detail'!L109 -> 0
A25: Section 5307 - UZA Formula | B25: ='MDOT FTA Detail'!J110 -> 0 | C25: 0 | D25: ='MDOT FTA Detail'!L110 -> 0
A26: Section 5308 - Clean Fuels Program | B26: ='MDOT FTA Detail'!J111 -> 0 | C26: 0 | D26: ='MDOT FTA Detail'!L111 -> 0
A27: Section 5309 - Fixed Guideway Capital Investment Grant | B27: ='MDOT FTA Detail'!J112 -> 0 | C27: 0 | D27: ='MDOT FTA Detail'!L112 -> 0
A28: Section 5310 - Enhanced Mobility of Seniors and Individuals with Disabilities | B28: ='MDOT FTA Detail'!J113 -> 0 | C28: 0 | D28: ='MDOT FTA Detail'!L113 -> 0
A29: Section 5311 - Non-UZA | B29: ='MDOT FTA Detail'!J114 -> 26030 | C29: 26030 | D29: ='MDOT FTA Detail'!L114 -> 52060
A30: Section 5312 - Research, Development, Demonstration, and Deployment | B30: ='MDOT FTA Detail'!J115 -> 0 | C30: =D30-B30 -> 0 | D30: ='MDOT FTA Detail'!L115 -> 0
A31: Section 5313 - Transit Cooperative Research Program | B31: ='MDOT FTA Detail'!J116 -> 0 | C31: 0 | D31: ='MDOT FTA Detail'!L116 -> 0
A32: Section 5314 - Technical Assistance and Standards | B32: ='MDOT FTA Detail'!J117 -> 0 | C32: 0 | D32: ='MDOT FTA Detail'!L117 -> 0
A33: Section 5316 - Transit - Section 5316 - Job Access/Reverse Commute | B33: ='MDOT FTA Detail'!J118 -> 0 | C33: 0 | D33: ='MDOT FTA Detail'!L118 -> 0
A34: Section 5317 - Transit - Section 5317 - New Freedom Initiative | B34: ='MDOT FTA Detail'!J119 -> 0 | C34: 0 | D34: ='MDOT FTA Detail'!L119 -> 0
A35: Section 5320 - Alternative Transportation in Parks and Public Lands | B35: ='MDOT FTA Detail'!J120 -> 0 | C35: 0 | D35: ='MDOT FTA Detail'!L120 -> 0
A36: Section 5322 - Human Resources and Training | B36: ='MDOT FTA Detail'!J121 -> 0 | C36: =D36-B36 -> 0 | D36: ='MDOT FTA Detail'!L121 -> 0
A37: Section 5324 - Emergency Relief | B37: ='MDOT FTA Detail'!J122 -> 0 | C37: =D37-B37 -> 0 | D37: ='MDOT FTA Detail'!L122 -> 0
A38: Section 5326 - Asset Management Provisions | B38: ='MDOT FTA Detail'!J123 -> 0 | C38: =D38-B38 -> 0 | D38: ='MDOT FTA Detail'!L123 -> 0
A39: Section 5329 - Safety | B39: ='MDOT FTA Detail'!J124 -> 0 | C39: =D39-B39 -> 0 | D39: ='MDOT FTA Detail'!L124 -> 0
A40: Section 5337 - State of Good Repair Grants | B40: ='MDOT FTA Detail'!J125 -> 0 | C40: =D40-B40 -> 0 | D40: ='MDOT FTA Detail'!L125 -> 0
A41: Section 5339 - Bus and Bus Facilities | B41: ='MDOT FTA Detail'!J126 -> 0 | C41: 0 | D41: ='MDOT FTA Detail'!L126 -> 0
A42: Section 5505 - University Transportation Centers Program | B42: ='MDOT FTA Detail'!J127 -> 0 | C42: 0 | D42: ='MDOT FTA Detail'!L127 -> 0
A43: Total Transit | B43: =SUM(B19:B42) -> 26030 | C43: =SUM(C19:C42) -> 26030 | D43: =SUM(D19:D42) -> 52060
A44: Grand Total | B44: =B43+B15 -> 12765379 | C44: =C43+C15 -> 1520137 | D44: =D43+D15 -> 14285516

Sheet FY 2017
B1: FY 2017
A2: Highway Program | B2: Estimated Federal Commitments | C2: Estimated Non-Federal Commitments | D2: Total Proposed Commitments
A3: MDOT AC & M Program | C3: =D3 -> 0 | D3: =SUM('MDOT FTA Detail'!O129:O157)+'MDOT FTA Detail'!O159 -> 0
A4: MDOT FA Program | B4: =SUM('MDOT FTA Detail'!M6:M104) -> 0 | C4: =D4-B4 -> 0 | D4: =SUM('MDOT FTA Detail'!O6:O104) -> 0
A5: Sub-Total MDOT | B5: =B3+B4 -> 0 | C5: =D5-B5 -> 0 | D5: =D3+D4 -> 0
A6: Local STP | B6: =SUM('Local Detail'!M73,'Local Detail'!M74,'Local Detail'!M77:M92,'Local Detail'!M67:M68,'Local Detail'!M49:M50) -> 844163 | C6: 177000 | D6: =SUM('Local Detail'!O73,'Local Detail'!O74,'Local Detail'!O77:O92,'Local Detail'!O67:O68,'Local Detail'!O49:O50) -> 1021163
A7: Local Bridge | B7: =SUM('Local Detail'!M6:M9,'Local Detail'!M13:M16,'Local Detail'!M97,'Local Detail'!M11:M11,'Local Detail'!M39) -> 0 | C7: 0 | D7: =SUM('Local Detail'!O6:O9,'Local Detail'!O13:O16,'Local Detail'!O97,'Local Detail'!O11:O11,'Local Detail'!O39) -> 0
A8: Local CMAQ | B8: =SUM('Local Detail'!M19:M20) -> 929000 | C8: 120000 | D8: =SUM('Local Detail'!O19:O20) -> 1049000
A9: Local Safety | B9: =SUM('Local Detail'!M42,'Local Detail'!M44,'Local Detail'!M75:M76) -> 0 | C9: 0 | D9: =SUM('Local Detail'!O42,'Local Detail'!O44,'Local Detail'!O75:O76) -> 0
A10: Local Equity Bonus (TEDF) | B10: =SUM('Local Detail'!M27:M34) -> 0 | C10: 0 | D10: =SUM('Local Detail'!O27:O34) -> 0
A11: Local Other FHWA | B11: =SUM('Local Detail'!M10,'Local Detail'!M12,'Local Detail'!M17:M18,'Local Detail'!M21:M26,'Local Detail'!M35:M38,'Local Detail'!M40:M41,'Local Detail'!M43,'Local Detail'!M45:M48,'Local Detail'!M51:M66,'Local Detail'!M98:M104,'Local Detail'!M93:M96,'Local Detail'!M69:M72) -> 0 | C11: 0 | D11: =SUM('Local Detail'!O10,'Local Detail'!O12,'Local Detail'!O17:O18,'Local Detail'!O21:O26,'Local Detail'!O35:O38,'Local Detail'!O40:O41,'Local Detail'!O43,'Local Detail'!O45:O48,'Local Detail'!O51:O66,'Local Detail'!O98:O104,'Local Detail'!O93:O96,'Local Detail'!O69:O72) -> 0
A12: Local AC Starts | C12: =D12 -> 0 | D12: ='Local Detail'!O136 -> 0
A13: Local Non-Federal | C13: =D13 -> 0 | D13: =SUM('Local Detail'!O106:O134) -> 0
A14: Sub-Total Local | B14: =SUM(B6:B11) -> 1773163 | C14: =SUM(C6:C13) -> 297000 | D14: =SUM(D6:D13) -> 2070163
A15: Total Highway | B15: =B14+B5 -> 1773163 | C15: =C14+C5 -> 297000 | D15: =D14+D5 -> 2070163
A18: Transit Fund Source | B18: Estimated Federal Commitments | C18: Estimated Non-Federal Commitments | D18: Total Proposed Commitments
A19: CTF - Comprehensive Transit Fund | C19: ='MDOT FTA Detail'!N128+'Local Detail'!N105 -> 0 | D19: =C19 -> 0
A20: Section 3038 - Over the Road Bus Program | B20: ='MDOT FTA Detail'!M105 -> 0 | C20: =D20-B20 -> 0 | D20: ='MDOT FTA Detail'!O105 -> 0
A21: Section 3045 - National Fuel Cell Technology Development Program | B21: ='MDOT FTA Detail'!M106 -> 0 | C21: =D21-B21 -> 0 | D21: ='MDOT FTA Detail'!O106 -> 0
A22: Section 5303 - Metropolitan Transportation Planning | B22: ='MDOT FTA Detail'!M107 -> 0 | C22: 0 | D22: ='MDOT FTA Detail'!O107 -> 0
A23: Section 5304 - Statewide Transportation Planning | B23: ='MDOT FTA Detail'!M108 -> 0 | C23: 0 | D23: ='MDOT FTA Detail'!O108 -> 0
A24: Section 5305 - Metropolitan and Statewide Planning | B24: ='MDOT FTA Detail'!M109 -> 0 | C24: 0 | D24: ='MDOT FTA Detail'!O109 -> 0
A25: Section 5307 - UZA Formula | B25: ='MDOT FTA Detail'!M110 -> 0 | C25: 0 | D25: ='MDOT FTA Detail'!O110 -> 0
A26: Section 5308 - Clean Fuels Program | B26: ='MDOT FTA Detail'!M111 -> 0 | C26: 0 | D26: ='MDOT FTA Detail'!O111 -> 0
A27: Section 5309 - Fixed Guideway Capital Investment Grant | B27: ='MDOT FTA Detail'!M112 -> 0 | C27: 0 | D27: ='MDOT FTA Detail'!O112 -> 0
A28: Section 5310 - Enhanced Mobility of Seniors and Individuals with Disabilities | B28: ='MDOT FTA Detail'!M113 -> 0 | C28: 0 | D28: ='MDOT FTA Detail'!O113 -> 0
A29: Section 5311 - Non-UZA | B29: ='MDOT FTA Detail'!M114 -> 26030 | C29: 26030 | D29: ='MDOT FTA Detail'!O114 -> 52060
A30: Section 5312 - Research, Development, Demonstration, and Deployment | B30: ='MDOT FTA Detail'!M115 -> 0 | C30: =D30-B30 -> 0 | D30: ='MDOT FTA Detail'!O115 -> 0
A31: Section 5313 - Transit Cooperative Research Program | B31: ='MDOT FTA Detail'!M116 -> 0 | C31: 0 | D31: ='MDOT FTA Detail'!O116 -> 0
A32: Section 5314 - Technical Assistance and Standards | B32: ='MDOT FTA Detail'!M117 -> 0 | C32: 0 | D32: ='MDOT FTA Detail'!O117 -> 0
A33: Section 5316 - Transit - Section 5316 - Job Access/Reverse Commute | B33: ='MDOT FTA Detail'!M118 -> 0 | C33: 0 | D33: ='MDOT FTA Detail'!O118 -> 0
A34: Section 5317 - Transit - Section 5317 - New Freedom Initiative | B34: ='MDOT FTA Detail'!M119 -> 0 | C34: 0 | D34: ='MDOT FTA Detail'!O119 -> 0
A35: Section 5320 - Alternative Transportation in Parks and Public Lands | B35: ='MDOT FTA Detail'!M120 -> 0 | C35: 0 | D35: ='MDOT FTA Detail'!O120 -> 0
A36: Section 5322 - Human Resources and Training | B36: ='MDOT FTA Detail'!M121 -> 0 | C36: =D36-B36 -> 0 | D36: ='MDOT FTA Detail'!O121 -> 0
A37: Section 5324 - Emergency Relief | B37: ='MDOT FTA Detail'!M122 -> 0 | C37: =D37-B37 -> 0 | D37: ='MDOT FTA Detail'!O122 -> 0
A38: Section 5326 - Asset Management Provisions | B38: ='MDOT FTA Detail'!M123 -> 0 | C38: =D38-B38 -> 0 | D38: ='MDOT FTA Detail'!O123 -> 0
A39: Section 5329 - Safety | B39: ='MDOT FTA Detail'!M124 -> 0 | C39: =D39-B39 -> 0 | D39: ='MDOT FTA Detail'!O124 -> 0
A40: Section 5337 - State of Good Repair Grants | B40: ='MDOT FTA Detail'!M125 -> 0 | C40: =D40-B40 -> 0 | D40: ='MDOT FTA Detail'!O125 -> 0
A41: Section 5339 - Bus and Bus Facilities | B41: ='MDOT FTA Detail'!M126 -> 0 | C41: 0 | D41: ='MDOT FTA Detail'!O126 -> 0
A42: Section 5505 - University Transportation Centers Program | B42: ='MDOT FTA Detail'!M127 -> 0 | C42: 0 | D42: ='MDOT FTA Detail'!O127 -> 0
A43: Total Transit | B43: =SUM(B19:B42) -> 26030 | C43: =SUM(C19:C42) -> 26030 | D43: =SUM(D19:D42) -> 52060
A44: Grand Total | B44: =B43+B15 -> 1799193 | C44: =C43+C15 -> 323030 | D44: =D43+D15 -> 2122223

Sheet Constraint
A1: 2013-06-20 | B1: 2014 | F1: 2015 | J1: 2016 | N1: 2017
A2: Highway Program | B2: Estimated Federal Revenue | C2: Estimated Non-Federal Revenue | D2: Estimated Total Revenue | E2: Total Proposed Commitments | F2: Estimated Federal Revenue | G2: Estimated Non-Federal Revenue | H2: Estimated Total Revenue | I2: Total Proposed Commitments | J2: Estimated Federal Revenue | K2: Estimated Non-Federal Revenue | L2: Estimated Total Revenue | M2: Total Proposed Commitments | N2: Estimated Federal Revenue | O2: Estimated Non-Federal Revenue | P2: Estimated Total Revenue | Q2: Total Proposed Commitments
A3: MDOT AC & M Program | C3: 0 | D3: 0 | E3: ='FY 2014'!D3 -> 0 | G3: 0 | H3: 0 | I3: ='FY 2015'!D3 -> 0 | K3: 0 | L3: 0 | M3: ='FY 2016'!D3 -> 0 | O3: 0 | P3: 0 | Q3: ='FY 2017'!D3 -> 0
A4: MDOT FA Program | B4: 2946564 | C4: 493080 | D4: 3439644 | E4: ='FY 2014'!D4 -> 3439644 | F4: 2131298 | G4: 237718 | H4: 2369016 | I4: ='FY 2015'!D4 -> 2369016 | J4: 11718025 | K4: 1308975 | L4: 13027000 | M4: ='FY 2016'!D4 -> 13027000 | N4: 0 | O4: 0 | P4: 0 | Q4: ='FY 2017'!D4 -> 0
A5: Sub-Total MDOT | B5: 2946564 | C5: 493080 | D5: 3439644 | E5: ='FY 2014'!D5 -> 3439644 | F5: 2131298 | G5: 237718 | H5: 2369016 | I5: ='FY 2015'!D5 -> 2369016 | J5: 11718025 | K5: 1308975 | L5: 13027000 | M5: ='FY 2016'!D5 -> 13027000 | N5: 0 | O5: 0 | P5: 0 | Q5: ='FY 2017'!D5 -> 0
A6: Local STP | B6: 1061524 | C6: 192187 | D6: 1253711 | E6: ='FY 2014'!D6 -> 1253711 | F6: 837634 | G6: 101400 | H6: 939034 | I6: ='FY 2015'!D6 -> 939034 | J6: 856324 | K6: 160132 | L6: 1016456 | M6: ='FY 2016'!D6 -> 1016456 | N6: 844163 | O6: 177000 | P6: 1021163 | Q6: ='FY 2017'!D6 -> 1021163
A7: Local Bridge | B7: 720000 | C7: 180000 | D7: 900000 | E7: ='FY 2014'!D7 -> 900000 | F7: 0 | G7: 0 | H7: 0 | I7: ='FY 2015'!D7 -> 0 | J7: 0 | K7: 0 | L7: 0 | M7: ='FY 2016'!D7 -> 0 | N7: 0 | O7: 0 | P7: 0 | Q7: ='FY 2017'!D7 -> 0
A8: Local CMAQ | B8: 324800 | C8: 23200 | D8: 348000 | E8: ='FY 2014'!D8 -> 348000 | F8: 276000 | G8: 0 | H8: 276000 | I8: ='FY 2015'!D8 -> 276000 | J8: 165000 | K8: 25000 | L8: 190000 | M8: ='FY 2016'!D8 -> 190000 | N8: 929000 | O8: 120000 | P8: 1049000 | Q8: ='FY 2017'!D8 -> 1049000
A9: Local Safety | B9: 0 | C9: 0 | D9: 0 | E9: ='FY 2014'!D9 -> 0 | F9: 0 | G9: 0 | H9: 0 | I9: ='FY 2015'!D9 -> 0 | J9: 0 | K9: 0 | L9: 0 | M9: ='FY 2016'!D9 -> 0 | N9: 0 | O9: 0 | P9: 0 | Q9: ='FY 2017'!D9 -> 0
A10: Local Equity Bonus (TEDF) | B10: 0 | C10: 0 | D10: 0 | E10: ='FY 2014'!D10 -> 0 | F10: 0 | G10: 0 | H10: 0 | I10: ='FY 2015'!D10 -> 0 | J10: 0 | K10: 0 | L10: 0 | M10: ='FY 2016'!D10 -> 0 | N10: 0 | O10: 0 | P10: 0 | Q10: ='FY 2017'!D10 -> 0
A11: Local Other FHWA | B11: 0 | C11: 0 | D11: 0 | E11: ='FY 2014'!D11 -> 0 | F11: 0 | G11: 0 | H11: 0 | I11: ='FY 2015'!D11 -> 0 | J11: 0 | K11: 0 | L11: 0 | M11: ='FY 2016'!D11 -> 0 | N11: 0 | O11: 0 | P11: 0 | Q11: ='FY 2017'!D11 -> 0
A12: Local AC Starts | C12: 0 | D12: 0 | E12: ='FY 2014'!D12 -> 0 | G12: 1017200 | H12: 1017200 | I12: ='FY 2015'!D12 -> 1017200 | K12: 0 | L12: 0 | M12: ='FY 2016'!D12 -> 0 | O12: 0 | P12: 0 | Q12: ='FY 2017'!D12 -> 0
A13: Local Non-Federal | C13: 0 | D13: 0 | E13: ='FY 2014'!D13 -> 0 | G13: 0 | H13: 0 | I13: ='FY 2015'!D13 -> 0 | K13: 0 | L13: 0 | M13: ='FY 2016'!D13 -> 0 | O13: 0 | P13: 0 | Q13: ='FY 2017'!D13 -> 0
A14: Sub-Total Local | B14: 2106324 | C14: 395387 | D14: 2501711 | E14: ='FY 2014'!D14 -> 2501711 | F14: 1113634 | G14: 1118600 | H14: 2232234 | I14: ='FY 2015'!D14 -> 2232234 | J14: 1021324 | K14: 185132 | L14: 1206456 | M14: ='FY 2016'!D14 -> 1206456 | N14: 1773163 | O14: 297000 | P14: 2070163 | Q14: ='FY 2017'!D14 -> 2070163
A15: Total Highway | B15: 5052888 | C15: 888467 | D15: 5941355 | E15: ='FY 2014'!D15 -> 5941355 | F15: 3244932 | G15: 1356318 | H15: 4601250 | I15: ='FY 2015'!D15 -> 4601250 | J15: 12739349 | K15: 1494107 | L15: 14233456 | M15: ='FY 2016'!D15 -> 14233456 | N15: 1773163 | O15: 297000 | P15: 2070163 | Q15: ='FY 2017'!D15 -> 2070163
A18: Transit Fund Source | B18: Estimated Federal Revenue | C18: Estimated Non-Federal Revenue | D18: Estimated Total Revenue | E18: Total Proposed Commitments | F18: Estimated Federal Revenue | G18: Estimated Non-Federal Revenue | H18: Estimated Total Revenue | I18: Total Proposed Commitments | J18: Estimated Federal Revenue | K18: Estimated Non-Federal Revenue | L18: Estimated Total Revenue | M18: Total Proposed Commitments | N18: Estimated Federal Revenue | O18: Estimated Non-Federal Revenue | P18: Estimated Total Revenue | Q18: Total Proposed Commitments
A19: CTF - Comprehensive Transit Fund | C19: 0 | D19: 0 | E19: ='FY 2014'!D19 -> 0 | G19: 0 | H19: 0 | I19: ='FY 2015'!D19 -> 0 | K19: 0 | L19: 0 | M19: ='FY 2016'!D19 -> 0 | O19: 0 | P19: 0 | Q19: ='FY 2017'!D19 -> 0
A20: Section 3038 - Over the Road Bus Program | B20: 0 | C20: 0 | D20: 0 | E20: ='FY 2014'!D20 -> 0 | F20: 0 | G20: 0 | H20: 0 | I20: ='FY 2015'!D20 -> 0 | J20: 0 | K20: 0 | L20: 0 | M20: ='FY 2016'!D20 -> 0 | N20: 0 | O20: 0 | P20: 0 | Q20: ='FY 2017'!D20 -> 0
A21: Section 3045 - National Fuel Cell Technology Development Program | B21: 0 | C21: 0 | D21: 0 | E21: ='FY 2014'!D21 -> 0 | F21: 0 | G21: 0 | H21: 0 | I21: ='FY 2015'!D21 -> 0 | J21: 0 | K21: 0 | L21: 0 | M21: ='FY 2016'!D21 -> 0 | N21: 0 | O21: 0 | P21: 0 | Q21: ='FY 2017'!D21 -> 0
A22: Section 5303 - Metropolitan Transportation Planning | B22: 0 | C22: 0 | D22: 0 | E22: ='FY 2014'!D22 -> 0 | F22: 0 | G22: 0 | H22: 0 | I22: ='FY 2015'!D22 -> 0 | J22: 0 | K22: 0 | L22: 0 | M22: ='FY 2016'!D22 -> 0 | N22: 0 | O22: 0 | P22: 0 | Q22: ='FY 2017'!D22 -> 0
A23: Section 5304 - Statewide Transportation Planning | B23: 0 | C23: 0 | D23: 0 | E23: ='FY 2014'!D23 -> 0 | F23: 0 | G23: 0 | H23: 0 | I23: ='FY 2015'!D23 -> 0 | J23: 0 | K23: 0 | L23: 0 | M23: ='FY 2016'!D23 -> 0 | N23: 0 | O23: 0 | P23: 0 | Q23: ='FY 2017'!D23 -> 0
A24: Section 5305 - Metropolitan and Statewide Planning | B24: 0 | C24: 0 | D24: 0 | E24: ='FY 2014'!D24 -> 0 | F24: 0 | G24: 0 | H24: 0 | I24: ='FY 2015'!D24 -> 0 | J24: 0 | K24: 0 | L24: 0 | M24: ='FY 2016'!D24 -> 0 | N24: 0 | O24: 0 | P24: 0 | Q24: ='FY 2017'!D24 -> 0
A25: Section 5307 - UZA Formula | B25: 680000 | C25: 1150000 | D25: 1830000 | E25: ='FY 2014'!D25 -> 1830000 | F25: 0 | G25: 0 | H25: 0 | I25: ='FY 2015'!D25 -> 0 | J25: 0 | K25: 0 | L25: 0 | M25: ='FY 2016'!D25 -> 0 | N25: 0 | O25: 0 | P25: 0 | Q25: ='FY 2017'!D25 -> 0
A26: Section 5308 - Clean Fuels Program | B26: 0 | C26: 0 | D26: 0 | E26: ='FY 2014'!D26 -> 0 | F26: 0 | G26: 0 | H26: 0 | I26: ='FY 2015'!D26 -> 0 | J26: 0 | K26: 0 | L26: 0 | M26: ='FY 2016'!D26 -> 0 | N26: 0 | O26: 0 | P26: 0 | Q26: ='FY 2017'!D26 -> 0
A27: Section 5309 - Fixed Guideway Capital Investment Grant | B27: 0 | C27: 0 | D27: 0 | E27: ='FY 2014'!D27 -> 0 | F27: 0 | G27: 0 | H27: 0 | I27: ='FY 2015'!D27 -> 0 | J27: 0 | K27: 0 | L27: 0 | M27: ='FY 2016'!D27 -> 0 | N27: 0 | O27: 0 | P27: 0 | Q27: ='FY 2017'!D27 -> 0
A28: Section 5310 - Enhanced Mobility of Seniors and Individuals with Disabilities | B28: 0 | C28: 0 | D28: 0 | E28: ='FY 2014'!D28 -> 0 | F28: 0 | G28: 0 | H28: 0 | I28: ='FY 2015'!D28 -> 0 | J28: 0 | K28: 0 | L28: 0 | M28: ='FY 2016'!D28 -> 0 | N28: 0 | O28: 0 | P28: 0 | Q28: ='FY 2017'!D28 -> 0
A29: Section 5311 - Non-UZA | B29: 26030 | C29: 26030 | D29: 52060 | E29: ='FY 2014'!D29 -> 52060 | F29: 26030 | G29: 26030 | H29: 52060 | I29: ='FY 2015'!D29 -> 52060 | J29: 26030 | K29: 26030 | L29: 52060 | M29: ='FY 2016'!D29 -> 52060 | N29: 26030 | O29: 26030 | P29: 52060 | Q29: ='FY 2017'!D29 -> 52060
A30: Section 5312 - Research, Development, Demonstration, and Deployment | B30: 0 | C30: 0 | D30: 0 | E30: ='FY 2014'!D31 -> 0 | F30: 0 | G30: 0 | H30: 0 | I30: ='FY 2015'!D31 -> 0 | J30: 0 | K30: 0 | L30: 0 | M30: ='FY 2016'!D31 -> 0 | N30: 0 | O30: 0 | P30: 0 | Q30: ='FY 2017'!D31 -> 0
A31: Section 5313 - Transit Cooperative Research Program | B31: 0 | C31: 0 | D31: 0 | E31: ='FY 2014'!D32 -> 0 | F31: 0 | G31: 0 | H31: 0 | I31: ='FY 2015'!D32 -> 0 | J31: 0 | K31: 0 | L31: 0 | M31: ='FY 2016'!D32 -> 0 | N31: 0 | O31: 0 | P31: 0 | Q31: ='FY 2017'!D32 -> 0
A32: Section 5314 - Technical Assistance and Standards | B32: 0 | C32: 0 | D32: 0 | E32: ='FY 2014'!D33 -> 299000 | F32: 0 | G32: 0 | H32: 0 | I32: ='FY 2015'!D33 -> 0 | J32: 0 | K32: 0 | L32: 0 | M32: ='FY 2016'!D33 -> 0 | N32: 0 | O32: 0 | P32: 0 | Q32: ='FY 2017'!D33 -> 0
A33: Section 5316 - Transit - Section 5316 - Job Access/Reverse Commute | B33: 193000 | C33: 106000 | D33: 299000 | E33: ='FY 2014'!D34 -> 75000 | F33: 0 | G33: 0 | H33: 0 | I33: ='FY 2015'!D34 -> 0 | J33: 0 | K33: 0 | L33: 0 | M33: ='FY 2016'!D34 -> 0 | N33: 0 | O33: 0 | P33: 0 | Q33: ='FY 2017'!D34 -> 0
A34: Section 5317 - Transit - Section 5317 - New Freedom Initiative | B34: 75000 | C34: 0 | D34: 75000 | E34: ='FY 2014'!D35 -> 0 | F34: 0 | G34: 0 | H34: 0 | I34: ='FY 2015'!D35 -> 0 | J34: 0 | K34: 0 | L34: 0 | M34: ='FY 2016'!D35 -> 0 | N34: 0 | O34: 0 | P34: 0 | Q34: ='FY 2017'!D35 -> 0
A35: Section 5320 - Alternative Transportation in Parks and Public Lands | B35: 0 | C35: 0 | D35: 0 | E35: ='FY 2014'!D41 -> 0 | F35: 0 | G35: 0 | H35: 0 | I35: ='FY 2015'!D41 -> 0 | J35: 0 | K35: 0 | L35: 0 | M35: ='FY 2016'!D41 -> 0 | N35: 0 | O35: 0 | P35: 0 | Q35: ='FY 2017'!D41 -> 0
A36: Section 5322 - Human Resources and Training | B36: 0 | C36: 0 | D36: 0 | E36: ='FY 2014'!D42 -> 0 | F36: 0 | G36: 0 | H36: 0 | I36: ='FY 2015'!D42 -> 0 | J36: 0 | K36: 0 | L36: 0 | M36: ='FY 2016'!D42 -> 0 | N36: 0 | O36: 0 | P36: 0 | Q36: ='FY 2017'!D42 -> 0
A37: Section 5324 - Emergency Relief | B37: 0 | C37: 0 | D37: 0 | E37: 0 | F37: 0 | G37: 0 | H37: 0 | I37: 0 | J37: 0 | K37: 0 | L37: 0 | M37: 0 | N37: 0 | O37: 0 | P37: 0 | Q37: 0
A38: Section 5326 - Asset Management Provisions | B38: 0 | C38: 0 | D38: 0 | E38: 0 | F38: 0 | G38: 0 | H38: 0 | I38: 0 | J38: 0 | K38: 0 | L38: 0 | M38: 0 | N38: 0 | O38: 0 | P38: 0 | Q38: 0
A39: Section 5329 - Safety | B39: 0 | C39: 0 | D39: 0 | E39: 0 | F39: 0 | G39: 0 | H39: 0 | I39: 0 | J39: 0 | K39: 0 | L39: 0 | M39: 0 | N39: 0 | O39: 0 | P39: 0 | Q39: 0
A40: Section 5337 - State of Good Repair Grants | B40: 0 | C40: 0 | D40: 0 | E40: 0 | F40: 0 | G40: 0 | H40: 0 | I40: 0 | J40: 0 | K40: 0 | L40: 0 | M40: 0 | N40: 0 | O40: 0 | P40: 0 | Q40: 0
A41: Section 5339 - Bus and Bus Facilities | B41: 0 | C41: 0 | D41: 0 | E41: 0 | F41: 0 | G41: 0 | H41: 0 | I41: 0 | J41: 0 | K41: 0 | L41: 0 | M41: 0 | N41: 0 | O41: 0 | P41: 0 | Q41: 0
A42: Section 5505 - University Transportation Centers Program | B42: 0 | C42: 0 | D42: 0 | E42: 0 | F42: 0 | G42: 0 | H42: 0 | I42: 0 | J42: 0 | K42: 0 | L42: 0 | M42: 0 | N42: 0 | O42: 0 | P42: 0 | Q42: 0
A43: Total Transit | B43: 974030 | C43: 1282030 | D43: 2256060 | E43: =SUM(E19:E42) -> 2256060 | F43: 26030 | G43: 26030 | H43: 52060 | I43: 52060 | J43: 26030 | K43: 26030 | L43: 52060 | M43: 52060 | N43: 26030 | O43: 26030 | P43: 52060 | Q43: =SUM(Q19:Q42) -> 52060
A44: Grand Total | B44: 6026918 | C44: 2170497 | D44: 8197415 | E44: =SUM(E15+E43) -> 8197415 | F44: 3270962 | G44: 1382348 | H44: 4653310 | I44: 4653310 | J44: 12765379 | K44: 1520137 | L44: 14285516 | M44: 14285516 | N44: 1799193 | O44: 323030 | P44: 2122223 | Q44: 2122223

Sheet Illustrative
A1: Illustrative Projects (Optional)
A2: 2013-01-09
A3: Required Fields | Z3: Optional Fields
A4: Fiscal Year | B4: County | C4: Respon-sible Agency | D4: Project Name | E4: Limits | F4: Length | G4: Primary Work Type | H4: Project Description | I4: Phase | J4: Advance Construct | K4: Federal Cost ($1000s) | L4: Federal Fund Source | M4: State Cost ($1000s) | N4: State Fund Source | O4: Local Cost ($1000s) | P4: Local Fund Source | Q4: Total Cost ($1000s) | R4: MDOT Job No. | S4: Local ID No. | T4: MPO/ Rural Approval Date | U4: Amend-ment Type | V4: Air Quality | W4: Comments | X4: Total Project Cost ($1000s) | Y4: x | Z4: Local Priority | AA4: EJ | AB4: Federal Approval Date | AC4: Capped Federal Cost ($1000s) | AD4: Date Obligated | AE4: Amount Obligated ($1000s) | AF4: Let Date

Sheet NonFHWA_NonFTA
A1: Non FHWA/FTA Projects FY 2014 - 2017 (Optional)
A2: 2013-01-02
A3: Required Fields | Z3: Optional Fields
A4: Fiscal Year | B4: County | C4: Respon-sible Agency | D4: Project Name | E4: Limits | F4: Length | G4: Primary Work Type | H4: Project Description | I4: Phase | J4: Advance Construct | K4: Federal Cost ($1000s) | L4: Federal Fund Source | M4: State Cost ($1000s) | N4: State Fund Source | O4: Local Cost ($1000s) | P4: Local Fund Source | Q4: Total Cost ($1000s) | R4: MDOT Job No. | S4: Local ID No. | T4: MPO/ Rural Approval Date | U4: Amend-ment Type | V4: Air Quality | W4: Comments | X4: Total Project Cost ($1000s) | Y4: x | Z4: Local Priority | AA4: EJ | AB4: Federal Approval Date | AC4: Capped Federal Cost ($1000s) | AD4: Date Obligated | AE4: Amount Obligated ($1000s) | AF4: Let Date
A5: 2014 | B5: Berrien | C5: City of Niles | D5: Snow Removal Equipment | E5: Jerry Tyler Memorial Airport | G5: Aviation | H5: Replace aging snow removal equipment | K5: 90 | M5: 5 | O5: 5 | P5: CITY | Q5: 100 | X5: 100
A6: 2015 | B6: Berrien | C6: City of Niles | D6: Runway 15/33 | E6: Jerry Tyler Memorial Airport | G6: Aviation | H6: Paint and Crack Seal Rwy 15/33 | I6: CON | K6: 39 | M6: 2 | O6: 2 | P6: CITY | Q6: 43 | X6: 43
A7: 2017 | B7: Berrien | C7: City of Niles | D7: Rehabilitate Runway 15/33 | E7: Jerry Tyler Memorial Airport | G7: Aviation | H7: Design the rehabilitation of runway 15/33 | I7: Design | K7: 68 | M7: 3750 | O7: 4 | P7: CITY | Q7: 75 | X7: 75
A8: 2018 | B8: Berrien | C8: City of Niles | D8: Rehabilitate Runway 15/33 | E8: Jerry Tyler Memorial Airport | G8: Aviation | H8: Full rehab of runway 15/33 | I8: CON | K8: 642 | M8: 59 | O8: 59 | P8: CITY | Q8: 1175 | W8: Federal apportionment in the amount of 416,000 | X8: 1175
A9: 2020 | B9: Berrien | C9: City of Niles | D9: Rehabilitate Airport Apron and Parking Lot | E9: Jerry Tyler Memorial Airport | G9: Aviation | H9: Rehad east aircraft apron and automobile parking lot | I9: CON | K9: 207 | M9: 12 | O9: 12 | P9: CITY | Q9: 230 | X9: 230
A10: 2023 | B10: Berrien | C10: City of Niles | D10: Fence Installation | E10: Jerry Tyler Memorial Airport | G10: Aviation | H10: Construct animal control fence | I10: CON | K10: 328 | M10: 18 | O10: 18 | P10: CITY | Q10: 364 | X10: 364

Sheet MDOT FTA Detail
B1: E-File v. 3.4 (04.26.13)
D3: 2014 | G3: 2015 | J3: 2016 | M3: 2017
A4: Fund | B4: Fund Sources | C4: MDOT | D4: Proposed Federal Commitments | E4: Proposed Non-Federal Commitments | F4: Total Proposed Commitments | G4: Proposed Federal Commitments | H4: Proposed Non-Federal Commitments | I4: Total Proposed Commitments | J4: Proposed Federal Commitments | K4: Proposed Non-Federal Commitments | L4: Total Proposed Commitments | M4: Proposed Federal Commitments | N4: Proposed Non-Federal Commitments | O4: Total Proposed Commitments
A6: BHI | B6: Bridge Rehabilitation - Prior 1991 - Interstate | C6: MDOT FA | D6: =SUMPRODUCT((Projects!$A$5:$A$2481='MDOT FTA Detail'!$D$3)*(Projects!$C$5:$C$2481='MDOT FTA Detail'!$C$4)*(Projects!$L$5:$L$2481='MDOT FTA Detail'!$A6)*(Projects!$J$5:$J$2481<>'MDOT FTA Detail'!$A$159)*(Projects!$K$5:K$2481)) -> 0 | E6: =F6-D6 -> 0 | F6: =SUMPRODUCT((Projects!$A$5:$A$2481='MDOT FTA Detail'!$D$3)*(Projects!$C$5:$C$2481='MDOT FTA Detail'!$C$4)*(Projects!$L$5:$L$2481='MDOT FTA Detail'!$A6)*(Projects!$J$5:$J$2481<>'MDOT FTA Detail'!$A$159)*(Projects!$Q$5:Q$2481)) -> 0 | G6: =SUMPRODUCT((Projects!$A$5:$A$2481='MDOT FTA Detail'!$G$3)*(Projects!$C$5:$C$2481='MDOT FTA Detail'!$C$4)*(Projects!$L$5:$L$2481='MDOT FTA Detail'!$A6)*(Projects!$J$5:$J$2481<>'MDOT FTA Detail'!$A$159)*(Projects!$K$5:K$2481)) -> 0 | H6: =I6-G6 -> 0 | I6: =SUMPRODUCT((Projects!$A$5:$A$2481='MDOT FTA Detail'!$G$3)*(Projects!$C$5:$C$2481='MDOT FTA Detail'!$C$4)*(Projects!$L$5:$L$2481='MDOT FTA Detail'!$A6)*(Projects!$J$5:$J$2481<>'MDOT FTA Detail'!$A$159)*(Projects!$Q$5:Q$2481)) -> 0 | J6: =SUMPRODUCT((Projects!$A$5:$A$2481='MDOT FTA Detail'!$J$3)*(Projects!$C$5:$C$2481='MDOT FTA Detail'!$C$4)*(Projects!$L$5:$L$2481='MDOT FTA Detail'!$A6)*(Projects!$J$5:$J$2481<>'MDOT FTA Detail'!$A$159)*(Projects!$K$5:$K$2481)) -> 0 | K6: =L6-J6 -> 0 | L6: =SUMPRODUCT((Projects!$A$5:$A$2481='MDOT FTA Detail'!$J$3)*(Projects!$C$5:$C$2481='MDOT FTA Detail'!$C$4)*(Projects!$L$5:$L$2481='MDOT FTA Detail'!$A6)*(Projects!$J$5:$J$2481<>'MDOT FTA Detail'!$A$159)*(Projects!$Q$5:$Q$2481)) -> 0 | M6: =SUMPRODUCT((Projects!$A$5:$A$2481='MDOT FTA Detail'!$M$3)*(Projects!$C$5:$C$2481='MDOT FTA Detail'!$C$4)*(Projects!$L$5:$L$2481='MDOT FTA Detail'!$A6)*(Projects!$J$5:$J$2481<>'MDOT FTA Detail'!$A$159)*(Projects!$K$5:$K$2481)) -> 0 | N6: =O6-M6 -> 0 | O6: =SUMPRODUCT((Projects!$A$5:$A$2481='MDOT FTA Detail'!$M$3)*(Projects!$C$5:$C$2481='MDOT FTA Detail'!$C$4)*(Projects!$L$5:$L$2481='MDOT FTA Detail'!$A6)*(Projects!$J$5:$J$2481<>'MDOT FTA Detail'!$A$159)*(Projects!$Q$5:$Q$2481)) -> 0
A7: BHN | B7: Bridge Rehabilitation - National Highway System (NHS) | C7: MDOT FA | D7: =SUMPRODUCT((Projects!$A$5:$A$2481='MDOT FTA Detail'!$D$3)*(Projects!$C$5:$C$2481='MDOT FTA Detail'!$C$4)*(Projects!$L$5:$L$2481='MDOT FTA Detail'!$A7)*(Projects!$J$5:$J$2481<>'MDOT FTA Detail'!$A$159)*(Projects!$K$5:K$2481)) -> 0 | E7: 0 | F7: =SUMPRODUCT((Projects!$A$5:$A$2481='MDOT FTA Detail'!$D$3)*(Projects!$C$5:$C$2481='MDOT FTA Detail'!$C$4)*(Projects!$L$5:$L$2481='MDOT FTA Detail'!$A7)*(Projects!$J$5:$J$2481<>'MDOT FTA Detail'!$A$159)*(Projects!$Q$5:Q$2481)) -> 0 | G7: =SUMPRODUCT((Projects!$A$5:$A$2481='MDOT FTA Detail'!$G$3)*(Projects!$C$5:$C$2481='MDOT FTA Detail'!$C$4)*(Projects!$L$5:$L$2481='MDOT FTA Detail'!$A7)*(Projects!$J$5:$J$2481<>'MDOT FTA Detail'!$A$159)*(Projects!$K$5:K$2481)) -> 0 | H7: 0 | I7: =SUMPRODUCT((Projects!$A$5:$A$2481='MDOT FTA Detail'!$G$3)*(Projects!$C$5:$C$2481='MDOT FTA Detail'!$C$4)*(Projects!$L$5:$L$2481='MDOT FTA Detail'!$A7)*(Projects!$J$5:$J$2481<>'MDOT FTA Detail'!$A$159)*(Projects!$Q$5:Q$2481)) -> 0 | J7: =SUMPRODUCT((Projects!$A$5:$A$2481='MDOT FTA Detail'!$J$3)*(Projects!$C$5:$C$2481='MDOT FTA Detail'!$C$4)*(Projects!$L$5:$L$2481='MDOT FTA Detail'!$A7)*(Projects!$J$5:$J$2481<>'MDOT FTA Detail'!$A$159)*(Projects!$K$5:$K$2481)) -> 0 | K7: 0 | L7: =SUMPRODUCT((Projects!$A$5:$A$2481='MDOT FTA Detail'!$J$3)*(Projects!$C$5:$C$2481='MDOT FTA Detail'!$C$4)*(Projects!$L$5:$L$2481='MDOT FTA Detail'!$A7)*(Projects!$J$5:$J$2481<>'MDOT FTA Detail'!$A$159)*(Projects!$Q$5:$Q$2481)) -> 0 | M7: =SUMPRODUCT((Projects!$A$5:$A$2481='MDOT FTA Detail'!$M$3)*(Projects!$C$5:$C$2481='MDOT FTA Detail'!$C$4)*(Projects!$L$5:$L$2481='MDOT FTA Detail'!$A7)*(Projects!$J$5:$J$2481<>'MDOT FTA Detail'!$A$159)*(Projects!$K$5:$K$2481)) -> 0 | N7: 0 | O7: =SUMPRODUCT((Projects!$A$5:$A$2481='MDOT FTA Detail'!$M$3)*(Projects!$C$5:$C$2481='MDOT FTA Detail'!$C$4)*(Projects!$L$5:$L$2481='MDOT FTA Detail'!$A7)*(Projects!$J$5:$J$2481<>'MDOT FTA Detail'!$A$159)*(Projects!$Q$5:$Q$2481)) -> 0
A8: BHO | B8: Bridge Rehabilitation - Not Classified, Off System | C8: MDOT FA | D8: =SUMPRODUCT((Projects!$A$5:$A$2481='MDOT FTA Detail'!$D$3)*(Projects!$C$5:$C$2481='MDOT FTA Detail'!$C$4)*(Projects!$L$5:$L$2481='MDOT FTA Detail'!$A8)*(Projects!$J$5:$J$2481<>'MDOT FTA Detail'!$A$159)*(Projects!$K$5:K$2481)) -> 0 | E8: 0 | F8: =SUMPRODUCT((Projects!$A$5:$A$2481='MDOT FTA Detail'!$D$3)*(Projects!$C$5:$C$2481='MDOT FTA Detail'!$C$4)*(Projects!$L$5:$L$2481='MDOT FTA Detail'!$A8)*(Projects!$J$5:$J$2481<>'MDOT FTA Detail'!$A$159)*(Projects!$Q$5:Q$2481)) -> 0 | G8: =SUMPRODUCT((Projects!$A$5:$A$2481='MDOT FTA Detail'!$G$3)*(Projects!$C$5:$C$2481='MDOT FTA Detail'!$C$4)*(Projects!$L$5:$L$2481='MDOT FTA Detail'!$A8)*(Projects!$J$5:$J$2481<>'MDOT FTA Detail'!$A$159)*(Projects!$K$5:K$2481)) -> 0 | H8: 0 | I8: =SUMPRODUCT((Projects!$A$5:$A$2481='MDOT FTA Detail'!$G$3)*(Projects!$C$5:$C$2481='MDOT FTA Detail'!$C$4)*(Projects!$L$5:$L$2481='MDOT FTA Detail'!$A8)*(Projects!$J$5:$J$2481<>'MDOT FTA Detail'!$A$159)*(Projects!$Q$5:Q$2481)) -> 0 | J8: =SUMPRODUCT((Projects!$A$5:$A$2481='MDOT FTA Detail'!$J$3)*(Projects!$C$5:$C$2481='MDOT FTA Detail'!$C$4)*(Projects!$L$5:$L$2481='MDOT FTA Detail'!$A8)*(Projects!$J$5:$J$2481<>'MDOT FTA Detail'!$A$159)*(Projects!$K$5:$K$2481)) -> 0 | K8: 0 | L8: =SUMPRODUCT((Projects!$A$5:$A$2481='MDOT FTA Detail'!$J$3)*(Projects!$C$5:$C$2481='MDOT FTA Detail'!$C$4)*(Projects!$L$5:$L$2481='MDOT FTA Detail'!$A8)*(Projects!$J$5:$J$2481<>'MDOT FTA Detail'!$A$159)*(Projects!$Q$5:$Q$2481)) -> 0 | M8: =SUMPRODUCT((Projects!$A$5:$A$2481='MDOT FTA Detail'!$M$3)*(Projects!$C$5:$C$2481='MDOT FTA Detail'!$C$4)*(Projects!$L$5:$L$2481='MDOT FTA Detail'!$A8)*(Projects!$J$5:$J$2481<>'MDOT FTA Detail'!$A$159)*(Projects!$K$5:$K$2481)) -> 0 | N8: 0 | O8: =SUMPRODUCT((Projects!$A$5:$A$2481='MDOT FTA Detail'!$M$3)*(Projects!$C$5:$C$2481='MDOT FTA Detail'!$C$4)*(Projects!$L$5:$L$2481='MDOT FTA Detail'!$A8)*(Projects!$J$5:$J$2481<>'MDOT FTA Detail'!$A$159)*(Projects!$Q$5:$Q$2481)) -> 0
A9: BHT | B9: Bridge Rehabilitation - Surface Transportation Program (STP) | C9: MDOT FA | D9: =SUMPRODUCT((Projects!$A$5:$A$2481='MDOT FTA Detail'!$D$3)*(Projects!$C$5:$C$2481='MDOT FTA Detail'!$C$4)*(Projects!$L$5:$L$2481='MDOT FTA Detail'!$A9)*(Projects!$J$5:$J$2481<>'MDOT FTA Detail'!$A$159)*(Projects!$K$5:K$2481)) -> 0 | E9: 0 | F9: =SUMPRODUCT((Projects!$A$5:$A$2481='MDOT FTA Detail'!$D$3)*(Projects!$C$5:$C$2481='MDOT FTA Detail'!$C$4)*(Projects!$L$5:$L$2481='MDOT FTA Detail'!$A9)*(Projects!$J$5:$J$2481<>'MDOT FTA Detail'!$A$159)*(Projects!$Q$5:Q$2481)) -> 0 | G9: =SUMPRODUCT((Projects!$A$5:$A$2481='MDOT FTA Detail'!$G$3)*(Projects!$C$5:$C$2481='MDOT FTA Detail'!$C$4)*(Projects!$L$5:$L$2481='MDOT FTA Detail'!$A9)*(Projects!$J$5:$J$2481<>'MDOT FTA Detail'!$A$159)*(Projects!$K$5:K$2481)) -> 0 | H9: 0 | I9: =SUMPRODUCT((Projects!$A$5:$A$2481='MDOT FTA Detail'!$G$3)*(Projects!$C$5:$C$2481='MDOT FTA Detail'!$C$4)*(Projects!$L$5:$L$2481='MDOT FTA Detail'!$A9)*(Projects!$J$5:$J$2481<>'MDOT FTA Detail'!$A$159)*(Projects!$Q$5:Q$2481)) -> 0 | J9: =SUMPRODUCT((Projects!$A$5:$A$2481='MDOT FTA Detail'!$J$3)*(Projects!$C$5:$C$2481='MDOT FTA Detail'!$C$4)*(Projects!$L$5:$L$2481='MDOT FTA Detail'!$A9)*(Projects!$J$5:$J$2481<>'MDOT FTA Detail'!$A$159)*(Projects!$K$5:$K$2481)) -> 0 | K9: 0 | L9: =SUMPRODUCT((Projects!$A$5:$A$2481='MDOT FTA Detail'!$J$3)*(Projects!$C$5:$C$2481='MDOT FTA Detail'!$C$4)*(Projects!$L$5:$L$2481='MDOT FTA Detail'!$A9)*(Projects!$J$5:$J$2481<>'MDOT FTA Detail'!$A$159)*(Projects!$Q$5:$Q$2481)) -> 0 | M9: =SUMPRODUCT((Projects!$A$5:$A$2481='MDOT FTA Detail'!$M$3)*(Projects!$C$5:$C$2481='MDOT FTA Detail'!$C$4)*(Projects!$L$5:$L$2481='MDOT FTA Detail'!$A9)*(Projects!$J$5:$J$2481<>'MDOT FTA Detail'!$A$159)*(Projects!$K$5:$K$2481)) -> 0 | N9: 0 | O9: =SUMPRODUCT((Projects!$A$5:$A$2481='MDOT FTA Detail'!$M$3)*(Projects!$C$5:$C$2481='MDOT FTA Detail'!$C$4)*(Projects!$L$5:$L$2481='MDOT FTA Detail'!$A9)*(Projects!$J$5:$J$2481<>'MDOT FTA Detail'!$A$159)*(Projects!$Q$5:$Q$2481)) -> 0
A10: BI08 | B10: Build Michigan FY08 | C10: MDOT FA | D10: =SUMPRODUCT((Projects!$A$5:$A$2481='MDOT FTA Detail'!$D$3)*(Projects!$C$5:$C$2481='MDOT FTA Detail'!$C$4)*(Projects!$L$5:$L$2481='MDOT FTA Detail'!$A10)*(Projects!$J$5:$J$2481<>'MDOT FTA Detail'!$A$159)*(Projects!$K$5:K$2481)) -> 0 | E10: 0 | F10: =SUMPRODUCT((Projects!$A$5:$A$2481='MDOT FTA Detail'!$D$3)*(Projects!$C$5:$C$2481='MDOT FTA Detail'!$C$4)*(Projects!$L$5:$L$2481='MDOT FTA Detail'!$A10)*(Projects!$J$5:$J$2481<>'MDOT FTA Detail'!$A$159)*(Projects!$Q$5:Q$2481)) -> 0 | G10: =SUMPRODUCT((Projects!$A$5:$A$2481='MDOT FTA Detail'!$G$3)*(Projects!$C$5:$C$2481='MDOT FTA Detail'!$C$4)*(Projects!$L$5:$L$2481='MDOT FTA Detail'!$A10)*(Projects!$J$5:$J$2481<>'MDOT FTA Detail'!$A$159)*(Projects!$K$5:K$2481)) -> 0 | H10: 0 | I10: =SUMPRODUCT((Projects!$A$5:$A$2481='MDOT FTA Detail'!$G$3)*(Projects!$C$5:$C$2481='MDOT FTA Detail'!$C$4)*(Projects!$L$5:$L$2481='MDOT FTA Detail'!$A10)*(Projects!$J$5:$J$2481<>'MDOT FTA Detail'!$A$159)*(Projects!$Q$5:Q$2481)) -> 0 | J10: =SUMPRODUCT((Projects!$A$5:$A$2481='MDOT FTA Detail'!$J$3)*(Projects!$C$5:$C$2481='MDOT FTA Detail'!$C$4)*(Projects!$L$5:$L$2481='MDOT FTA Detail'!$A10)*(Projects!$J$5:$J$2481<>'MDOT FTA Detail'!$A$159)*(Projects!$K$5:$K$2481)) -> 0 | K10: 0 | L10: =SUMPRODUCT((Projects!$A$5:$A$2481='MDOT FTA Detail'!$J$3)*(Projects!$C$5:$C$2481='MDOT FTA Detail'!$C$4)*(Projects!$L$5:$L$2481='MDOT FTA Detail'!$A10)*(Projects!$J$5:$J$2481<>'MDOT FTA Detail'!$A$159)*(Projects!$Q$5:$Q$2481)) -> 0 | M10: =SUMPRODUCT((Projects!$A$5:$A$2481='MDOT FTA Detail'!$M$3)*(Projects!$C$5:$C$2481='MDOT FTA Detail'!$C$4)*(Projects!$L$5:$L$2481='MDOT FTA Detail'!$A10)*(Projects!$J$5:$J$2481<>'MDOT FTA Detail'!$A$159)*(Projects!$K$5:$K$2481)) -> 0 | N10: 0 | O10: =SUMPRODUCT((Projects!$A$5:$A$2481='MDOT FTA Detail'!$M$3)*(Projects!$C$5:$C$2481='MDOT FTA Detail'!$C$4)*(Projects!$L$5:$L$2481='MDOT FTA Detail'!$A10)*(Projects!$J$5:$J$2481<>'MDOT FTA Detail'!$A$159)*(Projects!$Q$5:$Q$2481)) -> 0
A11: BO | B11: Bridge Not Classified Off System | C11: MDOT FA | D11: =SUMPRODUCT((Projects!$A$5:$A$2481='MDOT FTA Detail'!$D$3)*(Projects!$C$5:$C$2481='MDOT FTA Detail'!$C$4)*(Projects!$L$5:$L$2481='MDOT FTA Detail'!$A11)*(Projects!$J$5:$J$2481<>'MDOT FTA Detail'!$A$159)*(Projects!$K$5:K$2481)) -> 0 | E11: =F11-D11 -> 0 | F11: =SUMPRODUCT((Projects!$A$5:$A$2481='MDOT FTA Detail'!$D$3)*(Projects!$C$5:$C$2481='MDOT FTA Detail'!$C$4)*(Projects!$L$5:$L$2481='MDOT FTA Detail'!$A11)*(Projects!$J$5:$J$2481<>'MDOT FTA Detail'!$A$159)*(Projects!$Q$5:Q$2481)) -> 0 | G11: =SUMPRODUCT((Projects!$A$5:$A$2481='MDOT FTA Detail'!$G$3)*(Projects!$C$5:$C$2481='MDOT FTA Detail'!$C$4)*(Projects!$L$5:$L$2481='MDOT FTA Detail'!$A11)*(Projects!$J$5:$J$2481<>'MDOT FTA Detail'!$A$159)*(Projects!$K$5:K$2481)) -> 0 | H11: =I11-G11 -> 0 | I11: =SUMPRODUCT((Projects!$A$5:$A$2481='MDOT FTA Detail'!$G$3)*(Projects!$C$5:$C$2481='MDOT FTA Detail'!$C$4)*(Projects!$L$5:$L$2481='MDOT FTA Detail'!$A11)*(Projects!$J$5:$J$2481<>'MDOT FTA Detail'!$A$159)*(Projects!$Q$5:Q$2481)) -> 0 | J11: =SUMPRODUCT((Projects!$A$5:$A$2481='MDOT FTA Detail'!$J$3)*(Projects!$C$5:$C$2481='MDOT FTA Detail'!$C$4)*(Projects!$L$5:$L$2481='MDOT FTA Detail'!$A11)*(Projects!$J$5:$J$2481<>'MDOT FTA Detail'!$A$159)*(Projects!$K$5:$K$2481)) -> 0 | K11: =L11-J11 -> 0 | L11: =SUMPRODUCT((Projects!$A$5:$A$2481='MDOT FTA Detail'!$J$3)*(Projects!$C$5:$C$2481='MDOT FTA Detail'!$C$4)*(Projects!$L$5:$L$2481='MDOT FTA Detail'!$A11)*(Projects!$J$5:$J$2481<>'MDOT FTA Detail'!$A$159)*(Projects!$Q$5:$Q$2481)) -> 0 | M11: =SUMPRODUCT((Projects!$A$5:$A$2481='MDOT FTA Detail'!$M$3)*(Projects!$C$5:$C$2481='MDOT FTA Detail'!$C$4)*(Projects!$L$5:$L$2481='MDOT FTA Detail'!$A11)*(Projects!$J$5:$J$2481<>'MDOT FTA Detail'!$A$159)*(Projects!$K$5:$K$2481)) -> 0 | N11: =O11-M11 -> 0 | O11: =SUMPRODUCT((Projects!$A$5:$A$2481='MDOT FTA Detail'!$M$3)*(Projects!$C$5:$C$2481='MDOT FTA Detail'!$C$4)*(Projects!$L$5:$L$2481='MDOT FTA Detail'!$A11)*(Projects!$J$5:$J$2481<>'MDOT FTA Detail'!$A$159)*(Projects!$Q$5:$Q$2481)) -> 0
A12: BOWD | B12: Business Opportunity & Workforce Development Center | C12: MDOT FA | D12: =SUMPRODUCT((Projects!$A$5:$A$2481='MDOT FTA Detail'!$D$3)*(Projects!$C$5:$C$2481='MDOT FTA Detail'!$C$4)*(Projects!$L$5:$L$2481='MDOT FTA Detail'!$A12)*(Projects!$J$5:$J$2481<>'MDOT FTA Detail'!$A$159)*(Projects!$K$5:K$2481)) -> 0 | E12: 0 | F12: =SUMPRODUCT((Projects!$A$5:$A$2481='MDOT FTA Detail'!$D$3)*(Projects!$C$5:$C$2481='MDOT FTA Detail'!$C$4)*(Projects!$L$5:$L$2481='MDOT FTA Detail'!$A12)*(Projects!$J$5:$J$2481<>'MDOT FTA Detail'!$A$159)*(Projects!$Q$5:Q$2481)) -> 0 | G12: =SUMPRODUCT((Projects!$A$5:$A$2481='MDOT FTA Detail'!$G$3)*(Projects!$C$5:$C$2481='MDOT FTA Detail'!$C$4)*(Projects!$L$5:$L$2481='MDOT FTA Detail'!$A12)*(Projects!$J$5:$J$2481<>'MDOT FTA Detail'!$A$159)*(Projects!$K$5:K$2481)) -> 0 | H12: 0 | I12: =SUMPRODUCT((Projects!$A$5:$A$2481='MDOT FTA Detail'!$G$3)*(Projects!$C$5:$C$2481='MDOT FTA Detail'!$C$4)*(Projects!$L$5:$L$2481='MDOT FTA Detail'!$A12)*(Projects!$J$5:$J$2481<>'MDOT FTA Detail'!$A$159)*(Projects!$Q$5:Q$2481)) -> 0 | J12: =SUMPRODUCT((Projects!$A$5:$A$2481='MDOT FTA Detail'!$J$3)*(Projects!$C$5:$C$2481='MDOT FTA Detail'!$C$4)*(Projects!$L$5:$L$2481='MDOT FTA Detail'!$A12)*(Projects!$J$5:$J$2481<>'MDOT FTA Detail'!$A$159)*(Projects!$K$5:$K$2481)) -> 0 | K12: 0 | L12: =SUMPRODUCT((Projects!$A$5:$A$2481='MDOT FTA Detail'!$J$3)*(Projects!$C$5:$C$2481='MDOT FTA Detail'!$C$4)*(Projects!$L$5:$L$2481='MDOT FTA Detail'!$A12)*(Projects!$J$5:$J$2481<>'MDOT FTA Detail'!$A$159)*(Projects!$Q$5:$Q$2481)) -> 0 | M12: =SUMPRODUCT((Projects!$A$5:$A$2481='MDOT FTA Detail'!$M$3)*(Projects!$C$5:$C$2481='MDOT FTA Detail'!$C$4)*(Projects!$L$5:$L$2481='MDOT FTA Detail'!$A12)*(Projects!$J$5:$J$2481<>'MDOT FTA Detail'!$A$159)*(Projects!$K$5:$K$2481)) -> 0 | N12: 0 | O12: =SUMPRODUCT((Projects!$A$5:$A$2481='MDOT FTA Detail'!$M$3)*(Projects!$C$5:$C$2481='MDOT FTA Detail'!$C$4)*(Projects!$L$5:$L$2481='MDOT FTA Detail'!$A12)*(Projects!$J$5:$J$2481<>'MDOT FTA Detail'!$A$159)*(Projects!$Q$5:$Q$2481)) -> 0
A13: BRI | B13: Bridge Replacement - Pre 1991 Interstate | C13: MDOT FA | D13: =SUMPRODUCT((Projects!$A$5:$A$2481='MDOT FTA Detail'!$D$3)*(Projects!$C$5:$C$2481='MDOT FTA Detail'!$C$4)*(Projects!$L$5:$L$2481='MDOT FTA Detail'!$A13)*(Projects!$J$5:$J$2481<>'MDOT FTA Detail'!$A$159)*(Projects!$K$5:K$2481)) -> 0 | E13: 0 | F13: =SUMPRODUCT((Projects!$A$5:$A$2481='MDOT FTA Detail'!$D$3)*(Projects!$C$5:$C$2481='MDOT FTA Detail'!$C$4)*(Projects!$L$5:$L$2481='MDOT FTA Detail'!$A13)*(Projects!$J$5:$J$2481<>'MDOT FTA Detail'!$A$159)*(Projects!$Q$5:Q$2481)) -> 0 | G13: =SUMPRODUCT((Projects!$A$5:$A$2481='MDOT FTA Detail'!$G$3)*(Projects!$C$5:$C$2481='MDOT FTA Detail'!$C$4)*(Projects!$L$5:$L$2481='MDOT FTA Detail'!$A13)*(Projects!$J$5:$J$2481<>'MDOT FTA Detail'!$A$159)*(Projects!$K$5:K$2481)) -> 0 | H13: 0 | I13: =SUMPRODUCT((Projects!$A$5:$A$2481='MDOT FTA Detail'!$G$3)*(Projects!$C$5:$C$2481='MDOT FTA Detail'!$C$4)*(Projects!$L$5:$L$2481='MDOT FTA Detail'!$A13)*(Projects!$J$5:$J$2481<>'MDOT FTA Detail'!$A$159)*(Projects!$Q$5:Q$2481)) -> 0 | J13: =SUMPRODUCT((Projects!$A$5:$A$2481='MDOT FTA Detail'!$J$3)*(Projects!$C$5:$C$2481='MDOT FTA Detail'!$C$4)*(Projects!$L$5:$L$2481='MDOT FTA Detail'!$A13)*(Projects!$J$5:$J$2481<>'MDOT FTA Detail'!$A$159)*(Projects!$K$5:$K$2481)) -> 0 | K13: 0 | L13: =SUMPRODUCT((Projects!$A$5:$A$2481='MDOT FTA Detail'!$J$3)*(Projects!$C$5:$C$2481='MDOT FTA Detail'!$C$4)*(Projects!$L$5:$L$2481='MDOT FTA Detail'!$A13)*(Projects!$J$5:$J$2481<>'MDOT FTA Detail'!$A$159)*(Projects!$Q$5:$Q$2481)) -> 0 | M13: =SUMPRODUCT((Projects!$A$5:$A$2481='MDOT FTA Detail'!$M$3)*(Projects!$C$5:$C$2481='MDOT FTA Detail'!$C$4)*(Projects!$L$5:$L$2481='MDOT FTA Detail'!$A13)*(Projects!$J$5:$J$2481<>'MDOT FTA Detail'!$A$159)*(Projects!$K$5:$K$2481)) -> 0 | N13: 0 | O13: =SUMPRODUCT((Projects!$A$5:$A$2481='MDOT FTA Detail'!$M$3)*(Projects!$C$5:$C$2481='MDOT FTA Detail'!$C$4)*(Projects!$L$5:$L$2481='MDOT FTA Detail'!$A13)*(Projects!$J$5:$J$2481<>'MDOT FTA Detail'!$A$159)*(Projects!$Q$5:$Q$2481)) -> 0
A14: BRN | B14: Bridge Replacement - National Highway System (NHS) | C14: MDOT FA | D14: =SUMPRODUCT((Projects!$A$5:$A$2481='MDOT FTA Detail'!$D$3)*(Projects!$C$5:$C$2481='MDOT FTA Detail'!$C$4)*(Projects!$L$5:$L$2481='MDOT FTA Detail'!$A14)*(Projects!$J$5:$J$2481<>'MDOT FTA Detail'!$A$159)*(Projects!$K$5:K$2481)) -> 0 | E14: 0 | F14: =SUMPRODUCT((Projects!$A$5:$A$2481='MDOT FTA Detail'!$D$3)*(Projects!$C$5:$C$2481='MDOT FTA Detail'!$C$4)*(Projects!$L$5:$L$2481='MDOT FTA Detail'!$A14)*(Projects!$J$5:$J$2481<>'MDOT FTA Detail'!$A$159)*(Projects!$Q$5:Q$2481)) -> 0 | G14: =SUMPRODUCT((Projects!$A$5:$A$2481='MDOT FTA Detail'!$G$3)*(Projects!$C$5:$C$2481='MDOT FTA Detail'!$C$4)*(Projects!$L$5:$L$2481='MDOT FTA Detail'!$A14)*(Projects!$J$5:$J$2481<>'MDOT FTA Detail'!$A$159)*(Projects!$K$5:K$2481)) -> 0 | H14: 0 | I14: =SUMPRODUCT((Projects!$A$5:$A$2481='MDOT FTA Detail'!$G$3)*(Projects!$C$5:$C$2481='MDOT FTA Detail'!$C$4)*(Projects!$L$5:$L$2481='MDOT FTA Detail'!$A14)*(Projects!$J$5:$J$2481<>'MDOT FTA Detail'!$A$159)*(Projects!$Q$5:Q$2481)) -> 0 | J14: =SUMPRODUCT((Projects!$A$5:$A$2481='MDOT FTA Detail'!$J$3)*(Projects!$C$5:$C$2481='MDOT FTA Detail'!$C$4)*(Projects!$L$5:$L$2481='MDOT FTA Detail'!$A14)*(Projects!$J$5:$J$2481<>'MDOT FTA Detail'!$A$159)*(Projects!$K$5:$K$2481)) -> 0 | K14: 0 | L14: =SUMPRODUCT((Projects!$A$5:$A$2481='MDOT FTA Detail'!$J$3)*(Projects!$C$5:$C$2481='MDOT FTA Detail'!$C$4)*(Projects!$L$5:$L$2481='MDOT FTA Detail'!$A14)*(Projects!$J$5:$J$2481<>'MDOT FTA Detail'!$A$159)*(Projects!$Q$5:$Q$2481)) -> 0 | M14: =SUMPRODUCT((Projects!$A$5:$A$2481='MDOT FTA Detail'!$M$3)*(Projects!$C$5:$C$2481='MDOT FTA Detail'!$C$4)*(Projects!$L$5:$L$2481='MDOT FTA Detail'!$A14)*(Projects!$J$5:$J$2481<>'MDOT FTA Detail'!$A$159)*(Projects!$K$5:$K$2481)) -> 0 | N14: 0 | O14: =SUMPRODUCT((Projects!$A$5:$A$2481='MDOT FTA Detail'!$M$3)*(Projects!$C$5:$C$2481='MDOT FTA Detail'!$C$4)*(Projects!$L$5:$L$2481='MDOT FTA Detail'!$A14)*(Projects!$J$5:$J$2481<>'MDOT FTA Detail'!$A$159)*(Projects!$Q$5:$Q$2481)) -> 0
A15: BRO | B15: Bridge Replacement - Not Classified, Off System | C15: MDOT FA | D15: =SUMPRODUCT((Projects!$A$5:$A$2481='MDOT FTA Detail'!$D$3)*(Projects!$C$5:$C$2481='MDOT FTA Detail'!$C$4)*(Projects!$L$5:$L$2481='MDOT FTA Detail'!$A15)*(Projects!$J$5:$J$2481<>'MDOT FTA Detail'!$A$159)*(Projects!$K$5:K$2481)) -> 0 | E15: 0 | F15: =SUMPRODUCT((Projects!$A$5:$A$2481='MDOT FTA Detail'!$D$3)*(Projects!$C$5:$C$2481='MDOT FTA Detail'!$C$4)*(Projects!$L$5:$L$2481='MDOT FTA Detail'!$A15)*(Projects!$J$5:$J$2481<>'MDOT FTA Detail'!$A$159)*(Projects!$Q$5:Q$2481)) -> 0 | G15: =SUMPRODUCT((Projects!$A$5:$A$2481='MDOT FTA Detail'!$G$3)*(Projects!$C$5:$C$2481='MDOT FTA Detail'!$C$4)*(Projects!$L$5:$L$2481='MDOT FTA Detail'!$A15)*(Projects!$J$5:$J$2481<>'MDOT FTA Detail'!$A$159)*(Projects!$K$5:K$2481)) -> 0 | H15: 0 | I15: =SUMPRODUCT((Projects!$A$5:$A$2481='MDOT FTA Detail'!$G$3)*(Projects!$C$5:$C$2481='MDOT FTA Detail'!$C$4)*(Projects!$L$5:$L$2481='MDOT FTA Detail'!$A15)*(Projects!$J$5:$J$2481<>'MDOT FTA Detail'!$A$159)*(Projects!$Q$5:Q$2481)) -> 0 | J15: =SUMPRODUCT((Projects!$A$5:$A$2481='MDOT FTA Detail'!$J$3)*(Projects!$C$5:$C$2481='MDOT FTA Detail'!$C$4)*(Projects!$L$5:$L$2481='MDOT FTA Detail'!$A15)*(Projects!$J$5:$J$2481<>'MDOT FTA Detail'!$A$159)*(Projects!$K$5:$K$2481)) -> 0 | K15: 0 | L15: =SUMPRODUCT((Projects!$A$5:$A$2481='MDOT FTA Detail'!$J$3)*(Projects!$C$5:$C$2481='MDOT FTA Detail'!$C$4)*(Projects!$L$5:$L$2481='MDOT FTA Detail'!$A15)*(Projects!$J$5:$J$2481<>'MDOT FTA Detail'!$A$159)*(Projects!$Q$5:$Q$2481)) -> 0 | M15: =SUMPRODUCT((Projects!$A$5:$A$2481='MDOT FTA Detail'!$M$3)*(Projects!$C$5:$C$2481='MDOT FTA Detail'!$C$4)*(Projects!$L$5:$L$2481='MDOT FTA Detail'!$A15)*(Projects!$J$5:$J$2481<>'MDOT FTA Detail'!$A$159)*(Projects!$K$5:$K$2481)) -> 0 | N15: 0 | O15: =SUMPRODUCT((Projects!$A$5:$A$2481='MDOT FTA Detail'!$M$3)*(Projects!$C$5:$C$2481='MDOT FTA Detail'!$C$4)*(Projects!$L$5:$L$2481='MDOT FTA Detail'!$A15)*(Projects!$J$5:$J$2481<>'MDOT FTA Detail'!$A$159)*(Projects!$Q$5:$Q$2481)) -> 0
A16: BRT | B16: Bridge Replacement - Surface Transportation Program (STP) | C16: MDOT FA | D16: =SUMPRODUCT((Projects!$A$5:$A$2481='MDOT FTA Detail'!$D$3)*(Projects!$C$5:$C$2481='MDOT FTA Detail'!$C$4)*(Projects!$L$5:$L$2481='MDOT FTA Detail'!$A16)*(Projects!$J$5:$J$2481<>'MDOT FTA Detail'!$A$159)*(Projects!$K$5:K$2481)) -> 0 | E16: 0 | F16: =SUMPRODUCT((Projects!$A$5:$A$2481='MDOT FTA Detail'!$D$3)*(Projects!$C$5:$C$2481='MDOT FTA Detail'!$C$4)*(Projects!$L$5:$L$2481='MDOT FTA Detail'!$A16)*(Projects!$J$5:$J$2481<>'MDOT FTA Detail'!$A$159)*(Projects!$Q$5:Q$2481)) -> 0 | G16: =SUMPRODUCT((Projects!$A$5:$A$2481='MDOT FTA Detail'!$G$3)*(Projects!$C$5:$C$2481='MDOT FTA Detail'!$C$4)*(Projects!$L$5:$L$2481='MDOT FTA Detail'!$A16)*(Projects!$J$5:$J$2481<>'MDOT FTA Detail'!$A$159)*(Projects!$K$5:K$2481)) -> 0 | H16: 0 | I16: =SUMPRODUCT((Projects!$A$5:$A$2481='MDOT FTA Detail'!$G$3)*(Projects!$C$5:$C$2481='MDOT FTA Detail'!$C$4)*(Projects!$L$5:$L$2481='MDOT FTA Detail'!$A16)*(Projects!$J$5:$J$2481<>'MDOT FTA Detail'!$A$159)*(Projects!$Q$5:Q$2481)) -> 0 | J16: =SUMPRODUCT((Projects!$A$5:$A$2481='MDOT FTA Detail'!$J$3)*(Projects!$C$5:$C$2481='MDOT FTA Detail'!$C$4)*(Projects!$L$5:$L$2481='MDOT FTA Detail'!$A16)*(Projects!$J$5:$J$2481<>'MDOT FTA Detail'!$A$159)*(Projects!$K$5:$K$2481)) -> 0 | K16: 0 | L16: =SUMPRODUCT((Projects!$A$5:$A$2481='MDOT FTA Detail'!$J$3)*(Projects!$C$5:$C$2481='MDOT FTA Detail'!$C$4)*(Projects!$L$5:$L$2481='MDOT FTA Detail'!$A16)*(Projects!$J$5:$J$2481<>'MDOT FTA Detail'!$A$159)*(Projects!$Q$5:$Q$2481)) -> 0 | M16: =SUMPRODUCT((Projects!$A$5:$A$2481='MDOT FTA Detail'!$M$3)*(Projects!$C$5:$C$2481='MDOT FTA Detail'!$C$4)*(Projects!$L$5:$L$2481='MDOT FTA Detail'!$A16)*(Projects!$J$5:$J$2481<>'MDOT FTA Detail'!$A$159)*(Projects!$K$5:$K$2481)) -> 0 | N16: 0 | O16: =SUMPRODUCT((Projects!$A$5:$A$2481='MDOT FTA Detail'!$M$3)*(Projects!$C$5:$C$2481='MDOT FTA Detail'!$C$4)*(Projects!$L$5:$L$2481='MDOT FTA Detail'!$A16)*(Projects!$J$5:$J$2481<>'MDOT FTA Detail'!$A$159)*(Projects!$Q$5:$Q$2481)) -> 0
A17: CBCD | B17: Corridor & Border Crossing Discretionary | C17: MDOT FA | D17: =SUMPRODUCT((Projects!$A$5:$A$2481='MDOT FTA Detail'!$D$3)*(Projects!$C$5:$C$2481='MDOT FTA Detail'!$C$4)*(Projects!$L$5:$L$2481='MDOT FTA Detail'!$A17)*(Projects!$J$5:$J$2481<>'MDOT FTA Detail'!$A$159)*(Projects!$K$5:K$2481)) -> 0 | E17: 0 | F17: =SUMPRODUCT((Projects!$A$5:$A$2481='MDOT FTA Detail'!$D$3)*(Projects!$C$5:$C$2481='MDOT FTA Detail'!$C$4)*(Projects!$L$5:$L$2481='MDOT FTA Detail'!$A17)*(Projects!$J$5:$J$2481<>'MDOT FTA Detail'!$A$159)*(Projects!$Q$5:Q$2481)) -> 0 | G17: =SUMPRODUCT((Projects!$A$5:$A$2481='MDOT FTA Detail'!$G$3)*(Projects!$C$5:$C$2481='MDOT FTA Detail'!$C$4)*(Projects!$L$5:$L$2481='MDOT FTA Detail'!$A17)*(Projects!$J$5:$J$2481<>'MDOT FTA Detail'!$A$159)*(Projects!$K$5:K$2481)) -> 0 | H17: 0 | I17: =SUMPRODUCT((Projects!$A$5:$A$2481='MDOT FTA Detail'!$G$3)*(Projects!$C$5:$C$2481='MDOT FTA Detail'!$C$4)*(Projects!$L$5:$L$2481='MDOT FTA Detail'!$A17)*(Projects!$J$5:$J$2481<>'MDOT FTA Detail'!$A$159)*(Projects!$Q$5:Q$2481)) -> 0 | J17: =SUMPRODUCT((Projects!$A$5:$A$2481='MDOT FTA Detail'!$J$3)*(Projects!$C$5:$C$2481='MDOT FTA Detail'!$C$4)*(Projects!$L$5:$L$2481='MDOT FTA Detail'!$A17)*(Projects!$J$5:$J$2481<>'MDOT FTA Detail'!$A$159)*(Projects!$K$5:$K$2481)) -> 0 | K17: 0 | L17: =SUMPRODUCT((Projects!$A$5:$A$2481='MDOT FTA Detail'!$J$3)*(Projects!$C$5:$C$2481='MDOT FTA Detail'!$C$4)*(Projects!$L$5:$L$2481='MDOT FTA Detail'!$A17)*(Projects!$J$5:$J$2481<>'MDOT FTA Detail'!$A$159)*(Projects!$Q$5:$Q$2481)) -> 0 | M17: =SUMPRODUCT((Projects!$A$5:$A$2481='MDOT FTA Detail'!$M$3)*(Projects!$C$5:$C$2481='MDOT FTA Detail'!$C$4)*(Projects!$L$5:$L$2481='MDOT FTA Detail'!$A17)*(Projects!$J$5:$J$2481<>'MDOT FTA Detail'!$A$159)*(Projects!$K$5:$K$2481)) -> 0 | N17: 0 | O17: =SUMPRODUCT((Projects!$A$5:$A$2481='MDOT FTA Detail'!$M$3)*(Projects!$C$5:$C$2481='MDOT FTA Detail'!$C$4)*(Projects!$L$5:$L$2481='MDOT FTA Detail'!$A17)*(Projects!$J$5:$J$2481<>'MDOT FTA Detail'!$A$159)*(Projects!$Q$5:$Q$2481)) -> 0
A18: CBIP | B18: Coordinated Border Infrastructure Program - SAFETEA-LU | C18: MDOT FA | D18: =SUMPRODUCT((Projects!$A$5:$A$2481='MDOT FTA Detail'!$D$3)*(Projects!$C$5:$C$2481='MDOT FTA Detail'!$C$4)*(Projects!$L$5:$L$2481='MDOT FTA Detail'!$A18)*(Projects!$J$5:$J$2481<>'MDOT FTA Detail'!$A$159)*(Projects!$K$5:K$2481)) -> 0 | E18: 0 | F18: =SUMPRODUCT((Projects!$A$5:$A$2481='MDOT FTA Detail'!$D$3)*(Projects!$C$5:$C$2481='MDOT FTA Detail'!$C$4)*(Projects!$L$5:$L$2481='MDOT FTA Detail'!$A18)*(Projects!$J$5:$J$2481<>'MDOT FTA Detail'!$A$159)*(Projects!$Q$5:Q$2481)) -> 0 | G18: =SUMPRODUCT((Projects!$A$5:$A$2481='MDOT FTA Detail'!$G$3)*(Projects!$C$5:$C$2481='MDOT FTA Detail'!$C$4)*(Projects!$L$5:$L$2481='MDOT FTA Detail'!$A18)*(Projects!$J$5:$J$2481<>'MDOT FTA Detail'!$A$159)*(Projects!$K$5:K$2481)) -> 0 | H18: 0 | I18: =SUMPRODUCT((Projects!$A$5:$A$2481='MDOT FTA Detail'!$G$3)*(Projects!$C$5:$C$2481='MDOT FTA Detail'!$C$4)*(Projects!$L$5:$L$2481='MDOT FTA Detail'!$A18)*(Projects!$J$5:$J$2481<>'MDOT FTA Detail'!$A$159)*(Projects!$Q$5:Q$2481)) -> 0 | J18: =SUMPRODUCT((Projects!$A$5:$A$2481='MDOT FTA Detail'!$J$3)*(Projects!$C$5:$C$2481='MDOT FTA Detail'!$C$4)*(Projects!$L$5:$L$2481='MDOT FTA Detail'!$A18)*(Projects!$J$5:$J$2481<>'MDOT FTA Detail'!$A$159)*(Projects!$K$5:$K$2481)) -> 0 | K18: 0 | L18: =SUMPRODUCT((Projects!$A$5:$A$2481='MDOT FTA Detail'!$J$3)*(Projects!$C$5:$C$2481='MDOT FTA Detail'!$C$4)*(Projects!$L$5:$L$2481='MDOT FTA Detail'!$A18)*(Projects!$J$5:$J$2481<>'MDOT FTA Detail'!$A$159)*(Projects!$Q$5:$Q$2481)) -> 0 | M18: =SUMPRODUCT((Projects!$A$5:$A$2481='MDOT FTA Detail'!$M$3)*(Projects!$C$5:$C$2481='MDOT FTA Detail'!$C$4)*(Projects!$L$5:$L$2481='MDOT FTA Detail'!$A18)*(Projects!$J$5:$J$2481<>'MDOT FTA Detail'!$A$159)*(Projects!$K$5:$K$2481)) -> 0 | N18: 0 | O18: =SUMPRODUCT((Projects!$A$5:$A$2481='MDOT FTA Detail'!$M$3)*(Projects!$C$5:$C$2481='MDOT FTA Detail'!$C$4)*(Projects!$L$5:$L$2481='MDOT FTA Detail'!$A18)*(Projects!$J$5:$J$2481<>'MDOT FTA Detail'!$A$159)*(Projects!$Q$5:$Q$2481)) -> 0
A19: CM | B19: Congestion Mitigation & Air Quality | C19: MDOT FA | D19: =SUMPRODUCT((Projects!$A$5:$A$2481='MDOT FTA Detail'!$D$3)*(Projects!$C$5:$C$2481='MDOT FTA Detail'!$C$4)*(Projects!$L$5:$L$2481='MDOT FTA Detail'!$A19)*(Projects!$J$5:$J$2481<>'MDOT FTA Detail'!$A$159)*(Projects!$K$5:K$2481)) -> 1000000 | E19: 250000 | F19: =SUMPRODUCT((Projects!$A$5:$A$2481='MDOT FTA Detail'!$D$3)*(Projects!$C$5:$C$2481='MDOT FTA Detail'!$C$4)*(Projects!$L$5:$L$2481='MDOT FTA Detail'!$A19)*(Projects!$J$5:$J$2481<>'MDOT FTA Detail'!$A$159)*(Projects!$Q$5:Q$2481)) -> 1250000 | G19: =SUMPRODUCT((Projects!$A$5:$A$2481='MDOT FTA Detail'!$G$3)*(Projects!$C$5:$C$2481='MDOT FTA Detail'!$C$4)*(Projects!$L$5:$L$2481='MDOT FTA Detail'!$A19)*(Projects!$J$5:$J$2481<>'MDOT FTA Detail'!$A$159)*(Projects!$K$5:K$2481)) -> 0 | H19: 0 | I19: =SUMPRODUCT((Projects!$A$5:$A$2481='MDOT FTA Detail'!$G$3)*(Projects!$C$5:$C$2481='MDOT FTA Detail'!$C$4)*(Projects!$L$5:$L$2481='MDOT FTA Detail'!$A19)*(Projects!$J$5:$J$2481<>'MDOT FTA Detail'!$A$159)*(Projects!$Q$5:Q$2481)) -> 0 | J19: =SUMPRODUCT((Projects!$A$5:$A$2481='MDOT FTA Detail'!$J$3)*(Projects!$C$5:$C$2481='MDOT FTA Detail'!$C$4)*(Projects!$L$5:$L$2481='MDOT FTA Detail'!$A19)*(Projects!$J$5:$J$2481<>'MDOT FTA Detail'!$A$159)*(Projects!$K$5:$K$2481)) -> 0 | K19: 0 | L19: =SUMPRODUCT((Projects!$A$5:$A$2481='MDOT FTA Detail'!$J$3)*(Projects!$C$5:$C$2481='MDOT FTA Detail'!$C$4)*(Projects!$L$5:$L$2481='MDOT FTA Detail'!$A19)*(Projects!$J$5:$J$2481<>'MDOT FTA Detail'!$A$159)*(Projects!$Q$5:$Q$2481)) -> 0 | M19: =SUMPRODUCT((Projects!$A$5:$A$2481='MDOT FTA Detail'!$M$3)*(Projects!$C$5:$C$2481='MDOT FTA Detail'!$C$4)*(Projects!$L$5:$L$2481='MDOT FTA Detail'!$A19)*(Projects!$J$5:$J$2481<>'MDOT FTA Detail'!$A$159)*(Projects!$K$5:$K$2481)) -> 0 | N19: 0 | O19: =SUMPRODUCT((Projects!$A$5:$A$2481='MDOT FTA Detail'!$M$3)*(Projects!$C$5:$C$2481='MDOT FTA Detail'!$C$4)*(Projects!$L$5:$L$2481='MDOT FTA Detail'!$A19)*(Projects!$J$5:$J$2481<>'MDOT FTA Detail'!$A$159)*(Projects!$Q$5:$Q$2481)) -> 0
A20: CMG | B20: Congestion Mitigation & Air Quality - 100% Federal | C20: MDOT FA | D20: =SUMPRODUCT((Projects!$A$5:$A$2481='MDOT FTA Detail'!$D$3)*(Projects!$C$5:$C$2481='MDOT FTA Detail'!$C$4)*(Projects!$L$5:$L$2481='MDOT FTA Detail'!$A20)*(Projects!$J$5:$J$2481<>'MDOT FTA Detail'!$A$159)*(Projects!$K$5:K$2481)) -> 0 | E20: 0 | F20: =SUMPRODUCT((Projects!$A$5:$A$2481='MDOT FTA Detail'!$D$3)*(Projects!$C$5:$C$2481='MDOT FTA Detail'!$C$4)*(Projects!$L$5:$L$2481='MDOT FTA Detail'!$A20)*(Projects!$J$5:$J$2481<>'MDOT FTA Detail'!$A$159)*(Projects!$Q$5:Q$2481)) -> 0 | G20: =SUMPRODUCT((Projects!$A$5:$A$2481='MDOT FTA Detail'!$G$3)*(Projects!$C$5:$C$2481='MDOT FTA Detail'!$C$4)*(Projects!$L$5:$L$2481='MDOT FTA Detail'!$A20)*(Projects!$J$5:$J$2481<>'MDOT FTA Detail'!$A$159)*(Projects!$K$5:K$2481)) -> 0 | H20: 0 | I20: =SUMPRODUCT((Projects!$A$5:$A$2481='MDOT FTA Detail'!$G$3)*(Projects!$C$5:$C$2481='MDOT FTA Detail'!$C$4)*(Projects!$L$5:$L$2481='MDOT FTA Detail'!$A20)*(Projects!$J$5:$J$2481<>'MDOT FTA Detail'!$A$159)*(Projects!$Q$5:Q$2481)) -> 0 | J20: =SUMPRODUCT((Projects!$A$5:$A$2481='MDOT FTA Detail'!$J$3)*(Projects!$C$5:$C$2481='MDOT FTA Detail'!$C$4)*(Projects!$L$5:$L$2481='MDOT FTA Detail'!$A20)*(Projects!$J$5:$J$2481<>'MDOT FTA Detail'!$A$159)*(Projects!$K$5:$K$2481)) -> 0 | K20: 0 | L20: =SUMPRODUCT((Projects!$A$5:$A$2481='MDOT FTA Detail'!$J$3)*(Projects!$C$5:$C$2481='MDOT FTA Detail'!$C$4)*(Projects!$L$5:$L$2481='MDOT FTA Detail'!$A20)*(Projects!$J$5:$J$2481<>'MDOT FTA Detail'!$A$159)*(Projects!$Q$5:$Q$2481)) -> 0 | M20: =SUMPRODUCT((Projects!$A$5:$A$2481='MDOT FTA Detail'!$M$3)*(Projects!$C$5:$C$2481='MDOT FTA Detail'!$C$4)*(Projects!$L$5:$L$2481='MDOT FTA Detail'!$A20)*(Projects!$J$5:$J$2481<>'MDOT FTA Detail'!$A$159)*(Projects!$K$5:$K$2481)) -> 0 | N20: 0 | O20: =SUMPRODUCT((Projects!$A$5:$A$2481='MDOT FTA Detail'!$M$3)*(Projects!$C$5:$C$2481='MDOT FTA Detail'!$C$4)*(Projects!$L$5:$L$2481='MDOT FTA Detail'!$A20)*(Projects!$J$5:$J$2481<>'MDOT FTA Detail'!$A$159)*(Projects!$Q$5:$Q$2481)) -> 0
A21: DIG | B21: ISTEA Demonstration 100% Federal on Interstate | C21: MDOT FA | D21: =SUMPRODUCT((Projects!$A$5:$A$2481='MDOT FTA Detail'!$D$3)*(Projects!$C$5:$C$2481='MDOT FTA Detail'!$C$4)*(Projects!$L$5:$L$2481='MDOT FTA Detail'!$A21)*(Projects!$J$5:$J$2481<>'MDOT FTA Detail'!$A$159)*(Projects!$K$5:K$2481)) -> 0 | E21: 0 | F21: =SUMPRODUCT((Projects!$A$5:$A$2481='MDOT FTA Detail'!$D$3)*(Projects!$C$5:$C$2481='MDOT FTA Detail'!$C$4)*(Projects!$L$5:$L$2481='MDOT FTA Detail'!$A21)*(Projects!$J$5:$J$2481<>'MDOT FTA Detail'!$A$159)*(Projects!$Q$5:Q$2481)) -> 0 | G21: =SUMPRODUCT((Projects!$A$5:$A$2481='MDOT FTA Detail'!$G$3)*(Projects!$C$5:$C$2481='MDOT FTA Detail'!$C$4)*(Projects!$L$5:$L$2481='MDOT FTA Detail'!$A21)*(Projects!$J$5:$J$2481<>'MDOT FTA Detail'!$A$159)*(Projects!$K$5:K$2481)) -> 0 | H21: 0 | I21: =SUMPRODUCT((Projects!$A$5:$A$2481='MDOT FTA Detail'!$G$3)*(Projects!$C$5:$C$2481='MDOT FTA Detail'!$C$4)*(Projects!$L$5:$L$2481='MDOT FTA Detail'!$A21)*(Projects!$J$5:$J$2481<>'MDOT FTA Detail'!$A$159)*(Projects!$Q$5:Q$2481)) -> 0 | J21: =SUMPRODUCT((Projects!$A$5:$A$2481='MDOT FTA Detail'!$J$3)*(Projects!$C$5:$C$2481='MDOT FTA Detail'!$C$4)*(Projects!$L$5:$L$2481='MDOT FTA Detail'!$A21)*(Projects!$J$5:$J$2481<>'MDOT FTA Detail'!$A$159)*(Projects!$K$5:$K$2481)) -> 0 | K21: 0 | L21: =SUMPRODUCT((Projects!$A$5:$A$2481='MDOT FTA Detail'!$J$3)*(Projects!$C$5:$C$2481='MDOT FTA Detail'!$C$4)*(Projects!$L$5:$L$2481='MDOT FTA Detail'!$A21)*(Projects!$J$5:$J$2481<>'MDOT FTA Detail'!$A$159)*(Projects!$Q$5:$Q$2481)) -> 0 | M21: =SUMPRODUCT((Projects!$A$5:$A$2481='MDOT FTA Detail'!$M$3)*(Projects!$C$5:$C$2481='MDOT FTA Detail'!$C$4)*(Projects!$L$5:$L$2481='MDOT FTA Detail'!$A21)*(Projects!$J$5:$J$2481<>'MDOT FTA Detail'!$A$159)*(Projects!$K$5:$K$2481)) -> 0 | N21: 0 | O21: =SUMPRODUCT((Projects!$A$5:$A$2481='MDOT FTA Detail'!$M$3)*(Projects!$C$5:$C$2481='MDOT FTA Detail'!$C$4)*(Projects!$L$5:$L$2481='MDOT FTA Detail'!$A21)*(Projects!$J$5:$J$2481<>'MDOT FTA Detail'!$A$159)*(Projects!$Q$5:$Q$2481)) -> 0
A22: DOG | B22: ISTEA Demonstration 100% Federal Not Classified | C22: MDOT FA | D22: =SUMPRODUCT((Projects!$A$5:$A$2481='MDOT FTA Detail'!$D$3)*(Projects!$C$5:$C$2481='MDOT FTA Detail'!$C$4)*(Projects!$L$5:$L$2481='MDOT FTA Detail'!$A22)*(Projects!$J$5:$J$2481<>'MDOT FTA Detail'!$A$159)*(Projects!$K$5:K$2481)) -> 0 | E22: 0 | F22: =SUMPRODUCT((Projects!$A$5:$A$2481='MDOT FTA Detail'!$D$3)*(Projects!$C$5:$C$2481='MDOT FTA Detail'!$C$4)*(Projects!$L$5:$L$2481='MDOT FTA Detail'!$A22)*(Projects!$J$5:$J$2481<>'MDOT FTA Detail'!$A$159)*(Projects!$Q$5:Q$2481)) -> 0 | G22: =SUMPRODUCT((Projects!$A$5:$A$2481='MDOT FTA Detail'!$G$3)*(Projects!$C$5:$C$2481='MDOT FTA Detail'!$C$4)*(Projects!$L$5:$L$2481='MDOT FTA Detail'!$A22)*(Projects!$J$5:$J$2481<>'MDOT FTA Detail'!$A$159)*(Projects!$K$5:K$2481)) -> 0 | H22: 0 | I22: =SUMPRODUCT((Projects!$A$5:$A$2481='MDOT FTA Detail'!$G$3)*(Projects!$C$5:$C$2481='MDOT FTA Detail'!$C$4)*(Projects!$L$5:$L$2481='MDOT FTA Detail'!$A22)*(Projects!$J$5:$J$2481<>'MDOT FTA Detail'!$A$159)*(Projects!$Q$5:Q$2481)) -> 0 | J22: =SUMPRODUCT((Projects!$A$5:$A$2481='MDOT FTA Detail'!$J$3)*(Projects!$C$5:$C$2481='MDOT FTA Detail'!$C$4)*(Projects!$L$5:$L$2481='MDOT FTA Detail'!$A22)*(Projects!$J$5:$J$2481<>'MDOT FTA Detail'!$A$159)*(Projects!$K$5:$K$2481)) -> 0 | K22: 0 | L22: =SUMPRODUCT((Projects!$A$5:$A$2481='MDOT FTA Detail'!$J$3)*(Projects!$C$5:$C$2481='MDOT FTA Detail'!$C$4)*(Projects!$L$5:$L$2481='MDOT FTA Detail'!$A22)*(Projects!$J$5:$J$2481<>'MDOT FTA Detail'!$A$159)*(Projects!$Q$5:$Q$2481)) -> 0 | M22: =SUMPRODUCT((Projects!$A$5:$A$2481='MDOT FTA Detail'!$M$3)*(Projects!$C$5:$C$2481='MDOT FTA Detail'!$C$4)*(Projects!$L$5:$L$2481='MDOT FTA Detail'!$A22)*(Projects!$J$5:$J$2481<>'MDOT FTA Detail'!$A$159)*(Projects!$K$5:$K$2481)) -> 0 | N22: 0 | O22: =SUMPRODUCT((Projects!$A$5:$A$2481='MDOT FTA Detail'!$M$3)*(Projects!$C$5:$C$2481='MDOT FTA Detail'!$C$4)*(Projects!$L$5:$L$2481='MDOT FTA Detail'!$A22)*(Projects!$J$5:$J$2481<>'MDOT FTA Detail'!$A$159)*(Projects!$Q$5:$Q$2481)) -> 0
A23: DPN | B23: ISTEA Demonstration 80% Federal on NHS | C23: MDOT FA | D23: =SUMPRODUCT((Projects!$A$5:$A$2481='MDOT FTA Detail'!$D$3)*(Projects!$C$5:$C$2481='MDOT FTA Detail'!$C$4)*(Projects!$L$5:$L$2481='MDOT FTA Detail'!$A23)*(Projects!$J$5:$J$2481<>'MDOT FTA Detail'!$A$159)*(Projects!$K$5:K$2481)) -> 0 | E23: 0 | F23: =SUMPRODUCT((Projects!$A$5:$A$2481='MDOT FTA Detail'!$D$3)*(Projects!$C$5:$C$2481='MDOT FTA Detail'!$C$4)*(Projects!$L$5:$L$2481='MDOT FTA Detail'!$A23)*(Projects!$J$5:$J$2481<>'MDOT FTA Detail'!$A$159)*(Projects!$Q$5:Q$2481)) -> 0 | G23: =SUMPRODUCT((Projects!$A$5:$A$2481='MDOT FTA Detail'!$G$3)*(Projects!$C$5:$C$2481='MDOT FTA Detail'!$C$4)*(Projects!$L$5:$L$2481='MDOT FTA Detail'!$A23)*(Projects!$J$5:$J$2481<>'MDOT FTA Detail'!$A$159)*(Projects!$K$5:K$2481)) -> 0 | H23: 0 | I23: =SUMPRODUCT((Projects!$A$5:$A$2481='MDOT FTA Detail'!$G$3)*(Projects!$C$5:$C$2481='MDOT FTA Detail'!$C$4)*(Projects!$L$5:$L$2481='MDOT FTA Detail'!$A23)*(Projects!$J$5:$J$2481<>'MDOT FTA Detail'!$A$159)*(Projects!$Q$5:Q$2481)) -> 0 | J23: =SUMPRODUCT((Projects!$A$5:$A$2481='MDOT FTA Detail'!$J$3)*(Projects!$C$5:$C$2481='MDOT FTA Detail'!$C$4)*(Projects!$L$5:$L$2481='MDOT FTA Detail'!$A23)*(Projects!$J$5:$J$2481<>'MDOT FTA Detail'!$A$159)*(Projects!$K$5:$K$2481)) -> 0 | K23: 0 | L23: =SUMPRODUCT((Projects!$A$5:$A$2481='MDOT FTA Detail'!$J$3)*(Projects!$C$5:$C$2481='MDOT FTA Detail'!$C$4)*(Projects!$L$5:$L$2481='MDOT FTA Detail'!$A23)*(Projects!$J$5:$J$2481<>'MDOT FTA Detail'!$A$159)*(Projects!$Q$5:$Q$2481)) -> 0 | M23: =SUMPRODUCT((Projects!$A$5:$A$2481='MDOT FTA Detail'!$M$3)*(Projects!$C$5:$C$2481='MDOT FTA Detail'!$C$4)*(Projects!$L$5:$L$2481='MDOT FTA Detail'!$A23)*(Projects!$J$5:$J$2481<>'MDOT FTA Detail'!$A$159)*(Projects!$K$5:$K$2481)) -> 0 | N23: 0 | O23: =SUMPRODUCT((Projects!$A$5:$A$2481='MDOT FTA Detail'!$M$3)*(Projects!$C$5:$C$2481='MDOT FTA Detail'!$C$4)*(Projects!$L$5:$L$2481='MDOT FTA Detail'!$A23)*(Projects!$J$5:$J$2481<>'MDOT FTA Detail'!$A$159)*(Projects!$Q$5:$Q$2481)) -> 0
A24: DPO | B24: ISTEA Demonstration 80% Federal Not Classified | C24: MDOT FA | D24: =SUMPRODUCT((Projects!$A$5:$A$2481='MDOT FTA Detail'!$D$3)*(Projects!$C$5:$C$2481='MDOT FTA Detail'!$C$4)*(Projects!$L$5:$L$2481='MDOT FTA Detail'!$A24)*(Projects!$J$5:$J$2481<>'MDOT FTA Detail'!$A$159)*(Projects!$K$5:K$2481)) -> 0 | E24: 0 | F24: =SUMPRODUCT((Projects!$A$5:$A$2481='MDOT FTA Detail'!$D$3)*(Projects!$C$5:$C$2481='MDOT FTA Detail'!$C$4)*(Projects!$L$5:$L$2481='MDOT FTA Detail'!$A24)*(Projects!$J$5:$J$2481<>'MDOT FTA Detail'!$A$159)*(Projects!$Q$5:Q$2481)) -> 0 | G24: =SUMPRODUCT((Projects!$A$5:$A$2481='MDOT FTA Detail'!$G$3)*(Projects!$C$5:$C$2481='MDOT FTA Detail'!$C$4)*(Projects!$L$5:$L$2481='MDOT FTA Detail'!$A24)*(Projects!$J$5:$J$2481<>'MDOT FTA Detail'!$A$159)*(Projects!$K$5:K$2481)) -> 0 | H24: 0 | I24: =SUMPRODUCT((Projects!$A$5:$A$2481='MDOT FTA Detail'!$G$3)*(Projects!$C$5:$C$2481='MDOT FTA Detail'!$C$4)*(Projects!$L$5:$L$2481='MDOT FTA Detail'!$A24)*(Projects!$J$5:$J$2481<>'MDOT FTA Detail'!$A$159)*(Projects!$Q$5:Q$2481)) -> 0 | J24: =SUMPRODUCT((Projects!$A$5:$A$2481='MDOT FTA Detail'!$J$3)*(Projects!$C$5:$C$2481='MDOT FTA Detail'!$C$4)*(Projects!$L$5:$L$2481='MDOT FTA Detail'!$A24)*(Projects!$J$5:$J$2481<>'MDOT FTA Detail'!$A$159)*(Projects!$K$5:$K$2481)) -> 0 | K24: 0 | L24: =SUMPRODUCT((Projects!$A$5:$A$2481='MDOT FTA Detail'!$J$3)*(Projects!$C$5:$C$2481='MDOT FTA Detail'!$C$4)*(Projects!$L$5:$L$2481='MDOT FTA Detail'!$A24)*(Projects!$J$5:$J$2481<>'MDOT FTA Detail'!$A$159)*(Projects!$Q$5:$Q$2481)) -> 0 | M24: =SUMPRODUCT((Projects!$A$5:$A$2481='MDOT FTA Detail'!$M$3)*(Projects!$C$5:$C$2481='MDOT FTA Detail'!$C$4)*(Projects!$L$5:$L$2481='MDOT FTA Detail'!$A24)*(Projects!$J$5:$J$2481<>'MDOT FTA Detail'!$A$159)*(Projects!$K$5:$K$2481)) -> 0 | N24: 0 | O24: =SUMPRODUCT((Projects!$A$5:$A$2481='MDOT FTA Detail'!$M$3)*(Projects!$C$5:$C$2481='MDOT FTA Detail'!$C$4)*(Projects!$L$5:$L$2481='MDOT FTA Detail'!$A24)*(Projects!$J$5:$J$2481<>'MDOT FTA Detail'!$A$159)*(Projects!$Q$5:$Q$2481)) -> 0
A25: DPS | B25: ISTEA Demonstration 80% Federal on STP | C25: MDOT FA | D25: =SUMPRODUCT((Projects!$A$5:$A$2481='MDOT FTA Detail'!$D$3)*(Projects!$C$5:$C$2481='MDOT FTA Detail'!$C$4)*(Projects!$L$5:$L$2481='MDOT FTA Detail'!$A25)*(Projects!$J$5:$J$2481<>'MDOT FTA Detail'!$A$159)*(Projects!$K$5:K$2481)) -> 0 | E25: 0 | F25: =SUMPRODUCT((Projects!$A$5:$A$2481='MDOT FTA Detail'!$D$3)*(Projects!$C$5:$C$2481='MDOT FTA Detail'!$C$4)*(Projects!$L$5:$L$2481='MDOT FTA Detail'!$A25)*(Projects!$J$5:$J$2481<>'MDOT FTA Detail'!$A$159)*(Projects!$Q$5:Q$2481)) -> 0 | G25: =SUMPRODUCT((Projects!$A$5:$A$2481='MDOT FTA Detail'!$G$3)*(Projects!$C$5:$C$2481='MDOT FTA Detail'!$C$4)*(Projects!$L$5:$L$2481='MDOT FTA Detail'!$A25)*(Projects!$J$5:$J$2481<>'MDOT FTA Detail'!$A$159)*(Projects!$K$5:K$2481)) -> 0 | H25: 0 | I25: =SUMPRODUCT((Projects!$A$5:$A$2481='MDOT FTA Detail'!$G$3)*(Projects!$C$5:$C$2481='MDOT FTA Detail'!$C$4)*(Projects!$L$5:$L$2481='MDOT FTA Detail'!$A25)*(Projects!$J$5:$J$2481<>'MDOT FTA Detail'!$A$159)*(Projects!$Q$5:Q$2481)) -> 0 | J25: =SUMPRODUCT((Projects!$A$5:$A$2481='MDOT FTA Detail'!$J$3)*(Projects!$C$5:$C$2481='MDOT FTA Detail'!$C$4)*(Projects!$L$5:$L$2481='MDOT FTA Detail'!$A25)*(Projects!$J$5:$J$2481<>'MDOT FTA Detail'!$A$159)*(Projects!$K$5:$K$2481)) -> 0 | K25: 0 | L25: =SUMPRODUCT((Projects!$A$5:$A$2481='MDOT FTA Detail'!$J$3)*(Projects!$C$5:$C$2481='MDOT FTA Detail'!$C$4)*(Projects!$L$5:$L$2481='MDOT FTA Detail'!$A25)*(Projects!$J$5:$J$2481<>'MDOT FTA Detail'!$A$159)*(Projects!$Q$5:$Q$2481)) -> 0 | M25: =SUMPRODUCT((Projects!$A$5:$A$2481='MDOT FTA Detail'!$M$3)*(Projects!$C$5:$C$2481='MDOT FTA Detail'!$C$4)*(Projects!$L$5:$L$2481='MDOT FTA Detail'!$A25)*(Projects!$J$5:$J$2481<>'MDOT FTA Detail'!$A$159)*(Projects!$K$5:$K$2481)) -> 0 | N25: 0 | O25: =SUMPRODUCT((Projects!$A$5:$A$2481='MDOT FTA Detail'!$M$3)*(Projects!$C$5:$C$2481='MDOT FTA Detail'!$C$4)*(Projects!$L$5:$L$2481='MDOT FTA Detail'!$A25)*(Projects!$J$5:$J$2481<>'MDOT FTA Detail'!$A$159)*(Projects!$Q$5:$Q$2481)) -> 0
A26: DPSA | B26: Demonstration Project Section 112 Division A | C26: MDOT FA | D26: =SUMPRODUCT((Projects!$A$5:$A$2481='MDOT FTA Detail'!$D$3)*(Projects!$C$5:$C$2481='MDOT FTA Detail'!$C$4)*(Projects!$L$5:$L$2481='MDOT FTA Detail'!$A26)*(Projects!$J$5:$J$2481<>'MDOT FTA Detail'!$A$159)*(Projects!$K$5:K$2481)) -> 0 | E26: 0 | F26: =SUMPRODUCT((Projects!$A$5:$A$2481='MDOT FTA Detail'!$D$3)*(Projects!$C$5:$C$2481='MDOT FTA Detail'!$C$4)*(Projects!$L$5:$L$2481='MDOT FTA Detail'!$A26)*(Projects!$J$5:$J$2481<>'MDOT FTA Detail'!$A$159)*(Projects!$Q$5:Q$2481)) -> 0 | G26: =SUMPRODUCT((Projects!$A$5:$A$2481='MDOT FTA Detail'!$G$3)*(Projects!$C$5:$C$2481='MDOT FTA Detail'!$C$4)*(Projects!$L$5:$L$2481='MDOT FTA Detail'!$A26)*(Projects!$J$5:$J$2481<>'MDOT FTA Detail'!$A$159)*(Projects!$K$5:K$2481)) -> 0 | H26: 0 | I26: =SUMPRODUCT((Projects!$A$5:$A$2481='MDOT FTA Detail'!$G$3)*(Projects!$C$5:$C$2481='MDOT FTA Detail'!$C$4)*(Projects!$L$5:$L$2481='MDOT FTA Detail'!$A26)*(Projects!$J$5:$J$2481<>'MDOT FTA Detail'!$A$159)*(Projects!$Q$5:Q$2481)) -> 0 | J26: =SUMPRODUCT((Projects!$A$5:$A$2481='MDOT FTA Detail'!$J$3)*(Projects!$C$5:$C$2481='MDOT FTA Detail'!$C$4)*(Projects!$L$5:$L$2481='MDOT FTA Detail'!$A26)*(Projects!$J$5:$J$2481<>'MDOT FTA Detail'!$A$159)*(Projects!$K$5:$K$2481)) -> 0 | K26: 0 | L26: =SUMPRODUCT((Projects!$A$5:$A$2481='MDOT FTA Detail'!$J$3)*(Projects!$C$5:$C$2481='MDOT FTA Detail'!$C$4)*(Projects!$L$5:$L$2481='MDOT FTA Detail'!$A26)*(Projects!$J$5:$J$2481<>'MDOT FTA Detail'!$A$159)*(Projects!$Q$5:$Q$2481)) -> 0 | M26: =SUMPRODUCT((Projects!$A$5:$A$2481='MDOT FTA Detail'!$M$3)*(Projects!$C$5:$C$2481='MDOT FTA Detail'!$C$4)*(Projects!$L$5:$L$2481='MDOT FTA Detail'!$A26)*(Projects!$J$5:$J$2481<>'MDOT FTA Detail'!$A$159)*(Projects!$K$5:$K$2481)) -> 0 | N26: 0 | O26: =SUMPRODUCT((Projects!$A$5:$A$2481='MDOT FTA Detail'!$M$3)*(Projects!$C$5:$C$2481='MDOT FTA Detail'!$C$4)*(Projects!$L$5:$L$2481='MDOT FTA Detail'!$A26)*(Projects!$J$5:$J$2481<>'MDOT FTA Detail'!$A$159)*(Projects!$Q$5:$Q$2481)) -> 0
A27: DST | B27: Donor Bonus Surface Transportation | C27: MDOT FA | D27: =SUMPRODUCT((Projects!$A$5:$A$2481='MDOT FTA Detail'!$D$3)*(Projects!$C$5:$C$2481='MDOT FTA Detail'!$C$4)*(Projects!$L$5:$L$2481='MDOT FTA Detail'!$A27)*(Projects!$J$5:$J$2481<>'MDOT FTA Detail'!$A$159)*(Projects!$K$5:K$2481)) -> 0 | E27: 0 | F27: =SUMPRODUCT((Projects!$A$5:$A$2481='MDOT FTA Detail'!$D$3)*(Projects!$C$5:$C$2481='MDOT FTA Detail'!$C$4)*(Projects!$L$5:$L$2481='MDOT FTA Detail'!$A27)*(Projects!$J$5:$J$2481<>'MDOT FTA Detail'!$A$159)*(Projects!$Q$5:Q$2481)) -> 0 | G27: =SUMPRODUCT((Projects!$A$5:$A$2481='MDOT FTA Detail'!$G$3)*(Projects!$C$5:$C$2481='MDOT FTA Detail'!$C$4)*(Projects!$L$5:$L$2481='MDOT FTA Detail'!$A27)*(Projects!$J$5:$J$2481<>'MDOT FTA Detail'!$A$159)*(Projects!$K$5:K$2481)) -> 0 | H27: 0 | I27: =SUMPRODUCT((Projects!$A$5:$A$2481='MDOT FTA Detail'!$G$3)*(Projects!$C$5:$C$2481='MDOT FTA Detail'!$C$4)*(Projects!$L$5:$L$2481='MDOT FTA Detail'!$A27)*(Projects!$J$5:$J$2481<>'MDOT FTA Detail'!$A$159)*(Projects!$Q$5:Q$2481)) -> 0 | J27: =SUMPRODUCT((Projects!$A$5:$A$2481='MDOT FTA Detail'!$J$3)*(Projects!$C$5:$C$2481='MDOT FTA Detail'!$C$4)*(Projects!$L$5:$L$2481='MDOT FTA Detail'!$A27)*(Projects!$J$5:$J$2481<>'MDOT FTA Detail'!$A$159)*(Projects!$K$5:$K$2481)) -> 0 | K27: 0 | L27: =SUMPRODUCT((Projects!$A$5:$A$2481='MDOT FTA Detail'!$J$3)*(Projects!$C$5:$C$2481='MDOT FTA Detail'!$C$4)*(Projects!$L$5:$L$2481='MDOT FTA Detail'!$A27)*(Projects!$J$5:$J$2481<>'MDOT FTA Detail'!$A$159)*(Projects!$Q$5:$Q$2481)) -> 0 | M27: =SUMPRODUCT((Projects!$A$5:$A$2481='MDOT FTA Detail'!$M$3)*(Projects!$C$5:$C$2481='MDOT FTA Detail'!$C$4)*(Projects!$L$5:$L$2481='MDOT FTA Detail'!$A27)*(Projects!$J$5:$J$2481<>'MDOT FTA Detail'!$A$159)*(Projects!$K$5:$K$2481)) -> 0 | N27: 0 | O27: =SUMPRODUCT((Projects!$A$5:$A$2481='MDOT FTA Detail'!$M$3)*(Projects!$C$5:$C$2481='MDOT FTA Detail'!$C$4)*(Projects!$L$5:$L$2481='MDOT FTA Detail'!$A27)*(Projects!$J$5:$J$2481<>'MDOT FTA Detail'!$A$159)*(Projects!$Q$5:$Q$2481)) -> 0
A28: DSTU | B28: Donor Bonus Surface Transportation - (Urban > 2499,000) | C28: MDOT FA | D28: =SUMPRODUCT((Projects!$A$5:$A$2481='MDOT FTA Detail'!$D$3)*(Projects!$C$5:$C$2481='MDOT FTA Detail'!$C$4)*(Projects!$L$5:$L$2481='MDOT FTA Detail'!$A28)*(Projects!$J$5:$J$2481<>'MDOT FTA Detail'!$A$159)*(Projects!$K$5:K$2481)) -> 0 | E28: 0 | F28: =SUMPRODUCT((Projects!$A$5:$A$2481='MDOT FTA Detail'!$D$3)*(Projects!$C$5:$C$2481='MDOT FTA Detail'!$C$4)*(Projects!$L$5:$L$2481='MDOT FTA Detail'!$A28)*(Projects!$J$5:$J$2481<>'MDOT FTA Detail'!$A$159)*(Projects!$Q$5:Q$2481)) -> 0 | G28: =SUMPRODUCT((Projects!$A$5:$A$2481='MDOT FTA Detail'!$G$3)*(Projects!$C$5:$C$2481='MDOT FTA Detail'!$C$4)*(Projects!$L$5:$L$2481='MDOT FTA Detail'!$A28)*(Projects!$J$5:$J$2481<>'MDOT FTA Detail'!$A$159)*(Projects!$K$5:K$2481)) -> 0 | H28: 0 | I28: =SUMPRODUCT((Projects!$A$5:$A$2481='MDOT FTA Detail'!$G$3)*(Projects!$C$5:$C$2481='MDOT FTA Detail'!$C$4)*(Projects!$L$5:$L$2481='MDOT FTA Detail'!$A28)*(Projects!$J$5:$J$2481<>'MDOT FTA Detail'!$A$159)*(Projects!$Q$5:Q$2481)) -> 0 | J28: =SUMPRODUCT((Projects!$A$5:$A$2481='MDOT FTA Detail'!$J$3)*(Projects!$C$5:$C$2481='MDOT FTA Detail'!$C$4)*(Projects!$L$5:$L$2481='MDOT FTA Detail'!$A28)*(Projects!$J$5:$J$2481<>'MDOT FTA Detail'!$A$159)*(Projects!$K$5:$K$2481)) -> 0 | K28: 0 | L28: =SUMPRODUCT((Projects!$A$5:$A$2481='MDOT FTA Detail'!$J$3)*(Projects!$C$5:$C$2481='MDOT FTA Detail'!$C$4)*(Projects!$L$5:$L$2481='MDOT FTA Detail'!$A28)*(Projects!$J$5:$J$2481<>'MDOT FTA Detail'!$A$159)*(Projects!$Q$5:$Q$2481)) -> 0 | M28: =SUMPRODUCT((Projects!$A$5:$A$2481='MDOT FTA Detail'!$M$3)*(Projects!$C$5:$C$2481='MDOT FTA Detail'!$C$4)*(Projects!$L$5:$L$2481='MDOT FTA Detail'!$A28)*(Projects!$J$5:$J$2481<>'MDOT FTA Detail'!$A$159)*(Projects!$K$5:$K$2481)) -> 0 | N28: 0 | O28: =SUMPRODUCT((Projects!$A$5:$A$2481='MDOT FTA Detail'!$M$3)*(Projects!$C$5:$C$2481='MDOT FTA Detail'!$C$4)*(Projects!$L$5:$L$2481='MDOT FTA Detail'!$A28)*(Projects!$J$5:$J$2481<>'MDOT FTA Detail'!$A$159)*(Projects!$Q$5:$Q$2481)) -> 0
A29: DSTT | B29: Donor Bonus Surface Transportation - Rural - Trunkline | C29: MDOT FA | D29: =SUMPRODUCT((Projects!$A$5:$A$2481='MDOT FTA Detail'!$D$3)*(Projects!$C$5:$C$2481='MDOT FTA Detail'!$C$4)*(Projects!$L$5:$L$2481='MDOT FTA Detail'!$A29)*(Projects!$J$5:$J$2481<>'MDOT FTA Detail'!$A$159)*(Projects!$K$5:K$2481)) -> 0 | E29: 0 | F29: =SUMPRODUCT((Projects!$A$5:$A$2481='MDOT FTA Detail'!$D$3)*(Projects!$C$5:$C$2481='MDOT FTA Detail'!$C$4)*(Projects!$L$5:$L$2481='MDOT FTA Detail'!$A29)*(Projects!$J$5:$J$2481<>'MDOT FTA Detail'!$A$159)*(Projects!$Q$5:Q$2481)) -> 0 | G29: =SUMPRODUCT((Projects!$A$5:$A$2481='MDOT FTA Detail'!$G$3)*(Projects!$C$5:$C$2481='MDOT FTA Detail'!$C$4)*(Projects!$L$5:$L$2481='MDOT FTA Detail'!$A29)*(Projects!$J$5:$J$2481<>'MDOT FTA Detail'!$A$159)*(Projects!$K$5:K$2481)) -> 0 | H29: 0 | I29: =SUMPRODUCT((Projects!$A$5:$A$2481='MDOT FTA Detail'!$G$3)*(Projects!$C$5:$C$2481='MDOT FTA Detail'!$C$4)*(Projects!$L$5:$L$2481='MDOT FTA Detail'!$A29)*(Projects!$J$5:$J$2481<>'MDOT FTA Detail'!$A$159)*(Projects!$Q$5:Q$2481)) -> 0 | J29: =SUMPRODUCT((Projects!$A$5:$A$2481='MDOT FTA Detail'!$J$3)*(Projects!$C$5:$C$2481='MDOT FTA Detail'!$C$4)*(Projects!$L$5:$L$2481='MDOT FTA Detail'!$A29)*(Projects!$J$5:$J$2481<>'MDOT FTA Detail'!$A$159)*(Projects!$K$5:$K$2481)) -> 0 | K29: 0 | L29: =SUMPRODUCT((Projects!$A$5:$A$2481='MDOT FTA Detail'!$J$3)*(Projects!$C$5:$C$2481='MDOT FTA Detail'!$C$4)*(Projects!$L$5:$L$2481='MDOT FTA Detail'!$A29)*(Projects!$J$5:$J$2481<>'MDOT FTA Detail'!$A$159)*(Projects!$Q$5:$Q$2481)) -> 0 | M29: =SUMPRODUCT((Projects!$A$5:$A$2481='MDOT FTA Detail'!$M$3)*(Projects!$C$5:$C$2481='MDOT FTA Detail'!$C$4)*(Projects!$L$5:$L$2481='MDOT FTA Detail'!$A29)*(Projects!$J$5:$J$2481<>'MDOT FTA Detail'!$A$159)*(Projects!$K$5:$K$2481)) -> 0 | N29: 0 | O29: =SUMPRODUCT((Projects!$A$5:$A$2481='MDOT FTA Detail'!$M$3)*(Projects!$C$5:$C$2481='MDOT FTA Detail'!$C$4)*(Projects!$L$5:$L$2481='MDOT FTA Detail'!$A29)*(Projects!$J$5:$J$2481<>'MDOT FTA Detail'!$A$159)*(Projects!$Q$5:$Q$2481)) -> 0
A30: EBSL | B30: Equity Bonus - SAFETEA-LU | C30: MDOT FA | D30: =SUMPRODUCT((Projects!$A$5:$A$2481='MDOT FTA Detail'!$D$3)*(Projects!$C$5:$C$2481='MDOT FTA Detail'!$C$4)*(Projects!$L$5:$L$2481='MDOT FTA Detail'!$A30)*(Projects!$J$5:$J$2481<>'MDOT FTA Detail'!$A$159)*(Projects!$K$5:K$2481)) -> 0 | E30: 0 | F30: =SUMPRODUCT((Projects!$A$5:$A$2481='MDOT FTA Detail'!$D$3)*(Projects!$C$5:$C$2481='MDOT FTA Detail'!$C$4)*(Projects!$L$5:$L$2481='MDOT FTA Detail'!$A30)*(Projects!$J$5:$J$2481<>'MDOT FTA Detail'!$A$159)*(Projects!$Q$5:Q$2481)) -> 0 | G30: =SUMPRODUCT((Projects!$A$5:$A$2481='MDOT FTA Detail'!$G$3)*(Projects!$C$5:$C$2481='MDOT FTA Detail'!$C$4)*(Projects!$L$5:$L$2481='MDOT FTA Detail'!$A30)*(Projects!$J$5:$J$2481<>'MDOT FTA Detail'!$A$159)*(Projects!$K$5:K$2481)) -> 0 | H30: 0 | I30: =SUMPRODUCT((Projects!$A$5:$A$2481='MDOT FTA Detail'!$G$3)*(Projects!$C$5:$C$2481='MDOT FTA Detail'!$C$4)*(Projects!$L$5:$L$2481='MDOT FTA Detail'!$A30)*(Projects!$J$5:$J$2481<>'MDOT FTA Detail'!$A$159)*(Projects!$Q$5:Q$2481)) -> 0 | J30: =SUMPRODUCT((Projects!$A$5:$A$2481='MDOT FTA Detail'!$J$3)*(Projects!$C$5:$C$2481='MDOT FTA Detail'!$C$4)*(Projects!$L$5:$L$2481='MDOT FTA Detail'!$A30)*(Projects!$J$5:$J$2481<>'MDOT FTA Detail'!$A$159)*(Projects!$K$5:$K$2481)) -> 0 | K30: 0 | L30: =SUMPRODUCT((Projects!$A$5:$A$2481='MDOT FTA Detail'!$J$3)*(Projects!$C$5:$C$2481='MDOT FTA Detail'!$C$4)*(Projects!$L$5:$L$2481='MDOT FTA Detail'!$A30)*(Projects!$J$5:$J$2481<>'MDOT FTA Detail'!$A$159)*(Projects!$Q$5:$Q$2481)) -> 0 | M30: =SUMPRODUCT((Projects!$A$5:$A$2481='MDOT FTA Detail'!$M$3)*(Projects!$C$5:$C$2481='MDOT FTA Detail'!$C$4)*(Projects!$L$5:$L$2481='MDOT FTA Detail'!$A30)*(Projects!$J$5:$J$2481<>'MDOT FTA Detail'!$A$159)*(Projects!$K$5:$K$2481)) -> 0 | N30: 0 | O30: =SUMPRODUCT((Projects!$A$5:$A$2481='MDOT FTA Detail'!$M$3)*(Projects!$C$5:$C$2481='MDOT FTA Detail'!$C$4)*(Projects!$L$5:$L$2481='MDOT FTA Detail'!$A30)*(Projects!$J$5:$J$2481<>'MDOT FTA Detail'!$A$159)*(Projects!$Q$5:$Q$2481)) -> 0
A31: EDAF | B31: Economic Development - Category A with Federal Aid | C31: MDOT FA | D31: =SUMPRODUCT((Projects!$A$5:$A$2481='MDOT FTA Detail'!$D$3)*(Projects!$C$5:$C$2481='MDOT FTA Detail'!$C$4)*(Projects!$L$5:$L$2481='MDOT FTA Detail'!$A31)*(Projects!$J$5:$J$2481<>'MDOT FTA Detail'!$A$159)*(Projects!$K$5:K$2481)) -> 0 | E31: 0 | F31: =SUMPRODUCT((Projects!$A$5:$A$2481='MDOT FTA Detail'!$D$3)*(Projects!$C$5:$C$2481='MDOT FTA Detail'!$C$4)*(Projects!$L$5:$L$2481='MDOT FTA Detail'!$A31)*(Projects!$J$5:$J$2481<>'MDOT FTA Detail'!$A$159)*(Projects!$Q$5:Q$2481)) -> 0 | G31: =SUMPRODUCT((Projects!$A$5:$A$2481='MDOT FTA Detail'!$G$3)*(Projects!$C$5:$C$2481='MDOT FTA Detail'!$C$4)*(Projects!$L$5:$L$2481='MDOT FTA Detail'!$A31)*(Projects!$J$5:$J$2481<>'MDOT FTA Detail'!$A$159)*(Projects!$K$5:K$2481)) -> 0 | H31: 0 | I31: =SUMPRODUCT((Projects!$A$5:$A$2481='MDOT FTA Detail'!$G$3)*(Projects!$C$5:$C$2481='MDOT FTA Detail'!$C$4)*(Projects!$L$5:$L$2481='MDOT FTA Detail'!$A31)*(Projects!$J$5:$J$2481<>'MDOT FTA Detail'!$A$159)*(Projects!$Q$5:Q$2481)) -> 0 | J31: =SUMPRODUCT((Projects!$A$5:$A$2481='MDOT FTA Detail'!$J$3)*(Projects!$C$5:$C$2481='MDOT FTA Detail'!$C$4)*(Projects!$L$5:$L$2481='MDOT FTA Detail'!$A31)*(Projects!$J$5:$J$2481<>'MDOT FTA Detail'!$A$159)*(Projects!$K$5:$K$2481)) -> 0 | K31: 0 | L31: =SUMPRODUCT((Projects!$A$5:$A$2481='MDOT FTA Detail'!$J$3)*(Projects!$C$5:$C$2481='MDOT FTA Detail'!$C$4)*(Projects!$L$5:$L$2481='MDOT FTA Detail'!$A31)*(Projects!$J$5:$J$2481<>'MDOT FTA Detail'!$A$159)*(Projects!$Q$5:$Q$2481)) -> 0 | M31: =SUMPRODUCT((Projects!$A$5:$A$2481='MDOT FTA Detail'!$M$3)*(Projects!$C$5:$C$2481='MDOT FTA Detail'!$C$4)*(Projects!$L$5:$L$2481='MDOT FTA Detail'!$A31)*(Projects!$J$5:$J$2481<>'MDOT FTA Detail'!$A$159)*(Projects!$K$5:$K$2481)) -> 0 | N31: 0 | O31: =SUMPRODUCT((Projects!$A$5:$A$2481='MDOT FTA Detail'!$M$3)*(Projects!$C$5:$C$2481='MDOT FTA Detail'!$C$4)*(Projects!$L$5:$L$2481='MDOT FTA Detail'!$A31)*(Projects!$J$5:$J$2481<>'MDOT FTA Detail'!$A$159)*(Projects!$Q$5:$Q$2481)) -> 0
A32: EDCF | B32: Economic Development - Category C with Federal Aid | C32: MDOT FA | D32: =SUMPRODUCT((Projects!$A$5:$A$2481='MDOT FTA Detail'!$D$3)*(Projects!$C$5:$C$2481='MDOT FTA Detail'!$C$4)*(Projects!$L$5:$L$2481='MDOT FTA Detail'!$A32)*(Projects!$J$5:$J$2481<>'MDOT FTA Detail'!$A$159)*(Projects!$K$5:K$2481)) -> 0 | E32: 0 | F32: =SUMPRODUCT((Projects!$A$5:$A$2481='MDOT FTA Detail'!$D$3)*(Projects!$C$5:$C$2481='MDOT FTA Detail'!$C$4)*(Projects!$L$5:$L$2481='MDOT FTA Detail'!$A32)*(Projects!$J$5:$J$2481<>'MDOT FTA Detail'!$A$159)*(Projects!$Q$5:Q$2481)) -> 0 | G32: =SUMPRODUCT((Projects!$A$5:$A$2481='MDOT FTA Detail'!$G$3)*(Projects!$C$5:$C$2481='MDOT FTA Detail'!$C$4)*(Projects!$L$5:$L$2481='MDOT FTA Detail'!$A32)*(Projects!$J$5:$J$2481<>'MDOT FTA Detail'!$A$159)*(Projects!$K$5:K$2481)) -> 0 | H32: 0 | I32: =SUMPRODUCT((Projects!$A$5:$A$2481='MDOT FTA Detail'!$G$3)*(Projects!$C$5:$C$2481='MDOT FTA Detail'!$C$4)*(Projects!$L$5:$L$2481='MDOT FTA Detail'!$A32)*(Projects!$J$5:$J$2481<>'MDOT FTA Detail'!$A$159)*(Projects!$Q$5:Q$2481)) -> 0 | J32: =SUMPRODUCT((Projects!$A$5:$A$2481='MDOT FTA Detail'!$J$3)*(Projects!$C$5:$C$2481='MDOT FTA Detail'!$C$4)*(Projects!$L$5:$L$2481='MDOT FTA Detail'!$A32)*(Projects!$J$5:$J$2481<>'MDOT FTA Detail'!$A$159)*(Projects!$K$5:$K$2481)) -> 0 | K32: 0 | L32: =SUMPRODUCT((Projects!$A$5:$A$2481='MDOT FTA Detail'!$J$3)*(Projects!$C$5:$C$2481='MDOT FTA Detail'!$C$4)*(Projects!$L$5:$L$2481='MDOT FTA Detail'!$A32)*(Projects!$J$5:$J$2481<>'MDOT FTA Detail'!$A$159)*(Projects!$Q$5:$Q$2481)) -> 0 | M32: =SUMPRODUCT((Projects!$A$5:$A$2481='MDOT FTA Detail'!$M$3)*(Projects!$C$5:$C$2481='MDOT FTA Detail'!$C$4)*(Projects!$L$5:$L$2481='MDOT FTA Detail'!$A32)*(Projects!$J$5:$J$2481<>'MDOT FTA Detail'!$A$159)*(Projects!$K$5:$K$2481)) -> 0 | N32: 0 | O32: =SUMPRODUCT((Projects!$A$5:$A$2481='MDOT FTA Detail'!$M$3)*(Projects!$C$5:$C$2481='MDOT FTA Detail'!$C$4)*(Projects!$L$5:$L$2481='MDOT FTA Detail'!$A32)*(Projects!$J$5:$J$2481<>'MDOT FTA Detail'!$A$159)*(Projects!$Q$5:$Q$2481)) -> 0
A33: EDDF | B33: Economic Development - Category D with Federal Aid | C33: MDOT FA | D33: =SUMPRODUCT((Projects!$A$5:$A$2481='MDOT FTA Detail'!$D$3)*(Projects!$C$5:$C$2481='MDOT FTA Detail'!$C$4)*(Projects!$L$5:$L$2481='MDOT FTA Detail'!$A33)*(Projects!$J$5:$J$2481<>'MDOT FTA Detail'!$A$159)*(Projects!$K$5:K$2481)) -> 0 | E33: 0 | F33: =SUMPRODUCT((Projects!$A$5:$A$2481='MDOT FTA Detail'!$D$3)*(Projects!$C$5:$C$2481='MDOT FTA Detail'!$C$4)*(Projects!$L$5:$L$2481='MDOT FTA Detail'!$A33)*(Projects!$J$5:$J$2481<>'MDOT FTA Detail'!$A$159)*(Projects!$Q$5:Q$2481)) -> 0 | G33: =SUMPRODUCT((Projects!$A$5:$A$2481='MDOT FTA Detail'!$G$3)*(Projects!$C$5:$C$2481='MDOT FTA Detail'!$C$4)*(Projects!$L$5:$L$2481='MDOT FTA Detail'!$A33)*(Projects!$J$5:$J$2481<>'MDOT FTA Detail'!$A$159)*(Projects!$K$5:K$2481)) -> 0 | H33: 0 | I33: =SUMPRODUCT((Projects!$A$5:$A$2481='MDOT FTA Detail'!$G$3)*(Projects!$C$5:$C$2481='MDOT FTA Detail'!$C$4)*(Projects!$L$5:$L$2481='MDOT FTA Detail'!$A33)*(Projects!$J$5:$J$2481<>'MDOT FTA Detail'!$A$159)*(Projects!$Q$5:Q$2481)) -> 0 | J33: =SUMPRODUCT((Projects!$A$5:$A$2481='MDOT FTA Detail'!$J$3)*(Projects!$C$5:$C$2481='MDOT FTA Detail'!$C$4)*(Projects!$L$5:$L$2481='MDOT FTA Detail'!$A33)*(Projects!$J$5:$J$2481<>'MDOT FTA Detail'!$A$159)*(Projects!$K$5:$K$2481)) -> 0 | K33: 0 | L33: =SUMPRODUCT((Projects!$A$5:$A$2481='MDOT FTA Detail'!$J$3)*(Projects!$C$5:$C$2481='MDOT FTA Detail'!$C$4)*(Projects!$L$5:$L$2481='MDOT FTA Detail'!$A33)*(Projects!$J$5:$J$2481<>'MDOT FTA Detail'!$A$159)*(Projects!$Q$5:$Q$2481)) -> 0 | M33: =SUMPRODUCT((Projects!$A$5:$A$2481='MDOT FTA Detail'!$M$3)*(Projects!$C$5:$C$2481='MDOT FTA Detail'!$C$4)*(Projects!$L$5:$L$2481='MDOT FTA Detail'!$A33)*(Projects!$J$5:$J$2481<>'MDOT FTA Detail'!$A$159)*(Projects!$K$5:$K$2481)) -> 0 | N33: 0 | O33: =SUMPRODUCT((Projects!$A$5:$A$2481='MDOT FTA Detail'!$M$3)*(Projects!$C$5:$C$2481='MDOT FTA Detail'!$C$4)*(Projects!$L$5:$L$2481='MDOT FTA Detail'!$A33)*(Projects!$J$5:$J$2481<>'MDOT FTA Detail'!$A$159)*(Projects!$Q$5:$Q$2481)) -> 0
A34: EDFF | B34: Economic Development - Category F with Federal Aid | C34: MDOT FA | D34: =SUMPRODUCT((Projects!$A$5:$A$2481='MDOT FTA Detail'!$D$3)*(Projects!$C$5:$C$2481='MDOT FTA Detail'!$C$4)*(Projects!$L$5:$L$2481='MDOT FTA Detail'!$A34)*(Projects!$J$5:$J$2481<>'MDOT FTA Detail'!$A$159)*(Projects!$K$5:K$2481)) -> 0 | E34: 0 | F34: =SUMPRODUCT((Projects!$A$5:$A$2481='MDOT FTA Detail'!$D$3)*(Projects!$C$5:$C$2481='MDOT FTA Detail'!$C$4)*(Projects!$L$5:$L$2481='MDOT FTA Detail'!$A34)*(Projects!$J$5:$J$2481<>'MDOT FTA Detail'!$A$159)*(Projects!$Q$5:Q$2481)) -> 0 | G34: =SUMPRODUCT((Projects!$A$5:$A$2481='MDOT FTA Detail'!$G$3)*(Projects!$C$5:$C$2481='MDOT FTA Detail'!$C$4)*(Projects!$L$5:$L$2481='MDOT FTA Detail'!$A34)*(Projects!$J$5:$J$2481<>'MDOT FTA Detail'!$A$159)*(Projects!$K$5:K$2481)) -> 0 | H34: 0 | I34: =SUMPRODUCT((Projects!$A$5:$A$2481='MDOT FTA Detail'!$G$3)*(Projects!$C$5:$C$2481='MDOT FTA Detail'!$C$4)*(Projects!$L$5:$L$2481='MDOT FTA Detail'!$A34)*(Projects!$J$5:$J$2481<>'MDOT FTA Detail'!$A$159)*(Projects!$Q$5:Q$2481)) -> 0 | J34: =SUMPRODUCT((Projects!$A$5:$A$2481='MDOT FTA Detail'!$J$3)*(Projects!$C$5:$C$2481='MDOT FTA Detail'!$C$4)*(Projects!$L$5:$L$2481='MDOT FTA Detail'!$A34)*(Projects!$J$5:$J$2481<>'MDOT FTA Detail'!$A$159)*(Projects!$K$5:$K$2481)) -> 0 | K34: 0 | L34: =SUMPRODUCT((Projects!$A$5:$A$2481='MDOT FTA Detail'!$J$3)*(Projects!$C$5:$C$2481='MDOT FTA Detail'!$C$4)*(Projects!$L$5:$L$2481='MDOT FTA Detail'!$A34)*(Projects!$J$5:$J$2481<>'MDOT FTA Detail'!$A$159)*(Projects!$Q$5:$Q$2481)) -> 0 | M34: =SUMPRODUCT((Projects!$A$5:$A$2481='MDOT FTA Detail'!$M$3)*(Projects!$C$5:$C$2481='MDOT FTA Detail'!$C$4)*(Projects!$L$5:$L$2481='MDOT FTA Detail'!$A34)*(Projects!$J$5:$J$2481<>'MDOT FTA Detail'!$A$159)*(Projects!$K$5:$K$2481)) -> 0 | N34: 0 | O34: =SUMPRODUCT((Projects!$A$5:$A$2481='MDOT FTA Detail'!$M$3)*(Projects!$C$5:$C$2481='MDOT FTA Detail'!$C$4)*(Projects!$L$5:$L$2481='MDOT FTA Detail'!$A34)*(Projects!$J$5:$J$2481<>'MDOT FTA Detail'!$A$159)*(Projects!$Q$5:$Q$2481)) -> 0
A35: ER | B35: Emergency Relief | C35: MDOT FA | D35: =SUMPRODUCT((Projects!$A$5:$A$2481='MDOT FTA Detail'!$D$3)*(Projects!$C$5:$C$2481='MDOT FTA Detail'!$C$4)*(Projects!$L$5:$L$2481='MDOT FTA Detail'!$A35)*(Projects!$J$5:$J$2481<>'MDOT FTA Detail'!$A$159)*(Projects!$K$5:K$2481)) -> 0 | E35: 0 | F35: =SUMPRODUCT((Projects!$A$5:$A$2481='MDOT FTA Detail'!$D$3)*(Projects!$C$5:$C$2481='MDOT FTA Detail'!$C$4)*(Projects!$L$5:$L$2481='MDOT FTA Detail'!$A35)*(Projects!$J$5:$J$2481<>'MDOT FTA Detail'!$A$159)*(Projects!$Q$5:Q$2481)) -> 0 | G35: =SUMPRODUCT((Projects!$A$5:$A$2481='MDOT FTA Detail'!$G$3)*(Projects!$C$5:$C$2481='MDOT FTA Detail'!$C$4)*(Projects!$L$5:$L$2481='MDOT FTA Detail'!$A35)*(Projects!$J$5:$J$2481<>'MDOT FTA Detail'!$A$159)*(Projects!$K$5:K$2481)) -> 0 | H35: 0 | I35: =SUMPRODUCT((Projects!$A$5:$A$2481='MDOT FTA Detail'!$G$3)*(Projects!$C$5:$C$2481='MDOT FTA Detail'!$C$4)*(Projects!$L$5:$L$2481='MDOT FTA Detail'!$A35)*(Projects!$J$5:$J$2481<>'MDOT FTA Detail'!$A$159)*(Projects!$Q$5:Q$2481)) -> 0 | J35: =SUMPRODUCT((Projects!$A$5:$A$2481='MDOT FTA Detail'!$J$3)*(Projects!$C$5:$C$2481='MDOT FTA Detail'!$C$4)*(Projects!$L$5:$L$2481='MDOT FTA Detail'!$A35)*(Projects!$J$5:$J$2481<>'MDOT FTA Detail'!$A$159)*(Projects!$K$5:$K$2481)) -> 0 | K35: 0 | L35: =SUMPRODUCT((Projects!$A$5:$A$2481='MDOT FTA Detail'!$J$3)*(Projects!$C$5:$C$2481='MDOT FTA Detail'!$C$4)*(Projects!$L$5:$L$2481='MDOT FTA Detail'!$A35)*(Projects!$J$5:$J$2481<>'MDOT FTA Detail'!$A$159)*(Projects!$Q$5:$Q$2481)) -> 0 | M35: =SUMPRODUCT((Projects!$A$5:$A$2481='MDOT FTA Detail'!$M$3)*(Projects!$C$5:$C$2481='MDOT FTA Detail'!$C$4)*(Projects!$L$5:$L$2481='MDOT FTA Detail'!$A35)*(Projects!$J$5:$J$2481<>'MDOT FTA Detail'!$A$159)*(Projects!$K$5:$K$2481)) -> 0 | N35: 0 | O35: =SUMPRODUCT((Projects!$A$5:$A$2481='MDOT FTA Detail'!$M$3)*(Projects!$C$5:$C$2481='MDOT FTA Detail'!$C$4)*(Projects!$L$5:$L$2481='MDOT FTA Detail'!$A35)*(Projects!$J$5:$J$2481<>'MDOT FTA Detail'!$A$159)*(Projects!$Q$5:$Q$2481)) -> 0
A36: FBD | B36: Ferry Boat & Terminal Discretionary | C36: MDOT FA | D36: =SUMPRODUCT((Projects!$A$5:$A$2481='MDOT FTA Detail'!$D$3)*(Projects!$C$5:$C$2481='MDOT FTA Detail'!$C$4)*(Projects!$L$5:$L$2481='MDOT FTA Detail'!$A36)*(Projects!$J$5:$J$2481<>'MDOT FTA Detail'!$A$159)*(Projects!$K$5:K$2481)) -> 0 | E36: 0 | F36: =SUMPRODUCT((Projects!$A$5:$A$2481='MDOT FTA Detail'!$D$3)*(Projects!$C$5:$C$2481='MDOT FTA Detail'!$C$4)*(Projects!$L$5:$L$2481='MDOT FTA Detail'!$A36)*(Projects!$J$5:$J$2481<>'MDOT FTA Detail'!$A$159)*(Projects!$Q$5:Q$2481)) -> 0 | G36: =SUMPRODUCT((Projects!$A$5:$A$2481='MDOT FTA Detail'!$G$3)*(Projects!$C$5:$C$2481='MDOT FTA Detail'!$C$4)*(Projects!$L$5:$L$2481='MDOT FTA Detail'!$A36)*(Projects!$J$5:$J$2481<>'MDOT FTA Detail'!$A$159)*(Projects!$K$5:K$2481)) -> 0 | H36: 0 | I36: =SUMPRODUCT((Projects!$A$5:$A$2481='MDOT FTA Detail'!$G$3)*(Projects!$C$5:$C$2481='MDOT FTA Detail'!$C$4)*(Projects!$L$5:$L$2481='MDOT FTA Detail'!$A36)*(Projects!$J$5:$J$2481<>'MDOT FTA Detail'!$A$159)*(Projects!$Q$5:Q$2481)) -> 0 | J36: =SUMPRODUCT((Projects!$A$5:$A$2481='MDOT FTA Detail'!$J$3)*(Projects!$C$5:$C$2481='MDOT FTA Detail'!$C$4)*(Projects!$L$5:$L$2481='MDOT FTA Detail'!$A36)*(Projects!$J$5:$J$2481<>'MDOT FTA Detail'!$A$159)*(Projects!$K$5:$K$2481)) -> 0 | K36: 0 | L36: =SUMPRODUCT((Projects!$A$5:$A$2481='MDOT FTA Detail'!$J$3)*(Projects!$C$5:$C$2481='MDOT FTA Detail'!$C$4)*(Projects!$L$5:$L$2481='MDOT FTA Detail'!$A36)*(Projects!$J$5:$J$2481<>'MDOT FTA Detail'!$A$159)*(Projects!$Q$5:$Q$2481)) -> 0 | M36: =SUMPRODUCT((Projects!$A$5:$A$2481='MDOT FTA Detail'!$M$3)*(Projects!$C$5:$C$2481='MDOT FTA Detail'!$C$4)*(Projects!$L$5:$L$2481='MDOT FTA Detail'!$A36)*(Projects!$J$5:$J$2481<>'MDOT FTA Detail'!$A$159)*(Projects!$K$5:$K$2481)) -> 0 | N36: 0 | O36: =SUMPRODUCT((Projects!$A$5:$A$2481='MDOT FTA Detail'!$M$3)*(Projects!$C$5:$C$2481='MDOT FTA Detail'!$C$4)*(Projects!$L$5:$L$2481='MDOT FTA Detail'!$A36)*(Projects!$J$5:$J$2481<>'MDOT FTA Detail'!$A$159)*(Projects!$Q$5:$Q$2481)) -> 0
A37: FFH | B37: Federal Forest Highway | C37: MDOT FA | D37: =SUMPRODUCT((Projects!$A$5:$A$2481='MDOT FTA Detail'!$D$3)*(Projects!$C$5:$C$2481='MDOT FTA Detail'!$C$4)*(Projects!$L$5:$L$2481='MDOT FTA Detail'!$A37)*(Projects!$J$5:$J$2481<>'MDOT FTA Detail'!$A$159)*(Projects!$K$5:K$2481)) -> 0 | E37: 0 | F37: =SUMPRODUCT((Projects!$A$5:$A$2481='MDOT FTA Detail'!$D$3)*(Projects!$C$5:$C$2481='MDOT FTA Detail'!$C$4)*(Projects!$L$5:$L$2481='MDOT FTA Detail'!$A37)*(Projects!$J$5:$J$2481<>'MDOT FTA Detail'!$A$159)*(Projects!$Q$5:Q$2481)) -> 0 | G37: =SUMPRODUCT((Projects!$A$5:$A$2481='MDOT FTA Detail'!$G$3)*(Projects!$C$5:$C$2481='MDOT FTA Detail'!$C$4)*(Projects!$L$5:$L$2481='MDOT FTA Detail'!$A37)*(Projects!$J$5:$J$2481<>'MDOT FTA Detail'!$A$159)*(Projects!$K$5:K$2481)) -> 0 | H37: 0 | I37: =SUMPRODUCT((Projects!$A$5:$A$2481='MDOT FTA Detail'!$G$3)*(Projects!$C$5:$C$2481='MDOT FTA Detail'!$C$4)*(Projects!$L$5:$L$2481='MDOT FTA Detail'!$A37)*(Projects!$J$5:$J$2481<>'MDOT FTA Detail'!$A$159)*(Projects!$Q$5:Q$2481)) -> 0 | J37: =SUMPRODUCT((Projects!$A$5:$A$2481='MDOT FTA Detail'!$J$3)*(Projects!$C$5:$C$2481='MDOT FTA Detail'!$C$4)*(Projects!$L$5:$L$2481='MDOT FTA Detail'!$A37)*(Projects!$J$5:$J$2481<>'MDOT FTA Detail'!$A$159)*(Projects!$K$5:$K$2481)) -> 0 | K37: 0 | L37: =SUMPRODUCT((Projects!$A$5:$A$2481='MDOT FTA Detail'!$J$3)*(Projects!$C$5:$C$2481='MDOT FTA Detail'!$C$4)*(Projects!$L$5:$L$2481='MDOT FTA Detail'!$A37)*(Projects!$J$5:$J$2481<>'MDOT FTA Detail'!$A$159)*(Projects!$Q$5:$Q$2481)) -> 0 | M37: =SUMPRODUCT((Projects!$A$5:$A$2481='MDOT FTA Detail'!$M$3)*(Projects!$C$5:$C$2481='MDOT FTA Detail'!$C$4)*(Projects!$L$5:$L$2481='MDOT FTA Detail'!$A37)*(Projects!$J$5:$J$2481<>'MDOT FTA Detail'!$A$159)*(Projects!$K$5:$K$2481)) -> 0 | N37: 0 | O37: =SUMPRODUCT((Projects!$A$5:$A$2481='MDOT FTA Detail'!$M$3)*(Projects!$C$5:$C$2481='MDOT FTA Detail'!$C$4)*(Projects!$L$5:$L$2481='MDOT FTA Detail'!$A37)*(Projects!$J$5:$J$2481<>'MDOT FTA Detail'!$A$159)*(Projects!$Q$5:$Q$2481)) -> 0
A38: FLH | B38: Federal Land Highways - Public Lands | C38: MDOT FA | D38: =SUMPRODUCT((Projects!$A$5:$A$2481='MDOT FTA Detail'!$D$3)*(Projects!$C$5:$C$2481='MDOT FTA Detail'!$C$4)*(Projects!$L$5:$L$2481='MDOT FTA Detail'!$A38)*(Projects!$J$5:$J$2481<>'MDOT FTA Detail'!$A$159)*(Projects!$K$5:K$2481)) -> 0 | E38: 0 | F38: =SUMPRODUCT((Projects!$A$5:$A$2481='MDOT FTA Detail'!$D$3)*(Projects!$C$5:$C$2481='MDOT FTA Detail'!$C$4)*(Projects!$L$5:$L$2481='MDOT FTA Detail'!$A38)*(Projects!$J$5:$J$2481<>'MDOT FTA Detail'!$A$159)*(Projects!$Q$5:Q$2481)) -> 0 | G38: =SUMPRODUCT((Projects!$A$5:$A$2481='MDOT FTA Detail'!$G$3)*(Projects!$C$5:$C$2481='MDOT FTA Detail'!$C$4)*(Projects!$L$5:$L$2481='MDOT FTA Detail'!$A38)*(Projects!$J$5:$J$2481<>'MDOT FTA Detail'!$A$159)*(Projects!$K$5:K$2481)) -> 0 | H38: 0 | I38: =SUMPRODUCT((Projects!$A$5:$A$2481='MDOT FTA Detail'!$G$3)*(Projects!$C$5:$C$2481='MDOT FTA Detail'!$C$4)*(Projects!$L$5:$L$2481='MDOT FTA Detail'!$A38)*(Projects!$J$5:$J$2481<>'MDOT FTA Detail'!$A$159)*(Projects!$Q$5:Q$2481)) -> 0 | J38: =SUMPRODUCT((Projects!$A$5:$A$2481='MDOT FTA Detail'!$J$3)*(Projects!$C$5:$C$2481='MDOT FTA Detail'!$C$4)*(Projects!$L$5:$L$2481='MDOT FTA Detail'!$A38)*(Projects!$J$5:$J$2481<>'MDOT FTA Detail'!$A$159)*(Projects!$K$5:$K$2481)) -> 0 | K38: 0 | L38: =SUMPRODUCT((Projects!$A$5:$A$2481='MDOT FTA Detail'!$J$3)*(Projects!$C$5:$C$2481='MDOT FTA Detail'!$C$4)*(Projects!$L$5:$L$2481='MDOT FTA Detail'!$A38)*(Projects!$J$5:$J$2481<>'MDOT FTA Detail'!$A$159)*(Projects!$Q$5:$Q$2481)) -> 0 | M38: =SUMPRODUCT((Projects!$A$5:$A$2481='MDOT FTA Detail'!$M$3)*(Projects!$C$5:$C$2481='MDOT FTA Detail'!$C$4)*(Projects!$L$5:$L$2481='MDOT FTA Detail'!$A38)*(Projects!$J$5:$J$2481<>'MDOT FTA Detail'!$A$159)*(Projects!$K$5:$K$2481)) -> 0 | N38: 0 | O38: =SUMPRODUCT((Projects!$A$5:$A$2481='MDOT FTA Detail'!$M$3)*(Projects!$C$5:$C$2481='MDOT FTA Detail'!$C$4)*(Projects!$L$5:$L$2481='MDOT FTA Detail'!$A38)*(Projects!$J$5:$J$2481<>'MDOT FTA Detail'!$A$159)*(Projects!$Q$5:$Q$2481)) -> 0
A39: HBOA | B39: Highway Bridge Obligation Authority | C39: MDOT FA | D39: =SUMPRODUCT((Projects!$A$5:$A$2481='MDOT FTA Detail'!$D$3)*(Projects!$C$5:$C$2481='MDOT FTA Detail'!$C$4)*(Projects!$L$5:$L$2481='MDOT FTA Detail'!$A39)*(Projects!$J$5:$J$2481<>'MDOT FTA Detail'!$A$159)*(Projects!$K$5:K$2481)) -> 0 | E39: 0 | F39: =SUMPRODUCT((Projects!$A$5:$A$2481='MDOT FTA Detail'!$D$3)*(Projects!$C$5:$C$2481='MDOT FTA Detail'!$C$4)*(Projects!$L$5:$L$2481='MDOT FTA Detail'!$A39)*(Projects!$J$5:$J$2481<>'MDOT FTA Detail'!$A$159)*(Projects!$Q$5:Q$2481)) -> 0 | G39: =SUMPRODUCT((Projects!$A$5:$A$2481='MDOT FTA Detail'!$G$3)*(Projects!$C$5:$C$2481='MDOT FTA Detail'!$C$4)*(Projects!$L$5:$L$2481='MDOT FTA Detail'!$A39)*(Projects!$J$5:$J$2481<>'MDOT FTA Detail'!$A$159)*(Projects!$K$5:K$2481)) -> 0 | H39: 0 | I39: =SUMPRODUCT((Projects!$A$5:$A$2481='MDOT FTA Detail'!$G$3)*(Projects!$C$5:$C$2481='MDOT FTA Detail'!$C$4)*(Projects!$L$5:$L$2481='MDOT FTA Detail'!$A39)*(Projects!$J$5:$J$2481<>'MDOT FTA Detail'!$A$159)*(Projects!$Q$5:Q$2481)) -> 0 | J39: =SUMPRODUCT((Projects!$A$5:$A$2481='MDOT FTA Detail'!$J$3)*(Projects!$C$5:$C$2481='MDOT FTA Detail'!$C$4)*(Projects!$L$5:$L$2481='MDOT FTA Detail'!$A39)*(Projects!$J$5:$J$2481<>'MDOT FTA Detail'!$A$159)*(Projects!$K$5:$K$2481)) -> 0 | K39: 0 | L39: =SUMPRODUCT((Projects!$A$5:$A$2481='MDOT FTA Detail'!$J$3)*(Projects!$C$5:$C$2481='MDOT FTA Detail'!$C$4)*(Projects!$L$5:$L$2481='MDOT FTA Detail'!$A39)*(Projects!$J$5:$J$2481<>'MDOT FTA Detail'!$A$159)*(Projects!$Q$5:$Q$2481)) -> 0 | M39: =SUMPRODUCT((Projects!$A$5:$A$2481='MDOT FTA Detail'!$M$3)*(Projects!$C$5:$C$2481='MDOT FTA Detail'!$C$4)*(Projects!$L$5:$L$2481='MDOT FTA Detail'!$A39)*(Projects!$J$5:$J$2481<>'MDOT FTA Detail'!$A$159)*(Projects!$K$5:$K$2481)) -> 0 | N39: 0 | O39: =SUMPRODUCT((Projects!$A$5:$A$2481='MDOT FTA Detail'!$M$3)*(Projects!$C$5:$C$2481='MDOT FTA Detail'!$C$4)*(Projects!$L$5:$L$2481='MDOT FTA Detail'!$A39)*(Projects!$J$5:$J$2481<>'MDOT FTA Detail'!$A$159)*(Projects!$Q$5:$Q$2481)) -> 0
A40: HPP | B40: High Priority Projects (Demo) | C40: MDOT FA | D40: =SUMPRODUCT((Projects!$A$5:$A$2481='MDOT FTA Detail'!$D$3)*(Projects!$C$5:$C$2481='MDOT FTA Detail'!$C$4)*(Projects!$L$5:$L$2481='MDOT FTA Detail'!$A40)*(Projects!$J$5:$J$2481<>'MDOT FTA Detail'!$A$159)*(Projects!$K$5:K$2481)) -> 0 | E40: 0 | F40: =SUMPRODUCT((Projects!$A$5:$A$2481='MDOT FTA Detail'!$D$3)*(Projects!$C$5:$C$2481='MDOT FTA Detail'!$C$4)*(Projects!$L$5:$L$2481='MDOT FTA Detail'!$A40)*(Projects!$J$5:$J$2481<>'MDOT FTA Detail'!$A$159)*(Projects!$Q$5:Q$2481)) -> 0 | G40: =SUMPRODUCT((Projects!$A$5:$A$2481='MDOT FTA Detail'!$G$3)*(Projects!$C$5:$C$2481='MDOT FTA Detail'!$C$4)*(Projects!$L$5:$L$2481='MDOT FTA Detail'!$A40)*(Projects!$J$5:$J$2481<>'MDOT FTA Detail'!$A$159)*(Projects!$K$5:K$2481)) -> 0 | H40: 0 | I40: =SUMPRODUCT((Projects!$A$5:$A$2481='MDOT FTA Detail'!$G$3)*(Projects!$C$5:$C$2481='MDOT FTA Detail'!$C$4)*(Projects!$L$5:$L$2481='MDOT FTA Detail'!$A40)*(Projects!$J$5:$J$2481<>'MDOT FTA Detail'!$A$159)*(Projects!$Q$5:Q$2481)) -> 0 | J40: =SUMPRODUCT((Projects!$A$5:$A$2481='MDOT FTA Detail'!$J$3)*(Projects!$C$5:$C$2481='MDOT FTA Detail'!$C$4)*(Projects!$L$5:$L$2481='MDOT FTA Detail'!$A40)*(Projects!$J$5:$J$2481<>'MDOT FTA Detail'!$A$159)*(Projects!$K$5:$K$2481)) -> 0 | K40: 0 | L40: =SUMPRODUCT((Projects!$A$5:$A$2481='MDOT FTA Detail'!$J$3)*(Projects!$C$5:$C$2481='MDOT FTA Detail'!$C$4)*(Projects!$L$5:$L$2481='MDOT FTA Detail'!$A40)*(Projects!$J$5:$J$2481<>'MDOT FTA Detail'!$A$159)*(Projects!$Q$5:$Q$2481)) -> 0 | M40: =SUMPRODUCT((Projects!$A$5:$A$2481='MDOT FTA Detail'!$M$3)*(Projects!$C$5:$C$2481='MDOT FTA Detail'!$C$4)*(Projects!$L$5:$L$2481='MDOT FTA Detail'!$A40)*(Projects!$J$5:$J$2481<>'MDOT FTA Detail'!$A$159)*(Projects!$K$5:$K$2481)) -> 0 | N40: 0 | O40: =SUMPRODUCT((Projects!$A$5:$A$2481='MDOT FTA Detail'!$M$3)*(Projects!$C$5:$C$2481='MDOT FTA Detail'!$C$4)*(Projects!$L$5:$L$2481='MDOT FTA Detail'!$A40)*(Projects!$J$5:$J$2481<>'MDOT FTA Detail'!$A$159)*(Projects!$Q$5:$Q$2481)) -> 0
A41: HPSL | B41: High Priority Projects - SAFETEA-LU | C41: MDOT FA | D41: =SUMPRODUCT((Projects!$A$5:$A$2481='MDOT FTA Detail'!$D$3)*(Projects!$C$5:$C$2481='MDOT FTA Detail'!$C$4)*(Projects!$L$5:$L$2481='MDOT FTA Detail'!$A41)*(Projects!$J$5:$J$2481<>'MDOT FTA Detail'!$A$159)*(Projects!$K$5:K$2481)) -> 0 | E41: 0 | F41: =SUMPRODUCT((Projects!$A$5:$A$2481='MDOT FTA Detail'!$D$3)*(Projects!$C$5:$C$2481='MDOT FTA Detail'!$C$4)*(Projects!$L$5:$L$2481='MDOT FTA Detail'!$A41)*(Projects!$J$5:$J$2481<>'MDOT FTA Detail'!$A$159)*(Projects!$Q$5:Q$2481)) -> 0 | G41: =SUMPRODUCT((Projects!$A$5:$A$2481='MDOT FTA Detail'!$G$3)*(Projects!$C$5:$C$2481='MDOT FTA Detail'!$C$4)*(Projects!$L$5:$L$2481='MDOT FTA Detail'!$A41)*(Projects!$J$5:$J$2481<>'MDOT FTA Detail'!$A$159)*(Projects!$K$5:K$2481)) -> 0 | H41: 0 | I41: =SUMPRODUCT((Projects!$A$5:$A$2481='MDOT FTA Detail'!$G$3)*(Projects!$C$5:$C$2481='MDOT FTA Detail'!$C$4)*(Projects!$L$5:$L$2481='MDOT FTA Detail'!$A41)*(Projects!$J$5:$J$2481<>'MDOT FTA Detail'!$A$159)*(Projects!$Q$5:Q$2481)) -> 0 | J41: =SUMPRODUCT((Projects!$A$5:$A$2481='MDOT FTA Detail'!$J$3)*(Projects!$C$5:$C$2481='MDOT FTA Detail'!$C$4)*(Projects!$L$5:$L$2481='MDOT FTA Detail'!$A41)*(Projects!$J$5:$J$2481<>'MDOT FTA Detail'!$A$159)*(Projects!$K$5:$K$2481)) -> 0 | K41: 0 | L41: =SUMPRODUCT((Projects!$A$5:$A$2481='MDOT FTA Detail'!$J$3)*(Projects!$C$5:$C$2481='MDOT FTA Detail'!$C$4)*(Projects!$L$5:$L$2481='MDOT FTA Detail'!$A41)*(Projects!$J$5:$J$2481<>'MDOT FTA Detail'!$A$159)*(Projects!$Q$5:$Q$2481)) -> 0 | M41: =SUMPRODUCT((Projects!$A$5:$A$2481='MDOT FTA Detail'!$M$3)*(Projects!$C$5:$C$2481='MDOT FTA Detail'!$C$4)*(Projects!$L$5:$L$2481='MDOT FTA Detail'!$A41)*(Projects!$J$5:$J$2481<>'MDOT FTA Detail'!$A$159)*(Projects!$K$5:$K$2481)) -> 0 | N41: 0 | O41: =SUMPRODUCT((Projects!$A$5:$A$2481='MDOT FTA Detail'!$M$3)*(Projects!$C$5:$C$2481='MDOT FTA Detail'!$C$4)*(Projects!$L$5:$L$2481='MDOT FTA Detail'!$A41)*(Projects!$J$5:$J$2481<>'MDOT FTA Detail'!$A$159)*(Projects!$Q$5:$Q$2481)) -> 0
A42: HRRR | B42: High Risk Rural Roads - SAFETEA-LU | C42: MDOT FA | D42: =SUMPRODUCT((Projects!$A$5:$A$2481='MDOT FTA Detail'!$D$3)*(Projects!$C$5:$C$2481='MDOT FTA Detail'!$C$4)*(Projects!$L$5:$L$2481='MDOT FTA Detail'!$A42)*(Projects!$J$5:$J$2481<>'MDOT FTA Detail'!$A$159)*(Projects!$K$5:K$2481)) -> 0 | E42: 0 | F42: =SUMPRODUCT((Projects!$A$5:$A$2481='MDOT FTA Detail'!$D$3)*(Projects!$C$5:$C$2481='MDOT FTA Detail'!$C$4)*(Projects!$L$5:$L$2481='MDOT FTA Detail'!$A42)*(Projects!$J$5:$J$2481<>'MDOT FTA Detail'!$A$159)*(Projects!$Q$5:Q$2481)) -> 0 | G42: =SUMPRODUCT((Projects!$A$5:$A$2481='MDOT FTA Detail'!$G$3)*(Projects!$C$5:$C$2481='MDOT FTA Detail'!$C$4)*(Projects!$L$5:$L$2481='MDOT FTA Detail'!$A42)*(Projects!$J$5:$J$2481<>'MDOT FTA Detail'!$A$159)*(Projects!$K$5:K$2481)) -> 0 | H42: 0 | I42: =SUMPRODUCT((Projects!$A$5:$A$2481='MDOT FTA Detail'!$G$3)*(Projects!$C$5:$C$2481='MDOT FTA Detail'!$C$4)*(Projects!$L$5:$L$2481='MDOT FTA Detail'!$A42)*(Projects!$J$5:$J$2481<>'MDOT FTA Detail'!$A$159)*(Projects!$Q$5:Q$2481)) -> 0 | J42: =SUMPRODUCT((Projects!$A$5:$A$2481='MDOT FTA Detail'!$J$3)*(Projects!$C$5:$C$2481='MDOT FTA Detail'!$C$4)*(Projects!$L$5:$L$2481='MDOT FTA Detail'!$A42)*(Projects!$J$5:$J$2481<>'MDOT FTA Detail'!$A$159)*(Projects!$K$5:$K$2481)) -> 0 | K42: 0 | L42: =SUMPRODUCT((Projects!$A$5:$A$2481='MDOT FTA Detail'!$J$3)*(Projects!$C$5:$C$2481='MDOT FTA Detail'!$C$4)*(Projects!$L$5:$L$2481='MDOT FTA Detail'!$A42)*(Projects!$J$5:$J$2481<>'MDOT FTA Detail'!$A$159)*(Projects!$Q$5:$Q$2481)) -> 0 | M42: =SUMPRODUCT((Projects!$A$5:$A$2481='MDOT FTA Detail'!$M$3)*(Projects!$C$5:$C$2481='MDOT FTA Detail'!$C$4)*(Projects!$L$5:$L$2481='MDOT FTA Detail'!$A42)*(Projects!$J$5:$J$2481<>'MDOT FTA Detail'!$A$159)*(Projects!$K$5:$K$2481)) -> 0 | N42: 0 | O42: =SUMPRODUCT((Projects!$A$5:$A$2481='MDOT FTA Detail'!$M$3)*(Projects!$C$5:$C$2481='MDOT FTA Detail'!$C$4)*(Projects!$L$5:$L$2481='MDOT FTA Detail'!$A42)*(Projects!$J$5:$J$2481<>'MDOT FTA Detail'!$A$159)*(Projects!$Q$5:$Q$2481)) -> 0
A43: HSG | B43: High Speed Raix Crossings - 100% Federal | C43: MDOT FA | D43: =SUMPRODUCT((Projects!$A$5:$A$2481='MDOT FTA Detail'!$D$3)*(Projects!$C$5:$C$2481='MDOT FTA Detail'!$C$4)*(Projects!$L$5:$L$2481='MDOT FTA Detail'!$A43)*(Projects!$J$5:$J$2481<>'MDOT FTA Detail'!$A$159)*(Projects!$K$5:K$2481)) -> 0 | E43: 0 | F43: =SUMPRODUCT((Projects!$A$5:$A$2481='MDOT FTA Detail'!$D$3)*(Projects!$C$5:$C$2481='MDOT FTA Detail'!$C$4)*(Projects!$L$5:$L$2481='MDOT FTA Detail'!$A43)*(Projects!$J$5:$J$2481<>'MDOT FTA Detail'!$A$159)*(Projects!$Q$5:Q$2481)) -> 0 | G43: =SUMPRODUCT((Projects!$A$5:$A$2481='MDOT FTA Detail'!$G$3)*(Projects!$C$5:$C$2481='MDOT FTA Detail'!$C$4)*(Projects!$L$5:$L$2481='MDOT FTA Detail'!$A43)*(Projects!$J$5:$J$2481<>'MDOT FTA Detail'!$A$159)*(Projects!$K$5:K$2481)) -> 0 | H43: 0 | I43: =SUMPRODUCT((Projects!$A$5:$A$2481='MDOT FTA Detail'!$G$3)*(Projects!$C$5:$C$2481='MDOT FTA Detail'!$C$4)*(Projects!$L$5:$L$2481='MDOT FTA Detail'!$A43)*(Projects!$J$5:$J$2481<>'MDOT FTA Detail'!$A$159)*(Projects!$Q$5:Q$2481)) -> 0 | J43: =SUMPRODUCT((Projects!$A$5:$A$2481='MDOT FTA Detail'!$J$3)*(Projects!$C$5:$C$2481='MDOT FTA Detail'!$C$4)*(Projects!$L$5:$L$2481='MDOT FTA Detail'!$A43)*(Projects!$J$5:$J$2481<>'MDOT FTA Detail'!$A$159)*(Projects!$K$5:$K$2481)) -> 0 | K43: 0 | L43: =SUMPRODUCT((Projects!$A$5:$A$2481='MDOT FTA Detail'!$J$3)*(Projects!$C$5:$C$2481='MDOT FTA Detail'!$C$4)*(Projects!$L$5:$L$2481='MDOT FTA Detail'!$A43)*(Projects!$J$5:$J$2481<>'MDOT FTA Detail'!$A$159)*(Projects!$Q$5:$Q$2481)) -> 0 | M43: =SUMPRODUCT((Projects!$A$5:$A$2481='MDOT FTA Detail'!$M$3)*(Projects!$C$5:$C$2481='MDOT FTA Detail'!$C$4)*(Projects!$L$5:$L$2481='MDOT FTA Detail'!$A43)*(Projects!$J$5:$J$2481<>'MDOT FTA Detail'!$A$159)*(Projects!$K$5:$K$2481)) -> 0 | N43: 0 | O43: =SUMPRODUCT((Projects!$A$5:$A$2481='MDOT FTA Detail'!$M$3)*(Projects!$C$5:$C$2481='MDOT FTA Detail'!$C$4)*(Projects!$L$5:$L$2481='MDOT FTA Detail'!$A43)*(Projects!$J$5:$J$2481<>'MDOT FTA Detail'!$A$159)*(Projects!$Q$5:$Q$2481)) -> 0
A44: HSIP | B44: Highway Safety Improvement Program - SAFETEA-LU | C44: MDOT FA | D44: =SUMPRODUCT((Projects!$A$5:$A$2481='MDOT FTA Detail'!$D$3)*(Projects!$C$5:$C$2481='MDOT FTA Detail'!$C$4)*(Projects!$L$5:$L$2481='MDOT FTA Detail'!$A44)*(Projects!$J$5:$J$2481<>'MDOT FTA Detail'!$A$159)*(Projects!$K$5:K$2481)) -> 0 | E44: 0 | F44: =SUMPRODUCT((Projects!$A$5:$A$2481='MDOT FTA Detail'!$D$3)*(Projects!$C$5:$C$2481='MDOT FTA Detail'!$C$4)*(Projects!$L$5:$L$2481='MDOT FTA Detail'!$A44)*(Projects!$J$5:$J$2481<>'MDOT FTA Detail'!$A$159)*(Projects!$Q$5:Q$2481)) -> 0 | G44: =SUMPRODUCT((Projects!$A$5:$A$2481='MDOT FTA Detail'!$G$3)*(Projects!$C$5:$C$2481='MDOT FTA Detail'!$C$4)*(Projects!$L$5:$L$2481='MDOT FTA Detail'!$A44)*(Projects!$J$5:$J$2481<>'MDOT FTA Detail'!$A$159)*(Projects!$K$5:K$2481)) -> 0 | H44: 0 | I44: =SUMPRODUCT((Projects!$A$5:$A$2481='MDOT FTA Detail'!$G$3)*(Projects!$C$5:$C$2481='MDOT FTA Detail'!$C$4)*(Projects!$L$5:$L$2481='MDOT FTA Detail'!$A44)*(Projects!$J$5:$J$2481<>'MDOT FTA Detail'!$A$159)*(Projects!$Q$5:Q$2481)) -> 0 | J44: =SUMPRODUCT((Projects!$A$5:$A$2481='MDOT FTA Detail'!$J$3)*(Projects!$C$5:$C$2481='MDOT FTA Detail'!$C$4)*(Projects!$L$5:$L$2481='MDOT FTA Detail'!$A44)*(Projects!$J$5:$J$2481<>'MDOT FTA Detail'!$A$159)*(Projects!$K$5:$K$2481)) -> 0 | K44: 0 | L44: =SUMPRODUCT((Projects!$A$5:$A$2481='MDOT FTA Detail'!$J$3)*(Projects!$C$5:$C$2481='MDOT FTA Detail'!$C$4)*(Projects!$L$5:$L$2481='MDOT FTA Detail'!$A44)*(Projects!$J$5:$J$2481<>'MDOT FTA Detail'!$A$159)*(Projects!$Q$5:$Q$2481)) -> 0 | M44: =SUMPRODUCT((Projects!$A$5:$A$2481='MDOT FTA Detail'!$M$3)*(Projects!$C$5:$C$2481='MDOT FTA Detail'!$C$4)*(Projects!$L$5:$L$2481='MDOT FTA Detail'!$A44)*(Projects!$J$5:$J$2481<>'MDOT FTA Detail'!$A$159)*(Projects!$K$5:$K$2481)) -> 0 | N44: 0 | O44: =SUMPRODUCT((Projects!$A$5:$A$2481='MDOT FTA Detail'!$M$3)*(Projects!$C$5:$C$2481='MDOT FTA Detail'!$C$4)*(Projects!$L$5:$L$2481='MDOT FTA Detail'!$A44)*(Projects!$J$5:$J$2481<>'MDOT FTA Detail'!$A$159)*(Projects!$Q$5:$Q$2481)) -> 0
A45: IM | B45: Interstate Maintenance - No Added Lanes | C45: MDOT FA | D45: =SUMPRODUCT((Projects!$A$5:$A$2481='MDOT FTA Detail'!$D$3)*(Projects!$C$5:$C$2481='MDOT FTA Detail'!$C$4)*(Projects!$L$5:$L$2481='MDOT FTA Detail'!$A45)*(Projects!$J$5:$J$2481<>'MDOT FTA Detail'!$A$159)*(Projects!$K$5:K$2481)) -> 1665000 | E45: 185000 | F45: =SUMPRODUCT((Projects!$A$5:$A$2481='MDOT FTA Detail'!$D$3)*(Projects!$C$5:$C$2481='MDOT FTA Detail'!$C$4)*(Projects!$L$5:$L$2481='MDOT FTA Detail'!$A45)*(Projects!$J$5:$J$2481<>'MDOT FTA Detail'!$A$159)*(Projects!$Q$5:Q$2481)) -> 1850000 | G45: =SUMPRODUCT((Projects!$A$5:$A$2481='MDOT FTA Detail'!$G$3)*(Projects!$C$5:$C$2481='MDOT FTA Detail'!$C$4)*(Projects!$L$5:$L$2481='MDOT FTA Detail'!$A45)*(Projects!$J$5:$J$2481<>'MDOT FTA Detail'!$A$159)*(Projects!$K$5:K$2481)) -> 2123113 | H45: 235903 | I45: =SUMPRODUCT((Projects!$A$5:$A$2481='MDOT FTA Detail'!$G$3)*(Projects!$C$5:$C$2481='MDOT FTA Detail'!$C$4)*(Projects!$L$5:$L$2481='MDOT FTA Detail'!$A45)*(Projects!$J$5:$J$2481<>'MDOT FTA Detail'!$A$159)*(Projects!$Q$5:Q$2481)) -> 2359016 | J45: =SUMPRODUCT((Projects!$A$5:$A$2481='MDOT FTA Detail'!$J$3)*(Projects!$C$5:$C$2481='MDOT FTA Detail'!$C$4)*(Projects!$L$5:$L$2481='MDOT FTA Detail'!$A45)*(Projects!$J$5:$J$2481<>'MDOT FTA Detail'!$A$159)*(Projects!$K$5:$K$2481)) -> 11655000 | K45: 1295000 | L45: =SUMPRODUCT((Projects!$A$5:$A$2481='MDOT FTA Detail'!$J$3)*(Projects!$C$5:$C$2481='MDOT FTA Detail'!$C$4)*(Projects!$L$5:$L$2481='MDOT FTA Detail'!$A45)*(Projects!$J$5:$J$2481<>'MDOT FTA Detail'!$A$159)*(Projects!$Q$5:$Q$2481)) -> 12950000 | M45: =SUMPRODUCT((Projects!$A$5:$A$2481='MDOT FTA Detail'!$M$3)*(Projects!$C$5:$C$2481='MDOT FTA Detail'!$C$4)*(Projects!$L$5:$L$2481='MDOT FTA Detail'!$A45)*(Projects!$J$5:$J$2481<>'MDOT FTA Detail'!$A$159)*(Projects!$K$5:$K$2481)) -> 0 | N45: 0 | O45: =SUMPRODUCT((Projects!$A$5:$A$2481='MDOT FTA Detail'!$M$3)*(Projects!$C$5:$C$2481='MDOT FTA Detail'!$C$4)*(Projects!$L$5:$L$2481='MDOT FTA Detail'!$A45)*(Projects!$J$5:$J$2481<>'MDOT FTA Detail'!$A$159)*(Projects!$Q$5:$Q$2481)) -> 0
A46: IMD | B46: Interstate Maintenance Discretionary | C46: MDOT FA | D46: =SUMPRODUCT((Projects!$A$5:$A$2481='MDOT FTA Detail'!$D$3)*(Projects!$C$5:$C$2481='MDOT FTA Detail'!$C$4)*(Projects!$L$5:$L$2481='MDOT FTA Detail'!$A46)*(Projects!$J$5:$J$2481<>'MDOT FTA Detail'!$A$159)*(Projects!$K$5:K$2481)) -> 0 | E46: 0 | F46: =SUMPRODUCT((Projects!$A$5:$A$2481='MDOT FTA Detail'!$D$3)*(Projects!$C$5:$C$2481='MDOT FTA Detail'!$C$4)*(Projects!$L$5:$L$2481='MDOT FTA Detail'!$A46)*(Projects!$J$5:$J$2481<>'MDOT FTA Detail'!$A$159)*(Projects!$Q$5:Q$2481)) -> 0 | G46: =SUMPRODUCT((Projects!$A$5:$A$2481='MDOT FTA Detail'!$G$3)*(Projects!$C$5:$C$2481='MDOT FTA Detail'!$C$4)*(Projects!$L$5:$L$2481='MDOT FTA Detail'!$A46)*(Projects!$J$5:$J$2481<>'MDOT FTA Detail'!$A$159)*(Projects!$K$5:K$2481)) -> 0 | H46: 0 | I46: =SUMPRODUCT((Projects!$A$5:$A$2481='MDOT FTA Detail'!$G$3)*(Projects!$C$5:$C$2481='MDOT FTA Detail'!$C$4)*(Projects!$L$5:$L$2481='MDOT FTA Detail'!$A46)*(Projects!$J$5:$J$2481<>'MDOT FTA Detail'!$A$159)*(Projects!$Q$5:Q$2481)) -> 0 | J46: =SUMPRODUCT((Projects!$A$5:$A$2481='MDOT FTA Detail'!$J$3)*(Projects!$C$5:$C$2481='MDOT FTA Detail'!$C$4)*(Projects!$L$5:$L$2481='MDOT FTA Detail'!$A46)*(Projects!$J$5:$J$2481<>'MDOT FTA Detail'!$A$159)*(Projects!$K$5:$K$2481)) -> 0 | K46: 0 | L46: =SUMPRODUCT((Projects!$A$5:$A$2481='MDOT FTA Detail'!$J$3)*(Projects!$C$5:$C$2481='MDOT FTA Detail'!$C$4)*(Projects!$L$5:$L$2481='MDOT FTA Detail'!$A46)*(Projects!$J$5:$J$2481<>'MDOT FTA Detail'!$A$159)*(Projects!$Q$5:$Q$2481)) -> 0 | M46: =SUMPRODUCT((Projects!$A$5:$A$2481='MDOT FTA Detail'!$M$3)*(Projects!$C$5:$C$2481='MDOT FTA Detail'!$C$4)*(Projects!$L$5:$L$2481='MDOT FTA Detail'!$A46)*(Projects!$J$5:$J$2481<>'MDOT FTA Detail'!$A$159)*(Projects!$K$5:$K$2481)) -> 0 | N46: 0 | O46: =SUMPRODUCT((Projects!$A$5:$A$2481='MDOT FTA Detail'!$M$3)*(Projects!$C$5:$C$2481='MDOT FTA Detail'!$C$4)*(Projects!$L$5:$L$2481='MDOT FTA Detail'!$A46)*(Projects!$J$5:$J$2481<>'MDOT FTA Detail'!$A$159)*(Projects!$Q$5:$Q$2481)) -> 0
A47: IMG | B47: Interstate Maintenance - Safety - 100% Federal | C47: MDOT FA | D47: =SUMPRODUCT((Projects!$A$5:$A$2481='MDOT FTA Detail'!$D$3)*(Projects!$C$5:$C$2481='MDOT FTA Detail'!$C$4)*(Projects!$L$5:$L$2481='MDOT FTA Detail'!$A47)*(Projects!$J$5:$J$2481<>'MDOT FTA Detail'!$A$159)*(Projects!$K$5:K$2481)) -> 0 | E47: 0 | F47: =SUMPRODUCT((Projects!$A$5:$A$2481='MDOT FTA Detail'!$D$3)*(Projects!$C$5:$C$2481='MDOT FTA Detail'!$C$4)*(Projects!$L$5:$L$2481='MDOT FTA Detail'!$A47)*(Projects!$J$5:$J$2481<>'MDOT FTA Detail'!$A$159)*(Projects!$Q$5:Q$2481)) -> 0 | G47: =SUMPRODUCT((Projects!$A$5:$A$2481='MDOT FTA Detail'!$G$3)*(Projects!$C$5:$C$2481='MDOT FTA Detail'!$C$4)*(Projects!$L$5:$L$2481='MDOT FTA Detail'!$A47)*(Projects!$J$5:$J$2481<>'MDOT FTA Detail'!$A$159)*(Projects!$K$5:K$2481)) -> 0 | H47: 0 | I47: =SUMPRODUCT((Projects!$A$5:$A$2481='MDOT FTA Detail'!$G$3)*(Projects!$C$5:$C$2481='MDOT FTA Detail'!$C$4)*(Projects!$L$5:$L$2481='MDOT FTA Detail'!$A47)*(Projects!$J$5:$J$2481<>'MDOT FTA Detail'!$A$159)*(Projects!$Q$5:Q$2481)) -> 0 | J47: =SUMPRODUCT((Projects!$A$5:$A$2481='MDOT FTA Detail'!$J$3)*(Projects!$C$5:$C$2481='MDOT FTA Detail'!$C$4)*(Projects!$L$5:$L$2481='MDOT FTA Detail'!$A47)*(Projects!$J$5:$J$2481<>'MDOT FTA Detail'!$A$159)*(Projects!$K$5:$K$2481)) -> 0 | K47: 0 | L47: =SUMPRODUCT((Projects!$A$5:$A$2481='MDOT FTA Detail'!$J$3)*(Projects!$C$5:$C$2481='MDOT FTA Detail'!$C$4)*(Projects!$L$5:$L$2481='MDOT FTA Detail'!$A47)*(Projects!$J$5:$J$2481<>'MDOT FTA Detail'!$A$159)*(Projects!$Q$5:$Q$2481)) -> 0 | M47: =SUMPRODUCT((Projects!$A$5:$A$2481='MDOT FTA Detail'!$M$3)*(Projects!$C$5:$C$2481='MDOT FTA Detail'!$C$4)*(Projects!$L$5:$L$2481='MDOT FTA Detail'!$A47)*(Projects!$J$5:$J$2481<>'MDOT FTA Detail'!$A$159)*(Projects!$K$5:$K$2481)) -> 0 | N47: 0 | O47: =SUMPRODUCT((Projects!$A$5:$A$2481='MDOT FTA Detail'!$M$3)*(Projects!$C$5:$C$2481='MDOT FTA Detail'!$C$4)*(Projects!$L$5:$L$2481='MDOT FTA Detail'!$A47)*(Projects!$J$5:$J$2481<>'MDOT FTA Detail'!$A$159)*(Projects!$Q$5:$Q$2481)) -> 0
A48: ITS | B48: Intelligent Transportation Systems | C48: MDOT FA | D48: =SUMPRODUCT((Projects!$A$5:$A$2481='MDOT FTA Detail'!$D$3)*(Projects!$C$5:$C$2481='MDOT FTA Detail'!$C$4)*(Projects!$L$5:$L$2481='MDOT FTA Detail'!$A48)*(Projects!$J$5:$J$2481<>'MDOT FTA Detail'!$A$159)*(Projects!$K$5:K$2481)) -> 0 | E48: 0 | F48: =SUMPRODUCT((Projects!$A$5:$A$2481='MDOT FTA Detail'!$D$3)*(Projects!$C$5:$C$2481='MDOT FTA Detail'!$C$4)*(Projects!$L$5:$L$2481='MDOT FTA Detail'!$A48)*(Projects!$J$5:$J$2481<>'MDOT FTA Detail'!$A$159)*(Projects!$Q$5:Q$2481)) -> 0 | G48: =SUMPRODUCT((Projects!$A$5:$A$2481='MDOT FTA Detail'!$G$3)*(Projects!$C$5:$C$2481='MDOT FTA Detail'!$C$4)*(Projects!$L$5:$L$2481='MDOT FTA Detail'!$A48)*(Projects!$J$5:$J$2481<>'MDOT FTA Detail'!$A$159)*(Projects!$K$5:K$2481)) -> 0 | H48: 0 | I48: =SUMPRODUCT((Projects!$A$5:$A$2481='MDOT FTA Detail'!$G$3)*(Projects!$C$5:$C$2481='MDOT FTA Detail'!$C$4)*(Projects!$L$5:$L$2481='MDOT FTA Detail'!$A48)*(Projects!$J$5:$J$2481<>'MDOT FTA Detail'!$A$159)*(Projects!$Q$5:Q$2481)) -> 0 | J48: =SUMPRODUCT((Projects!$A$5:$A$2481='MDOT FTA Detail'!$J$3)*(Projects!$C$5:$C$2481='MDOT FTA Detail'!$C$4)*(Projects!$L$5:$L$2481='MDOT FTA Detail'!$A48)*(Projects!$J$5:$J$2481<>'MDOT FTA Detail'!$A$159)*(Projects!$K$5:$K$2481)) -> 0 | K48: 0 | L48: =SUMPRODUCT((Projects!$A$5:$A$2481='MDOT FTA Detail'!$J$3)*(Projects!$C$5:$C$2481='MDOT FTA Detail'!$C$4)*(Projects!$L$5:$L$2481='MDOT FTA Detail'!$A48)*(Projects!$J$5:$J$2481<>'MDOT FTA Detail'!$A$159)*(Projects!$Q$5:$Q$2481)) -> 0 | M48: =SUMPRODUCT((Projects!$A$5:$A$2481='MDOT FTA Detail'!$M$3)*(Projects!$C$5:$C$2481='MDOT FTA Detail'!$C$4)*(Projects!$L$5:$L$2481='MDOT FTA Detail'!$A48)*(Projects!$J$5:$J$2481<>'MDOT FTA Detail'!$A$159)*(Projects!$K$5:$K$2481)) -> 0 | N48: 0 | O48: =SUMPRODUCT((Projects!$A$5:$A$2481='MDOT FTA Detail'!$M$3)*(Projects!$C$5:$C$2481='MDOT FTA Detail'!$C$4)*(Projects!$L$5:$L$2481='MDOT FTA Detail'!$A48)*(Projects!$J$5:$J$2481<>'MDOT FTA Detail'!$A$159)*(Projects!$Q$5:$Q$2481)) -> 0
A49: JST | B49: 85% Minimum Floor Surface Transportation | C49: MDOT FA | D49: =SUMPRODUCT((Projects!$A$5:$A$2481='MDOT FTA Detail'!$D$3)*(Projects!$C$5:$C$2481='MDOT FTA Detail'!$C$4)*(Projects!$L$5:$L$2481='MDOT FTA Detail'!$A49)*(Projects!$J$5:$J$2481<>'MDOT FTA Detail'!$A$159)*(Projects!$K$5:K$2481)) -> 0 | E49: 0 | F49: =SUMPRODUCT((Projects!$A$5:$A$2481='MDOT FTA Detail'!$D$3)*(Projects!$C$5:$C$2481='MDOT FTA Detail'!$C$4)*(Projects!$L$5:$L$2481='MDOT FTA Detail'!$A49)*(Projects!$J$5:$J$2481<>'MDOT FTA Detail'!$A$159)*(Projects!$Q$5:Q$2481)) -> 0 | G49: =SUMPRODUCT((Projects!$A$5:$A$2481='MDOT FTA Detail'!$G$3)*(Projects!$C$5:$C$2481='MDOT FTA Detail'!$C$4)*(Projects!$L$5:$L$2481='MDOT FTA Detail'!$A49)*(Projects!$J$5:$J$2481<>'MDOT FTA Detail'!$A$159)*(Projects!$K$5:K$2481)) -> 0 | H49: 0 | I49: =SUMPRODUCT((Projects!$A$5:$A$2481='MDOT FTA Detail'!$G$3)*(Projects!$C$5:$C$2481='MDOT FTA Detail'!$C$4)*(Projects!$L$5:$L$2481='MDOT FTA Detail'!$A49)*(Projects!$J$5:$J$2481<>'MDOT FTA Detail'!$A$159)*(Projects!$Q$5:Q$2481)) -> 0 | J49: =SUMPRODUCT((Projects!$A$5:$A$2481='MDOT FTA Detail'!$J$3)*(Projects!$C$5:$C$2481='MDOT FTA Detail'!$C$4)*(Projects!$L$5:$L$2481='MDOT FTA Detail'!$A49)*(Projects!$J$5:$J$2481<>'MDOT FTA Detail'!$A$159)*(Projects!$K$5:$K$2481)) -> 0 | K49: 0 | L49: =SUMPRODUCT((Projects!$A$5:$A$2481='MDOT FTA Detail'!$J$3)*(Projects!$C$5:$C$2481='MDOT FTA Detail'!$C$4)*(Projects!$L$5:$L$2481='MDOT FTA Detail'!$A49)*(Projects!$J$5:$J$2481<>'MDOT FTA Detail'!$A$159)*(Projects!$Q$5:$Q$2481)) -> 0 | M49: =SUMPRODUCT((Projects!$A$5:$A$2481='MDOT FTA Detail'!$M$3)*(Projects!$C$5:$C$2481='MDOT FTA Detail'!$C$4)*(Projects!$L$5:$L$2481='MDOT FTA Detail'!$A49)*(Projects!$J$5:$J$2481<>'MDOT FTA Detail'!$A$159)*(Projects!$K$5:$K$2481)) -> 0 | N49: 0 | O49: =SUMPRODUCT((Projects!$A$5:$A$2481='MDOT FTA Detail'!$M$3)*(Projects!$C$5:$C$2481='MDOT FTA Detail'!$C$4)*(Projects!$L$5:$L$2481='MDOT FTA Detail'!$A49)*(Projects!$J$5:$J$2481<>'MDOT FTA Detail'!$A$159)*(Projects!$Q$5:$Q$2481)) -> 0
A50: JSTU | B50: 85% Minimum Floor Surface Transportation (Urban Area > 2499,000) | C50: MDOT FA | D50: =SUMPRODUCT((Projects!$A$5:$A$2481='MDOT FTA Detail'!$D$3)*(Projects!$C$5:$C$2481='MDOT FTA Detail'!$C$4)*(Projects!$L$5:$L$2481='MDOT FTA Detail'!$A50)*(Projects!$J$5:$J$2481<>'MDOT FTA Detail'!$A$159)*(Projects!$K$5:K$2481)) -> 0 | E50: 0 | F50: =SUMPRODUCT((Projects!$A$5:$A$2481='MDOT FTA Detail'!$D$3)*(Projects!$C$5:$C$2481='MDOT FTA Detail'!$C$4)*(Projects!$L$5:$L$2481='MDOT FTA Detail'!$A50)*(Projects!$J$5:$J$2481<>'MDOT FTA Detail'!$A$159)*(Projects!$Q$5:Q$2481)) -> 0 | G50: =SUMPRODUCT((Projects!$A$5:$A$2481='MDOT FTA Detail'!$G$3)*(Projects!$C$5:$C$2481='MDOT FTA Detail'!$C$4)*(Projects!$L$5:$L$2481='MDOT FTA Detail'!$A50)*(Projects!$J$5:$J$2481<>'MDOT FTA Detail'!$A$159)*(Projects!$K$5:K$2481)) -> 0 | H50: 0 | I50: =SUMPRODUCT((Projects!$A$5:$A$2481='MDOT FTA Detail'!$G$3)*(Projects!$C$5:$C$2481='MDOT FTA Detail'!$C$4)*(Projects!$L$5:$L$2481='MDOT FTA Detail'!$A50)*(Projects!$J$5:$J$2481<>'MDOT FTA Detail'!$A$159)*(Projects!$Q$5:Q$2481)) -> 0 | J50: =SUMPRODUCT((Projects!$A$5:$A$2481='MDOT FTA Detail'!$J$3)*(Projects!$C$5:$C$2481='MDOT FTA Detail'!$C$4)*(Projects!$L$5:$L$2481='MDOT FTA Detail'!$A50)*(Projects!$J$5:$J$2481<>'MDOT FTA Detail'!$A$159)*(Projects!$K$5:$K$2481)) -> 0 | K50: 0 | L50: =SUMPRODUCT((Projects!$A$5:$A$2481='MDOT FTA Detail'!$J$3)*(Projects!$C$5:$C$2481='MDOT FTA Detail'!$C$4)*(Projects!$L$5:$L$2481='MDOT FTA Detail'!$A50)*(Projects!$J$5:$J$2481<>'MDOT FTA Detail'!$A$159)*(Projects!$Q$5:$Q$2481)) -> 0 | M50: =SUMPRODUCT((Projects!$A$5:$A$2481='MDOT FTA Detail'!$M$3)*(Projects!$C$5:$C$2481='MDOT FTA Detail'!$C$4)*(Projects!$L$5:$L$2481='MDOT FTA Detail'!$A50)*(Projects!$J$5:$J$2481<>'MDOT FTA Detail'!$A$159)*(Projects!$K$5:$K$2481)) -> 0 | N50: 0 | O50: =SUMPRODUCT((Projects!$A$5:$A$2481='MDOT FTA Detail'!$M$3)*(Projects!$C$5:$C$2481='MDOT FTA Detail'!$C$4)*(Projects!$L$5:$L$2481='MDOT FTA Detail'!$A50)*(Projects!$J$5:$J$2481<>'MDOT FTA Detail'!$A$159)*(Projects!$Q$5:$Q$2481)) -> 0
A51: LTA | B51: Local Technical Assistance Program | C51: MDOT FA | D51: =SUMPRODUCT((Projects!$A$5:$A$2481='MDOT FTA Detail'!$D$3)*(Projects!$C$5:$C$2481='MDOT FTA Detail'!$C$4)*(Projects!$L$5:$L$2481='MDOT FTA Detail'!$A51)*(Projects!$J$5:$J$2481<>'MDOT FTA Detail'!$A$159)*(Projects!$K$5:K$2481)) -> 0 | E51: 0 | F51: =SUMPRODUCT((Projects!$A$5:$A$2481='MDOT FTA Detail'!$D$3)*(Projects!$C$5:$C$2481='MDOT FTA Detail'!$C$4)*(Projects!$L$5:$L$2481='MDOT FTA Detail'!$A51)*(Projects!$J$5:$J$2481<>'MDOT FTA Detail'!$A$159)*(Projects!$Q$5:Q$2481)) -> 0 | G51: =SUMPRODUCT((Projects!$A$5:$A$2481='MDOT FTA Detail'!$G$3)*(Projects!$C$5:$C$2481='MDOT FTA Detail'!$C$4)*(Projects!$L$5:$L$2481='MDOT FTA Detail'!$A51)*(Projects!$J$5:$J$2481<>'MDOT FTA Detail'!$A$159)*(Projects!$K$5:K$2481)) -> 0 | H51: 0 | I51: =SUMPRODUCT((Projects!$A$5:$A$2481='MDOT FTA Detail'!$G$3)*(Projects!$C$5:$C$2481='MDOT FTA Detail'!$C$4)*(Projects!$L$5:$L$2481='MDOT FTA Detail'!$A51)*(Projects!$J$5:$J$2481<>'MDOT FTA Detail'!$A$159)*(Projects!$Q$5:Q$2481)) -> 0 | J51: =SUMPRODUCT((Projects!$A$5:$A$2481='MDOT FTA Detail'!$J$3)*(Projects!$C$5:$C$2481='MDOT FTA Detail'!$C$4)*(Projects!$L$5:$L$2481='MDOT FTA Detail'!$A51)*(Projects!$J$5:$J$2481<>'MDOT FTA Detail'!$A$159)*(Projects!$K$5:$K$2481)) -> 0 | K51: 0 | L51: =SUMPRODUCT((Projects!$A$5:$A$2481='MDOT FTA Detail'!$J$3)*(Projects!$C$5:$C$2481='MDOT FTA Detail'!$C$4)*(Projects!$L$5:$L$2481='MDOT FTA Detail'!$A51)*(Projects!$J$5:$J$2481<>'MDOT FTA Detail'!$A$159)*(Projects!$Q$5:$Q$2481)) -> 0 | M51: =SUMPRODUCT((Projects!$A$5:$A$2481='MDOT FTA Detail'!$M$3)*(Projects!$C$5:$C$2481='MDOT FTA Detail'!$C$4)*(Projects!$L$5:$L$2481='MDOT FTA Detail'!$A51)*(Projects!$J$5:$J$2481<>'MDOT FTA Detail'!$A$159)*(Projects!$K$5:$K$2481)) -> 0 | N51: 0 | O51: =SUMPRODUCT((Projects!$A$5:$A$2481='MDOT FTA Detail'!$M$3)*(Projects!$C$5:$C$2481='MDOT FTA Detail'!$C$4)*(Projects!$L$5:$L$2481='MDOT FTA Detail'!$A51)*(Projects!$J$5:$J$2481<>'MDOT FTA Detail'!$A$159)*(Projects!$Q$5:$Q$2481)) -> 0
A52: MG | B52: Minimum Guarantee | C52: MDOT FA | D52: =SUMPRODUCT((Projects!$A$5:$A$2481='MDOT FTA Detail'!$D$3)*(Projects!$C$5:$C$2481='MDOT FTA Detail'!$C$4)*(Projects!$L$5:$L$2481='MDOT FTA Detail'!$A52)*(Projects!$J$5:$J$2481<>'MDOT FTA Detail'!$A$159)*(Projects!$K$5:K$2481)) -> 0 | E52: 0 | F52: =SUMPRODUCT((Projects!$A$5:$A$2481='MDOT FTA Detail'!$D$3)*(Projects!$C$5:$C$2481='MDOT FTA Detail'!$C$4)*(Projects!$L$5:$L$2481='MDOT FTA Detail'!$A52)*(Projects!$J$5:$J$2481<>'MDOT FTA Detail'!$A$159)*(Projects!$Q$5:Q$2481)) -> 0 | G52: =SUMPRODUCT((Projects!$A$5:$A$2481='MDOT FTA Detail'!$G$3)*(Projects!$C$5:$C$2481='MDOT FTA Detail'!$C$4)*(Projects!$L$5:$L$2481='MDOT FTA Detail'!$A52)*(Projects!$J$5:$J$2481<>'MDOT FTA Detail'!$A$159)*(Projects!$K$5:K$2481)) -> 0 | H52: 0 | I52: =SUMPRODUCT((Projects!$A$5:$A$2481='MDOT FTA Detail'!$G$3)*(Projects!$C$5:$C$2481='MDOT FTA Detail'!$C$4)*(Projects!$L$5:$L$2481='MDOT FTA Detail'!$A52)*(Projects!$J$5:$J$2481<>'MDOT FTA Detail'!$A$159)*(Projects!$Q$5:Q$2481)) -> 0 | J52: =SUMPRODUCT((Projects!$A$5:$A$2481='MDOT FTA Detail'!$J$3)*(Projects!$C$5:$C$2481='MDOT FTA Detail'!$C$4)*(Projects!$L$5:$L$2481='MDOT FTA Detail'!$A52)*(Projects!$J$5:$J$2481<>'MDOT FTA Detail'!$A$159)*(Projects!$K$5:$K$2481)) -> 0 | K52: 0 | L52: =SUMPRODUCT((Projects!$A$5:$A$2481='MDOT FTA Detail'!$J$3)*(Projects!$C$5:$C$2481='MDOT FTA Detail'!$C$4)*(Projects!$L$5:$L$2481='MDOT FTA Detail'!$A52)*(Projects!$J$5:$J$2481<>'MDOT FTA Detail'!$A$159)*(Projects!$Q$5:$Q$2481)) -> 0 | M52: =SUMPRODUCT((Projects!$A$5:$A$2481='MDOT FTA Detail'!$M$3)*(Projects!$C$5:$C$2481='MDOT FTA Detail'!$C$4)*(Projects!$L$5:$L$2481='MDOT FTA Detail'!$A52)*(Projects!$J$5:$J$2481<>'MDOT FTA Detail'!$A$159)*(Projects!$K$5:$K$2481)) -> 0 | N52: 0 | O52: =SUMPRODUCT((Projects!$A$5:$A$2481='MDOT FTA Detail'!$M$3)*(Projects!$C$5:$C$2481='MDOT FTA Detail'!$C$4)*(Projects!$L$5:$L$2481='MDOT FTA Detail'!$A52)*(Projects!$J$5:$J$2481<>'MDOT FTA Detail'!$A$159)*(Projects!$Q$5:$Q$2481)) -> 0
A53: NCII | B53: National Corridor Infrastructure Improvement - SAFETEA-LU | C53: MDOT FA | D53: =SUMPRODUCT((Projects!$A$5:$A$2481='MDOT FTA Detail'!$D$3)*(Projects!$C$5:$C$2481='MDOT FTA Detail'!$C$4)*(Projects!$L$5:$L$2481='MDOT FTA Detail'!$A53)*(Projects!$J$5:$J$2481<>'MDOT FTA Detail'!$A$159)*(Projects!$K$5:K$2481)) -> 0 | E53: 0 | F53: =SUMPRODUCT((Projects!$A$5:$A$2481='MDOT FTA Detail'!$D$3)*(Projects!$C$5:$C$2481='MDOT FTA Detail'!$C$4)*(Projects!$L$5:$L$2481='MDOT FTA Detail'!$A53)*(Projects!$J$5:$J$2481<>'MDOT FTA Detail'!$A$159)*(Projects!$Q$5:Q$2481)) -> 0 | G53: =SUMPRODUCT((Projects!$A$5:$A$2481='MDOT FTA Detail'!$G$3)*(Projects!$C$5:$C$2481='MDOT FTA Detail'!$C$4)*(Projects!$L$5:$L$2481='MDOT FTA Detail'!$A53)*(Projects!$J$5:$J$2481<>'MDOT FTA Detail'!$A$159)*(Projects!$K$5:K$2481)) -> 0 | H53: 0 | I53: =SUMPRODUCT((Projects!$A$5:$A$2481='MDOT FTA Detail'!$G$3)*(Projects!$C$5:$C$2481='MDOT FTA Detail'!$C$4)*(Projects!$L$5:$L$2481='MDOT FTA Detail'!$A53)*(Projects!$J$5:$J$2481<>'MDOT FTA Detail'!$A$159)*(Projects!$Q$5:Q$2481)) -> 0 | J53: =SUMPRODUCT((Projects!$A$5:$A$2481='MDOT FTA Detail'!$J$3)*(Projects!$C$5:$C$2481='MDOT FTA Detail'!$C$4)*(Projects!$L$5:$L$2481='MDOT FTA Detail'!$A53)*(Projects!$J$5:$J$2481<>'MDOT FTA Detail'!$A$159)*(Projects!$K$5:$K$2481)) -> 0 | K53: 0 | L53: =SUMPRODUCT((Projects!$A$5:$A$2481='MDOT FTA Detail'!$J$3)*(Projects!$C$5:$C$2481='MDOT FTA Detail'!$C$4)*(Projects!$L$5:$L$2481='MDOT FTA Detail'!$A53)*(Projects!$J$5:$J$2481<>'MDOT FTA Detail'!$A$159)*(Projects!$Q$5:$Q$2481)) -> 0 | M53: =SUMPRODUCT((Projects!$A$5:$A$2481='MDOT FTA Detail'!$M$3)*(Projects!$C$5:$C$2481='MDOT FTA Detail'!$C$4)*(Projects!$L$5:$L$2481='MDOT FTA Detail'!$A53)*(Projects!$J$5:$J$2481<>'MDOT FTA Detail'!$A$159)*(Projects!$K$5:$K$2481)) -> 0 | N53: 0 | O53: =SUMPRODUCT((Projects!$A$5:$A$2481='MDOT FTA Detail'!$M$3)*(Projects!$C$5:$C$2481='MDOT FTA Detail'!$C$4)*(Projects!$L$5:$L$2481='MDOT FTA Detail'!$A53)*(Projects!$J$5:$J$2481<>'MDOT FTA Detail'!$A$159)*(Projects!$Q$5:$Q$2481)) -> 0
A54: NH | B54: National Highway System | C54: MDOT FA | D54: =SUMPRODUCT((Projects!$A$5:$A$2481='MDOT FTA Detail'!$D$3)*(Projects!$C$5:$C$2481='MDOT FTA Detail'!$C$4)*(Projects!$L$5:$L$2481='MDOT FTA Detail'!$A54)*(Projects!$J$5:$J$2481<>'MDOT FTA Detail'!$A$159)*(Projects!$K$5:K$2481)) -> 261920 | E54: 58080 | F54: =SUMPRODUCT((Projects!$A$5:$A$2481='MDOT FTA Detail'!$D$3)*(Projects!$C$5:$C$2481='MDOT FTA Detail'!$C$4)*(Projects!$L$5:$L$2481='MDOT FTA Detail'!$A54)*(Projects!$J$5:$J$2481<>'MDOT FTA Detail'!$A$159)*(Projects!$Q$5:Q$2481)) -> 320000 | G54: =SUMPRODUCT((Projects!$A$5:$A$2481='MDOT FTA Detail'!$G$3)*(Projects!$C$5:$C$2481='MDOT FTA Detail'!$C$4)*(Projects!$L$5:$L$2481='MDOT FTA Detail'!$A54)*(Projects!$J$5:$J$2481<>'MDOT FTA Detail'!$A$159)*(Projects!$K$5:K$2481)) -> 0 | H54: 0 | I54: =SUMPRODUCT((Projects!$A$5:$A$2481='MDOT FTA Detail'!$G$3)*(Projects!$C$5:$C$2481='MDOT FTA Detail'!$C$4)*(Projects!$L$5:$L$2481='MDOT FTA Detail'!$A54)*(Projects!$J$5:$J$2481<>'MDOT FTA Detail'!$A$159)*(Projects!$Q$5:Q$2481)) -> 0 | J54: =SUMPRODUCT((Projects!$A$5:$A$2481='MDOT FTA Detail'!$J$3)*(Projects!$C$5:$C$2481='MDOT FTA Detail'!$C$4)*(Projects!$L$5:$L$2481='MDOT FTA Detail'!$A54)*(Projects!$J$5:$J$2481<>'MDOT FTA Detail'!$A$159)*(Projects!$K$5:$K$2481)) -> 0 | K54: 0 | L54: =SUMPRODUCT((Projects!$A$5:$A$2481='MDOT FTA Detail'!$J$3)*(Projects!$C$5:$C$2481='MDOT FTA Detail'!$C$4)*(Projects!$L$5:$L$2481='MDOT FTA Detail'!$A54)*(Projects!$J$5:$J$2481<>'MDOT FTA Detail'!$A$159)*(Projects!$Q$5:$Q$2481)) -> 0 | M54: =SUMPRODUCT((Projects!$A$5:$A$2481='MDOT FTA Detail'!$M$3)*(Projects!$C$5:$C$2481='MDOT FTA Detail'!$C$4)*(Projects!$L$5:$L$2481='MDOT FTA Detail'!$A54)*(Projects!$J$5:$J$2481<>'MDOT FTA Detail'!$A$159)*(Projects!$K$5:$K$2481)) -> 0 | N54: 0 | O54: =SUMPRODUCT((Projects!$A$5:$A$2481='MDOT FTA Detail'!$M$3)*(Projects!$C$5:$C$2481='MDOT FTA Detail'!$C$4)*(Projects!$L$5:$L$2481='MDOT FTA Detail'!$A54)*(Projects!$J$5:$J$2481<>'MDOT FTA Detail'!$A$159)*(Projects!$Q$5:$Q$2481)) -> 0
A55: NHG | B55: National Highway System - Safety - 100% Federal | C55: MDOT FA | D55: =SUMPRODUCT((Projects!$A$5:$A$2481='MDOT FTA Detail'!$D$3)*(Projects!$C$5:$C$2481='MDOT FTA Detail'!$C$4)*(Projects!$L$5:$L$2481='MDOT FTA Detail'!$A55)*(Projects!$J$5:$J$2481<>'MDOT FTA Detail'!$A$159)*(Projects!$K$5:K$2481)) -> 0 | E55: 0 | F55: =SUMPRODUCT((Projects!$A$5:$A$2481='MDOT FTA Detail'!$D$3)*(Projects!$C$5:$C$2481='MDOT FTA Detail'!$C$4)*(Projects!$L$5:$L$2481='MDOT FTA Detail'!$A55)*(Projects!$J$5:$J$2481<>'MDOT FTA Detail'!$A$159)*(Projects!$Q$5:Q$2481)) -> 0 | G55: =SUMPRODUCT((Projects!$A$5:$A$2481='MDOT FTA Detail'!$G$3)*(Projects!$C$5:$C$2481='MDOT FTA Detail'!$C$4)*(Projects!$L$5:$L$2481='MDOT FTA Detail'!$A55)*(Projects!$J$5:$J$2481<>'MDOT FTA Detail'!$A$159)*(Projects!$K$5:K$2481)) -> 0 | H55: 0 | I55: =SUMPRODUCT((Projects!$A$5:$A$2481='MDOT FTA Detail'!$G$3)*(Projects!$C$5:$C$2481='MDOT FTA Detail'!$C$4)*(Projects!$L$5:$L$2481='MDOT FTA Detail'!$A55)*(Projects!$J$5:$J$2481<>'MDOT FTA Detail'!$A$159)*(Projects!$Q$5:Q$2481)) -> 0 | J55: =SUMPRODUCT((Projects!$A$5:$A$2481='MDOT FTA Detail'!$J$3)*(Projects!$C$5:$C$2481='MDOT FTA Detail'!$C$4)*(Projects!$L$5:$L$2481='MDOT FTA Detail'!$A55)*(Projects!$J$5:$J$2481<>'MDOT FTA Detail'!$A$159)*(Projects!$K$5:$K$2481)) -> 0 | K55: 0 | L55: =SUMPRODUCT((Projects!$A$5:$A$2481='MDOT FTA Detail'!$J$3)*(Projects!$C$5:$C$2481='MDOT FTA Detail'!$C$4)*(Projects!$L$5:$L$2481='MDOT FTA Detail'!$A55)*(Projects!$J$5:$J$2481<>'MDOT FTA Detail'!$A$159)*(Projects!$Q$5:$Q$2481)) -> 0 | M55: =SUMPRODUCT((Projects!$A$5:$A$2481='MDOT FTA Detail'!$M$3)*(Projects!$C$5:$C$2481='MDOT FTA Detail'!$C$4)*(Projects!$L$5:$L$2481='MDOT FTA Detail'!$A55)*(Projects!$J$5:$J$2481<>'MDOT FTA Detail'!$A$159)*(Projects!$K$5:$K$2481)) -> 0 | N55: 0 | O55: =SUMPRODUCT((Projects!$A$5:$A$2481='MDOT FTA Detail'!$M$3)*(Projects!$C$5:$C$2481='MDOT FTA Detail'!$C$4)*(Projects!$L$5:$L$2481='MDOT FTA Detail'!$A55)*(Projects!$J$5:$J$2481<>'MDOT FTA Detail'!$A$159)*(Projects!$Q$5:$Q$2481)) -> 0
A56: NHI | B56: National Highway Funds on I (Does not Qualify for I) | C56: MDOT FA | D56: =SUMPRODUCT((Projects!$A$5:$A$2481='MDOT FTA Detail'!$D$3)*(Projects!$C$5:$C$2481='MDOT FTA Detail'!$C$4)*(Projects!$L$5:$L$2481='MDOT FTA Detail'!$A56)*(Projects!$J$5:$J$2481<>'MDOT FTA Detail'!$A$159)*(Projects!$K$5:K$2481)) -> 0 | E56: 0 | F56: =SUMPRODUCT((Projects!$A$5:$A$2481='MDOT FTA Detail'!$D$3)*(Projects!$C$5:$C$2481='MDOT FTA Detail'!$C$4)*(Projects!$L$5:$L$2481='MDOT FTA Detail'!$A56)*(Projects!$J$5:$J$2481<>'MDOT FTA Detail'!$A$159)*(Projects!$Q$5:Q$2481)) -> 0 | G56: =SUMPRODUCT((Projects!$A$5:$A$2481='MDOT FTA Detail'!$G$3)*(Projects!$C$5:$C$2481='MDOT FTA Detail'!$C$4)*(Projects!$L$5:$L$2481='MDOT FTA Detail'!$A56)*(Projects!$J$5:$J$2481<>'MDOT FTA Detail'!$A$159)*(Projects!$K$5:K$2481)) -> 0 | H56: 0 | I56: =SUMPRODUCT((Projects!$A$5:$A$2481='MDOT FTA Detail'!$G$3)*(Projects!$C$5:$C$2481='MDOT FTA Detail'!$C$4)*(Projects!$L$5:$L$2481='MDOT FTA Detail'!$A56)*(Projects!$J$5:$J$2481<>'MDOT FTA Detail'!$A$159)*(Projects!$Q$5:Q$2481)) -> 0 | J56: =SUMPRODUCT((Projects!$A$5:$A$2481='MDOT FTA Detail'!$J$3)*(Projects!$C$5:$C$2481='MDOT FTA Detail'!$C$4)*(Projects!$L$5:$L$2481='MDOT FTA Detail'!$A56)*(Projects!$J$5:$J$2481<>'MDOT FTA Detail'!$A$159)*(Projects!$K$5:$K$2481)) -> 0 | K56: 0 | L56: =SUMPRODUCT((Projects!$A$5:$A$2481='MDOT FTA Detail'!$J$3)*(Projects!$C$5:$C$2481='MDOT FTA Detail'!$C$4)*(Projects!$L$5:$L$2481='MDOT FTA Detail'!$A56)*(Projects!$J$5:$J$2481<>'MDOT FTA Detail'!$A$159)*(Projects!$Q$5:$Q$2481)) -> 0 | M56: =SUMPRODUCT((Projects!$A$5:$A$2481='MDOT FTA Detail'!$M$3)*(Projects!$C$5:$C$2481='MDOT FTA Detail'!$C$4)*(Projects!$L$5:$L$2481='MDOT FTA Detail'!$A56)*(Projects!$J$5:$J$2481<>'MDOT FTA Detail'!$A$159)*(Projects!$K$5:$K$2481)) -> 0 | N56: 0 | O56: =SUMPRODUCT((Projects!$A$5:$A$2481='MDOT FTA Detail'!$M$3)*(Projects!$C$5:$C$2481='MDOT FTA Detail'!$C$4)*(Projects!$L$5:$L$2481='MDOT FTA Detail'!$A56)*(Projects!$J$5:$J$2481<>'MDOT FTA Detail'!$A$159)*(Projects!$Q$5:$Q$2481)) -> 0
A57: NHIM | B57: National Highway Funds on I (Qualifies for IM) | C57: MDOT FA | D57: =SUMPRODUCT((Projects!$A$5:$A$2481='MDOT FTA Detail'!$D$3)*(Projects!$C$5:$C$2481='MDOT FTA Detail'!$C$4)*(Projects!$L$5:$L$2481='MDOT FTA Detail'!$A57)*(Projects!$J$5:$J$2481<>'MDOT FTA Detail'!$A$159)*(Projects!$K$5:K$2481)) -> 0 | E57: 0 | F57: =SUMPRODUCT((Projects!$A$5:$A$2481='MDOT FTA Detail'!$D$3)*(Projects!$C$5:$C$2481='MDOT FTA Detail'!$C$4)*(Projects!$L$5:$L$2481='MDOT FTA Detail'!$A57)*(Projects!$J$5:$J$2481<>'MDOT FTA Detail'!$A$159)*(Projects!$Q$5:Q$2481)) -> 0 | G57: =SUMPRODUCT((Projects!$A$5:$A$2481='MDOT FTA Detail'!$G$3)*(Projects!$C$5:$C$2481='MDOT FTA Detail'!$C$4)*(Projects!$L$5:$L$2481='MDOT FTA Detail'!$A57)*(Projects!$J$5:$J$2481<>'MDOT FTA Detail'!$A$159)*(Projects!$K$5:K$2481)) -> 0 | H57: 0 | I57: =SUMPRODUCT((Projects!$A$5:$A$2481='MDOT FTA Detail'!$G$3)*(Projects!$C$5:$C$2481='MDOT FTA Detail'!$C$4)*(Projects!$L$5:$L$2481='MDOT FTA Detail'!$A57)*(Projects!$J$5:$J$2481<>'MDOT FTA Detail'!$A$159)*(Projects!$Q$5:Q$2481)) -> 0 | J57: =SUMPRODUCT((Projects!$A$5:$A$2481='MDOT FTA Detail'!$J$3)*(Projects!$C$5:$C$2481='MDOT FTA Detail'!$C$4)*(Projects!$L$5:$L$2481='MDOT FTA Detail'!$A57)*(Projects!$J$5:$J$2481<>'MDOT FTA Detail'!$A$159)*(Projects!$K$5:$K$2481)) -> 0 | K57: 0 | L57: =SUMPRODUCT((Projects!$A$5:$A$2481='MDOT FTA Detail'!$J$3)*(Projects!$C$5:$C$2481='MDOT FTA Detail'!$C$4)*(Projects!$L$5:$L$2481='MDOT FTA Detail'!$A57)*(Projects!$J$5:$J$2481<>'MDOT FTA Detail'!$A$159)*(Projects!$Q$5:$Q$2481)) -> 0 | M57: =SUMPRODUCT((Projects!$A$5:$A$2481='MDOT FTA Detail'!$M$3)*(Projects!$C$5:$C$2481='MDOT FTA Detail'!$C$4)*(Projects!$L$5:$L$2481='MDOT FTA Detail'!$A57)*(Projects!$J$5:$J$2481<>'MDOT FTA Detail'!$A$159)*(Projects!$K$5:$K$2481)) -> 0 | N57: 0 | O57: =SUMPRODUCT((Projects!$A$5:$A$2481='MDOT FTA Detail'!$M$3)*(Projects!$C$5:$C$2481='MDOT FTA Detail'!$C$4)*(Projects!$L$5:$L$2481='MDOT FTA Detail'!$A57)*(Projects!$J$5:$J$2481<>'MDOT FTA Detail'!$A$159)*(Projects!$Q$5:$Q$2481)) -> 0
A58: NHS | B58: National Highway System - MDOT Safety Program | C58: MDOT FA | D58: =SUMPRODUCT((Projects!$A$5:$A$2481='MDOT FTA Detail'!$D$3)*(Projects!$C$5:$C$2481='MDOT FTA Detail'!$C$4)*(Projects!$L$5:$L$2481='MDOT FTA Detail'!$A58)*(Projects!$J$5:$J$2481<>'MDOT FTA Detail'!$A$159)*(Projects!$K$5:K$2481)) -> 0 | E58: 0 | F58: =SUMPRODUCT((Projects!$A$5:$A$2481='MDOT FTA Detail'!$D$3)*(Projects!$C$5:$C$2481='MDOT FTA Detail'!$C$4)*(Projects!$L$5:$L$2481='MDOT FTA Detail'!$A58)*(Projects!$J$5:$J$2481<>'MDOT FTA Detail'!$A$159)*(Projects!$Q$5:Q$2481)) -> 0 | G58: =SUMPRODUCT((Projects!$A$5:$A$2481='MDOT FTA Detail'!$G$3)*(Projects!$C$5:$C$2481='MDOT FTA Detail'!$C$4)*(Projects!$L$5:$L$2481='MDOT FTA Detail'!$A58)*(Projects!$J$5:$J$2481<>'MDOT FTA Detail'!$A$159)*(Projects!$K$5:K$2481)) -> 0 | H58: 0 | I58: =SUMPRODUCT((Projects!$A$5:$A$2481='MDOT FTA Detail'!$G$3)*(Projects!$C$5:$C$2481='MDOT FTA Detail'!$C$4)*(Projects!$L$5:$L$2481='MDOT FTA Detail'!$A58)*(Projects!$J$5:$J$2481<>'MDOT FTA Detail'!$A$159)*(Projects!$Q$5:Q$2481)) -> 0 | J58: =SUMPRODUCT((Projects!$A$5:$A$2481='MDOT FTA Detail'!$J$3)*(Projects!$C$5:$C$2481='MDOT FTA Detail'!$C$4)*(Projects!$L$5:$L$2481='MDOT FTA Detail'!$A58)*(Projects!$J$5:$J$2481<>'MDOT FTA Detail'!$A$159)*(Projects!$K$5:$K$2481)) -> 0 | K58: 0 | L58: =SUMPRODUCT((Projects!$A$5:$A$2481='MDOT FTA Detail'!$J$3)*(Projects!$C$5:$C$2481='MDOT FTA Detail'!$C$4)*(Projects!$L$5:$L$2481='MDOT FTA Detail'!$A58)*(Projects!$J$5:$J$2481<>'MDOT FTA Detail'!$A$159)*(Projects!$Q$5:$Q$2481)) -> 0 | M58: =SUMPRODUCT((Projects!$A$5:$A$2481='MDOT FTA Detail'!$M$3)*(Projects!$C$5:$C$2481='MDOT FTA Detail'!$C$4)*(Projects!$L$5:$L$2481='MDOT FTA Detail'!$A58)*(Projects!$J$5:$J$2481<>'MDOT FTA Detail'!$A$159)*(Projects!$K$5:$K$2481)) -> 0 | N58: 0 | O58: =SUMPRODUCT((Projects!$A$5:$A$2481='MDOT FTA Detail'!$M$3)*(Projects!$C$5:$C$2481='MDOT FTA Detail'!$C$4)*(Projects!$L$5:$L$2481='MDOT FTA Detail'!$A58)*(Projects!$J$5:$J$2481<>'MDOT FTA Detail'!$A$159)*(Projects!$Q$5:$Q$2481)) -> 0
A59: NRT | B59: National Recreational Trails | C59: MDOT FA | D59: =SUMPRODUCT((Projects!$A$5:$A$2481='MDOT FTA Detail'!$D$3)*(Projects!$C$5:$C$2481='MDOT FTA Detail'!$C$4)*(Projects!$L$5:$L$2481='MDOT FTA Detail'!$A59)*(Projects!$J$5:$J$2481<>'MDOT FTA Detail'!$A$159)*(Projects!$K$5:K$2481)) -> 0 | E59: 0 | F59: =SUMPRODUCT((Projects!$A$5:$A$2481='MDOT FTA Detail'!$D$3)*(Projects!$C$5:$C$2481='MDOT FTA Detail'!$C$4)*(Projects!$L$5:$L$2481='MDOT FTA Detail'!$A59)*(Projects!$J$5:$J$2481<>'MDOT FTA Detail'!$A$159)*(Projects!$Q$5:Q$2481)) -> 0 | G59: =SUMPRODUCT((Projects!$A$5:$A$2481='MDOT FTA Detail'!$G$3)*(Projects!$C$5:$C$2481='MDOT FTA Detail'!$C$4)*(Projects!$L$5:$L$2481='MDOT FTA Detail'!$A59)*(Projects!$J$5:$J$2481<>'MDOT FTA Detail'!$A$159)*(Projects!$K$5:K$2481)) -> 0 | H59: 0 | I59: =SUMPRODUCT((Projects!$A$5:$A$2481='MDOT FTA Detail'!$G$3)*(Projects!$C$5:$C$2481='MDOT FTA Detail'!$C$4)*(Projects!$L$5:$L$2481='MDOT FTA Detail'!$A59)*(Projects!$J$5:$J$2481<>'MDOT FTA Detail'!$A$159)*(Projects!$Q$5:Q$2481)) -> 0 | J59: =SUMPRODUCT((Projects!$A$5:$A$2481='MDOT FTA Detail'!$J$3)*(Projects!$C$5:$C$2481='MDOT FTA Detail'!$C$4)*(Projects!$L$5:$L$2481='MDOT FTA Detail'!$A59)*(Projects!$J$5:$J$2481<>'MDOT FTA Detail'!$A$159)*(Projects!$K$5:$K$2481)) -> 0 | K59: 0 | L59: =SUMPRODUCT((Projects!$A$5:$A$2481='MDOT FTA Detail'!$J$3)*(Projects!$C$5:$C$2481='MDOT FTA Detail'!$C$4)*(Projects!$L$5:$L$2481='MDOT FTA Detail'!$A59)*(Projects!$J$5:$J$2481<>'MDOT FTA Detail'!$A$159)*(Projects!$Q$5:$Q$2481)) -> 0 | M59: =SUMPRODUCT((Projects!$A$5:$A$2481='MDOT FTA Detail'!$M$3)*(Projects!$C$5:$C$2481='MDOT FTA Detail'!$C$4)*(Projects!$L$5:$L$2481='MDOT FTA Detail'!$A59)*(Projects!$J$5:$J$2481<>'MDOT FTA Detail'!$A$159)*(Projects!$K$5:$K$2481)) -> 0 | N59: 0 | O59: =SUMPRODUCT((Projects!$A$5:$A$2481='MDOT FTA Detail'!$M$3)*(Projects!$C$5:$C$2481='MDOT FTA Detail'!$C$4)*(Projects!$L$5:$L$2481='MDOT FTA Detail'!$A59)*(Projects!$J$5:$J$2481<>'MDOT FTA Detail'!$A$159)*(Projects!$Q$5:$Q$2481)) -> 0
A60: OFHWA | B60: Other FHWA Funds (Specify source in Comments) | C60: MDOT FA | D60: =SUMPRODUCT((Projects!$A$5:$A$2481='MDOT FTA Detail'!$D$3)*(Projects!$C$5:$C$2481='MDOT FTA Detail'!$C$4)*(Projects!$L$5:$L$2481='MDOT FTA Detail'!$A60)*(Projects!$J$5:$J$2481<>'MDOT FTA Detail'!$A$159)*(Projects!$K$5:K$2481)) -> 0 | E60: =F60-D60 -> 0 | F60: =SUMPRODUCT((Projects!$A$5:$A$2481='MDOT FTA Detail'!$D$3)*(Projects!$C$5:$C$2481='MDOT FTA Detail'!$C$4)*(Projects!$L$5:$L$2481='MDOT FTA Detail'!$A60)*(Projects!$J$5:$J$2481<>'MDOT FTA Detail'!$A$159)*(Projects!$Q$5:Q$2481)) -> 0 | G60: =SUMPRODUCT((Projects!$A$5:$A$2481='MDOT FTA Detail'!$G$3)*(Projects!$C$5:$C$2481='MDOT FTA Detail'!$C$4)*(Projects!$L$5:$L$2481='MDOT FTA Detail'!$A60)*(Projects!$J$5:$J$2481<>'MDOT FTA Detail'!$A$159)*(Projects!$K$5:K$2481)) -> 0 | H60: =I60-G60 -> 0 | I60: =SUMPRODUCT((Projects!$A$5:$A$2481='MDOT FTA Detail'!$G$3)*(Projects!$C$5:$C$2481='MDOT FTA Detail'!$C$4)*(Projects!$L$5:$L$2481='MDOT FTA Detail'!$A60)*(Projects!$J$5:$J$2481<>'MDOT FTA Detail'!$A$159)*(Projects!$Q$5:Q$2481)) -> 0 | J60: =SUMPRODUCT((Projects!$A$5:$A$2481='MDOT FTA Detail'!$J$3)*(Projects!$C$5:$C$2481='MDOT FTA Detail'!$C$4)*(Projects!$L$5:$L$2481='MDOT FTA Detail'!$A60)*(Projects!$J$5:$J$2481<>'MDOT FTA Detail'!$A$159)*(Projects!$K$5:$K$2481)) -> 0 | K60: =L60-J60 -> 0 | L60: =SUMPRODUCT((Projects!$A$5:$A$2481='MDOT FTA Detail'!$J$3)*(Projects!$C$5:$C$2481='MDOT FTA Detail'!$C$4)*(Projects!$L$5:$L$2481='MDOT FTA Detail'!$A60)*(Projects!$J$5:$J$2481<>'MDOT FTA Detail'!$A$159)*(Projects!$Q$5:$Q$2481)) -> 0 | M60: =SUMPRODUCT((Projects!$A$5:$A$2481='MDOT FTA Detail'!$M$3)*(Projects!$C$5:$C$2481='MDOT FTA Detail'!$C$4)*(Projects!$L$5:$L$2481='MDOT FTA Detail'!$A60)*(Projects!$J$5:$J$2481<>'MDOT FTA Detail'!$A$159)*(Projects!$K$5:$K$2481)) -> 0 | N60: =O60-M60 -> 0 | O60: =SUMPRODUCT((Projects!$A$5:$A$2481='MDOT FTA Detail'!$M$3)*(Projects!$C$5:$C$2481='MDOT FTA Detail'!$C$4)*(Projects!$L$5:$L$2481='MDOT FTA Detail'!$A60)*(Projects!$J$5:$J$2481<>'MDOT FTA Detail'!$A$159)*(Projects!$Q$5:$Q$2481)) -> 0
A61: PNRS | B61: Projects of National and Regional Significance | C61: MDOT FA | D61: =SUMPRODUCT((Projects!$A$5:$A$2481='MDOT FTA Detail'!$D$3)*(Projects!$C$5:$C$2481='MDOT FTA Detail'!$C$4)*(Projects!$L$5:$L$2481='MDOT FTA Detail'!$A61)*(Projects!$J$5:$J$2481<>'MDOT FTA Detail'!$A$159)*(Projects!$K$5:K$2481)) -> 0 | E61: 0 | F61: =SUMPRODUCT((Projects!$A$5:$A$2481='MDOT FTA Detail'!$D$3)*(Projects!$C$5:$C$2481='MDOT FTA Detail'!$C$4)*(Projects!$L$5:$L$2481='MDOT FTA Detail'!$A61)*(Projects!$J$5:$J$2481<>'MDOT FTA Detail'!$A$159)*(Projects!$Q$5:Q$2481)) -> 0 | G61: =SUMPRODUCT((Projects!$A$5:$A$2481='MDOT FTA Detail'!$G$3)*(Projects!$C$5:$C$2481='MDOT FTA Detail'!$C$4)*(Projects!$L$5:$L$2481='MDOT FTA Detail'!$A61)*(Projects!$J$5:$J$2481<>'MDOT FTA Detail'!$A$159)*(Projects!$K$5:K$2481)) -> 0 | H61: 0 | I61: =SUMPRODUCT((Projects!$A$5:$A$2481='MDOT FTA Detail'!$G$3)*(Projects!$C$5:$C$2481='MDOT FTA Detail'!$C$4)*(Projects!$L$5:$L$2481='MDOT FTA Detail'!$A61)*(Projects!$J$5:$J$2481<>'MDOT FTA Detail'!$A$159)*(Projects!$Q$5:Q$2481)) -> 0 | J61: =SUMPRODUCT((Projects!$A$5:$A$2481='MDOT FTA Detail'!$J$3)*(Projects!$C$5:$C$2481='MDOT FTA Detail'!$C$4)*(Projects!$L$5:$L$2481='MDOT FTA Detail'!$A61)*(Projects!$J$5:$J$2481<>'MDOT FTA Detail'!$A$159)*(Projects!$K$5:$K$2481)) -> 0 | K61: 0 | L61: =SUMPRODUCT((Projects!$A$5:$A$2481='MDOT FTA Detail'!$J$3)*(Projects!$C$5:$C$2481='MDOT FTA Detail'!$C$4)*(Projects!$L$5:$L$2481='MDOT FTA Detail'!$A61)*(Projects!$J$5:$J$2481<>'MDOT FTA Detail'!$A$159)*(Projects!$Q$5:$Q$2481)) -> 0 | M61: =SUMPRODUCT((Projects!$A$5:$A$2481='MDOT FTA Detail'!$M$3)*(Projects!$C$5:$C$2481='MDOT FTA Detail'!$C$4)*(Projects!$L$5:$L$2481='MDOT FTA Detail'!$A61)*(Projects!$J$5:$J$2481<>'MDOT FTA Detail'!$A$159)*(Projects!$K$5:$K$2481)) -> 0 | N61: 0 | O61: =SUMPRODUCT((Projects!$A$5:$A$2481='MDOT FTA Detail'!$M$3)*(Projects!$C$5:$C$2481='MDOT FTA Detail'!$C$4)*(Projects!$L$5:$L$2481='MDOT FTA Detail'!$A61)*(Projects!$J$5:$J$2481<>'MDOT FTA Detail'!$A$159)*(Projects!$Q$5:$Q$2481)) -> 0
A62: RP | B62: Research Project | C62: MDOT FA | D62: =SUMPRODUCT((Projects!$A$5:$A$2481='MDOT FTA Detail'!$D$3)*(Projects!$C$5:$C$2481='MDOT FTA Detail'!$C$4)*(Projects!$L$5:$L$2481='MDOT FTA Detail'!$A62)*(Projects!$J$5:$J$2481<>'MDOT FTA Detail'!$A$159)*(Projects!$K$5:K$2481)) -> 0 | E62: 0 | F62: =SUMPRODUCT((Projects!$A$5:$A$2481='MDOT FTA Detail'!$D$3)*(Projects!$C$5:$C$2481='MDOT FTA Detail'!$C$4)*(Projects!$L$5:$L$2481='MDOT FTA Detail'!$A62)*(Projects!$J$5:$J$2481<>'MDOT FTA Detail'!$A$159)*(Projects!$Q$5:Q$2481)) -> 0 | G62: =SUMPRODUCT((Projects!$A$5:$A$2481='MDOT FTA Detail'!$G$3)*(Projects!$C$5:$C$2481='MDOT FTA Detail'!$C$4)*(Projects!$L$5:$L$2481='MDOT FTA Detail'!$A62)*(Projects!$J$5:$J$2481<>'MDOT FTA Detail'!$A$159)*(Projects!$K$5:K$2481)) -> 0 | H62: 0 | I62: =SUMPRODUCT((Projects!$A$5:$A$2481='MDOT FTA Detail'!$G$3)*(Projects!$C$5:$C$2481='MDOT FTA Detail'!$C$4)*(Projects!$L$5:$L$2481='MDOT FTA Detail'!$A62)*(Projects!$J$5:$J$2481<>'MDOT FTA Detail'!$A$159)*(Projects!$Q$5:Q$2481)) -> 0 | J62: =SUMPRODUCT((Projects!$A$5:$A$2481='MDOT FTA Detail'!$J$3)*(Projects!$C$5:$C$2481='MDOT FTA Detail'!$C$4)*(Projects!$L$5:$L$2481='MDOT FTA Detail'!$A62)*(Projects!$J$5:$J$2481<>'MDOT FTA Detail'!$A$159)*(Projects!$K$5:$K$2481)) -> 0 | K62: 0 | L62: =SUMPRODUCT((Projects!$A$5:$A$2481='MDOT FTA Detail'!$J$3)*(Projects!$C$5:$C$2481='MDOT FTA Detail'!$C$4)*(Projects!$L$5:$L$2481='MDOT FTA Detail'!$A62)*(Projects!$J$5:$J$2481<>'MDOT FTA Detail'!$A$159)*(Projects!$Q$5:$Q$2481)) -> 0 | M62: =SUMPRODUCT((Projects!$A$5:$A$2481='MDOT FTA Detail'!$M$3)*(Projects!$C$5:$C$2481='MDOT FTA Detail'!$C$4)*(Projects!$L$5:$L$2481='MDOT FTA Detail'!$A62)*(Projects!$J$5:$J$2481<>'MDOT FTA Detail'!$A$159)*(Projects!$K$5:$K$2481)) -> 0 | N62: 0 | O62: =SUMPRODUCT((Projects!$A$5:$A$2481='MDOT FTA Detail'!$M$3)*(Projects!$C$5:$C$2481='MDOT FTA Detail'!$C$4)*(Projects!$L$5:$L$2481='MDOT FTA Detail'!$A62)*(Projects!$J$5:$J$2481<>'MDOT FTA Detail'!$A$159)*(Projects!$Q$5:$Q$2481)) -> 0
A63: RPH | B63: American Recovery and Reinvestment Act | C63: MDOT FA | D63: =SUMPRODUCT((Projects!$A$5:$A$2481='MDOT FTA Detail'!$D$3)*(Projects!$C$5:$C$2481='MDOT FTA Detail'!$C$4)*(Projects!$L$5:$L$2481='MDOT FTA Detail'!$A63)*(Projects!$J$5:$J$2481<>'MDOT FTA Detail'!$A$159)*(Projects!$K$5:K$2481)) -> 0 | E63: 0 | F63: =SUMPRODUCT((Projects!$A$5:$A$2481='MDOT FTA Detail'!$D$3)*(Projects!$C$5:$C$2481='MDOT FTA Detail'!$C$4)*(Projects!$L$5:$L$2481='MDOT FTA Detail'!$A63)*(Projects!$J$5:$J$2481<>'MDOT FTA Detail'!$A$159)*(Projects!$Q$5:Q$2481)) -> 0 | G63: =SUMPRODUCT((Projects!$A$5:$A$2481='MDOT FTA Detail'!$G$3)*(Projects!$C$5:$C$2481='MDOT FTA Detail'!$C$4)*(Projects!$L$5:$L$2481='MDOT FTA Detail'!$A63)*(Projects!$J$5:$J$2481<>'MDOT FTA Detail'!$A$159)*(Projects!$K$5:K$2481)) -> 0 | H63: 0 | I63: =SUMPRODUCT((Projects!$A$5:$A$2481='MDOT FTA Detail'!$G$3)*(Projects!$C$5:$C$2481='MDOT FTA Detail'!$C$4)*(Projects!$L$5:$L$2481='MDOT FTA Detail'!$A63)*(Projects!$J$5:$J$2481<>'MDOT FTA Detail'!$A$159)*(Projects!$Q$5:Q$2481)) -> 0 | J63: =SUMPRODUCT((Projects!$A$5:$A$2481='MDOT FTA Detail'!$J$3)*(Projects!$C$5:$C$2481='MDOT FTA Detail'!$C$4)*(Projects!$L$5:$L$2481='MDOT FTA Detail'!$A63)*(Projects!$J$5:$J$2481<>'MDOT FTA Detail'!$A$159)*(Projects!$K$5:$K$2481)) -> 0 | K63: 0 | L63: =SUMPRODUCT((Projects!$A$5:$A$2481='MDOT FTA Detail'!$J$3)*(Projects!$C$5:$C$2481='MDOT FTA Detail'!$C$4)*(Projects!$L$5:$L$2481='MDOT FTA Detail'!$A63)*(Projects!$J$5:$J$2481<>'MDOT FTA Detail'!$A$159)*(Projects!$Q$5:$Q$2481)) -> 0 | M63: =SUMPRODUCT((Projects!$A$5:$A$2481='MDOT FTA Detail'!$M$3)*(Projects!$C$5:$C$2481='MDOT FTA Detail'!$C$4)*(Projects!$L$5:$L$2481='MDOT FTA Detail'!$A63)*(Projects!$J$5:$J$2481<>'MDOT FTA Detail'!$A$159)*(Projects!$K$5:$K$2481)) -> 0 | N63: 0 | O63: =SUMPRODUCT((Projects!$A$5:$A$2481='MDOT FTA Detail'!$M$3)*(Projects!$C$5:$C$2481='MDOT FTA Detail'!$C$4)*(Projects!$L$5:$L$2481='MDOT FTA Detail'!$A63)*(Projects!$J$5:$J$2481<>'MDOT FTA Detail'!$A$159)*(Projects!$Q$5:$Q$2481)) -> 0
A64: SBD | B64: Scenic Byways - Discretionary | C64: MDOT FA | D64: =SUMPRODUCT((Projects!$A$5:$A$2481='MDOT FTA Detail'!$D$3)*(Projects!$C$5:$C$2481='MDOT FTA Detail'!$C$4)*(Projects!$L$5:$L$2481='MDOT FTA Detail'!$A64)*(Projects!$J$5:$J$2481<>'MDOT FTA Detail'!$A$159)*(Projects!$K$5:K$2481)) -> 0 | E64: 0 | F64: =SUMPRODUCT((Projects!$A$5:$A$2481='MDOT FTA Detail'!$D$3)*(Projects!$C$5:$C$2481='MDOT FTA Detail'!$C$4)*(Projects!$L$5:$L$2481='MDOT FTA Detail'!$A64)*(Projects!$J$5:$J$2481<>'MDOT FTA Detail'!$A$159)*(Projects!$Q$5:Q$2481)) -> 0 | G64: =SUMPRODUCT((Projects!$A$5:$A$2481='MDOT FTA Detail'!$G$3)*(Projects!$C$5:$C$2481='MDOT FTA Detail'!$C$4)*(Projects!$L$5:$L$2481='MDOT FTA Detail'!$A64)*(Projects!$J$5:$J$2481<>'MDOT FTA Detail'!$A$159)*(Projects!$K$5:K$2481)) -> 0 | H64: 0 | I64: =SUMPRODUCT((Projects!$A$5:$A$2481='MDOT FTA Detail'!$G$3)*(Projects!$C$5:$C$2481='MDOT FTA Detail'!$C$4)*(Projects!$L$5:$L$2481='MDOT FTA Detail'!$A64)*(Projects!$J$5:$J$2481<>'MDOT FTA Detail'!$A$159)*(Projects!$Q$5:Q$2481)) -> 0 | J64: =SUMPRODUCT((Projects!$A$5:$A$2481='MDOT FTA Detail'!$J$3)*(Projects!$C$5:$C$2481='MDOT FTA Detail'!$C$4)*(Projects!$L$5:$L$2481='MDOT FTA Detail'!$A64)*(Projects!$J$5:$J$2481<>'MDOT FTA Detail'!$A$159)*(Projects!$K$5:$K$2481)) -> 0 | K64: 0 | L64: =SUMPRODUCT((Projects!$A$5:$A$2481='MDOT FTA Detail'!$J$3)*(Projects!$C$5:$C$2481='MDOT FTA Detail'!$C$4)*(Projects!$L$5:$L$2481='MDOT FTA Detail'!$A64)*(Projects!$J$5:$J$2481<>'MDOT FTA Detail'!$A$159)*(Projects!$Q$5:$Q$2481)) -> 0 | M64: =SUMPRODUCT((Projects!$A$5:$A$2481='MDOT FTA Detail'!$M$3)*(Projects!$C$5:$C$2481='MDOT FTA Detail'!$C$4)*(Projects!$L$5:$L$2481='MDOT FTA Detail'!$A64)*(Projects!$J$5:$J$2481<>'MDOT FTA Detail'!$A$159)*(Projects!$K$5:$K$2481)) -> 0 | N64: 0 | O64: =SUMPRODUCT((Projects!$A$5:$A$2481='MDOT FTA Detail'!$M$3)*(Projects!$C$5:$C$2481='MDOT FTA Detail'!$C$4)*(Projects!$L$5:$L$2481='MDOT FTA Detail'!$A64)*(Projects!$J$5:$J$2481<>'MDOT FTA Detail'!$A$159)*(Projects!$Q$5:$Q$2481)) -> 0
A65: SIB | B65: State Infrastructure Bank | C65: MDOT FA | D65: =SUMPRODUCT((Projects!$A$5:$A$2481='MDOT FTA Detail'!$D$3)*(Projects!$C$5:$C$2481='MDOT FTA Detail'!$C$4)*(Projects!$L$5:$L$2481='MDOT FTA Detail'!$A65)*(Projects!$J$5:$J$2481<>'MDOT FTA Detail'!$A$159)*(Projects!$K$5:K$2481)) -> 0 | E65: 0 | F65: =SUMPRODUCT((Projects!$A$5:$A$2481='MDOT FTA Detail'!$D$3)*(Projects!$C$5:$C$2481='MDOT FTA Detail'!$C$4)*(Projects!$L$5:$L$2481='MDOT FTA Detail'!$A65)*(Projects!$J$5:$J$2481<>'MDOT FTA Detail'!$A$159)*(Projects!$Q$5:Q$2481)) -> 0 | G65: =SUMPRODUCT((Projects!$A$5:$A$2481='MDOT FTA Detail'!$G$3)*(Projects!$C$5:$C$2481='MDOT FTA Detail'!$C$4)*(Projects!$L$5:$L$2481='MDOT FTA Detail'!$A65)*(Projects!$J$5:$J$2481<>'MDOT FTA Detail'!$A$159)*(Projects!$K$5:K$2481)) -> 0 | H65: 0 | I65: =SUMPRODUCT((Projects!$A$5:$A$2481='MDOT FTA Detail'!$G$3)*(Projects!$C$5:$C$2481='MDOT FTA Detail'!$C$4)*(Projects!$L$5:$L$2481='MDOT FTA Detail'!$A65)*(Projects!$J$5:$J$2481<>'MDOT FTA Detail'!$A$159)*(Projects!$Q$5:Q$2481)) -> 0 | J65: =SUMPRODUCT((Projects!$A$5:$A$2481='MDOT FTA Detail'!$J$3)*(Projects!$C$5:$C$2481='MDOT FTA Detail'!$C$4)*(Projects!$L$5:$L$2481='MDOT FTA Detail'!$A65)*(Projects!$J$5:$J$2481<>'MDOT FTA Detail'!$A$159)*(Projects!$K$5:$K$2481)) -> 0 | K65: 0 | L65: =SUMPRODUCT((Projects!$A$5:$A$2481='MDOT FTA Detail'!$J$3)*(Projects!$C$5:$C$2481='MDOT FTA Detail'!$C$4)*(Projects!$L$5:$L$2481='MDOT FTA Detail'!$A65)*(Projects!$J$5:$J$2481<>'MDOT FTA Detail'!$A$159)*(Projects!$Q$5:$Q$2481)) -> 0 | M65: =SUMPRODUCT((Projects!$A$5:$A$2481='MDOT FTA Detail'!$M$3)*(Projects!$C$5:$C$2481='MDOT FTA Detail'!$C$4)*(Projects!$L$5:$L$2481='MDOT FTA Detail'!$A65)*(Projects!$J$5:$J$2481<>'MDOT FTA Detail'!$A$159)*(Projects!$K$5:$K$2481)) -> 0 | N65: 0 | O65: =SUMPRODUCT((Projects!$A$5:$A$2481='MDOT FTA Detail'!$M$3)*(Projects!$C$5:$C$2481='MDOT FTA Detail'!$C$4)*(Projects!$L$5:$L$2481='MDOT FTA Detail'!$A65)*(Projects!$J$5:$J$2481<>'MDOT FTA Detail'!$A$159)*(Projects!$Q$5:$Q$2481)) -> 0
A66: SLG | B66: Surface Transportation Safety | C66: MDOT FA | D66: =SUMPRODUCT((Projects!$A$5:$A$2481='MDOT FTA Detail'!$D$3)*(Projects!$C$5:$C$2481='MDOT FTA Detail'!$C$4)*(Projects!$L$5:$L$2481='MDOT FTA Detail'!$A66)*(Projects!$J$5:$J$2481<>'MDOT FTA Detail'!$A$159)*(Projects!$K$5:K$2481)) -> 0 | E66: 0 | F66: =SUMPRODUCT((Projects!$A$5:$A$2481='MDOT FTA Detail'!$D$3)*(Projects!$C$5:$C$2481='MDOT FTA Detail'!$C$4)*(Projects!$L$5:$L$2481='MDOT FTA Detail'!$A66)*(Projects!$J$5:$J$2481<>'MDOT FTA Detail'!$A$159)*(Projects!$Q$5:Q$2481)) -> 0 | G66: =SUMPRODUCT((Projects!$A$5:$A$2481='MDOT FTA Detail'!$G$3)*(Projects!$C$5:$C$2481='MDOT FTA Detail'!$C$4)*(Projects!$L$5:$L$2481='MDOT FTA Detail'!$A66)*(Projects!$J$5:$J$2481<>'MDOT FTA Detail'!$A$159)*(Projects!$K$5:K$2481)) -> 0 | H66: 0 | I66: =SUMPRODUCT((Projects!$A$5:$A$2481='MDOT FTA Detail'!$G$3)*(Projects!$C$5:$C$2481='MDOT FTA Detail'!$C$4)*(Projects!$L$5:$L$2481='MDOT FTA Detail'!$A66)*(Projects!$J$5:$J$2481<>'MDOT FTA Detail'!$A$159)*(Projects!$Q$5:Q$2481)) -> 0 | J66: =SUMPRODUCT((Projects!$A$5:$A$2481='MDOT FTA Detail'!$J$3)*(Projects!$C$5:$C$2481='MDOT FTA Detail'!$C$4)*(Projects!$L$5:$L$2481='MDOT FTA Detail'!$A66)*(Projects!$J$5:$J$2481<>'MDOT FTA Detail'!$A$159)*(Projects!$K$5:$K$2481)) -> 0 | K66: 0 | L66: =SUMPRODUCT((Projects!$A$5:$A$2481='MDOT FTA Detail'!$J$3)*(Projects!$C$5:$C$2481='MDOT FTA Detail'!$C$4)*(Projects!$L$5:$L$2481='MDOT FTA Detail'!$A66)*(Projects!$J$5:$J$2481<>'MDOT FTA Detail'!$A$159)*(Projects!$Q$5:$Q$2481)) -> 0 | M66: =SUMPRODUCT((Projects!$A$5:$A$2481='MDOT FTA Detail'!$M$3)*(Projects!$C$5:$C$2481='MDOT FTA Detail'!$C$4)*(Projects!$L$5:$L$2481='MDOT FTA Detail'!$A66)*(Projects!$J$5:$J$2481<>'MDOT FTA Detail'!$A$159)*(Projects!$K$5:$K$2481)) -> 0 | N66: 0 | O66: =SUMPRODUCT((Projects!$A$5:$A$2481='MDOT FTA Detail'!$M$3)*(Projects!$C$5:$C$2481='MDOT FTA Detail'!$C$4)*(Projects!$L$5:$L$2481='MDOT FTA Detail'!$A66)*(Projects!$J$5:$J$2481<>'MDOT FTA Detail'!$A$159)*(Projects!$Q$5:$Q$2481)) -> 0
A67: SRSE | B67: Surface Transportation Safety Highway Crossing Hazard Elimination | C67: MDOT FA | D67: =SUMPRODUCT((Projects!$A$5:$A$2481='MDOT FTA Detail'!$D$3)*(Projects!$C$5:$C$2481='MDOT FTA Detail'!$C$4)*(Projects!$L$5:$L$2481='MDOT FTA Detail'!$A67)*(Projects!$J$5:$J$2481<>'MDOT FTA Detail'!$A$159)*(Projects!$K$5:K$2481)) -> 0 | E67: 0 | F67: =SUMPRODUCT((Projects!$A$5:$A$2481='MDOT FTA Detail'!$D$3)*(Projects!$C$5:$C$2481='MDOT FTA Detail'!$C$4)*(Projects!$L$5:$L$2481='MDOT FTA Detail'!$A67)*(Projects!$J$5:$J$2481<>'MDOT FTA Detail'!$A$159)*(Projects!$Q$5:Q$2481)) -> 0 | G67: =SUMPRODUCT((Projects!$A$5:$A$2481='MDOT FTA Detail'!$G$3)*(Projects!$C$5:$C$2481='MDOT FTA Detail'!$C$4)*(Projects!$L$5:$L$2481='MDOT FTA Detail'!$A67)*(Projects!$J$5:$J$2481<>'MDOT FTA Detail'!$A$159)*(Projects!$K$5:K$2481)) -> 0 | H67: 0 | I67: =SUMPRODUCT((Projects!$A$5:$A$2481='MDOT FTA Detail'!$G$3)*(Projects!$C$5:$C$2481='MDOT FTA Detail'!$C$4)*(Projects!$L$5:$L$2481='MDOT FTA Detail'!$A67)*(Projects!$J$5:$J$2481<>'MDOT FTA Detail'!$A$159)*(Projects!$Q$5:Q$2481)) -> 0 | J67: =SUMPRODUCT((Projects!$A$5:$A$2481='MDOT FTA Detail'!$J$3)*(Projects!$C$5:$C$2481='MDOT FTA Detail'!$C$4)*(Projects!$L$5:$L$2481='MDOT FTA Detail'!$A67)*(Projects!$J$5:$J$2481<>'MDOT FTA Detail'!$A$159)*(Projects!$K$5:$K$2481)) -> 0 | K67: 0 | L67: =SUMPRODUCT((Projects!$A$5:$A$2481='MDOT FTA Detail'!$J$3)*(Projects!$C$5:$C$2481='MDOT FTA Detail'!$C$4)*(Projects!$L$5:$L$2481='MDOT FTA Detail'!$A67)*(Projects!$J$5:$J$2481<>'MDOT FTA Detail'!$A$159)*(Projects!$Q$5:$Q$2481)) -> 0 | M67: =SUMPRODUCT((Projects!$A$5:$A$2481='MDOT FTA Detail'!$M$3)*(Projects!$C$5:$C$2481='MDOT FTA Detail'!$C$4)*(Projects!$L$5:$L$2481='MDOT FTA Detail'!$A67)*(Projects!$J$5:$J$2481<>'MDOT FTA Detail'!$A$159)*(Projects!$K$5:$K$2481)) -> 0 | N67: 0 | O67: =SUMPRODUCT((Projects!$A$5:$A$2481='MDOT FTA Detail'!$M$3)*(Projects!$C$5:$C$2481='MDOT FTA Detail'!$C$4)*(Projects!$L$5:$L$2481='MDOT FTA Detail'!$A67)*(Projects!$J$5:$J$2481<>'MDOT FTA Detail'!$A$159)*(Projects!$Q$5:$Q$2481)) -> 0
A68: SRHG | B68: Surface Transportation Safety Highway Crossing Protection Devices 100% | C68: MDOT FA | D68: =SUMPRODUCT((Projects!$A$5:$A$2481='MDOT FTA Detail'!$D$3)*(Projects!$C$5:$C$2481='MDOT FTA Detail'!$C$4)*(Projects!$L$5:$L$2481='MDOT FTA Detail'!$A68)*(Projects!$J$5:$J$2481<>'MDOT FTA Detail'!$A$159)*(Projects!$K$5:K$2481)) -> 0 | E68: =F68-D68 -> 0 | F68: =SUMPRODUCT((Projects!$A$5:$A$2481='MDOT FTA Detail'!$D$3)*(Projects!$C$5:$C$2481='MDOT FTA Detail'!$C$4)*(Projects!$L$5:$L$2481='MDOT FTA Detail'!$A68)*(Projects!$J$5:$J$2481<>'MDOT FTA Detail'!$A$159)*(Projects!$Q$5:Q$2481)) -> 0 | G68: =SUMPRODUCT((Projects!$A$5:$A$2481='MDOT FTA Detail'!$G$3)*(Projects!$C$5:$C$2481='MDOT FTA Detail'!$C$4)*(Projects!$L$5:$L$2481='MDOT FTA Detail'!$A68)*(Projects!$J$5:$J$2481<>'MDOT FTA Detail'!$A$159)*(Projects!$K$5:K$2481)) -> 0 | H68: =I68-G68 -> 0 | I68: =SUMPRODUCT((Projects!$A$5:$A$2481='MDOT FTA Detail'!$G$3)*(Projects!$C$5:$C$2481='MDOT FTA Detail'!$C$4)*(Projects!$L$5:$L$2481='MDOT FTA Detail'!$A68)*(Projects!$J$5:$J$2481<>'MDOT FTA Detail'!$A$159)*(Projects!$Q$5:Q$2481)) -> 0 | J68: =SUMPRODUCT((Projects!$A$5:$A$2481='MDOT FTA Detail'!$J$3)*(Projects!$C$5:$C$2481='MDOT FTA Detail'!$C$4)*(Projects!$L$5:$L$2481='MDOT FTA Detail'!$A68)*(Projects!$J$5:$J$2481<>'MDOT FTA Detail'!$A$159)*(Projects!$K$5:$K$2481)) -> 0 | K68: =L68-J68 -> 0 | L68: =SUMPRODUCT((Projects!$A$5:$A$2481='MDOT FTA Detail'!$J$3)*(Projects!$C$5:$C$2481='MDOT FTA Detail'!$C$4)*(Projects!$L$5:$L$2481='MDOT FTA Detail'!$A68)*(Projects!$J$5:$J$2481<>'MDOT FTA Detail'!$A$159)*(Projects!$Q$5:$Q$2481)) -> 0 | M68: =SUMPRODUCT((Projects!$A$5:$A$2481='MDOT FTA Detail'!$M$3)*(Projects!$C$5:$C$2481='MDOT FTA Detail'!$C$4)*(Projects!$L$5:$L$2481='MDOT FTA Detail'!$A68)*(Projects!$J$5:$J$2481<>'MDOT FTA Detail'!$A$159)*(Projects!$K$5:$K$2481)) -> 0 | N68: =O68-M68 -> 0 | O68: =SUMPRODUCT((Projects!$A$5:$A$2481='MDOT FTA Detail'!$M$3)*(Projects!$C$5:$C$2481='MDOT FTA Detail'!$C$4)*(Projects!$L$5:$L$2481='MDOT FTA Detail'!$A68)*(Projects!$J$5:$J$2481<>'MDOT FTA Detail'!$A$159)*(Projects!$Q$5:$Q$2481)) -> 0
A69: SRPG | B69: Safe Routes to School - Either - SAFETEA-LU | C69: MDOT FA | D69: =SUMPRODUCT((Projects!$A$5:$A$2481='MDOT FTA Detail'!$D$3)*(Projects!$C$5:$C$2481='MDOT FTA Detail'!$C$4)*(Projects!$L$5:$L$2481='MDOT FTA Detail'!$A69)*(Projects!$J$5:$J$2481<>'MDOT FTA Detail'!$A$159)*(Projects!$K$5:K$2481)) -> 0 | E69: =F69-D69 -> 0 | F69: =SUMPRODUCT((Projects!$A$5:$A$2481='MDOT FTA Detail'!$D$3)*(Projects!$C$5:$C$2481='MDOT FTA Detail'!$C$4)*(Projects!$L$5:$L$2481='MDOT FTA Detail'!$A69)*(Projects!$J$5:$J$2481<>'MDOT FTA Detail'!$A$159)*(Projects!$Q$5:Q$2481)) -> 0 | G69: =SUMPRODUCT((Projects!$A$5:$A$2481='MDOT FTA Detail'!$G$3)*(Projects!$C$5:$C$2481='MDOT FTA Detail'!$C$4)*(Projects!$L$5:$L$2481='MDOT FTA Detail'!$A69)*(Projects!$J$5:$J$2481<>'MDOT FTA Detail'!$A$159)*(Projects!$K$5:K$2481)) -> 0 | H69: =I69-G69 -> 0 | I69: =SUMPRODUCT((Projects!$A$5:$A$2481='MDOT FTA Detail'!$G$3)*(Projects!$C$5:$C$2481='MDOT FTA Detail'!$C$4)*(Projects!$L$5:$L$2481='MDOT FTA Detail'!$A69)*(Projects!$J$5:$J$2481<>'MDOT FTA Detail'!$A$159)*(Projects!$Q$5:Q$2481)) -> 0 | J69: =SUMPRODUCT((Projects!$A$5:$A$2481='MDOT FTA Detail'!$J$3)*(Projects!$C$5:$C$2481='MDOT FTA Detail'!$C$4)*(Projects!$L$5:$L$2481='MDOT FTA Detail'!$A69)*(Projects!$J$5:$J$2481<>'MDOT FTA Detail'!$A$159)*(Projects!$K$5:$K$2481)) -> 0 | K69: =L69-J69 -> 0 | L69: =SUMPRODUCT((Projects!$A$5:$A$2481='MDOT FTA Detail'!$J$3)*(Projects!$C$5:$C$2481='MDOT FTA Detail'!$C$4)*(Projects!$L$5:$L$2481='MDOT FTA Detail'!$A69)*(Projects!$J$5:$J$2481<>'MDOT FTA Detail'!$A$159)*(Projects!$Q$5:$Q$2481)) -> 0 | M69: =SUMPRODUCT((Projects!$A$5:$A$2481='MDOT FTA Detail'!$M$3)*(Projects!$C$5:$C$2481='MDOT FTA Detail'!$C$4)*(Projects!$L$5:$L$2481='MDOT FTA Detail'!$A69)*(Projects!$J$5:$J$2481<>'MDOT FTA Detail'!$A$159)*(Projects!$K$5:$K$2481)) -> 0 | N69: =O69-M69 -> 0 | O69: =SUMPRODUCT((Projects!$A$5:$A$2481='MDOT FTA Detail'!$M$3)*(Projects!$C$5:$C$2481='MDOT FTA Detail'!$C$4)*(Projects!$L$5:$L$2481='MDOT FTA Detail'!$A69)*(Projects!$J$5:$J$2481<>'MDOT FTA Detail'!$A$159)*(Projects!$Q$5:$Q$2481)) -> 0
A70: SRSI | B70: Safe Routes to School - Infrastructure - SAFETEA-LU | C70: MDOT FA | D70: =SUMPRODUCT((Projects!$A$5:$A$2481='MDOT FTA Detail'!$D$3)*(Projects!$C$5:$C$2481='MDOT FTA Detail'!$C$4)*(Projects!$L$5:$L$2481='MDOT FTA Detail'!$A70)*(Projects!$J$5:$J$2481<>'MDOT FTA Detail'!$A$159)*(Projects!$K$5:K$2481)) -> 0 | E70: 0 | F70: =SUMPRODUCT((Projects!$A$5:$A$2481='MDOT FTA Detail'!$D$3)*(Projects!$C$5:$C$2481='MDOT FTA Detail'!$C$4)*(Projects!$L$5:$L$2481='MDOT FTA Detail'!$A70)*(Projects!$J$5:$J$2481<>'MDOT FTA Detail'!$A$159)*(Projects!$Q$5:Q$2481)) -> 0 | G70: =SUMPRODUCT((Projects!$A$5:$A$2481='MDOT FTA Detail'!$G$3)*(Projects!$C$5:$C$2481='MDOT FTA Detail'!$C$4)*(Projects!$L$5:$L$2481='MDOT FTA Detail'!$A70)*(Projects!$J$5:$J$2481<>'MDOT FTA Detail'!$A$159)*(Projects!$K$5:K$2481)) -> 0 | H70: 0 | I70: =SUMPRODUCT((Projects!$A$5:$A$2481='MDOT FTA Detail'!$G$3)*(Projects!$C$5:$C$2481='MDOT FTA Detail'!$C$4)*(Projects!$L$5:$L$2481='MDOT FTA Detail'!$A70)*(Projects!$J$5:$J$2481<>'MDOT FTA Detail'!$A$159)*(Projects!$Q$5:Q$2481)) -> 0 | J70: =SUMPRODUCT((Projects!$A$5:$A$2481='MDOT FTA Detail'!$J$3)*(Projects!$C$5:$C$2481='MDOT FTA Detail'!$C$4)*(Projects!$L$5:$L$2481='MDOT FTA Detail'!$A70)*(Projects!$J$5:$J$2481<>'MDOT FTA Detail'!$A$159)*(Projects!$K$5:$K$2481)) -> 0 | K70: 0 | L70: =SUMPRODUCT((Projects!$A$5:$A$2481='MDOT FTA Detail'!$J$3)*(Projects!$C$5:$C$2481='MDOT FTA Detail'!$C$4)*(Projects!$L$5:$L$2481='MDOT FTA Detail'!$A70)*(Projects!$J$5:$J$2481<>'MDOT FTA Detail'!$A$159)*(Projects!$Q$5:$Q$2481)) -> 0 | M70: =SUMPRODUCT((Projects!$A$5:$A$2481='MDOT FTA Detail'!$M$3)*(Projects!$C$5:$C$2481='MDOT FTA Detail'!$C$4)*(Projects!$L$5:$L$2481='MDOT FTA Detail'!$A70)*(Projects!$J$5:$J$2481<>'MDOT FTA Detail'!$A$159)*(Projects!$K$5:$K$2481)) -> 0 | N70: 0 | O70: =SUMPRODUCT((Projects!$A$5:$A$2481='MDOT FTA Detail'!$M$3)*(Projects!$C$5:$C$2481='MDOT FTA Detail'!$C$4)*(Projects!$L$5:$L$2481='MDOT FTA Detail'!$A70)*(Projects!$J$5:$J$2481<>'MDOT FTA Detail'!$A$159)*(Projects!$Q$5:$Q$2481)) -> 0
A71: SRSN | B71: Safe Routes to School - Non-infrastructure - SAFETEA-LU | C71: MDOT FA | D71: =SUMPRODUCT((Projects!$A$5:$A$2481='MDOT FTA Detail'!$D$3)*(Projects!$C$5:$C$2481='MDOT FTA Detail'!$C$4)*(Projects!$L$5:$L$2481='MDOT FTA Detail'!$A71)*(Projects!$J$5:$J$2481<>'MDOT FTA Detail'!$A$159)*(Projects!$K$5:K$2481)) -> 0 | E71: 0 | F71: =SUMPRODUCT((Projects!$A$5:$A$2481='MDOT FTA Detail'!$D$3)*(Projects!$C$5:$C$2481='MDOT FTA Detail'!$C$4)*(Projects!$L$5:$L$2481='MDOT FTA Detail'!$A71)*(Projects!$J$5:$J$2481<>'MDOT FTA Detail'!$A$159)*(Projects!$Q$5:Q$2481)) -> 0 | G71: =SUMPRODUCT((Projects!$A$5:$A$2481='MDOT FTA Detail'!$G$3)*(Projects!$C$5:$C$2481='MDOT FTA Detail'!$C$4)*(Projects!$L$5:$L$2481='MDOT FTA Detail'!$A71)*(Projects!$J$5:$J$2481<>'MDOT FTA Detail'!$A$159)*(Projects!$K$5:K$2481)) -> 0 | H71: 0 | I71: =SUMPRODUCT((Projects!$A$5:$A$2481='MDOT FTA Detail'!$G$3)*(Projects!$C$5:$C$2481='MDOT FTA Detail'!$C$4)*(Projects!$L$5:$L$2481='MDOT FTA Detail'!$A71)*(Projects!$J$5:$J$2481<>'MDOT FTA Detail'!$A$159)*(Projects!$Q$5:Q$2481)) -> 0 | J71: =SUMPRODUCT((Projects!$A$5:$A$2481='MDOT FTA Detail'!$J$3)*(Projects!$C$5:$C$2481='MDOT FTA Detail'!$C$4)*(Projects!$L$5:$L$2481='MDOT FTA Detail'!$A71)*(Projects!$J$5:$J$2481<>'MDOT FTA Detail'!$A$159)*(Projects!$K$5:$K$2481)) -> 0 | K71: 0 | L71: =SUMPRODUCT((Projects!$A$5:$A$2481='MDOT FTA Detail'!$J$3)*(Projects!$C$5:$C$2481='MDOT FTA Detail'!$C$4)*(Projects!$L$5:$L$2481='MDOT FTA Detail'!$A71)*(Projects!$J$5:$J$2481<>'MDOT FTA Detail'!$A$159)*(Projects!$Q$5:$Q$2481)) -> 0 | M71: =SUMPRODUCT((Projects!$A$5:$A$2481='MDOT FTA Detail'!$M$3)*(Projects!$C$5:$C$2481='MDOT FTA Detail'!$C$4)*(Projects!$L$5:$L$2481='MDOT FTA Detail'!$A71)*(Projects!$J$5:$J$2481<>'MDOT FTA Detail'!$A$159)*(Projects!$K$5:$K$2481)) -> 0 | N71: 0 | O71: =SUMPRODUCT((Projects!$A$5:$A$2481='MDOT FTA Detail'!$M$3)*(Projects!$C$5:$C$2481='MDOT FTA Detail'!$C$4)*(Projects!$L$5:$L$2481='MDOT FTA Detail'!$A71)*(Projects!$J$5:$J$2481<>'MDOT FTA Detail'!$A$159)*(Projects!$Q$5:$Q$2481)) -> 0
A72: SST | B72: Supportive Services Training | C72: MDOT FA | D72: =SUMPRODUCT((Projects!$A$5:$A$2481='MDOT FTA Detail'!$D$3)*(Projects!$C$5:$C$2481='MDOT FTA Detail'!$C$4)*(Projects!$L$5:$L$2481='MDOT FTA Detail'!$A72)*(Projects!$J$5:$J$2481<>'MDOT FTA Detail'!$A$159)*(Projects!$K$5:K$2481)) -> 0 | E72: 0 | F72: =SUMPRODUCT((Projects!$A$5:$A$2481='MDOT FTA Detail'!$D$3)*(Projects!$C$5:$C$2481='MDOT FTA Detail'!$C$4)*(Projects!$L$5:$L$2481='MDOT FTA Detail'!$A72)*(Projects!$J$5:$J$2481<>'MDOT FTA Detail'!$A$159)*(Projects!$Q$5:Q$2481)) -> 0 | G72: =SUMPRODUCT((Projects!$A$5:$A$2481='MDOT FTA Detail'!$G$3)*(Projects!$C$5:$C$2481='MDOT FTA Detail'!$C$4)*(Projects!$L$5:$L$2481='MDOT FTA Detail'!$A72)*(Projects!$J$5:$J$2481<>'MDOT FTA Detail'!$A$159)*(Projects!$K$5:K$2481)) -> 0 | H72: 0 | I72: =SUMPRODUCT((Projects!$A$5:$A$2481='MDOT FTA Detail'!$G$3)*(Projects!$C$5:$C$2481='MDOT FTA Detail'!$C$4)*(Projects!$L$5:$L$2481='MDOT FTA Detail'!$A72)*(Projects!$J$5:$J$2481<>'MDOT FTA Detail'!$A$159)*(Projects!$Q$5:Q$2481)) -> 0 | J72: =SUMPRODUCT((Projects!$A$5:$A$2481='MDOT FTA Detail'!$J$3)*(Projects!$C$5:$C$2481='MDOT FTA Detail'!$C$4)*(Projects!$L$5:$L$2481='MDOT FTA Detail'!$A72)*(Projects!$J$5:$J$2481<>'MDOT FTA Detail'!$A$159)*(Projects!$K$5:$K$2481)) -> 0 | K72: 0 | L72: =SUMPRODUCT((Projects!$A$5:$A$2481='MDOT FTA Detail'!$J$3)*(Projects!$C$5:$C$2481='MDOT FTA Detail'!$C$4)*(Projects!$L$5:$L$2481='MDOT FTA Detail'!$A72)*(Projects!$J$5:$J$2481<>'MDOT FTA Detail'!$A$159)*(Projects!$Q$5:$Q$2481)) -> 0 | M72: =SUMPRODUCT((Projects!$A$5:$A$2481='MDOT FTA Detail'!$M$3)*(Projects!$C$5:$C$2481='MDOT FTA Detail'!$C$4)*(Projects!$L$5:$L$2481='MDOT FTA Detail'!$A72)*(Projects!$J$5:$J$2481<>'MDOT FTA Detail'!$A$159)*(Projects!$K$5:$K$2481)) -> 0 | N72: 0 | O72: =SUMPRODUCT((Projects!$A$5:$A$2481='MDOT FTA Detail'!$M$3)*(Projects!$C$5:$C$2481='MDOT FTA Detail'!$C$4)*(Projects!$L$5:$L$2481='MDOT FTA Detail'!$A72)*(Projects!$J$5:$J$2481<>'MDOT FTA Detail'!$A$159)*(Projects!$Q$5:$Q$2481)) -> 0
A73: ST | B73: Surface Transportation Program (STP) - Any Area | C73: MDOT FA | D73: =SUMPRODUCT((Projects!$A$5:$A$2481='MDOT FTA Detail'!$D$3)*(Projects!$C$5:$C$2481='MDOT FTA Detail'!$C$4)*(Projects!$L$5:$L$2481='MDOT FTA Detail'!$A73)*(Projects!$J$5:$J$2481<>'MDOT FTA Detail'!$A$159)*(Projects!$K$5:K$2481)) -> 0 | E73: 0 | F73: =SUMPRODUCT((Projects!$A$5:$A$2481='MDOT FTA Detail'!$D$3)*(Projects!$C$5:$C$2481='MDOT FTA Detail'!$C$4)*(Projects!$L$5:$L$2481='MDOT FTA Detail'!$A73)*(Projects!$J$5:$J$2481<>'MDOT FTA Detail'!$A$159)*(Projects!$Q$5:Q$2481)) -> 0 | G73: =SUMPRODUCT((Projects!$A$5:$A$2481='MDOT FTA Detail'!$G$3)*(Projects!$C$5:$C$2481='MDOT FTA Detail'!$C$4)*(Projects!$L$5:$L$2481='MDOT FTA Detail'!$A73)*(Projects!$J$5:$J$2481<>'MDOT FTA Detail'!$A$159)*(Projects!$K$5:K$2481)) -> 8185 | H73: 1815 | I73: =SUMPRODUCT((Projects!$A$5:$A$2481='MDOT FTA Detail'!$G$3)*(Projects!$C$5:$C$2481='MDOT FTA Detail'!$C$4)*(Projects!$L$5:$L$2481='MDOT FTA Detail'!$A73)*(Projects!$J$5:$J$2481<>'MDOT FTA Detail'!$A$159)*(Projects!$Q$5:Q$2481)) -> 10000 | J73: =SUMPRODUCT((Projects!$A$5:$A$2481='MDOT FTA Detail'!$J$3)*(Projects!$C$5:$C$2481='MDOT FTA Detail'!$C$4)*(Projects!$L$5:$L$2481='MDOT FTA Detail'!$A73)*(Projects!$J$5:$J$2481<>'MDOT FTA Detail'!$A$159)*(Projects!$K$5:$K$2481)) -> 63025 | K73: 13975 | L73: =SUMPRODUCT((Projects!$A$5:$A$2481='MDOT FTA Detail'!$J$3)*(Projects!$C$5:$C$2481='MDOT FTA Detail'!$C$4)*(Projects!$L$5:$L$2481='MDOT FTA Detail'!$A73)*(Projects!$J$5:$J$2481<>'MDOT FTA Detail'!$A$159)*(Projects!$Q$5:$Q$2481)) -> 77000 | M73: =SUMPRODUCT((Projects!$A$5:$A$2481='MDOT FTA Detail'!$M$3)*(Projects!$C$5:$C$2481='MDOT FTA Detail'!$C$4)*(Projects!$L$5:$L$2481='MDOT FTA Detail'!$A73)*(Projects!$J$5:$J$2481<>'MDOT FTA Detail'!$A$159)*(Projects!$K$5:$K$2481)) -> 0 | N73: 0 | O73: =SUMPRODUCT((Projects!$A$5:$A$2481='MDOT FTA Detail'!$M$3)*(Projects!$C$5:$C$2481='MDOT FTA Detail'!$C$4)*(Projects!$L$5:$L$2481='MDOT FTA Detail'!$A73)*(Projects!$J$5:$J$2481<>'MDOT FTA Detail'!$A$159)*(Projects!$Q$5:$Q$2481)) -> 0
A74: STE | B74: STP - Enhancement | C74: MDOT FA | D74: =SUMPRODUCT((Projects!$A$5:$A$2481='MDOT FTA Detail'!$D$3)*(Projects!$C$5:$C$2481='MDOT FTA Detail'!$C$4)*(Projects!$L$5:$L$2481='MDOT FTA Detail'!$A74)*(Projects!$J$5:$J$2481<>'MDOT FTA Detail'!$A$159)*(Projects!$K$5:K$2481)) -> 0 | E74: 0 | F74: =SUMPRODUCT((Projects!$A$5:$A$2481='MDOT FTA Detail'!$D$3)*(Projects!$C$5:$C$2481='MDOT FTA Detail'!$C$4)*(Projects!$L$5:$L$2481='MDOT FTA Detail'!$A74)*(Projects!$J$5:$J$2481<>'MDOT FTA Detail'!$A$159)*(Projects!$Q$5:Q$2481)) -> 0 | G74: =SUMPRODUCT((Projects!$A$5:$A$2481='MDOT FTA Detail'!$G$3)*(Projects!$C$5:$C$2481='MDOT FTA Detail'!$C$4)*(Projects!$L$5:$L$2481='MDOT FTA Detail'!$A74)*(Projects!$J$5:$J$2481<>'MDOT FTA Detail'!$A$159)*(Projects!$K$5:K$2481)) -> 0 | H74: 0 | I74: =SUMPRODUCT((Projects!$A$5:$A$2481='MDOT FTA Detail'!$G$3)*(Projects!$C$5:$C$2481='MDOT FTA Detail'!$C$4)*(Projects!$L$5:$L$2481='MDOT FTA Detail'!$A74)*(Projects!$J$5:$J$2481<>'MDOT FTA Detail'!$A$159)*(Projects!$Q$5:Q$2481)) -> 0 | J74: =SUMPRODUCT((Projects!$A$5:$A$2481='MDOT FTA Detail'!$J$3)*(Projects!$C$5:$C$2481='MDOT FTA Detail'!$C$4)*(Projects!$L$5:$L$2481='MDOT FTA Detail'!$A74)*(Projects!$J$5:$J$2481<>'MDOT FTA Detail'!$A$159)*(Projects!$K$5:$K$2481)) -> 0 | K74: 0 | L74: =SUMPRODUCT((Projects!$A$5:$A$2481='MDOT FTA Detail'!$J$3)*(Projects!$C$5:$C$2481='MDOT FTA Detail'!$C$4)*(Projects!$L$5:$L$2481='MDOT FTA Detail'!$A74)*(Projects!$J$5:$J$2481<>'MDOT FTA Detail'!$A$159)*(Projects!$Q$5:$Q$2481)) -> 0 | M74: =SUMPRODUCT((Projects!$A$5:$A$2481='MDOT FTA Detail'!$M$3)*(Projects!$C$5:$C$2481='MDOT FTA Detail'!$C$4)*(Projects!$L$5:$L$2481='MDOT FTA Detail'!$A74)*(Projects!$J$5:$J$2481<>'MDOT FTA Detail'!$A$159)*(Projects!$K$5:$K$2481)) -> 0 | N74: 0 | O74: =SUMPRODUCT((Projects!$A$5:$A$2481='MDOT FTA Detail'!$M$3)*(Projects!$C$5:$C$2481='MDOT FTA Detail'!$C$4)*(Projects!$L$5:$L$2481='MDOT FTA Detail'!$A74)*(Projects!$J$5:$J$2481<>'MDOT FTA Detail'!$A$159)*(Projects!$Q$5:$Q$2481)) -> 0
A75: STG | B75: STP - Safety - 100% Federal for ST | C75: MDOT FA | D75: =SUMPRODUCT((Projects!$A$5:$A$2481='MDOT FTA Detail'!$D$3)*(Projects!$C$5:$C$2481='MDOT FTA Detail'!$C$4)*(Projects!$L$5:$L$2481='MDOT FTA Detail'!$A75)*(Projects!$J$5:$J$2481<>'MDOT FTA Detail'!$A$159)*(Projects!$K$5:K$2481)) -> 0 | E75: 0 | F75: =SUMPRODUCT((Projects!$A$5:$A$2481='MDOT FTA Detail'!$D$3)*(Projects!$C$5:$C$2481='MDOT FTA Detail'!$C$4)*(Projects!$L$5:$L$2481='MDOT FTA Detail'!$A75)*(Projects!$J$5:$J$2481<>'MDOT FTA Detail'!$A$159)*(Projects!$Q$5:Q$2481)) -> 0 | G75: =SUMPRODUCT((Projects!$A$5:$A$2481='MDOT FTA Detail'!$G$3)*(Projects!$C$5:$C$2481='MDOT FTA Detail'!$C$4)*(Projects!$L$5:$L$2481='MDOT FTA Detail'!$A75)*(Projects!$J$5:$J$2481<>'MDOT FTA Detail'!$A$159)*(Projects!$K$5:K$2481)) -> 0 | H75: 0 | I75: =SUMPRODUCT((Projects!$A$5:$A$2481='MDOT FTA Detail'!$G$3)*(Projects!$C$5:$C$2481='MDOT FTA Detail'!$C$4)*(Projects!$L$5:$L$2481='MDOT FTA Detail'!$A75)*(Projects!$J$5:$J$2481<>'MDOT FTA Detail'!$A$159)*(Projects!$Q$5:Q$2481)) -> 0 | J75: =SUMPRODUCT((Projects!$A$5:$A$2481='MDOT FTA Detail'!$J$3)*(Projects!$C$5:$C$2481='MDOT FTA Detail'!$C$4)*(Projects!$L$5:$L$2481='MDOT FTA Detail'!$A75)*(Projects!$J$5:$J$2481<>'MDOT FTA Detail'!$A$159)*(Projects!$K$5:$K$2481)) -> 0 | K75: 0 | L75: =SUMPRODUCT((Projects!$A$5:$A$2481='MDOT FTA Detail'!$J$3)*(Projects!$C$5:$C$2481='MDOT FTA Detail'!$C$4)*(Projects!$L$5:$L$2481='MDOT FTA Detail'!$A75)*(Projects!$J$5:$J$2481<>'MDOT FTA Detail'!$A$159)*(Projects!$Q$5:$Q$2481)) -> 0 | M75: =SUMPRODUCT((Projects!$A$5:$A$2481='MDOT FTA Detail'!$M$3)*(Projects!$C$5:$C$2481='MDOT FTA Detail'!$C$4)*(Projects!$L$5:$L$2481='MDOT FTA Detail'!$A75)*(Projects!$J$5:$J$2481<>'MDOT FTA Detail'!$A$159)*(Projects!$K$5:$K$2481)) -> 0 | N75: 0 | O75: =SUMPRODUCT((Projects!$A$5:$A$2481='MDOT FTA Detail'!$M$3)*(Projects!$C$5:$C$2481='MDOT FTA Detail'!$C$4)*(Projects!$L$5:$L$2481='MDOT FTA Detail'!$A75)*(Projects!$J$5:$J$2481<>'MDOT FTA Detail'!$A$159)*(Projects!$Q$5:$Q$2481)) -> 0
A76: STH | B76: STP - Safety - Hazard Elimination | C76: MDOT FA | D76: =SUMPRODUCT((Projects!$A$5:$A$2481='MDOT FTA Detail'!$D$3)*(Projects!$C$5:$C$2481='MDOT FTA Detail'!$C$4)*(Projects!$L$5:$L$2481='MDOT FTA Detail'!$A76)*(Projects!$J$5:$J$2481<>'MDOT FTA Detail'!$A$159)*(Projects!$K$5:K$2481)) -> 0 | E76: 0 | F76: =SUMPRODUCT((Projects!$A$5:$A$2481='MDOT FTA Detail'!$D$3)*(Projects!$C$5:$C$2481='MDOT FTA Detail'!$C$4)*(Projects!$L$5:$L$2481='MDOT FTA Detail'!$A76)*(Projects!$J$5:$J$2481<>'MDOT FTA Detail'!$A$159)*(Projects!$Q$5:Q$2481)) -> 0 | G76: =SUMPRODUCT((Projects!$A$5:$A$2481='MDOT FTA Detail'!$G$3)*(Projects!$C$5:$C$2481='MDOT FTA Detail'!$C$4)*(Projects!$L$5:$L$2481='MDOT FTA Detail'!$A76)*(Projects!$J$5:$J$2481<>'MDOT FTA Detail'!$A$159)*(Projects!$K$5:K$2481)) -> 0 | H76: 0 | I76: =SUMPRODUCT((Projects!$A$5:$A$2481='MDOT FTA Detail'!$G$3)*(Projects!$C$5:$C$2481='MDOT FTA Detail'!$C$4)*(Projects!$L$5:$L$2481='MDOT FTA Detail'!$A76)*(Projects!$J$5:$J$2481<>'MDOT FTA Detail'!$A$159)*(Projects!$Q$5:Q$2481)) -> 0 | J76: =SUMPRODUCT((Projects!$A$5:$A$2481='MDOT FTA Detail'!$J$3)*(Projects!$C$5:$C$2481='MDOT FTA Detail'!$C$4)*(Projects!$L$5:$L$2481='MDOT FTA Detail'!$A76)*(Projects!$J$5:$J$2481<>'MDOT FTA Detail'!$A$159)*(Projects!$K$5:$K$2481)) -> 0 | K76: 0 | L76: =SUMPRODUCT((Projects!$A$5:$A$2481='MDOT FTA Detail'!$J$3)*(Projects!$C$5:$C$2481='MDOT FTA Detail'!$C$4)*(Projects!$L$5:$L$2481='MDOT FTA Detail'!$A76)*(Projects!$J$5:$J$2481<>'MDOT FTA Detail'!$A$159)*(Projects!$Q$5:$Q$2481)) -> 0 | M76: =SUMPRODUCT((Projects!$A$5:$A$2481='MDOT FTA Detail'!$M$3)*(Projects!$C$5:$C$2481='MDOT FTA Detail'!$C$4)*(Projects!$L$5:$L$2481='MDOT FTA Detail'!$A76)*(Projects!$J$5:$J$2481<>'MDOT FTA Detail'!$A$159)*(Projects!$K$5:$K$2481)) -> 0 | N76: 0 | O76: =SUMPRODUCT((Projects!$A$5:$A$2481='MDOT FTA Detail'!$M$3)*(Projects!$C$5:$C$2481='MDOT FTA Detail'!$C$4)*(Projects!$L$5:$L$2481='MDOT FTA Detail'!$A76)*(Projects!$J$5:$J$2481<>'MDOT FTA Detail'!$A$159)*(Projects!$Q$5:$Q$2481)) -> 0
A77: STI | B77: STP - Interstate (90%) | C77: MDOT FA | D77: =SUMPRODUCT((Projects!$A$5:$A$2481='MDOT FTA Detail'!$D$3)*(Projects!$C$5:$C$2481='MDOT FTA Detail'!$C$4)*(Projects!$L$5:$L$2481='MDOT FTA Detail'!$A77)*(Projects!$J$5:$J$2481<>'MDOT FTA Detail'!$A$159)*(Projects!$K$5:K$2481)) -> 0 | E77: 0 | F77: =SUMPRODUCT((Projects!$A$5:$A$2481='MDOT FTA Detail'!$D$3)*(Projects!$C$5:$C$2481='MDOT FTA Detail'!$C$4)*(Projects!$L$5:$L$2481='MDOT FTA Detail'!$A77)*(Projects!$J$5:$J$2481<>'MDOT FTA Detail'!$A$159)*(Projects!$Q$5:Q$2481)) -> 0 | G77: =SUMPRODUCT((Projects!$A$5:$A$2481='MDOT FTA Detail'!$G$3)*(Projects!$C$5:$C$2481='MDOT FTA Detail'!$C$4)*(Projects!$L$5:$L$2481='MDOT FTA Detail'!$A77)*(Projects!$J$5:$J$2481<>'MDOT FTA Detail'!$A$159)*(Projects!$K$5:K$2481)) -> 0 | H77: 0 | I77: =SUMPRODUCT((Projects!$A$5:$A$2481='MDOT FTA Detail'!$G$3)*(Projects!$C$5:$C$2481='MDOT FTA Detail'!$C$4)*(Projects!$L$5:$L$2481='MDOT FTA Detail'!$A77)*(Projects!$J$5:$J$2481<>'MDOT FTA Detail'!$A$159)*(Projects!$Q$5:Q$2481)) -> 0 | J77: =SUMPRODUCT((Projects!$A$5:$A$2481='MDOT FTA Detail'!$J$3)*(Projects!$C$5:$C$2481='MDOT FTA Detail'!$C$4)*(Projects!$L$5:$L$2481='MDOT FTA Detail'!$A77)*(Projects!$J$5:$J$2481<>'MDOT FTA Detail'!$A$159)*(Projects!$K$5:$K$2481)) -> 0 | K77: 0 | L77: =SUMPRODUCT((Projects!$A$5:$A$2481='MDOT FTA Detail'!$J$3)*(Projects!$C$5:$C$2481='MDOT FTA Detail'!$C$4)*(Projects!$L$5:$L$2481='MDOT FTA Detail'!$A77)*(Projects!$J$5:$J$2481<>'MDOT FTA Detail'!$A$159)*(Projects!$Q$5:$Q$2481)) -> 0 | M77: =SUMPRODUCT((Projects!$A$5:$A$2481='MDOT FTA Detail'!$M$3)*(Projects!$C$5:$C$2481='MDOT FTA Detail'!$C$4)*(Projects!$L$5:$L$2481='MDOT FTA Detail'!$A77)*(Projects!$J$5:$J$2481<>'MDOT FTA Detail'!$A$159)*(Projects!$K$5:$K$2481)) -> 0 | N77: 0 | O77: =SUMPRODUCT((Projects!$A$5:$A$2481='MDOT FTA Detail'!$M$3)*(Projects!$C$5:$C$2481='MDOT FTA Detail'!$C$4)*(Projects!$L$5:$L$2481='MDOT FTA Detail'!$A77)*(Projects!$J$5:$J$2481<>'MDOT FTA Detail'!$A$159)*(Projects!$Q$5:$Q$2481)) -> 0
A78: STL | B78: STP - Local | C78: MDOT FA | D78: =SUMPRODUCT((Projects!$A$5:$A$2481='MDOT FTA Detail'!$D$3)*(Projects!$C$5:$C$2481='MDOT FTA Detail'!$C$4)*(Projects!$L$5:$L$2481='MDOT FTA Detail'!$A78)*(Projects!$J$5:$J$2481<>'MDOT FTA Detail'!$A$159)*(Projects!$K$5:K$2481)) -> 0 | E78: 0 | F78: =SUMPRODUCT((Projects!$A$5:$A$2481='MDOT FTA Detail'!$D$3)*(Projects!$C$5:$C$2481='MDOT FTA Detail'!$C$4)*(Projects!$L$5:$L$2481='MDOT FTA Detail'!$A78)*(Projects!$J$5:$J$2481<>'MDOT FTA Detail'!$A$159)*(Projects!$Q$5:Q$2481)) -> 0 | G78: =SUMPRODUCT((Projects!$A$5:$A$2481='MDOT FTA Detail'!$G$3)*(Projects!$C$5:$C$2481='MDOT FTA Detail'!$C$4)*(Projects!$L$5:$L$2481='MDOT FTA Detail'!$A78)*(Projects!$J$5:$J$2481<>'MDOT FTA Detail'!$A$159)*(Projects!$K$5:K$2481)) -> 0 | H78: 0 | I78: =SUMPRODUCT((Projects!$A$5:$A$2481='MDOT FTA Detail'!$G$3)*(Projects!$C$5:$C$2481='MDOT FTA Detail'!$C$4)*(Projects!$L$5:$L$2481='MDOT FTA Detail'!$A78)*(Projects!$J$5:$J$2481<>'MDOT FTA Detail'!$A$159)*(Projects!$Q$5:Q$2481)) -> 0 | J78: =SUMPRODUCT((Projects!$A$5:$A$2481='MDOT FTA Detail'!$J$3)*(Projects!$C$5:$C$2481='MDOT FTA Detail'!$C$4)*(Projects!$L$5:$L$2481='MDOT FTA Detail'!$A78)*(Projects!$J$5:$J$2481<>'MDOT FTA Detail'!$A$159)*(Projects!$K$5:$K$2481)) -> 0 | K78: 0 | L78: =SUMPRODUCT((Projects!$A$5:$A$2481='MDOT FTA Detail'!$J$3)*(Projects!$C$5:$C$2481='MDOT FTA Detail'!$C$4)*(Projects!$L$5:$L$2481='MDOT FTA Detail'!$A78)*(Projects!$J$5:$J$2481<>'MDOT FTA Detail'!$A$159)*(Projects!$Q$5:$Q$2481)) -> 0 | M78: =SUMPRODUCT((Projects!$A$5:$A$2481='MDOT FTA Detail'!$M$3)*(Projects!$C$5:$C$2481='MDOT FTA Detail'!$C$4)*(Projects!$L$5:$L$2481='MDOT FTA Detail'!$A78)*(Projects!$J$5:$J$2481<>'MDOT FTA Detail'!$A$159)*(Projects!$K$5:$K$2481)) -> 0 | N78: 0 | O78: =SUMPRODUCT((Projects!$A$5:$A$2481='MDOT FTA Detail'!$M$3)*(Projects!$C$5:$C$2481='MDOT FTA Detail'!$C$4)*(Projects!$L$5:$L$2481='MDOT FTA Detail'!$A78)*(Projects!$J$5:$J$2481<>'MDOT FTA Detail'!$A$159)*(Projects!$Q$5:$Q$2481)) -> 0
A79: STLG | B79: Surface Transportation Safety 100% Federal for STL Items | C79: MDOT FA | D79: =SUMPRODUCT((Projects!$A$5:$A$2481='MDOT FTA Detail'!$D$3)*(Projects!$C$5:$C$2481='MDOT FTA Detail'!$C$4)*(Projects!$L$5:$L$2481='MDOT FTA Detail'!$A79)*(Projects!$J$5:$J$2481<>'MDOT FTA Detail'!$A$159)*(Projects!$K$5:K$2481)) -> 0 | E79: =F79-D79 -> 0 | F79: =SUMPRODUCT((Projects!$A$5:$A$2481='MDOT FTA Detail'!$D$3)*(Projects!$C$5:$C$2481='MDOT FTA Detail'!$C$4)*(Projects!$L$5:$L$2481='MDOT FTA Detail'!$A79)*(Projects!$J$5:$J$2481<>'MDOT FTA Detail'!$A$159)*(Projects!$Q$5:Q$2481)) -> 0 | G79: =SUMPRODUCT((Projects!$A$5:$A$2481='MDOT FTA Detail'!$G$3)*(Projects!$C$5:$C$2481='MDOT FTA Detail'!$C$4)*(Projects!$L$5:$L$2481='MDOT FTA Detail'!$A79)*(Projects!$J$5:$J$2481<>'MDOT FTA Detail'!$A$159)*(Projects!$K$5:K$2481)) -> 0 | H79: =I79-G79 -> 0 | I79: =SUMPRODUCT((Projects!$A$5:$A$2481='MDOT FTA Detail'!$G$3)*(Projects!$C$5:$C$2481='MDOT FTA Detail'!$C$4)*(Projects!$L$5:$L$2481='MDOT FTA Detail'!$A79)*(Projects!$J$5:$J$2481<>'MDOT FTA Detail'!$A$159)*(Projects!$Q$5:Q$2481)) -> 0 | J79: =SUMPRODUCT((Projects!$A$5:$A$2481='MDOT FTA Detail'!$J$3)*(Projects!$C$5:$C$2481='MDOT FTA Detail'!$C$4)*(Projects!$L$5:$L$2481='MDOT FTA Detail'!$A79)*(Projects!$J$5:$J$2481<>'MDOT FTA Detail'!$A$159)*(Projects!$K$5:$K$2481)) -> 0 | K79: =L79-J79 -> 0 | L79: =SUMPRODUCT((Projects!$A$5:$A$2481='MDOT FTA Detail'!$J$3)*(Projects!$C$5:$C$2481='MDOT FTA Detail'!$C$4)*(Projects!$L$5:$L$2481='MDOT FTA Detail'!$A79)*(Projects!$J$5:$J$2481<>'MDOT FTA Detail'!$A$159)*(Projects!$Q$5:$Q$2481)) -> 0 | M79: =SUMPRODUCT((Projects!$A$5:$A$2481='MDOT FTA Detail'!$M$3)*(Projects!$C$5:$C$2481='MDOT FTA Detail'!$C$4)*(Projects!$L$5:$L$2481='MDOT FTA Detail'!$A79)*(Projects!$J$5:$J$2481<>'MDOT FTA Detail'!$A$159)*(Projects!$K$5:$K$2481)) -> 0 | N79: =O79-M79 -> 0 | O79: =SUMPRODUCT((Projects!$A$5:$A$2481='MDOT FTA Detail'!$M$3)*(Projects!$C$5:$C$2481='MDOT FTA Detail'!$C$4)*(Projects!$L$5:$L$2481='MDOT FTA Detail'!$A79)*(Projects!$J$5:$J$2481<>'MDOT FTA Detail'!$A$159)*(Projects!$Q$5:$Q$2481)) -> 0
A80: STR | B80: STP - Safety - Rail-Highway Crossing Protection | C80: MDOT FA | D80: =SUMPRODUCT((Projects!$A$5:$A$2481='MDOT FTA Detail'!$D$3)*(Projects!$C$5:$C$2481='MDOT FTA Detail'!$C$4)*(Projects!$L$5:$L$2481='MDOT FTA Detail'!$A80)*(Projects!$J$5:$J$2481<>'MDOT FTA Detail'!$A$159)*(Projects!$K$5:K$2481)) -> 0 | E80: 0 | F80: =SUMPRODUCT((Projects!$A$5:$A$2481='MDOT FTA Detail'!$D$3)*(Projects!$C$5:$C$2481='MDOT FTA Detail'!$C$4)*(Projects!$L$5:$L$2481='MDOT FTA Detail'!$A80)*(Projects!$J$5:$J$2481<>'MDOT FTA Detail'!$A$159)*(Projects!$Q$5:Q$2481)) -> 0 | G80: =SUMPRODUCT((Projects!$A$5:$A$2481='MDOT FTA Detail'!$G$3)*(Projects!$C$5:$C$2481='MDOT FTA Detail'!$C$4)*(Projects!$L$5:$L$2481='MDOT FTA Detail'!$A80)*(Projects!$J$5:$J$2481<>'MDOT FTA Detail'!$A$159)*(Projects!$K$5:K$2481)) -> 0 | H80: 0 | I80: =SUMPRODUCT((Projects!$A$5:$A$2481='MDOT FTA Detail'!$G$3)*(Projects!$C$5:$C$2481='MDOT FTA Detail'!$C$4)*(Projects!$L$5:$L$2481='MDOT FTA Detail'!$A80)*(Projects!$J$5:$J$2481<>'MDOT FTA Detail'!$A$159)*(Projects!$Q$5:Q$2481)) -> 0 | J80: =SUMPRODUCT((Projects!$A$5:$A$2481='MDOT FTA Detail'!$J$3)*(Projects!$C$5:$C$2481='MDOT FTA Detail'!$C$4)*(Projects!$L$5:$L$2481='MDOT FTA Detail'!$A80)*(Projects!$J$5:$J$2481<>'MDOT FTA Detail'!$A$159)*(Projects!$K$5:$K$2481)) -> 0 | K80: 0 | L80: =SUMPRODUCT((Projects!$A$5:$A$2481='MDOT FTA Detail'!$J$3)*(Projects!$C$5:$C$2481='MDOT FTA Detail'!$C$4)*(Projects!$L$5:$L$2481='MDOT FTA Detail'!$A80)*(Projects!$J$5:$J$2481<>'MDOT FTA Detail'!$A$159)*(Projects!$Q$5:$Q$2481)) -> 0 | M80: =SUMPRODUCT((Projects!$A$5:$A$2481='MDOT FTA Detail'!$M$3)*(Projects!$C$5:$C$2481='MDOT FTA Detail'!$C$4)*(Projects!$L$5:$L$2481='MDOT FTA Detail'!$A80)*(Projects!$J$5:$J$2481<>'MDOT FTA Detail'!$A$159)*(Projects!$K$5:$K$2481)) -> 0 | N80: 0 | O80: =SUMPRODUCT((Projects!$A$5:$A$2481='MDOT FTA Detail'!$M$3)*(Projects!$C$5:$C$2481='MDOT FTA Detail'!$C$4)*(Projects!$L$5:$L$2481='MDOT FTA Detail'!$A80)*(Projects!$J$5:$J$2481<>'MDOT FTA Detail'!$A$159)*(Projects!$Q$5:$Q$2481)) -> 0
A81: STRG | B81: STP - Safety Rail-Highway & Incentive Payment - 100% Federal | C81: MDOT FA | D81: =SUMPRODUCT((Projects!$A$5:$A$2481='MDOT FTA Detail'!$D$3)*(Projects!$C$5:$C$2481='MDOT FTA Detail'!$C$4)*(Projects!$L$5:$L$2481='MDOT FTA Detail'!$A81)*(Projects!$J$5:$J$2481<>'MDOT FTA Detail'!$A$159)*(Projects!$K$5:K$2481)) -> 0 | E81: 0 | F81: =SUMPRODUCT((Projects!$A$5:$A$2481='MDOT FTA Detail'!$D$3)*(Projects!$C$5:$C$2481='MDOT FTA Detail'!$C$4)*(Projects!$L$5:$L$2481='MDOT FTA Detail'!$A81)*(Projects!$J$5:$J$2481<>'MDOT FTA Detail'!$A$159)*(Projects!$Q$5:Q$2481)) -> 0 | G81: =SUMPRODUCT((Projects!$A$5:$A$2481='MDOT FTA Detail'!$G$3)*(Projects!$C$5:$C$2481='MDOT FTA Detail'!$C$4)*(Projects!$L$5:$L$2481='MDOT FTA Detail'!$A81)*(Projects!$J$5:$J$2481<>'MDOT FTA Detail'!$A$159)*(Projects!$K$5:K$2481)) -> 0 | H81: 0 | I81: =SUMPRODUCT((Projects!$A$5:$A$2481='MDOT FTA Detail'!$G$3)*(Projects!$C$5:$C$2481='MDOT FTA Detail'!$C$4)*(Projects!$L$5:$L$2481='MDOT FTA Detail'!$A81)*(Projects!$J$5:$J$2481<>'MDOT FTA Detail'!$A$159)*(Projects!$Q$5:Q$2481)) -> 0 | J81: =SUMPRODUCT((Projects!$A$5:$A$2481='MDOT FTA Detail'!$J$3)*(Projects!$C$5:$C$2481='MDOT FTA Detail'!$C$4)*(Projects!$L$5:$L$2481='MDOT FTA Detail'!$A81)*(Projects!$J$5:$J$2481<>'MDOT FTA Detail'!$A$159)*(Projects!$K$5:$K$2481)) -> 0 | K81: 0 | L81: =SUMPRODUCT((Projects!$A$5:$A$2481='MDOT FTA Detail'!$J$3)*(Projects!$C$5:$C$2481='MDOT FTA Detail'!$C$4)*(Projects!$L$5:$L$2481='MDOT FTA Detail'!$A81)*(Projects!$J$5:$J$2481<>'MDOT FTA Detail'!$A$159)*(Projects!$Q$5:$Q$2481)) -> 0 | M81: =SUMPRODUCT((Projects!$A$5:$A$2481='MDOT FTA Detail'!$M$3)*(Projects!$C$5:$C$2481='MDOT FTA Detail'!$C$4)*(Projects!$L$5:$L$2481='MDOT FTA Detail'!$A81)*(Projects!$J$5:$J$2481<>'MDOT FTA Detail'!$A$159)*(Projects!$K$5:$K$2481)) -> 0 | N81: 0 | O81: =SUMPRODUCT((Projects!$A$5:$A$2481='MDOT FTA Detail'!$M$3)*(Projects!$C$5:$C$2481='MDOT FTA Detail'!$C$4)*(Projects!$L$5:$L$2481='MDOT FTA Detail'!$A81)*(Projects!$J$5:$J$2481<>'MDOT FTA Detail'!$A$159)*(Projects!$Q$5:$Q$2481)) -> 0
A82: STRH | B82: Surface Transportation Safety Highway Crossing Hazard Elimination | C82: MDOT FA | D82: =SUMPRODUCT((Projects!$A$5:$A$2481='MDOT FTA Detail'!$D$3)*(Projects!$C$5:$C$2481='MDOT FTA Detail'!$C$4)*(Projects!$L$5:$L$2481='MDOT FTA Detail'!$A82)*(Projects!$J$5:$J$2481<>'MDOT FTA Detail'!$A$159)*(Projects!$K$5:K$2481)) -> 0 | E82: =F82-D82 -> 0 | F82: =SUMPRODUCT((Projects!$A$5:$A$2481='MDOT FTA Detail'!$D$3)*(Projects!$C$5:$C$2481='MDOT FTA Detail'!$C$4)*(Projects!$L$5:$L$2481='MDOT FTA Detail'!$A82)*(Projects!$J$5:$J$2481<>'MDOT FTA Detail'!$A$159)*(Projects!$Q$5:Q$2481)) -> 0 | G82: =SUMPRODUCT((Projects!$A$5:$A$2481='MDOT FTA Detail'!$G$3)*(Projects!$C$5:$C$2481='MDOT FTA Detail'!$C$4)*(Projects!$L$5:$L$2481='MDOT FTA Detail'!$A82)*(Projects!$J$5:$J$2481<>'MDOT FTA Detail'!$A$159)*(Projects!$K$5:K$2481)) -> 0 | H82: =I82-G82 -> 0 | I82: =SUMPRODUCT((Projects!$A$5:$A$2481='MDOT FTA Detail'!$G$3)*(Projects!$C$5:$C$2481='MDOT FTA Detail'!$C$4)*(Projects!$L$5:$L$2481='MDOT FTA Detail'!$A82)*(Projects!$J$5:$J$2481<>'MDOT FTA Detail'!$A$159)*(Projects!$Q$5:Q$2481)) -> 0 | J82: =SUMPRODUCT((Projects!$A$5:$A$2481='MDOT FTA Detail'!$J$3)*(Projects!$C$5:$C$2481='MDOT FTA Detail'!$C$4)*(Projects!$L$5:$L$2481='MDOT FTA Detail'!$A82)*(Projects!$J$5:$J$2481<>'MDOT FTA Detail'!$A$159)*(Projects!$K$5:$K$2481)) -> 0 | K82: =L82-J82 -> 0 | L82: =SUMPRODUCT((Projects!$A$5:$A$2481='MDOT FTA Detail'!$J$3)*(Projects!$C$5:$C$2481='MDOT FTA Detail'!$C$4)*(Projects!$L$5:$L$2481='MDOT FTA Detail'!$A82)*(Projects!$J$5:$J$2481<>'MDOT FTA Detail'!$A$159)*(Projects!$Q$5:$Q$2481)) -> 0 | M82: =SUMPRODUCT((Projects!$A$5:$A$2481='MDOT FTA Detail'!$M$3)*(Projects!$C$5:$C$2481='MDOT FTA Detail'!$C$4)*(Projects!$L$5:$L$2481='MDOT FTA Detail'!$A82)*(Projects!$J$5:$J$2481<>'MDOT FTA Detail'!$A$159)*(Projects!$K$5:$K$2481)) -> 0 | N82: =O82-M82 -> 0 | O82: =SUMPRODUCT((Projects!$A$5:$A$2481='MDOT FTA Detail'!$M$3)*(Projects!$C$5:$C$2481='MDOT FTA Detail'!$C$4)*(Projects!$L$5:$L$2481='MDOT FTA Detail'!$A82)*(Projects!$J$5:$J$2481<>'MDOT FTA Detail'!$A$159)*(Projects!$Q$5:$Q$2481)) -> 0
A83: STRP | B83: Surface Transportation Safety Highway Crossing Protection Devices | C83: MDOT FA | D83: =SUMPRODUCT((Projects!$A$5:$A$2481='MDOT FTA Detail'!$D$3)*(Projects!$C$5:$C$2481='MDOT FTA Detail'!$C$4)*(Projects!$L$5:$L$2481='MDOT FTA Detail'!$A83)*(Projects!$J$5:$J$2481<>'MDOT FTA Detail'!$A$159)*(Projects!$K$5:K$2481)) -> 0 | E83: =F83-D83 -> 0 | F83: =SUMPRODUCT((Projects!$A$5:$A$2481='MDOT FTA Detail'!$D$3)*(Projects!$C$5:$C$2481='MDOT FTA Detail'!$C$4)*(Projects!$L$5:$L$2481='MDOT FTA Detail'!$A83)*(Projects!$J$5:$J$2481<>'MDOT FTA Detail'!$A$159)*(Projects!$Q$5:Q$2481)) -> 0 | G83: =SUMPRODUCT((Projects!$A$5:$A$2481='MDOT FTA Detail'!$G$3)*(Projects!$C$5:$C$2481='MDOT FTA Detail'!$C$4)*(Projects!$L$5:$L$2481='MDOT FTA Detail'!$A83)*(Projects!$J$5:$J$2481<>'MDOT FTA Detail'!$A$159)*(Projects!$K$5:K$2481)) -> 0 | H83: =I83-G83 -> 0 | I83: =SUMPRODUCT((Projects!$A$5:$A$2481='MDOT FTA Detail'!$G$3)*(Projects!$C$5:$C$2481='MDOT FTA Detail'!$C$4)*(Projects!$L$5:$L$2481='MDOT FTA Detail'!$A83)*(Projects!$J$5:$J$2481<>'MDOT FTA Detail'!$A$159)*(Projects!$Q$5:Q$2481)) -> 0 | J83: =SUMPRODUCT((Projects!$A$5:$A$2481='MDOT FTA Detail'!$J$3)*(Projects!$C$5:$C$2481='MDOT FTA Detail'!$C$4)*(Projects!$L$5:$L$2481='MDOT FTA Detail'!$A83)*(Projects!$J$5:$J$2481<>'MDOT FTA Detail'!$A$159)*(Projects!$K$5:$K$2481)) -> 0 | K83: =L83-J83 -> 0 | L83: =SUMPRODUCT((Projects!$A$5:$A$2481='MDOT FTA Detail'!$J$3)*(Projects!$C$5:$C$2481='MDOT FTA Detail'!$C$4)*(Projects!$L$5:$L$2481='MDOT FTA Detail'!$A83)*(Projects!$J$5:$J$2481<>'MDOT FTA Detail'!$A$159)*(Projects!$Q$5:$Q$2481)) -> 0 | M83: =SUMPRODUCT((Projects!$A$5:$A$2481='MDOT FTA Detail'!$M$3)*(Projects!$C$5:$C$2481='MDOT FTA Detail'!$C$4)*(Projects!$L$5:$L$2481='MDOT FTA Detail'!$A83)*(Projects!$J$5:$J$2481<>'MDOT FTA Detail'!$A$159)*(Projects!$K$5:$K$2481)) -> 0 | N83: =O83-M83 -> 0 | O83: =SUMPRODUCT((Projects!$A$5:$A$2481='MDOT FTA Detail'!$M$3)*(Projects!$C$5:$C$2481='MDOT FTA Detail'!$C$4)*(Projects!$L$5:$L$2481='MDOT FTA Detail'!$A83)*(Projects!$J$5:$J$2481<>'MDOT FTA Detail'!$A$159)*(Projects!$Q$5:$Q$2481)) -> 0
A84: STS | B84: STP - Any Area- MDOT Safety Program | C84: MDOT FA | D84: =SUMPRODUCT((Projects!$A$5:$A$2481='MDOT FTA Detail'!$D$3)*(Projects!$C$5:$C$2481='MDOT FTA Detail'!$C$4)*(Projects!$L$5:$L$2481='MDOT FTA Detail'!$A84)*(Projects!$J$5:$J$2481<>'MDOT FTA Detail'!$A$159)*(Projects!$K$5:K$2481)) -> 0 | E84: 0 | F84: =SUMPRODUCT((Projects!$A$5:$A$2481='MDOT FTA Detail'!$D$3)*(Projects!$C$5:$C$2481='MDOT FTA Detail'!$C$4)*(Projects!$L$5:$L$2481='MDOT FTA Detail'!$A84)*(Projects!$J$5:$J$2481<>'MDOT FTA Detail'!$A$159)*(Projects!$Q$5:Q$2481)) -> 0 | G84: =SUMPRODUCT((Projects!$A$5:$A$2481='MDOT FTA Detail'!$G$3)*(Projects!$C$5:$C$2481='MDOT FTA Detail'!$C$4)*(Projects!$L$5:$L$2481='MDOT FTA Detail'!$A84)*(Projects!$J$5:$J$2481<>'MDOT FTA Detail'!$A$159)*(Projects!$K$5:K$2481)) -> 0 | H84: 0 | I84: =SUMPRODUCT((Projects!$A$5:$A$2481='MDOT FTA Detail'!$G$3)*(Projects!$C$5:$C$2481='MDOT FTA Detail'!$C$4)*(Projects!$L$5:$L$2481='MDOT FTA Detail'!$A84)*(Projects!$J$5:$J$2481<>'MDOT FTA Detail'!$A$159)*(Projects!$Q$5:Q$2481)) -> 0 | J84: =SUMPRODUCT((Projects!$A$5:$A$2481='MDOT FTA Detail'!$J$3)*(Projects!$C$5:$C$2481='MDOT FTA Detail'!$C$4)*(Projects!$L$5:$L$2481='MDOT FTA Detail'!$A84)*(Projects!$J$5:$J$2481<>'MDOT FTA Detail'!$A$159)*(Projects!$K$5:$K$2481)) -> 0 | K84: 0 | L84: =SUMPRODUCT((Projects!$A$5:$A$2481='MDOT FTA Detail'!$J$3)*(Projects!$C$5:$C$2481='MDOT FTA Detail'!$C$4)*(Projects!$L$5:$L$2481='MDOT FTA Detail'!$A84)*(Projects!$J$5:$J$2481<>'MDOT FTA Detail'!$A$159)*(Projects!$Q$5:$Q$2481)) -> 0 | M84: =SUMPRODUCT((Projects!$A$5:$A$2481='MDOT FTA Detail'!$M$3)*(Projects!$C$5:$C$2481='MDOT FTA Detail'!$C$4)*(Projects!$L$5:$L$2481='MDOT FTA Detail'!$A84)*(Projects!$J$5:$J$2481<>'MDOT FTA Detail'!$A$159)*(Projects!$K$5:$K$2481)) -> 0 | N84: 0 | O84: =SUMPRODUCT((Projects!$A$5:$A$2481='MDOT FTA Detail'!$M$3)*(Projects!$C$5:$C$2481='MDOT FTA Detail'!$C$4)*(Projects!$L$5:$L$2481='MDOT FTA Detail'!$A84)*(Projects!$J$5:$J$2481<>'MDOT FTA Detail'!$A$159)*(Projects!$Q$5:$Q$2481)) -> 0
A85: STT | B85: STP - Trunkline | C85: MDOT FA | D85: =SUMPRODUCT((Projects!$A$5:$A$2481='MDOT FTA Detail'!$D$3)*(Projects!$C$5:$C$2481='MDOT FTA Detail'!$C$4)*(Projects!$L$5:$L$2481='MDOT FTA Detail'!$A85)*(Projects!$J$5:$J$2481<>'MDOT FTA Detail'!$A$159)*(Projects!$K$5:K$2481)) -> 0 | E85: 0 | F85: =SUMPRODUCT((Projects!$A$5:$A$2481='MDOT FTA Detail'!$D$3)*(Projects!$C$5:$C$2481='MDOT FTA Detail'!$C$4)*(Projects!$L$5:$L$2481='MDOT FTA Detail'!$A85)*(Projects!$J$5:$J$2481<>'MDOT FTA Detail'!$A$159)*(Projects!$Q$5:Q$2481)) -> 0 | G85: =SUMPRODUCT((Projects!$A$5:$A$2481='MDOT FTA Detail'!$G$3)*(Projects!$C$5:$C$2481='MDOT FTA Detail'!$C$4)*(Projects!$L$5:$L$2481='MDOT FTA Detail'!$A85)*(Projects!$J$5:$J$2481<>'MDOT FTA Detail'!$A$159)*(Projects!$K$5:K$2481)) -> 0 | H85: 0 | I85: =SUMPRODUCT((Projects!$A$5:$A$2481='MDOT FTA Detail'!$G$3)*(Projects!$C$5:$C$2481='MDOT FTA Detail'!$C$4)*(Projects!$L$5:$L$2481='MDOT FTA Detail'!$A85)*(Projects!$J$5:$J$2481<>'MDOT FTA Detail'!$A$159)*(Projects!$Q$5:Q$2481)) -> 0 | J85: =SUMPRODUCT((Projects!$A$5:$A$2481='MDOT FTA Detail'!$J$3)*(Projects!$C$5:$C$2481='MDOT FTA Detail'!$C$4)*(Projects!$L$5:$L$2481='MDOT FTA Detail'!$A85)*(Projects!$J$5:$J$2481<>'MDOT FTA Detail'!$A$159)*(Projects!$K$5:$K$2481)) -> 0 | K85: 0 | L85: =SUMPRODUCT((Projects!$A$5:$A$2481='MDOT FTA Detail'!$J$3)*(Projects!$C$5:$C$2481='MDOT FTA Detail'!$C$4)*(Projects!$L$5:$L$2481='MDOT FTA Detail'!$A85)*(Projects!$J$5:$J$2481<>'MDOT FTA Detail'!$A$159)*(Projects!$Q$5:$Q$2481)) -> 0 | M85: =SUMPRODUCT((Projects!$A$5:$A$2481='MDOT FTA Detail'!$M$3)*(Projects!$C$5:$C$2481='MDOT FTA Detail'!$C$4)*(Projects!$L$5:$L$2481='MDOT FTA Detail'!$A85)*(Projects!$J$5:$J$2481<>'MDOT FTA Detail'!$A$159)*(Projects!$K$5:$K$2481)) -> 0 | N85: 0 | O85: =SUMPRODUCT((Projects!$A$5:$A$2481='MDOT FTA Detail'!$M$3)*(Projects!$C$5:$C$2481='MDOT FTA Detail'!$C$4)*(Projects!$L$5:$L$2481='MDOT FTA Detail'!$A85)*(Projects!$J$5:$J$2481<>'MDOT FTA Detail'!$A$159)*(Projects!$Q$5:$Q$2481)) -> 0
A86: STU | B86: STP - Urban Areas > 200,000 Population | C86: MDOT FA | D86: =SUMPRODUCT((Projects!$A$5:$A$2481='MDOT FTA Detail'!$D$3)*(Projects!$C$5:$C$2481='MDOT FTA Detail'!$C$4)*(Projects!$L$5:$L$2481='MDOT FTA Detail'!$A86)*(Projects!$J$5:$J$2481<>'MDOT FTA Detail'!$A$159)*(Projects!$K$5:K$2481)) -> 0 | E86: 0 | F86: =SUMPRODUCT((Projects!$A$5:$A$2481='MDOT FTA Detail'!$D$3)*(Projects!$C$5:$C$2481='MDOT FTA Detail'!$C$4)*(Projects!$L$5:$L$2481='MDOT FTA Detail'!$A86)*(Projects!$J$5:$J$2481<>'MDOT FTA Detail'!$A$159)*(Projects!$Q$5:Q$2481)) -> 0 | G86: =SUMPRODUCT((Projects!$A$5:$A$2481='MDOT FTA Detail'!$G$3)*(Projects!$C$5:$C$2481='MDOT FTA Detail'!$C$4)*(Projects!$L$5:$L$2481='MDOT FTA Detail'!$A86)*(Projects!$J$5:$J$2481<>'MDOT FTA Detail'!$A$159)*(Projects!$K$5:K$2481)) -> 0 | H86: 0 | I86: =SUMPRODUCT((Projects!$A$5:$A$2481='MDOT FTA Detail'!$G$3)*(Projects!$C$5:$C$2481='MDOT FTA Detail'!$C$4)*(Projects!$L$5:$L$2481='MDOT FTA Detail'!$A86)*(Projects!$J$5:$J$2481<>'MDOT FTA Detail'!$A$159)*(Projects!$Q$5:Q$2481)) -> 0 | J86: =SUMPRODUCT((Projects!$A$5:$A$2481='MDOT FTA Detail'!$J$3)*(Projects!$C$5:$C$2481='MDOT FTA Detail'!$C$4)*(Projects!$L$5:$L$2481='MDOT FTA Detail'!$A86)*(Projects!$J$5:$J$2481<>'MDOT FTA Detail'!$A$159)*(Projects!$K$5:$K$2481)) -> 0 | K86: 0 | L86: =SUMPRODUCT((Projects!$A$5:$A$2481='MDOT FTA Detail'!$J$3)*(Projects!$C$5:$C$2481='MDOT FTA Detail'!$C$4)*(Projects!$L$5:$L$2481='MDOT FTA Detail'!$A86)*(Projects!$J$5:$J$2481<>'MDOT FTA Detail'!$A$159)*(Projects!$Q$5:$Q$2481)) -> 0 | M86: =SUMPRODUCT((Projects!$A$5:$A$2481='MDOT FTA Detail'!$M$3)*(Projects!$C$5:$C$2481='MDOT FTA Detail'!$C$4)*(Projects!$L$5:$L$2481='MDOT FTA Detail'!$A86)*(Projects!$J$5:$J$2481<>'MDOT FTA Detail'!$A$159)*(Projects!$K$5:$K$2481)) -> 0 | N86: 0 | O86: =SUMPRODUCT((Projects!$A$5:$A$2481='MDOT FTA Detail'!$M$3)*(Projects!$C$5:$C$2481='MDOT FTA Detail'!$C$4)*(Projects!$L$5:$L$2481='MDOT FTA Detail'!$A86)*(Projects!$J$5:$J$2481<>'MDOT FTA Detail'!$A$159)*(Projects!$Q$5:$Q$2481)) -> 0
A87: STUG | B87: STP - Urban Areas < 200,000 Population 100% | C87: MDOT FA | D87: =SUMPRODUCT((Projects!$A$5:$A$2481='MDOT FTA Detail'!$D$3)*(Projects!$C$5:$C$2481='MDOT FTA Detail'!$C$4)*(Projects!$L$5:$L$2481='MDOT FTA Detail'!$A87)*(Projects!$J$5:$J$2481<>'MDOT FTA Detail'!$A$159)*(Projects!$K$5:K$2481)) -> 0 | E87: =F87-D87 -> 0 | F87: =SUMPRODUCT((Projects!$A$5:$A$2481='MDOT FTA Detail'!$D$3)*(Projects!$C$5:$C$2481='MDOT FTA Detail'!$C$4)*(Projects!$L$5:$L$2481='MDOT FTA Detail'!$A87)*(Projects!$J$5:$J$2481<>'MDOT FTA Detail'!$A$159)*(Projects!$Q$5:Q$2481)) -> 0 | G87: =SUMPRODUCT((Projects!$A$5:$A$2481='MDOT FTA Detail'!$G$3)*(Projects!$C$5:$C$2481='MDOT FTA Detail'!$C$4)*(Projects!$L$5:$L$2481='MDOT FTA Detail'!$A87)*(Projects!$J$5:$J$2481<>'MDOT FTA Detail'!$A$159)*(Projects!$K$5:K$2481)) -> 0 | H87: =I87-G87 -> 0 | I87: =SUMPRODUCT((Projects!$A$5:$A$2481='MDOT FTA Detail'!$G$3)*(Projects!$C$5:$C$2481='MDOT FTA Detail'!$C$4)*(Projects!$L$5:$L$2481='MDOT FTA Detail'!$A87)*(Projects!$J$5:$J$2481<>'MDOT FTA Detail'!$A$159)*(Projects!$Q$5:Q$2481)) -> 0 | J87: =SUMPRODUCT((Projects!$A$5:$A$2481='MDOT FTA Detail'!$J$3)*(Projects!$C$5:$C$2481='MDOT FTA Detail'!$C$4)*(Projects!$L$5:$L$2481='MDOT FTA Detail'!$A87)*(Projects!$J$5:$J$2481<>'MDOT FTA Detail'!$A$159)*(Projects!$K$5:$K$2481)) -> 0 | K87: =L87-J87 -> 0 | L87: =SUMPRODUCT((Projects!$A$5:$A$2481='MDOT FTA Detail'!$J$3)*(Projects!$C$5:$C$2481='MDOT FTA Detail'!$C$4)*(Projects!$L$5:$L$2481='MDOT FTA Detail'!$A87)*(Projects!$J$5:$J$2481<>'MDOT FTA Detail'!$A$159)*(Projects!$Q$5:$Q$2481)) -> 0 | M87: =SUMPRODUCT((Projects!$A$5:$A$2481='MDOT FTA Detail'!$M$3)*(Projects!$C$5:$C$2481='MDOT FTA Detail'!$C$4)*(Projects!$L$5:$L$2481='MDOT FTA Detail'!$A87)*(Projects!$J$5:$J$2481<>'MDOT FTA Detail'!$A$159)*(Projects!$K$5:$K$2481)) -> 0 | N87: =O87-M87 -> 0 | O87: =SUMPRODUCT((Projects!$A$5:$A$2481='MDOT FTA Detail'!$M$3)*(Projects!$C$5:$C$2481='MDOT FTA Detail'!$C$4)*(Projects!$L$5:$L$2481='MDOT FTA Detail'!$A87)*(Projects!$J$5:$J$2481<>'MDOT FTA Detail'!$A$159)*(Projects!$Q$5:$Q$2481)) -> 0
A88: STUL | B88: STP - Urban Areas < 200,000 Population | C88: MDOT FA | D88: =SUMPRODUCT((Projects!$A$5:$A$2481='MDOT FTA Detail'!$D$3)*(Projects!$C$5:$C$2481='MDOT FTA Detail'!$C$4)*(Projects!$L$5:$L$2481='MDOT FTA Detail'!$A88)*(Projects!$J$5:$J$2481<>'MDOT FTA Detail'!$A$159)*(Projects!$K$5:K$2481)) -> 0 | E88: 0 | F88: =SUMPRODUCT((Projects!$A$5:$A$2481='MDOT FTA Detail'!$D$3)*(Projects!$C$5:$C$2481='MDOT FTA Detail'!$C$4)*(Projects!$L$5:$L$2481='MDOT FTA Detail'!$A88)*(Projects!$J$5:$J$2481<>'MDOT FTA Detail'!$A$159)*(Projects!$Q$5:Q$2481)) -> 0 | G88: =SUMPRODUCT((Projects!$A$5:$A$2481='MDOT FTA Detail'!$G$3)*(Projects!$C$5:$C$2481='MDOT FTA Detail'!$C$4)*(Projects!$L$5:$L$2481='MDOT FTA Detail'!$A88)*(Projects!$J$5:$J$2481<>'MDOT FTA Detail'!$A$159)*(Projects!$K$5:K$2481)) -> 0 | H88: 0 | I88: =SUMPRODUCT((Projects!$A$5:$A$2481='MDOT FTA Detail'!$G$3)*(Projects!$C$5:$C$2481='MDOT FTA Detail'!$C$4)*(Projects!$L$5:$L$2481='MDOT FTA Detail'!$A88)*(Projects!$J$5:$J$2481<>'MDOT FTA Detail'!$A$159)*(Projects!$Q$5:Q$2481)) -> 0 | J88: =SUMPRODUCT((Projects!$A$5:$A$2481='MDOT FTA Detail'!$J$3)*(Projects!$C$5:$C$2481='MDOT FTA Detail'!$C$4)*(Projects!$L$5:$L$2481='MDOT FTA Detail'!$A88)*(Projects!$J$5:$J$2481<>'MDOT FTA Detail'!$A$159)*(Projects!$K$5:$K$2481)) -> 0 | K88: 0 | L88: =SUMPRODUCT((Projects!$A$5:$A$2481='MDOT FTA Detail'!$J$3)*(Projects!$C$5:$C$2481='MDOT FTA Detail'!$C$4)*(Projects!$L$5:$L$2481='MDOT FTA Detail'!$A88)*(Projects!$J$5:$J$2481<>'MDOT FTA Detail'!$A$159)*(Projects!$Q$5:$Q$2481)) -> 0 | M88: =SUMPRODUCT((Projects!$A$5:$A$2481='MDOT FTA Detail'!$M$3)*(Projects!$C$5:$C$2481='MDOT FTA Detail'!$C$4)*(Projects!$L$5:$L$2481='MDOT FTA Detail'!$A88)*(Projects!$J$5:$J$2481<>'MDOT FTA Detail'!$A$159)*(Projects!$K$5:$K$2481)) -> 0 | N88: 0 | O88: =SUMPRODUCT((Projects!$A$5:$A$2481='MDOT FTA Detail'!$M$3)*(Projects!$C$5:$C$2481='MDOT FTA Detail'!$C$4)*(Projects!$L$5:$L$2481='MDOT FTA Detail'!$A88)*(Projects!$J$5:$J$2481<>'MDOT FTA Detail'!$A$159)*(Projects!$Q$5:$Q$2481)) -> 0
A89: STUT | B89: STP - Urban Areas < 200,000 Population - Trunkline | C89: MDOT FA | D89: =SUMPRODUCT((Projects!$A$5:$A$2481='MDOT FTA Detail'!$D$3)*(Projects!$C$5:$C$2481='MDOT FTA Detail'!$C$4)*(Projects!$L$5:$L$2481='MDOT FTA Detail'!$A89)*(Projects!$J$5:$J$2481<>'MDOT FTA Detail'!$A$159)*(Projects!$K$5:K$2481)) -> 19644 | E89: 0 | F89: =SUMPRODUCT((Projects!$A$5:$A$2481='MDOT FTA Detail'!$D$3)*(Projects!$C$5:$C$2481='MDOT FTA Detail'!$C$4)*(Projects!$L$5:$L$2481='MDOT FTA Detail'!$A89)*(Projects!$J$5:$J$2481<>'MDOT FTA Detail'!$A$159)*(Projects!$Q$5:Q$2481)) -> 19644 | G89: =SUMPRODUCT((Projects!$A$5:$A$2481='MDOT FTA Detail'!$G$3)*(Projects!$C$5:$C$2481='MDOT FTA Detail'!$C$4)*(Projects!$L$5:$L$2481='MDOT FTA Detail'!$A89)*(Projects!$J$5:$J$2481<>'MDOT FTA Detail'!$A$159)*(Projects!$K$5:K$2481)) -> 0 | H89: 0 | I89: =SUMPRODUCT((Projects!$A$5:$A$2481='MDOT FTA Detail'!$G$3)*(Projects!$C$5:$C$2481='MDOT FTA Detail'!$C$4)*(Projects!$L$5:$L$2481='MDOT FTA Detail'!$A89)*(Projects!$J$5:$J$2481<>'MDOT FTA Detail'!$A$159)*(Projects!$Q$5:Q$2481)) -> 0 | J89: =SUMPRODUCT((Projects!$A$5:$A$2481='MDOT FTA Detail'!$J$3)*(Projects!$C$5:$C$2481='MDOT FTA Detail'!$C$4)*(Projects!$L$5:$L$2481='MDOT FTA Detail'!$A89)*(Projects!$J$5:$J$2481<>'MDOT FTA Detail'!$A$159)*(Projects!$K$5:$K$2481)) -> 0 | K89: 0 | L89: =SUMPRODUCT((Projects!$A$5:$A$2481='MDOT FTA Detail'!$J$3)*(Projects!$C$5:$C$2481='MDOT FTA Detail'!$C$4)*(Projects!$L$5:$L$2481='MDOT FTA Detail'!$A89)*(Projects!$J$5:$J$2481<>'MDOT FTA Detail'!$A$159)*(Projects!$Q$5:$Q$2481)) -> 0 | M89: =SUMPRODUCT((Projects!$A$5:$A$2481='MDOT FTA Detail'!$M$3)*(Projects!$C$5:$C$2481='MDOT FTA Detail'!$C$4)*(Projects!$L$5:$L$2481='MDOT FTA Detail'!$A89)*(Projects!$J$5:$J$2481<>'MDOT FTA Detail'!$A$159)*(Projects!$K$5:$K$2481)) -> 0 | N89: 0 | O89: =SUMPRODUCT((Projects!$A$5:$A$2481='MDOT FTA Detail'!$M$3)*(Projects!$C$5:$C$2481='MDOT FTA Detail'!$C$4)*(Projects!$L$5:$L$2481='MDOT FTA Detail'!$A89)*(Projects!$J$5:$J$2481<>'MDOT FTA Detail'!$A$159)*(Projects!$Q$5:$Q$2481)) -> 0
A90: SUG | B90: STP - Safety - 100% Federal for STU | C90: MDOT FA | D90: =SUMPRODUCT((Projects!$A$5:$A$2481='MDOT FTA Detail'!$D$3)*(Projects!$C$5:$C$2481='MDOT FTA Detail'!$C$4)*(Projects!$L$5:$L$2481='MDOT FTA Detail'!$A90)*(Projects!$J$5:$J$2481<>'MDOT FTA Detail'!$A$159)*(Projects!$K$5:K$2481)) -> 0 | E90: 0 | F90: =SUMPRODUCT((Projects!$A$5:$A$2481='MDOT FTA Detail'!$D$3)*(Projects!$C$5:$C$2481='MDOT FTA Detail'!$C$4)*(Projects!$L$5:$L$2481='MDOT FTA Detail'!$A90)*(Projects!$J$5:$J$2481<>'MDOT FTA Detail'!$A$159)*(Projects!$Q$5:Q$2481)) -> 0 | G90: =SUMPRODUCT((Projects!$A$5:$A$2481='MDOT FTA Detail'!$G$3)*(Projects!$C$5:$C$2481='MDOT FTA Detail'!$C$4)*(Projects!$L$5:$L$2481='MDOT FTA Detail'!$A90)*(Projects!$J$5:$J$2481<>'MDOT FTA Detail'!$A$159)*(Projects!$K$5:K$2481)) -> 0 | H90: 0 | I90: =SUMPRODUCT((Projects!$A$5:$A$2481='MDOT FTA Detail'!$G$3)*(Projects!$C$5:$C$2481='MDOT FTA Detail'!$C$4)*(Projects!$L$5:$L$2481='MDOT FTA Detail'!$A90)*(Projects!$J$5:$J$2481<>'MDOT FTA Detail'!$A$159)*(Projects!$Q$5:Q$2481)) -> 0 | J90: =SUMPRODUCT((Projects!$A$5:$A$2481='MDOT FTA Detail'!$J$3)*(Projects!$C$5:$C$2481='MDOT FTA Detail'!$C$4)*(Projects!$L$5:$L$2481='MDOT FTA Detail'!$A90)*(Projects!$J$5:$J$2481<>'MDOT FTA Detail'!$A$159)*(Projects!$K$5:$K$2481)) -> 0 | K90: 0 | L90: =SUMPRODUCT((Projects!$A$5:$A$2481='MDOT FTA Detail'!$J$3)*(Projects!$C$5:$C$2481='MDOT FTA Detail'!$C$4)*(Projects!$L$5:$L$2481='MDOT FTA Detail'!$A90)*(Projects!$J$5:$J$2481<>'MDOT FTA Detail'!$A$159)*(Projects!$Q$5:$Q$2481)) -> 0 | M90: =SUMPRODUCT((Projects!$A$5:$A$2481='MDOT FTA Detail'!$M$3)*(Projects!$C$5:$C$2481='MDOT FTA Detail'!$C$4)*(Projects!$L$5:$L$2481='MDOT FTA Detail'!$A90)*(Projects!$J$5:$J$2481<>'MDOT FTA Detail'!$A$159)*(Projects!$K$5:$K$2481)) -> 0 | N90: 0 | O90: =SUMPRODUCT((Projects!$A$5:$A$2481='MDOT FTA Detail'!$M$3)*(Projects!$C$5:$C$2481='MDOT FTA Detail'!$C$4)*(Projects!$L$5:$L$2481='MDOT FTA Detail'!$A90)*(Projects!$J$5:$J$2481<>'MDOT FTA Detail'!$A$159)*(Projects!$Q$5:$Q$2481)) -> 0
A91: SUL | B91: Surface Transportation Urban Areas <200,000 Population | C91: MDOT FA | D91: =SUMPRODUCT((Projects!$A$5:$A$2481='MDOT FTA Detail'!$D$3)*(Projects!$C$5:$C$2481='MDOT FTA Detail'!$C$4)*(Projects!$L$5:$L$2481='MDOT FTA Detail'!$A91)*(Projects!$J$5:$J$2481<>'MDOT FTA Detail'!$A$159)*(Projects!$K$5:K$2481)) -> 0 | E91: =F91-D91 -> 0 | F91: =SUMPRODUCT((Projects!$A$5:$A$2481='MDOT FTA Detail'!$D$3)*(Projects!$C$5:$C$2481='MDOT FTA Detail'!$C$4)*(Projects!$L$5:$L$2481='MDOT FTA Detail'!$A91)*(Projects!$J$5:$J$2481<>'MDOT FTA Detail'!$A$159)*(Projects!$Q$5:Q$2481)) -> 0 | G91: =SUMPRODUCT((Projects!$A$5:$A$2481='MDOT FTA Detail'!$G$3)*(Projects!$C$5:$C$2481='MDOT FTA Detail'!$C$4)*(Projects!$L$5:$L$2481='MDOT FTA Detail'!$A91)*(Projects!$J$5:$J$2481<>'MDOT FTA Detail'!$A$159)*(Projects!$K$5:K$2481)) -> 0 | H91: =I91-G91 -> 0 | I91: =SUMPRODUCT((Projects!$A$5:$A$2481='MDOT FTA Detail'!$G$3)*(Projects!$C$5:$C$2481='MDOT FTA Detail'!$C$4)*(Projects!$L$5:$L$2481='MDOT FTA Detail'!$A91)*(Projects!$J$5:$J$2481<>'MDOT FTA Detail'!$A$159)*(Projects!$Q$5:Q$2481)) -> 0 | J91: =SUMPRODUCT((Projects!$A$5:$A$2481='MDOT FTA Detail'!$J$3)*(Projects!$C$5:$C$2481='MDOT FTA Detail'!$C$4)*(Projects!$L$5:$L$2481='MDOT FTA Detail'!$A91)*(Projects!$J$5:$J$2481<>'MDOT FTA Detail'!$A$159)*(Projects!$K$5:$K$2481)) -> 0 | K91: =L91-J91 -> 0 | L91: =SUMPRODUCT((Projects!$A$5:$A$2481='MDOT FTA Detail'!$J$3)*(Projects!$C$5:$C$2481='MDOT FTA Detail'!$C$4)*(Projects!$L$5:$L$2481='MDOT FTA Detail'!$A91)*(Projects!$J$5:$J$2481<>'MDOT FTA Detail'!$A$159)*(Projects!$Q$5:$Q$2481)) -> 0 | M91: =SUMPRODUCT((Projects!$A$5:$A$2481='MDOT FTA Detail'!$M$3)*(Projects!$C$5:$C$2481='MDOT FTA Detail'!$C$4)*(Projects!$L$5:$L$2481='MDOT FTA Detail'!$A91)*(Projects!$J$5:$J$2481<>'MDOT FTA Detail'!$A$159)*(Projects!$K$5:$K$2481)) -> 0 | N91: =O91-M91 -> 0 | O91: =SUMPRODUCT((Projects!$A$5:$A$2481='MDOT FTA Detail'!$M$3)*(Projects!$C$5:$C$2481='MDOT FTA Detail'!$C$4)*(Projects!$L$5:$L$2481='MDOT FTA Detail'!$A91)*(Projects!$J$5:$J$2481<>'MDOT FTA Detail'!$A$159)*(Projects!$Q$5:$Q$2481)) -> 0
A92: SULG | B92: Surfcace Transportation Urban Areas <200,000 Population 100% | C92: MDOT FA | D92: =SUMPRODUCT((Projects!$A$5:$A$2481='MDOT FTA Detail'!$D$3)*(Projects!$C$5:$C$2481='MDOT FTA Detail'!$C$4)*(Projects!$L$5:$L$2481='MDOT FTA Detail'!$A92)*(Projects!$J$5:$J$2481<>'MDOT FTA Detail'!$A$159)*(Projects!$K$5:K$2481)) -> 0 | E92: 0 | F92: =SUMPRODUCT((Projects!$A$5:$A$2481='MDOT FTA Detail'!$D$3)*(Projects!$C$5:$C$2481='MDOT FTA Detail'!$C$4)*(Projects!$L$5:$L$2481='MDOT FTA Detail'!$A92)*(Projects!$J$5:$J$2481<>'MDOT FTA Detail'!$A$159)*(Projects!$Q$5:Q$2481)) -> 0 | G92: =SUMPRODUCT((Projects!$A$5:$A$2481='MDOT FTA Detail'!$G$3)*(Projects!$C$5:$C$2481='MDOT FTA Detail'!$C$4)*(Projects!$L$5:$L$2481='MDOT FTA Detail'!$A92)*(Projects!$J$5:$J$2481<>'MDOT FTA Detail'!$A$159)*(Projects!$K$5:K$2481)) -> 0 | H92: 0 | I92: =SUMPRODUCT((Projects!$A$5:$A$2481='MDOT FTA Detail'!$G$3)*(Projects!$C$5:$C$2481='MDOT FTA Detail'!$C$4)*(Projects!$L$5:$L$2481='MDOT FTA Detail'!$A92)*(Projects!$J$5:$J$2481<>'MDOT FTA Detail'!$A$159)*(Projects!$Q$5:Q$2481)) -> 0 | J92: =SUMPRODUCT((Projects!$A$5:$A$2481='MDOT FTA Detail'!$J$3)*(Projects!$C$5:$C$2481='MDOT FTA Detail'!$C$4)*(Projects!$L$5:$L$2481='MDOT FTA Detail'!$A92)*(Projects!$J$5:$J$2481<>'MDOT FTA Detail'!$A$159)*(Projects!$K$5:$K$2481)) -> 0 | K92: 0 | L92: =SUMPRODUCT((Projects!$A$5:$A$2481='MDOT FTA Detail'!$J$3)*(Projects!$C$5:$C$2481='MDOT FTA Detail'!$C$4)*(Projects!$L$5:$L$2481='MDOT FTA Detail'!$A92)*(Projects!$J$5:$J$2481<>'MDOT FTA Detail'!$A$159)*(Projects!$Q$5:$Q$2481)) -> 0 | M92: =SUMPRODUCT((Projects!$A$5:$A$2481='MDOT FTA Detail'!$M$3)*(Projects!$C$5:$C$2481='MDOT FTA Detail'!$C$4)*(Projects!$L$5:$L$2481='MDOT FTA Detail'!$A92)*(Projects!$J$5:$J$2481<>'MDOT FTA Detail'!$A$159)*(Projects!$K$5:$K$2481)) -> 0 | N92: 0 | O92: =SUMPRODUCT((Projects!$A$5:$A$2481='MDOT FTA Detail'!$M$3)*(Projects!$C$5:$C$2481='MDOT FTA Detail'!$C$4)*(Projects!$L$5:$L$2481='MDOT FTA Detail'!$A92)*(Projects!$J$5:$J$2481<>'MDOT FTA Detail'!$A$159)*(Projects!$Q$5:$Q$2481)) -> 0
A93: TA | B93: Transportation Alternatives Program Flex | C93: MDOT FA | D93: =SUMPRODUCT((Projects!$A$5:$A$2481='MDOT FTA Detail'!$D$3)*(Projects!$C$5:$C$2481='MDOT FTA Detail'!$C$4)*(Projects!$L$5:$L$2481='MDOT FTA Detail'!$A93)*(Projects!$J$5:$J$2481<>'MDOT FTA Detail'!$A$159)*(Projects!$K$5:K$2481)) -> 0 | E93: 0 | F93: =SUMPRODUCT((Projects!$A$5:$A$2481='MDOT FTA Detail'!$D$3)*(Projects!$C$5:$C$2481='MDOT FTA Detail'!$C$4)*(Projects!$L$5:$L$2481='MDOT FTA Detail'!$A93)*(Projects!$J$5:$J$2481<>'MDOT FTA Detail'!$A$159)*(Projects!$Q$5:Q$2481)) -> 0 | G93: =SUMPRODUCT((Projects!$A$5:$A$2481='MDOT FTA Detail'!$G$3)*(Projects!$C$5:$C$2481='MDOT FTA Detail'!$C$4)*(Projects!$L$5:$L$2481='MDOT FTA Detail'!$A93)*(Projects!$J$5:$J$2481<>'MDOT FTA Detail'!$A$159)*(Projects!$K$5:K$2481)) -> 0 | H93: 0 | I93: =SUMPRODUCT((Projects!$A$5:$A$2481='MDOT FTA Detail'!$G$3)*(Projects!$C$5:$C$2481='MDOT FTA Detail'!$C$4)*(Projects!$L$5:$L$2481='MDOT FTA Detail'!$A93)*(Projects!$J$5:$J$2481<>'MDOT FTA Detail'!$A$159)*(Projects!$Q$5:Q$2481)) -> 0 | J93: =SUMPRODUCT((Projects!$A$5:$A$2481='MDOT FTA Detail'!$J$3)*(Projects!$C$5:$C$2481='MDOT FTA Detail'!$C$4)*(Projects!$L$5:$L$2481='MDOT FTA Detail'!$A93)*(Projects!$J$5:$J$2481<>'MDOT FTA Detail'!$A$159)*(Projects!$K$5:$K$2481)) -> 0 | K93: 0 | L93: =SUMPRODUCT((Projects!$A$5:$A$2481='MDOT FTA Detail'!$J$3)*(Projects!$C$5:$C$2481='MDOT FTA Detail'!$C$4)*(Projects!$L$5:$L$2481='MDOT FTA Detail'!$A93)*(Projects!$J$5:$J$2481<>'MDOT FTA Detail'!$A$159)*(Projects!$Q$5:$Q$2481)) -> 0 | M93: =SUMPRODUCT((Projects!$A$5:$A$2481='MDOT FTA Detail'!$M$3)*(Projects!$C$5:$C$2481='MDOT FTA Detail'!$C$4)*(Projects!$L$5:$L$2481='MDOT FTA Detail'!$A93)*(Projects!$J$5:$J$2481<>'MDOT FTA Detail'!$A$159)*(Projects!$K$5:$K$2481)) -> 0 | N93: 0 | O93: =SUMPRODUCT((Projects!$A$5:$A$2481='MDOT FTA Detail'!$M$3)*(Projects!$C$5:$C$2481='MDOT FTA Detail'!$C$4)*(Projects!$L$5:$L$2481='MDOT FTA Detail'!$A93)*(Projects!$J$5:$J$2481<>'MDOT FTA Detail'!$A$159)*(Projects!$Q$5:$Q$2481)) -> 0
A94: TAL | B94: Transportation Alternatives Rural | C94: MDOT FA | D94: =SUMPRODUCT((Projects!$A$5:$A$2481='MDOT FTA Detail'!$D$3)*(Projects!$C$5:$C$2481='MDOT FTA Detail'!$C$4)*(Projects!$L$5:$L$2481='MDOT FTA Detail'!$A94)*(Projects!$J$5:$J$2481<>'MDOT FTA Detail'!$A$159)*(Projects!$K$5:K$2481)) -> 0 | E94: 0 | F94: =SUMPRODUCT((Projects!$A$5:$A$2481='MDOT FTA Detail'!$D$3)*(Projects!$C$5:$C$2481='MDOT FTA Detail'!$C$4)*(Projects!$L$5:$L$2481='MDOT FTA Detail'!$A94)*(Projects!$J$5:$J$2481<>'MDOT FTA Detail'!$A$159)*(Projects!$Q$5:Q$2481)) -> 0 | G94: =SUMPRODUCT((Projects!$A$5:$A$2481='MDOT FTA Detail'!$G$3)*(Projects!$C$5:$C$2481='MDOT FTA Detail'!$C$4)*(Projects!$L$5:$L$2481='MDOT FTA Detail'!$A94)*(Projects!$J$5:$J$2481<>'MDOT FTA Detail'!$A$159)*(Projects!$K$5:K$2481)) -> 0 | H94: 0 | I94: =SUMPRODUCT((Projects!$A$5:$A$2481='MDOT FTA Detail'!$G$3)*(Projects!$C$5:$C$2481='MDOT FTA Detail'!$C$4)*(Projects!$L$5:$L$2481='MDOT FTA Detail'!$A94)*(Projects!$J$5:$J$2481<>'MDOT FTA Detail'!$A$159)*(Projects!$Q$5:Q$2481)) -> 0 | J94: =SUMPRODUCT((Projects!$A$5:$A$2481='MDOT FTA Detail'!$J$3)*(Projects!$C$5:$C$2481='MDOT FTA Detail'!$C$4)*(Projects!$L$5:$L$2481='MDOT FTA Detail'!$A94)*(Projects!$J$5:$J$2481<>'MDOT FTA Detail'!$A$159)*(Projects!$K$5:$K$2481)) -> 0 | K94: 0 | L94: =SUMPRODUCT((Projects!$A$5:$A$2481='MDOT FTA Detail'!$J$3)*(Projects!$C$5:$C$2481='MDOT FTA Detail'!$C$4)*(Projects!$L$5:$L$2481='MDOT FTA Detail'!$A94)*(Projects!$J$5:$J$2481<>'MDOT FTA Detail'!$A$159)*(Projects!$Q$5:$Q$2481)) -> 0 | M94: =SUMPRODUCT((Projects!$A$5:$A$2481='MDOT FTA Detail'!$M$3)*(Projects!$C$5:$C$2481='MDOT FTA Detail'!$C$4)*(Projects!$L$5:$L$2481='MDOT FTA Detail'!$A94)*(Projects!$J$5:$J$2481<>'MDOT FTA Detail'!$A$159)*(Projects!$K$5:$K$2481)) -> 0 | N94: 0 | O94: =SUMPRODUCT((Projects!$A$5:$A$2481='MDOT FTA Detail'!$M$3)*(Projects!$C$5:$C$2481='MDOT FTA Detail'!$C$4)*(Projects!$L$5:$L$2481='MDOT FTA Detail'!$A94)*(Projects!$J$5:$J$2481<>'MDOT FTA Detail'!$A$159)*(Projects!$Q$5:$Q$2481)) -> 0
A95: TAU | B95: Transportation Alternatives Urban Areas > 200,000 Population | C95: MDOT FA | D95: =SUMPRODUCT((Projects!$A$5:$A$2481='MDOT FTA Detail'!$D$3)*(Projects!$C$5:$C$2481='MDOT FTA Detail'!$C$4)*(Projects!$L$5:$L$2481='MDOT FTA Detail'!$A95)*(Projects!$J$5:$J$2481<>'MDOT FTA Detail'!$A$159)*(Projects!$K$5:K$2481)) -> 0 | E95: 0 | F95: =SUMPRODUCT((Projects!$A$5:$A$2481='MDOT FTA Detail'!$D$3)*(Projects!$C$5:$C$2481='MDOT FTA Detail'!$C$4)*(Projects!$L$5:$L$2481='MDOT FTA Detail'!$A95)*(Projects!$J$5:$J$2481<>'MDOT FTA Detail'!$A$159)*(Projects!$Q$5:Q$2481)) -> 0 | G95: =SUMPRODUCT((Projects!$A$5:$A$2481='MDOT FTA Detail'!$G$3)*(Projects!$C$5:$C$2481='MDOT FTA Detail'!$C$4)*(Projects!$L$5:$L$2481='MDOT FTA Detail'!$A95)*(Projects!$J$5:$J$2481<>'MDOT FTA Detail'!$A$159)*(Projects!$K$5:K$2481)) -> 0 | H95: 0 | I95: =SUMPRODUCT((Projects!$A$5:$A$2481='MDOT FTA Detail'!$G$3)*(Projects!$C$5:$C$2481='MDOT FTA Detail'!$C$4)*(Projects!$L$5:$L$2481='MDOT FTA Detail'!$A95)*(Projects!$J$5:$J$2481<>'MDOT FTA Detail'!$A$159)*(Projects!$Q$5:Q$2481)) -> 0 | J95: =SUMPRODUCT((Projects!$A$5:$A$2481='MDOT FTA Detail'!$J$3)*(Projects!$C$5:$C$2481='MDOT FTA Detail'!$C$4)*(Projects!$L$5:$L$2481='MDOT FTA Detail'!$A95)*(Projects!$J$5:$J$2481<>'MDOT FTA Detail'!$A$159)*(Projects!$K$5:$K$2481)) -> 0 | K95: 0 | L95: =SUMPRODUCT((Projects!$A$5:$A$2481='MDOT FTA Detail'!$J$3)*(Projects!$C$5:$C$2481='MDOT FTA Detail'!$C$4)*(Projects!$L$5:$L$2481='MDOT FTA Detail'!$A95)*(Projects!$J$5:$J$2481<>'MDOT FTA Detail'!$A$159)*(Projects!$Q$5:$Q$2481)) -> 0 | M95: =SUMPRODUCT((Projects!$A$5:$A$2481='MDOT FTA Detail'!$M$3)*(Projects!$C$5:$C$2481='MDOT FTA Detail'!$C$4)*(Projects!$L$5:$L$2481='MDOT FTA Detail'!$A95)*(Projects!$J$5:$J$2481<>'MDOT FTA Detail'!$A$159)*(Projects!$K$5:$K$2481)) -> 0 | N95: 0 | O95: =SUMPRODUCT((Projects!$A$5:$A$2481='MDOT FTA Detail'!$M$3)*(Projects!$C$5:$C$2481='MDOT FTA Detail'!$C$4)*(Projects!$L$5:$L$2481='MDOT FTA Detail'!$A95)*(Projects!$J$5:$J$2481<>'MDOT FTA Detail'!$A$159)*(Projects!$Q$5:$Q$2481)) -> 0
A96: TAUL | B96: Transporation Alternatives Urban Areas < 200,000 Population | C96: MDOT FA | D96: =SUMPRODUCT((Projects!$A$5:$A$2481='MDOT FTA Detail'!$D$3)*(Projects!$C$5:$C$2481='MDOT FTA Detail'!$C$4)*(Projects!$L$5:$L$2481='MDOT FTA Detail'!$A96)*(Projects!$J$5:$J$2481<>'MDOT FTA Detail'!$A$159)*(Projects!$K$5:K$2481)) -> 0 | E96: 0 | F96: =SUMPRODUCT((Projects!$A$5:$A$2481='MDOT FTA Detail'!$D$3)*(Projects!$C$5:$C$2481='MDOT FTA Detail'!$C$4)*(Projects!$L$5:$L$2481='MDOT FTA Detail'!$A96)*(Projects!$J$5:$J$2481<>'MDOT FTA Detail'!$A$159)*(Projects!$Q$5:Q$2481)) -> 0 | G96: =SUMPRODUCT((Projects!$A$5:$A$2481='MDOT FTA Detail'!$G$3)*(Projects!$C$5:$C$2481='MDOT FTA Detail'!$C$4)*(Projects!$L$5:$L$2481='MDOT FTA Detail'!$A96)*(Projects!$J$5:$J$2481<>'MDOT FTA Detail'!$A$159)*(Projects!$K$5:K$2481)) -> 0 | H96: 0 | I96: =SUMPRODUCT((Projects!$A$5:$A$2481='MDOT FTA Detail'!$G$3)*(Projects!$C$5:$C$2481='MDOT FTA Detail'!$C$4)*(Projects!$L$5:$L$2481='MDOT FTA Detail'!$A96)*(Projects!$J$5:$J$2481<>'MDOT FTA Detail'!$A$159)*(Projects!$Q$5:Q$2481)) -> 0 | J96: =SUMPRODUCT((Projects!$A$5:$A$2481='MDOT FTA Detail'!$J$3)*(Projects!$C$5:$C$2481='MDOT FTA Detail'!$C$4)*(Projects!$L$5:$L$2481='MDOT FTA Detail'!$A96)*(Projects!$J$5:$J$2481<>'MDOT FTA Detail'!$A$159)*(Projects!$K$5:$K$2481)) -> 0 | K96: 0 | L96: =SUMPRODUCT((Projects!$A$5:$A$2481='MDOT FTA Detail'!$J$3)*(Projects!$C$5:$C$2481='MDOT FTA Detail'!$C$4)*(Projects!$L$5:$L$2481='MDOT FTA Detail'!$A96)*(Projects!$J$5:$J$2481<>'MDOT FTA Detail'!$A$159)*(Projects!$Q$5:$Q$2481)) -> 0 | M96: =SUMPRODUCT((Projects!$A$5:$A$2481='MDOT FTA Detail'!$M$3)*(Projects!$C$5:$C$2481='MDOT FTA Detail'!$C$4)*(Projects!$L$5:$L$2481='MDOT FTA Detail'!$A96)*(Projects!$J$5:$J$2481<>'MDOT FTA Detail'!$A$159)*(Projects!$K$5:$K$2481)) -> 0 | N96: 0 | O96: =SUMPRODUCT((Projects!$A$5:$A$2481='MDOT FTA Detail'!$M$3)*(Projects!$C$5:$C$2481='MDOT FTA Detail'!$C$4)*(Projects!$L$5:$L$2481='MDOT FTA Detail'!$A96)*(Projects!$J$5:$J$2481<>'MDOT FTA Detail'!$A$159)*(Projects!$Q$5:$Q$2481)) -> 0
A97: TBR | B97: Timber Bridge Fund | C97: MDOT FA | D97: =SUMPRODUCT((Projects!$A$5:$A$2481='MDOT FTA Detail'!$D$3)*(Projects!$C$5:$C$2481='MDOT FTA Detail'!$C$4)*(Projects!$L$5:$L$2481='MDOT FTA Detail'!$A97)*(Projects!$J$5:$J$2481<>'MDOT FTA Detail'!$A$159)*(Projects!$K$5:K$2481)) -> 0 | E97: 0 | F97: =SUMPRODUCT((Projects!$A$5:$A$2481='MDOT FTA Detail'!$D$3)*(Projects!$C$5:$C$2481='MDOT FTA Detail'!$C$4)*(Projects!$L$5:$L$2481='MDOT FTA Detail'!$A97)*(Projects!$J$5:$J$2481<>'MDOT FTA Detail'!$A$159)*(Projects!$Q$5:Q$2481)) -> 0 | G97: =SUMPRODUCT((Projects!$A$5:$A$2481='MDOT FTA Detail'!$G$3)*(Projects!$C$5:$C$2481='MDOT FTA Detail'!$C$4)*(Projects!$L$5:$L$2481='MDOT FTA Detail'!$A97)*(Projects!$J$5:$J$2481<>'MDOT FTA Detail'!$A$159)*(Projects!$K$5:K$2481)) -> 0 | H97: 0 | I97: =SUMPRODUCT((Projects!$A$5:$A$2481='MDOT FTA Detail'!$G$3)*(Projects!$C$5:$C$2481='MDOT FTA Detail'!$C$4)*(Projects!$L$5:$L$2481='MDOT FTA Detail'!$A97)*(Projects!$J$5:$J$2481<>'MDOT FTA Detail'!$A$159)*(Projects!$Q$5:Q$2481)) -> 0 | J97: =SUMPRODUCT((Projects!$A$5:$A$2481='MDOT FTA Detail'!$J$3)*(Projects!$C$5:$C$2481='MDOT FTA Detail'!$C$4)*(Projects!$L$5:$L$2481='MDOT FTA Detail'!$A97)*(Projects!$J$5:$J$2481<>'MDOT FTA Detail'!$A$159)*(Projects!$K$5:$K$2481)) -> 0 | K97: 0 | L97: =SUMPRODUCT((Projects!$A$5:$A$2481='MDOT FTA Detail'!$J$3)*(Projects!$C$5:$C$2481='MDOT FTA Detail'!$C$4)*(Projects!$L$5:$L$2481='MDOT FTA Detail'!$A97)*(Projects!$J$5:$J$2481<>'MDOT FTA Detail'!$A$159)*(Projects!$Q$5:$Q$2481)) -> 0 | M97: =SUMPRODUCT((Projects!$A$5:$A$2481='MDOT FTA Detail'!$M$3)*(Projects!$C$5:$C$2481='MDOT FTA Detail'!$C$4)*(Projects!$L$5:$L$2481='MDOT FTA Detail'!$A97)*(Projects!$J$5:$J$2481<>'MDOT FTA Detail'!$A$159)*(Projects!$K$5:$K$2481)) -> 0 | N97: 0 | O97: =SUMPRODUCT((Projects!$A$5:$A$2481='MDOT FTA Detail'!$M$3)*(Projects!$C$5:$C$2481='MDOT FTA Detail'!$C$4)*(Projects!$L$5:$L$2481='MDOT FTA Detail'!$A97)*(Projects!$J$5:$J$2481<>'MDOT FTA Detail'!$A$159)*(Projects!$Q$5:$Q$2481)) -> 0
A98: TCP | B98: Tax Compliance Program | C98: MDOT FA | D98: =SUMPRODUCT((Projects!$A$5:$A$2481='MDOT FTA Detail'!$D$3)*(Projects!$C$5:$C$2481='MDOT FTA Detail'!$C$4)*(Projects!$L$5:$L$2481='MDOT FTA Detail'!$A98)*(Projects!$J$5:$J$2481<>'MDOT FTA Detail'!$A$159)*(Projects!$K$5:K$2481)) -> 0 | E98: 0 | F98: =SUMPRODUCT((Projects!$A$5:$A$2481='MDOT FTA Detail'!$D$3)*(Projects!$C$5:$C$2481='MDOT FTA Detail'!$C$4)*(Projects!$L$5:$L$2481='MDOT FTA Detail'!$A98)*(Projects!$J$5:$J$2481<>'MDOT FTA Detail'!$A$159)*(Projects!$Q$5:Q$2481)) -> 0 | G98: =SUMPRODUCT((Projects!$A$5:$A$2481='MDOT FTA Detail'!$G$3)*(Projects!$C$5:$C$2481='MDOT FTA Detail'!$C$4)*(Projects!$L$5:$L$2481='MDOT FTA Detail'!$A98)*(Projects!$J$5:$J$2481<>'MDOT FTA Detail'!$A$159)*(Projects!$K$5:K$2481)) -> 0 | H98: 0 | I98: =SUMPRODUCT((Projects!$A$5:$A$2481='MDOT FTA Detail'!$G$3)*(Projects!$C$5:$C$2481='MDOT FTA Detail'!$C$4)*(Projects!$L$5:$L$2481='MDOT FTA Detail'!$A98)*(Projects!$J$5:$J$2481<>'MDOT FTA Detail'!$A$159)*(Projects!$Q$5:Q$2481)) -> 0 | J98: =SUMPRODUCT((Projects!$A$5:$A$2481='MDOT FTA Detail'!$J$3)*(Projects!$C$5:$C$2481='MDOT FTA Detail'!$C$4)*(Projects!$L$5:$L$2481='MDOT FTA Detail'!$A98)*(Projects!$J$5:$J$2481<>'MDOT FTA Detail'!$A$159)*(Projects!$K$5:$K$2481)) -> 0 | K98: 0 | L98: =SUMPRODUCT((Projects!$A$5:$A$2481='MDOT FTA Detail'!$J$3)*(Projects!$C$5:$C$2481='MDOT FTA Detail'!$C$4)*(Projects!$L$5:$L$2481='MDOT FTA Detail'!$A98)*(Projects!$J$5:$J$2481<>'MDOT FTA Detail'!$A$159)*(Projects!$Q$5:$Q$2481)) -> 0 | M98: =SUMPRODUCT((Projects!$A$5:$A$2481='MDOT FTA Detail'!$M$3)*(Projects!$C$5:$C$2481='MDOT FTA Detail'!$C$4)*(Projects!$L$5:$L$2481='MDOT FTA Detail'!$A98)*(Projects!$J$5:$J$2481<>'MDOT FTA Detail'!$A$159)*(Projects!$K$5:$K$2481)) -> 0 | N98: 0 | O98: =SUMPRODUCT((Projects!$A$5:$A$2481='MDOT FTA Detail'!$M$3)*(Projects!$C$5:$C$2481='MDOT FTA Detail'!$C$4)*(Projects!$L$5:$L$2481='MDOT FTA Detail'!$A98)*(Projects!$J$5:$J$2481<>'MDOT FTA Detail'!$A$159)*(Projects!$Q$5:$Q$2481)) -> 0
A99: TCSP | B99: Transportation, Community and System Preservation | C99: MDOT FA | D99: =SUMPRODUCT((Projects!$A$5:$A$2481='MDOT FTA Detail'!$D$3)*(Projects!$C$5:$C$2481='MDOT FTA Detail'!$C$4)*(Projects!$L$5:$L$2481='MDOT FTA Detail'!$A99)*(Projects!$J$5:$J$2481<>'MDOT FTA Detail'!$A$159)*(Projects!$K$5:K$2481)) -> 0 | E99: 0 | F99: =SUMPRODUCT((Projects!$A$5:$A$2481='MDOT FTA Detail'!$D$3)*(Projects!$C$5:$C$2481='MDOT FTA Detail'!$C$4)*(Projects!$L$5:$L$2481='MDOT FTA Detail'!$A99)*(Projects!$J$5:$J$2481<>'MDOT FTA Detail'!$A$159)*(Projects!$Q$5:Q$2481)) -> 0 | G99: =SUMPRODUCT((Projects!$A$5:$A$2481='MDOT FTA Detail'!$G$3)*(Projects!$C$5:$C$2481='MDOT FTA Detail'!$C$4)*(Projects!$L$5:$L$2481='MDOT FTA Detail'!$A99)*(Projects!$J$5:$J$2481<>'MDOT FTA Detail'!$A$159)*(Projects!$K$5:K$2481)) -> 0 | H99: 0 | I99: =SUMPRODUCT((Projects!$A$5:$A$2481='MDOT FTA Detail'!$G$3)*(Projects!$C$5:$C$2481='MDOT FTA Detail'!$C$4)*(Projects!$L$5:$L$2481='MDOT FTA Detail'!$A99)*(Projects!$J$5:$J$2481<>'MDOT FTA Detail'!$A$159)*(Projects!$Q$5:Q$2481)) -> 0 | J99: =SUMPRODUCT((Projects!$A$5:$A$2481='MDOT FTA Detail'!$J$3)*(Projects!$C$5:$C$2481='MDOT FTA Detail'!$C$4)*(Projects!$L$5:$L$2481='MDOT FTA Detail'!$A99)*(Projects!$J$5:$J$2481<>'MDOT FTA Detail'!$A$159)*(Projects!$K$5:$K$2481)) -> 0 | K99: 0 | L99: =SUMPRODUCT((Projects!$A$5:$A$2481='MDOT FTA Detail'!$J$3)*(Projects!$C$5:$C$2481='MDOT FTA Detail'!$C$4)*(Projects!$L$5:$L$2481='MDOT FTA Detail'!$A99)*(Projects!$J$5:$J$2481<>'MDOT FTA Detail'!$A$159)*(Projects!$Q$5:$Q$2481)) -> 0 | M99: =SUMPRODUCT((Projects!$A$5:$A$2481='MDOT FTA Detail'!$M$3)*(Projects!$C$5:$C$2481='MDOT FTA Detail'!$C$4)*(Projects!$L$5:$L$2481='MDOT FTA Detail'!$A99)*(Projects!$J$5:$J$2481<>'MDOT FTA Detail'!$A$159)*(Projects!$K$5:$K$2481)) -> 0 | N99: 0 | O99: =SUMPRODUCT((Projects!$A$5:$A$2481='MDOT FTA Detail'!$M$3)*(Projects!$C$5:$C$2481='MDOT FTA Detail'!$C$4)*(Projects!$L$5:$L$2481='MDOT FTA Detail'!$A99)*(Projects!$J$5:$J$2481<>'MDOT FTA Detail'!$A$159)*(Projects!$Q$5:$Q$2481)) -> 0
A100: TG | B100: Transportation Grant (100% Fed) | C100: MDOT FA | D100: =SUMPRODUCT((Projects!$A$5:$A$2481='MDOT FTA Detail'!$D$3)*(Projects!$C$5:$C$2481='MDOT FTA Detail'!$C$4)*(Projects!$L$5:$L$2481='MDOT FTA Detail'!$A100)*(Projects!$J$5:$J$2481<>'MDOT FTA Detail'!$A$159)*(Projects!$K$5:K$2481)) -> 0 | E100: 0 | F100: =SUMPRODUCT((Projects!$A$5:$A$2481='MDOT FTA Detail'!$D$3)*(Projects!$C$5:$C$2481='MDOT FTA Detail'!$C$4)*(Projects!$L$5:$L$2481='MDOT FTA Detail'!$A100)*(Projects!$J$5:$J$2481<>'MDOT FTA Detail'!$A$159)*(Projects!$Q$5:Q$2481)) -> 0 | G100: =SUMPRODUCT((Projects!$A$5:$A$2481='MDOT FTA Detail'!$G$3)*(Projects!$C$5:$C$2481='MDOT FTA Detail'!$C$4)*(Projects!$L$5:$L$2481='MDOT FTA Detail'!$A100)*(Projects!$J$5:$J$2481<>'MDOT FTA Detail'!$A$159)*(Projects!$K$5:K$2481)) -> 0 | H100: 0 | I100: =SUMPRODUCT((Projects!$A$5:$A$2481='MDOT FTA Detail'!$G$3)*(Projects!$C$5:$C$2481='MDOT FTA Detail'!$C$4)*(Projects!$L$5:$L$2481='MDOT FTA Detail'!$A100)*(Projects!$J$5:$J$2481<>'MDOT FTA Detail'!$A$159)*(Projects!$Q$5:Q$2481)) -> 0 | J100: =SUMPRODUCT((Projects!$A$5:$A$2481='MDOT FTA Detail'!$J$3)*(Projects!$C$5:$C$2481='MDOT FTA Detail'!$C$4)*(Projects!$L$5:$L$2481='MDOT FTA Detail'!$A100)*(Projects!$J$5:$J$2481<>'MDOT FTA Detail'!$A$159)*(Projects!$K$5:$K$2481)) -> 0 | K100: 0 | L100: =SUMPRODUCT((Projects!$A$5:$A$2481='MDOT FTA Detail'!$J$3)*(Projects!$C$5:$C$2481='MDOT FTA Detail'!$C$4)*(Projects!$L$5:$L$2481='MDOT FTA Detail'!$A100)*(Projects!$J$5:$J$2481<>'MDOT FTA Detail'!$A$159)*(Projects!$Q$5:$Q$2481)) -> 0 | M100: =SUMPRODUCT((Projects!$A$5:$A$2481='MDOT FTA Detail'!$M$3)*(Projects!$C$5:$C$2481='MDOT FTA Detail'!$C$4)*(Projects!$L$5:$L$2481='MDOT FTA Detail'!$A100)*(Projects!$J$5:$J$2481<>'MDOT FTA Detail'!$A$159)*(Projects!$K$5:$K$2481)) -> 0 | N100: 0 | O100: =SUMPRODUCT((Projects!$A$5:$A$2481='MDOT FTA Detail'!$M$3)*(Projects!$C$5:$C$2481='MDOT FTA Detail'!$C$4)*(Projects!$L$5:$L$2481='MDOT FTA Detail'!$A100)*(Projects!$J$5:$J$2481<>'MDOT FTA Detail'!$A$159)*(Projects!$Q$5:$Q$2481)) -> 0
A101: TGR2 | B101: TIGER II Discretionary Grant | C101: MDOT FA | D101: =SUMPRODUCT((Projects!$A$5:$A$2481='MDOT FTA Detail'!$D$3)*(Projects!$C$5:$C$2481='MDOT FTA Detail'!$C$4)*(Projects!$L$5:$L$2481='MDOT FTA Detail'!$A101)*(Projects!$J$5:$J$2481<>'MDOT FTA Detail'!$A$159)*(Projects!$K$5:K$2481)) -> 0 | E101: =F101-D101 -> 0 | F101: =SUMPRODUCT((Projects!$A$5:$A$2481='MDOT FTA Detail'!$D$3)*(Projects!$C$5:$C$2481='MDOT FTA Detail'!$C$4)*(Projects!$L$5:$L$2481='MDOT FTA Detail'!$A101)*(Projects!$J$5:$J$2481<>'MDOT FTA Detail'!$A$159)*(Projects!$Q$5:Q$2481)) -> 0 | G101: =SUMPRODUCT((Projects!$A$5:$A$2481='MDOT FTA Detail'!$G$3)*(Projects!$C$5:$C$2481='MDOT FTA Detail'!$C$4)*(Projects!$L$5:$L$2481='MDOT FTA Detail'!$A101)*(Projects!$J$5:$J$2481<>'MDOT FTA Detail'!$A$159)*(Projects!$K$5:K$2481)) -> 0 | H101: =I101-G101 -> 0 | I101: =SUMPRODUCT((Projects!$A$5:$A$2481='MDOT FTA Detail'!$G$3)*(Projects!$C$5:$C$2481='MDOT FTA Detail'!$C$4)*(Projects!$L$5:$L$2481='MDOT FTA Detail'!$A101)*(Projects!$J$5:$J$2481<>'MDOT FTA Detail'!$A$159)*(Projects!$Q$5:Q$2481)) -> 0 | J101: =SUMPRODUCT((Projects!$A$5:$A$2481='MDOT FTA Detail'!$J$3)*(Projects!$C$5:$C$2481='MDOT FTA Detail'!$C$4)*(Projects!$L$5:$L$2481='MDOT FTA Detail'!$A101)*(Projects!$J$5:$J$2481<>'MDOT FTA Detail'!$A$159)*(Projects!$K$5:$K$2481)) -> 0 | K101: =L101-J101 -> 0 | L101: =SUMPRODUCT((Projects!$A$5:$A$2481='MDOT FTA Detail'!$J$3)*(Projects!$C$5:$C$2481='MDOT FTA Detail'!$C$4)*(Projects!$L$5:$L$2481='MDOT FTA Detail'!$A101)*(Projects!$J$5:$J$2481<>'MDOT FTA Detail'!$A$159)*(Projects!$Q$5:$Q$2481)) -> 0 | M101: =SUMPRODUCT((Projects!$A$5:$A$2481='MDOT FTA Detail'!$M$3)*(Projects!$C$5:$C$2481='MDOT FTA Detail'!$C$4)*(Projects!$L$5:$L$2481='MDOT FTA Detail'!$A101)*(Projects!$J$5:$J$2481<>'MDOT FTA Detail'!$A$159)*(Projects!$K$5:$K$2481)) -> 0 | N101: =O101-M101 -> 0 | O101: =SUMPRODUCT((Projects!$A$5:$A$2481='MDOT FTA Detail'!$M$3)*(Projects!$C$5:$C$2481='MDOT FTA Detail'!$C$4)*(Projects!$L$5:$L$2481='MDOT FTA Detail'!$A101)*(Projects!$J$5:$J$2481<>'MDOT FTA Detail'!$A$159)*(Projects!$Q$5:$Q$2481)) -> 0
A102: TGR3 | B102: TIGER III Discretionary Grant | C102: MDOT FA | D102: =SUMPRODUCT((Projects!$A$5:$A$2481='MDOT FTA Detail'!$D$3)*(Projects!$C$5:$C$2481='MDOT FTA Detail'!$C$4)*(Projects!$L$5:$L$2481='MDOT FTA Detail'!$A102)*(Projects!$J$5:$J$2481<>'MDOT FTA Detail'!$A$159)*(Projects!$K$5:K$2481)) -> 0 | E102: =F102-D102 -> 0 | F102: =SUMPRODUCT((Projects!$A$5:$A$2481='MDOT FTA Detail'!$D$3)*(Projects!$C$5:$C$2481='MDOT FTA Detail'!$C$4)*(Projects!$L$5:$L$2481='MDOT FTA Detail'!$A102)*(Projects!$J$5:$J$2481<>'MDOT FTA Detail'!$A$159)*(Projects!$Q$5:Q$2481)) -> 0 | G102: =SUMPRODUCT((Projects!$A$5:$A$2481='MDOT FTA Detail'!$G$3)*(Projects!$C$5:$C$2481='MDOT FTA Detail'!$C$4)*(Projects!$L$5:$L$2481='MDOT FTA Detail'!$A102)*(Projects!$J$5:$J$2481<>'MDOT FTA Detail'!$A$159)*(Projects!$K$5:K$2481)) -> 0 | H102: =I102-G102 -> 0 | I102: =SUMPRODUCT((Projects!$A$5:$A$2481='MDOT FTA Detail'!$G$3)*(Projects!$C$5:$C$2481='MDOT FTA Detail'!$C$4)*(Projects!$L$5:$L$2481='MDOT FTA Detail'!$A102)*(Projects!$J$5:$J$2481<>'MDOT FTA Detail'!$A$159)*(Projects!$Q$5:Q$2481)) -> 0 | J102: =SUMPRODUCT((Projects!$A$5:$A$2481='MDOT FTA Detail'!$J$3)*(Projects!$C$5:$C$2481='MDOT FTA Detail'!$C$4)*(Projects!$L$5:$L$2481='MDOT FTA Detail'!$A102)*(Projects!$J$5:$J$2481<>'MDOT FTA Detail'!$A$159)*(Projects!$K$5:$K$2481)) -> 0 | K102: =L102-J102 -> 0 | L102: =SUMPRODUCT((Projects!$A$5:$A$2481='MDOT FTA Detail'!$J$3)*(Projects!$C$5:$C$2481='MDOT FTA Detail'!$C$4)*(Projects!$L$5:$L$2481='MDOT FTA Detail'!$A102)*(Projects!$J$5:$J$2481<>'MDOT FTA Detail'!$A$159)*(Projects!$Q$5:$Q$2481)) -> 0 | M102: =SUMPRODUCT((Projects!$A$5:$A$2481='MDOT FTA Detail'!$M$3)*(Projects!$C$5:$C$2481='MDOT FTA Detail'!$C$4)*(Projects!$L$5:$L$2481='MDOT FTA Detail'!$A102)*(Projects!$J$5:$J$2481<>'MDOT FTA Detail'!$A$159)*(Projects!$K$5:$K$2481)) -> 0 | N102: =O102-M102 -> 0 | O102: =SUMPRODUCT((Projects!$A$5:$A$2481='MDOT FTA Detail'!$M$3)*(Projects!$C$5:$C$2481='MDOT FTA Detail'!$C$4)*(Projects!$L$5:$L$2481='MDOT FTA Detail'!$A102)*(Projects!$J$5:$J$2481<>'MDOT FTA Detail'!$A$159)*(Projects!$Q$5:$Q$2481)) -> 0
A103: TIP | B103: Transportation Improvements Projects SAFETEA-LU | C103: MDOT FA | D103: =SUMPRODUCT((Projects!$A$5:$A$2481='MDOT FTA Detail'!$D$3)*(Projects!$C$5:$C$2481='MDOT FTA Detail'!$C$4)*(Projects!$L$5:$L$2481='MDOT FTA Detail'!$A103)*(Projects!$J$5:$J$2481<>'MDOT FTA Detail'!$A$159)*(Projects!$K$5:K$2481)) -> 0 | E103: =F103-D103 -> 0 | F103: =SUMPRODUCT((Projects!$A$5:$A$2481='MDOT FTA Detail'!$D$3)*(Projects!$C$5:$C$2481='MDOT FTA Detail'!$C$4)*(Projects!$L$5:$L$2481='MDOT FTA Detail'!$A103)*(Projects!$J$5:$J$2481<>'MDOT FTA Detail'!$A$159)*(Projects!$Q$5:Q$2481)) -> 0 | G103: =SUMPRODUCT((Projects!$A$5:$A$2481='MDOT FTA Detail'!$G$3)*(Projects!$C$5:$C$2481='MDOT FTA Detail'!$C$4)*(Projects!$L$5:$L$2481='MDOT FTA Detail'!$A103)*(Projects!$J$5:$J$2481<>'MDOT FTA Detail'!$A$159)*(Projects!$K$5:K$2481)) -> 0 | H103: =I103-G103 -> 0 | I103: =SUMPRODUCT((Projects!$A$5:$A$2481='MDOT FTA Detail'!$G$3)*(Projects!$C$5:$C$2481='MDOT FTA Detail'!$C$4)*(Projects!$L$5:$L$2481='MDOT FTA Detail'!$A103)*(Projects!$J$5:$J$2481<>'MDOT FTA Detail'!$A$159)*(Projects!$Q$5:Q$2481)) -> 0 | J103: =SUMPRODUCT((Projects!$A$5:$A$2481='MDOT FTA Detail'!$J$3)*(Projects!$C$5:$C$2481='MDOT FTA Detail'!$C$4)*(Projects!$L$5:$L$2481='MDOT FTA Detail'!$A103)*(Projects!$J$5:$J$2481<>'MDOT FTA Detail'!$A$159)*(Projects!$K$5:$K$2481)) -> 0 | K103: =L103-J103 -> 0 | L103: =SUMPRODUCT((Projects!$A$5:$A$2481='MDOT FTA Detail'!$J$3)*(Projects!$C$5:$C$2481='MDOT FTA Detail'!$C$4)*(Projects!$L$5:$L$2481='MDOT FTA Detail'!$A103)*(Projects!$J$5:$J$2481<>'MDOT FTA Detail'!$A$159)*(Projects!$Q$5:$Q$2481)) -> 0 | M103: =SUMPRODUCT((Projects!$A$5:$A$2481='MDOT FTA Detail'!$M$3)*(Projects!$C$5:$C$2481='MDOT FTA Detail'!$C$4)*(Projects!$L$5:$L$2481='MDOT FTA Detail'!$A103)*(Projects!$J$5:$J$2481<>'MDOT FTA Detail'!$A$159)*(Projects!$K$5:$K$2481)) -> 0 | N103: =O103-M103 -> 0 | O103: =SUMPRODUCT((Projects!$A$5:$A$2481='MDOT FTA Detail'!$M$3)*(Projects!$C$5:$C$2481='MDOT FTA Detail'!$C$4)*(Projects!$L$5:$L$2481='MDOT FTA Detail'!$A103)*(Projects!$J$5:$J$2481<>'MDOT FTA Detail'!$A$159)*(Projects!$Q$5:$Q$2481)) -> 0
A104: TPFD | B104: Truck Parking Faciilities Discretionary | C104: MDOT FA | D104: =SUMPRODUCT((Projects!$A$5:$A$2481='MDOT FTA Detail'!$D$3)*(Projects!$C$5:$C$2481='MDOT FTA Detail'!$C$4)*(Projects!$L$5:$L$2481='MDOT FTA Detail'!$A104)*(Projects!$J$5:$J$2481<>'MDOT FTA Detail'!$A$159)*(Projects!$K$5:K$2481)) -> 0 | E104: 0 | F104: =SUMPRODUCT((Projects!$A$5:$A$2481='MDOT FTA Detail'!$D$3)*(Projects!$C$5:$C$2481='MDOT FTA Detail'!$C$4)*(Projects!$L$5:$L$2481='MDOT FTA Detail'!$A104)*(Projects!$J$5:$J$2481<>'MDOT FTA Detail'!$A$159)*(Projects!$Q$5:Q$2481)) -> 0 | G104: =SUMPRODUCT((Projects!$A$5:$A$2481='MDOT FTA Detail'!$G$3)*(Projects!$C$5:$C$2481='MDOT FTA Detail'!$C$4)*(Projects!$L$5:$L$2481='MDOT FTA Detail'!$A104)*(Projects!$J$5:$J$2481<>'MDOT FTA Detail'!$A$159)*(Projects!$K$5:K$2481)) -> 0 | H104: 0 | I104: =SUMPRODUCT((Projects!$A$5:$A$2481='MDOT FTA Detail'!$G$3)*(Projects!$C$5:$C$2481='MDOT FTA Detail'!$C$4)*(Projects!$L$5:$L$2481='MDOT FTA Detail'!$A104)*(Projects!$J$5:$J$2481<>'MDOT FTA Detail'!$A$159)*(Projects!$Q$5:Q$2481)) -> 0 | J104: =SUMPRODUCT((Projects!$A$5:$A$2481='MDOT FTA Detail'!$J$3)*(Projects!$C$5:$C$2481='MDOT FTA Detail'!$C$4)*(Projects!$L$5:$L$2481='MDOT FTA Detail'!$A104)*(Projects!$J$5:$J$2481<>'MDOT FTA Detail'!$A$159)*(Projects!$K$5:$K$2481)) -> 0 | K104: 0 | L104: =SUMPRODUCT((Projects!$A$5:$A$2481='MDOT FTA Detail'!$J$3)*(Projects!$C$5:$C$2481='MDOT FTA Detail'!$C$4)*(Projects!$L$5:$L$2481='MDOT FTA Detail'!$A104)*(Projects!$J$5:$J$2481<>'MDOT FTA Detail'!$A$159)*(Projects!$Q$5:$Q$2481)) -> 0 | M104: =SUMPRODUCT((Projects!$A$5:$A$2481='MDOT FTA Detail'!$M$3)*(Projects!$C$5:$C$2481='MDOT FTA Detail'!$C$4)*(Projects!$L$5:$L$2481='MDOT FTA Detail'!$A104)*(Projects!$J$5:$J$2481<>'MDOT FTA Detail'!$A$159)*(Projects!$K$5:$K$2481)) -> 0 | N104: 0 | O104: =SUMPRODUCT((Projects!$A$5:$A$2481='MDOT FTA Detail'!$M$3)*(Projects!$C$5:$C$2481='MDOT FTA Detail'!$C$4)*(Projects!$L$5:$L$2481='MDOT FTA Detail'!$A104)*(Projects!$J$5:$J$2481<>'MDOT FTA Detail'!$A$159)*(Projects!$Q$5:$Q$2481)) -> 0
A105: 3038 | B105: Section 3038 - Over the Road Bus Program | C105: Transit | D105: =SUMPRODUCT((Projects!$A$5:$A$2481='MDOT FTA Detail'!$D$3)*(Projects!$L$5:$L$2481='MDOT FTA Detail'!$A105)*(Projects!$K$5:$K$2481)) -> 0 | E105: =F105-D105 -> 0 | F105: =SUMPRODUCT((Projects!$A$5:$A$2481='MDOT FTA Detail'!$D$3)*(Projects!$L$5:$L$2481='MDOT FTA Detail'!$A105)*(Projects!$Q$5:$Q$2481)) -> 0 | G105: =SUMPRODUCT((Projects!$A$5:$A$2481='MDOT FTA Detail'!$G$3)*(Projects!$L$5:$L$2481='MDOT FTA Detail'!$A105)*(Projects!$K$5:$K$2481)) -> 0 | H105: =I105-G105 -> 0 | I105: =SUMPRODUCT((Projects!$A$5:$A$2481='MDOT FTA Detail'!$G$3)*(Projects!$L$5:$L$2481='MDOT FTA Detail'!$A105)*(Projects!$Q$5:$Q$2481)) -> 0 | J105: =SUMPRODUCT((Projects!$A$5:$A$2481='MDOT FTA Detail'!$J$3)*(Projects!$L$5:$L$2481='MDOT FTA Detail'!$A105)*(Projects!$K$5:$K$2481)) -> 0 | K105: =L105-J105 -> 0 | L105: =SUMPRODUCT((Projects!$A$5:$A$2481='MDOT FTA Detail'!$J$3)*(Projects!$L$5:$L$2481='MDOT FTA Detail'!$A105)*(Projects!$Q$5:$Q$2481)) -> 0 | M105: =SUMPRODUCT((Projects!$A$5:$A$2481='MDOT FTA Detail'!$M$3)*(Projects!$L$5:$L$2481='MDOT FTA Detail'!$A105)*(Projects!$K$5:$K$2481)) -> 0 | N105: =O105-M105 -> 0 | O105: =SUMPRODUCT((Projects!$A$5:$A$2481='MDOT FTA Detail'!$M$3)*(Projects!$L$5:$L$2481='MDOT FTA Detail'!$A105)*(Projects!$Q$5:$Q$2481)) -> 0
A106: 3045 | B106: Section 3045 - National Fuel Cell Technology Development Program | C106: Transit | D106: =SUMPRODUCT((Projects!$A$5:$A$2481='MDOT FTA Detail'!$D$3)*(Projects!$L$5:$L$2481='MDOT FTA Detail'!$A106)*(Projects!$K$5:$K$2481)) -> 0 | E106: =F106-D106 -> 0 | F106: =SUMPRODUCT((Projects!$A$5:$A$2481='MDOT FTA Detail'!$D$3)*(Projects!$L$5:$L$2481='MDOT FTA Detail'!$A106)*(Projects!$Q$5:$Q$2481)) -> 0 | G106: =SUMPRODUCT((Projects!$A$5:$A$2481='MDOT FTA Detail'!$G$3)*(Projects!$L$5:$L$2481='MDOT FTA Detail'!$A106)*(Projects!$K$5:$K$2481)) -> 0 | H106: =I106-G106 -> 0 | I106: =SUMPRODUCT((Projects!$A$5:$A$2481='MDOT FTA Detail'!$G$3)*(Projects!$L$5:$L$2481='MDOT FTA Detail'!$A106)*(Projects!$Q$5:$Q$2481)) -> 0 | J106: =SUMPRODUCT((Projects!$A$5:$A$2481='MDOT FTA Detail'!$J$3)*(Projects!$L$5:$L$2481='MDOT FTA Detail'!$A106)*(Projects!$K$5:$K$2481)) -> 0 | K106: =L106-J106 -> 0 | L106: =SUMPRODUCT((Projects!$A$5:$A$2481='MDOT FTA Detail'!$J$3)*(Projects!$L$5:$L$2481='MDOT FTA Detail'!$A106)*(Projects!$Q$5:$Q$2481)) -> 0 | M106: =SUMPRODUCT((Projects!$A$5:$A$2481='MDOT FTA Detail'!$M$3)*(Projects!$L$5:$L$2481='MDOT FTA Detail'!$A106)*(Projects!$K$5:$K$2481)) -> 0 | N106: =O106-M106 -> 0 | O106: =SUMPRODUCT((Projects!$A$5:$A$2481='MDOT FTA Detail'!$M$3)*(Projects!$L$5:$L$2481='MDOT FTA Detail'!$A106)*(Projects!$Q$5:$Q$2481)) -> 0
A107: 5303 | B107: Section 5303 - Metropolitan Transportation Planning | C107: Transit | D107: =SUMPRODUCT((Projects!$A$5:$A$2481='MDOT FTA Detail'!$D$3)*(Projects!$L$5:$L$2481='MDOT FTA Detail'!$A107)*(Projects!$K$5:$K$2481)) -> 0 | E107: =F107-D107 -> 0 | F107: =SUMPRODUCT((Projects!$A$5:$A$2481='MDOT FTA Detail'!$D$3)*(Projects!$L$5:$L$2481='MDOT FTA Detail'!$A107)*(Projects!$Q$5:$Q$2481)) -> 0 | G107: =SUMPRODUCT((Projects!$A$5:$A$2481='MDOT FTA Detail'!$G$3)*(Projects!$L$5:$L$2481='MDOT FTA Detail'!$A107)*(Projects!$K$5:$K$2481)) -> 0 | H107: 0 | I107: =SUMPRODUCT((Projects!$A$5:$A$2481='MDOT FTA Detail'!$G$3)*(Projects!$L$5:$L$2481='MDOT FTA Detail'!$A107)*(Projects!$Q$5:$Q$2481)) -> 0 | J107: =SUMPRODUCT((Projects!$A$5:$A$2481='MDOT FTA Detail'!$J$3)*(Projects!$L$5:$L$2481='MDOT FTA Detail'!$A107)*(Projects!$K$5:$K$2481)) -> 0 | K107: 0 | L107: =SUMPRODUCT((Projects!$A$5:$A$2481='MDOT FTA Detail'!$J$3)*(Projects!$L$5:$L$2481='MDOT FTA Detail'!$A107)*(Projects!$Q$5:$Q$2481)) -> 0 | M107: =SUMPRODUCT((Projects!$A$5:$A$2481='MDOT FTA Detail'!$M$3)*(Projects!$L$5:$L$2481='MDOT FTA Detail'!$A107)*(Projects!$K$5:$K$2481)) -> 0 | N107: 0 | O107: =SUMPRODUCT((Projects!$A$5:$A$2481='MDOT FTA Detail'!$M$3)*(Projects!$L$5:$L$2481='MDOT FTA Detail'!$A107)*(Projects!$Q$5:$Q$2481)) -> 0
A108: 5304 | B108: Section 5304 - Statewide Transportation Planning | C108: Transit | D108: =SUMPRODUCT((Projects!$A$5:$A$2481='MDOT FTA Detail'!$D$3)*(Projects!$L$5:$L$2481='MDOT FTA Detail'!$A108)*(Projects!$K$5:$K$2481)) -> 0 | E108: 0 | F108: =SUMPRODUCT((Projects!$A$5:$A$2481='MDOT FTA Detail'!$D$3)*(Projects!$L$5:$L$2481='MDOT FTA Detail'!$A108)*(Projects!$Q$5:$Q$2481)) -> 0 | G108: =SUMPRODUCT((Projects!$A$5:$A$2481='MDOT FTA Detail'!$G$3)*(Projects!$L$5:$L$2481='MDOT FTA Detail'!$A108)*(Projects!$K$5:$K$2481)) -> 0 | H108: 0 | I108: =SUMPRODUCT((Projects!$A$5:$A$2481='MDOT FTA Detail'!$G$3)*(Projects!$L$5:$L$2481='MDOT FTA Detail'!$A108)*(Projects!$Q$5:$Q$2481)) -> 0 | J108: =SUMPRODUCT((Projects!$A$5:$A$2481='MDOT FTA Detail'!$J$3)*(Projects!$L$5:$L$2481='MDOT FTA Detail'!$A108)*(Projects!$K$5:$K$2481)) -> 0 | K108: 0 | L108: =SUMPRODUCT((Projects!$A$5:$A$2481='MDOT FTA Detail'!$J$3)*(Projects!$L$5:$L$2481='MDOT FTA Detail'!$A108)*(Projects!$Q$5:$Q$2481)) -> 0 | M108: =SUMPRODUCT((Projects!$A$5:$A$2481='MDOT FTA Detail'!$M$3)*(Projects!$L$5:$L$2481='MDOT FTA Detail'!$A108)*(Projects!$K$5:$K$2481)) -> 0 | N108: 0 | O108: =SUMPRODUCT((Projects!$A$5:$A$2481='MDOT FTA Detail'!$M$3)*(Projects!$L$5:$L$2481='MDOT FTA Detail'!$A108)*(Projects!$Q$5:$Q$2481)) -> 0
A109: 5305 | B109: Section 5305 - Metropolitan and Statewide Planning | C109: Transit | D109: =SUMPRODUCT((Projects!$A$5:$A$2481='MDOT FTA Detail'!$D$3)*(Projects!$L$5:$L$2481='MDOT FTA Detail'!$A109)*(Projects!$K$5:$K$2481)) -> 0 | E109: 0 | F109: =SUMPRODUCT((Projects!$A$5:$A$2481='MDOT FTA Detail'!$D$3)*(Projects!$L$5:$L$2481='MDOT FTA Detail'!$A109)*(Projects!$Q$5:$Q$2481)) -> 0 | G109: =SUMPRODUCT((Projects!$A$5:$A$2481='MDOT FTA Detail'!$G$3)*(Projects!$L$5:$L$2481='MDOT FTA Detail'!$A109)*(Projects!$K$5:$K$2481)) -> 0 | H109: 0 | I109: =SUMPRODUCT((Projects!$A$5:$A$2481='MDOT FTA Detail'!$G$3)*(Projects!$L$5:$L$2481='MDOT FTA Detail'!$A109)*(Projects!$Q$5:$Q$2481)) -> 0 | J109: =SUMPRODUCT((Projects!$A$5:$A$2481='MDOT FTA Detail'!$J$3)*(Projects!$L$5:$L$2481='MDOT FTA Detail'!$A109)*(Projects!$K$5:$K$2481)) -> 0 | K109: 0 | L109: =SUMPRODUCT((Projects!$A$5:$A$2481='MDOT FTA Detail'!$J$3)*(Projects!$L$5:$L$2481='MDOT FTA Detail'!$A109)*(Projects!$Q$5:$Q$2481)) -> 0 | M109: =SUMPRODUCT((Projects!$A$5:$A$2481='MDOT FTA Detail'!$M$3)*(Projects!$L$5:$L$2481='MDOT FTA Detail'!$A109)*(Projects!$K$5:$K$2481)) -> 0 | N109: 0 | O109: =SUMPRODUCT((Projects!$A$5:$A$2481='MDOT FTA Detail'!$M$3)*(Projects!$L$5:$L$2481='MDOT FTA Detail'!$A109)*(Projects!$Q$5:$Q$2481)) -> 0
A110: 5307 | B110: Section 5307 - UZA Formula | C110: Transit | D110: =SUMPRODUCT((Projects!$A$5:$A$2481='MDOT FTA Detail'!$D$3)*(Projects!$L$5:$L$2481='MDOT FTA Detail'!$A110)*(Projects!$K$5:$K$2481)) -> 680000 | E110: 1150000 | F110: =SUMPRODUCT((Projects!$A$5:$A$2481='MDOT FTA Detail'!$D$3)*(Projects!$L$5:$L$2481='MDOT FTA Detail'!$A110)*(Projects!$Q$5:$Q$2481)) -> 1830000 | G110: =SUMPRODUCT((Projects!$A$5:$A$2481='MDOT FTA Detail'!$G$3)*(Projects!$L$5:$L$2481='MDOT FTA Detail'!$A110)*(Projects!$K$5:$K$2481)) -> 0 | H110: 0 | I110: =SUMPRODUCT((Projects!$A$5:$A$2481='MDOT FTA Detail'!$G$3)*(Projects!$L$5:$L$2481='MDOT FTA Detail'!$A110)*(Projects!$Q$5:$Q$2481)) -> 0 | J110: =SUMPRODUCT((Projects!$A$5:$A$2481='MDOT FTA Detail'!$J$3)*(Projects!$L$5:$L$2481='MDOT FTA Detail'!$A110)*(Projects!$K$5:$K$2481)) -> 0 | K110: 0 | L110: =SUMPRODUCT((Projects!$A$5:$A$2481='MDOT FTA Detail'!$J$3)*(Projects!$L$5:$L$2481='MDOT FTA Detail'!$A110)*(Projects!$Q$5:$Q$2481)) -> 0 | M110: =SUMPRODUCT((Projects!$A$5:$A$2481='MDOT FTA Detail'!$M$3)*(Projects!$L$5:$L$2481='MDOT FTA Detail'!$A110)*(Projects!$K$5:$K$2481)) -> 0 | N110: 0 | O110: =SUMPRODUCT((Projects!$A$5:$A$2481='MDOT FTA Detail'!$M$3)*(Projects!$L$5:$L$2481='MDOT FTA Detail'!$A110)*(Projects!$Q$5:$Q$2481)) -> 0
A111: 5308 | B111: Section 5308 - Clean Fuels Program | C111: Transit | D111: =SUMPRODUCT((Projects!$A$5:$A$2481='MDOT FTA Detail'!$D$3)*(Projects!$L$5:$L$2481='MDOT FTA Detail'!$A111)*(Projects!$K$5:$K$2481)) -> 0 | E111: 0 | F111: =SUMPRODUCT((Projects!$A$5:$A$2481='MDOT FTA Detail'!$D$3)*(Projects!$L$5:$L$2481='MDOT FTA Detail'!$A111)*(Projects!$Q$5:$Q$2481)) -> 0 | G111: =SUMPRODUCT((Projects!$A$5:$A$2481='MDOT FTA Detail'!$G$3)*(Projects!$L$5:$L$2481='MDOT FTA Detail'!$A111)*(Projects!$K$5:$K$2481)) -> 0 | H111: 0 | I111: =SUMPRODUCT((Projects!$A$5:$A$2481='MDOT FTA Detail'!$G$3)*(Projects!$L$5:$L$2481='MDOT FTA Detail'!$A111)*(Projects!$Q$5:$Q$2481)) -> 0 | J111: =SUMPRODUCT((Projects!$A$5:$A$2481='MDOT FTA Detail'!$J$3)*(Projects!$L$5:$L$2481='MDOT FTA Detail'!$A111)*(Projects!$K$5:$K$2481)) -> 0 | K111: 0 | L111: =SUMPRODUCT((Projects!$A$5:$A$2481='MDOT FTA Detail'!$J$3)*(Projects!$L$5:$L$2481='MDOT FTA Detail'!$A111)*(Projects!$Q$5:$Q$2481)) -> 0 | M111: =SUMPRODUCT((Projects!$A$5:$A$2481='MDOT FTA Detail'!$M$3)*(Projects!$L$5:$L$2481='MDOT FTA Detail'!$A111)*(Projects!$K$5:$K$2481)) -> 0 | N111: 0 | O111: =SUMPRODUCT((Projects!$A$5:$A$2481='MDOT FTA Detail'!$M$3)*(Projects!$L$5:$L$2481='MDOT FTA Detail'!$A111)*(Projects!$Q$5:$Q$2481)) -> 0
A112: 5309 | B112: Section 5309 - Fixed Guideway Capital Investment Grant | C112: Transit | D112: =SUMPRODUCT((Projects!$A$5:$A$2481='MDOT FTA Detail'!$D$3)*(Projects!$L$5:$L$2481='MDOT FTA Detail'!$A112)*(Projects!$K$5:$K$2481)) -> 0 | E112: 0 | F112: =SUMPRODUCT((Projects!$A$5:$A$2481='MDOT FTA Detail'!$D$3)*(Projects!$L$5:$L$2481='MDOT FTA Detail'!$A112)*(Projects!$Q$5:$Q$2481)) -> 0 | G112: =SUMPRODUCT((Projects!$A$5:$A$2481='MDOT FTA Detail'!$G$3)*(Projects!$L$5:$L$2481='MDOT FTA Detail'!$A112)*(Projects!$K$5:$K$2481)) -> 0 | H112: 0 | I112: =SUMPRODUCT((Projects!$A$5:$A$2481='MDOT FTA Detail'!$G$3)*(Projects!$L$5:$L$2481='MDOT FTA Detail'!$A112)*(Projects!$Q$5:$Q$2481)) -> 0 | J112: =SUMPRODUCT((Projects!$A$5:$A$2481='MDOT FTA Detail'!$J$3)*(Projects!$L$5:$L$2481='MDOT FTA Detail'!$A112)*(Projects!$K$5:$K$2481)) -> 0 | K112: 0 | L112: =SUMPRODUCT((Projects!$A$5:$A$2481='MDOT FTA Detail'!$J$3)*(Projects!$L$5:$L$2481='MDOT FTA Detail'!$A112)*(Projects!$Q$5:$Q$2481)) -> 0 | M112: =SUMPRODUCT((Projects!$A$5:$A$2481='MDOT FTA Detail'!$M$3)*(Projects!$L$5:$L$2481='MDOT FTA Detail'!$A112)*(Projects!$K$5:$K$2481)) -> 0 | N112: 0 | O112: =SUMPRODUCT((Projects!$A$5:$A$2481='MDOT FTA Detail'!$M$3)*(Projects!$L$5:$L$2481='MDOT FTA Detail'!$A112)*(Projects!$Q$5:$Q$2481)) -> 0
A113: 5310 | B113: Section 5310 - Enhanced Mobility of Seniors and Individuals with Disabilities | C113: Transit | D113: =SUMPRODUCT((Projects!$A$5:$A$2481='MDOT FTA Detail'!$D$3)*(Projects!$L$5:$L$2481='MDOT FTA Detail'!$A113)*(Projects!$K$5:$K$2481)) -> 0 | E113: 0 | F113: =SUMPRODUCT((Projects!$A$5:$A$2481='MDOT FTA Detail'!$D$3)*(Projects!$L$5:$L$2481='MDOT FTA Detail'!$A113)*(Projects!$Q$5:$Q$2481)) -> 0 | G113: =SUMPRODUCT((Projects!$A$5:$A$2481='MDOT FTA Detail'!$G$3)*(Projects!$L$5:$L$2481='MDOT FTA Detail'!$A113)*(Projects!$K$5:$K$2481)) -> 0 | H113: 0 | I113: =SUMPRODUCT((Projects!$A$5:$A$2481='MDOT FTA Detail'!$G$3)*(Projects!$L$5:$L$2481='MDOT FTA Detail'!$A113)*(Projects!$Q$5:$Q$2481)) -> 0 | J113: =SUMPRODUCT((Projects!$A$5:$A$2481='MDOT FTA Detail'!$J$3)*(Projects!$L$5:$L$2481='MDOT FTA Detail'!$A113)*(Projects!$K$5:$K$2481)) -> 0 | K113: 0 | L113: =SUMPRODUCT((Projects!$A$5:$A$2481='MDOT FTA Detail'!$J$3)*(Projects!$L$5:$L$2481='MDOT FTA Detail'!$A113)*(Projects!$Q$5:$Q$2481)) -> 0 | M113: =SUMPRODUCT((Projects!$A$5:$A$2481='MDOT FTA Detail'!$M$3)*(Projects!$L$5:$L$2481='MDOT FTA Detail'!$A113)*(Projects!$K$5:$K$2481)) -> 0 | N113: 0 | O113: =SUMPRODUCT((Projects!$A$5:$A$2481='MDOT FTA Detail'!$M$3)*(Projects!$L$5:$L$2481='MDOT FTA Detail'!$A113)*(Projects!$Q$5:$Q$2481)) -> 0
A114: 5311 | B114: Section 5311 - Non-UZA | C114: Transit | D114: =SUMPRODUCT((Projects!$A$5:$A$2481='MDOT FTA Detail'!$D$3)*(Projects!$L$5:$L$2481='MDOT FTA Detail'!$A114)*(Projects!$K$5:$K$2481)) -> 26030 | E114: 26030 | F114: =SUMPRODUCT((Projects!$A$5:$A$2481='MDOT FTA Detail'!$D$3)*(Projects!$L$5:$L$2481='MDOT FTA Detail'!$A114)*(Projects!$Q$5:$Q$2481)) -> 52060 | G114: =SUMPRODUCT((Projects!$A$5:$A$2481='MDOT FTA Detail'!$G$3)*(Projects!$L$5:$L$2481='MDOT FTA Detail'!$A114)*(Projects!$K$5:$K$2481)) -> 26030 | H114: 26030 | I114: =SUMPRODUCT((Projects!$A$5:$A$2481='MDOT FTA Detail'!$G$3)*(Projects!$L$5:$L$2481='MDOT FTA Detail'!$A114)*(Projects!$Q$5:$Q$2481)) -> 52060 | J114: =SUMPRODUCT((Projects!$A$5:$A$2481='MDOT FTA Detail'!$J$3)*(Projects!$L$5:$L$2481='MDOT FTA Detail'!$A114)*(Projects!$K$5:$K$2481)) -> 26030 | K114: 26030 | L114: =SUMPRODUCT((Projects!$A$5:$A$2481='MDOT FTA Detail'!$J$3)*(Projects!$L$5:$L$2481='MDOT FTA Detail'!$A114)*(Projects!$Q$5:$Q$2481)) -> 52060 | M114: =SUMPRODUCT((Projects!$A$5:$A$2481='MDOT FTA Detail'!$M$3)*(Projects!$L$5:$L$2481='MDOT FTA Detail'!$A114)*(Projects!$K$5:$K$2481)) -> 26030 | N114: 26030 | O114: =SUMPRODUCT((Projects!$A$5:$A$2481='MDOT FTA Detail'!$M$3)*(Projects!$L$5:$L$2481='MDOT FTA Detail'!$A114)*(Projects!$Q$5:$Q$2481)) -> 52060
A115: 5312 | B115: Section 5312 - Research, Development, Demonstration, and Deployment | C115: Transit | D115: =SUMPRODUCT((Projects!$A$5:$A$2481='MDOT FTA Detail'!$D$3)*(Projects!$L$5:$L$2481='MDOT FTA Detail'!$A115)*(Projects!$K$5:$K$2481)) -> 0 | E115: =F115-D115 -> 0 | F115: =SUMPRODUCT((Projects!$A$5:$A$2481='MDOT FTA Detail'!$D$3)*(Projects!$L$5:$L$2481='MDOT FTA Detail'!$A115)*(Projects!$Q$5:$Q$2481)) -> 0 | G115: =SUMPRODUCT((Projects!$A$5:$A$2481='MDOT FTA Detail'!$G$3)*(Projects!$L$5:$L$2481='MDOT FTA Detail'!$A115)*(Projects!$K$5:$K$2481)) -> 0 | H115: =I115-G115 -> 0 | I115: =SUMPRODUCT((Projects!$A$5:$A$2481='MDOT FTA Detail'!$G$3)*(Projects!$L$5:$L$2481='MDOT FTA Detail'!$A115)*(Projects!$Q$5:$Q$2481)) -> 0 | J115: =SUMPRODUCT((Projects!$A$5:$A$2481='MDOT FTA Detail'!$J$3)*(Projects!$L$5:$L$2481='MDOT FTA Detail'!$A115)*(Projects!$K$5:$K$2481)) -> 0 | K115: =L115-J115 -> 0 | L115: =SUMPRODUCT((Projects!$A$5:$A$2481='MDOT FTA Detail'!$J$3)*(Projects!$L$5:$L$2481='MDOT FTA Detail'!$A115)*(Projects!$Q$5:$Q$2481)) -> 0 | M115: =SUMPRODUCT((Projects!$A$5:$A$2481='MDOT FTA Detail'!$M$3)*(Projects!$L$5:$L$2481='MDOT FTA Detail'!$A115)*(Projects!$K$5:$K$2481)) -> 0 | N115: =O115-M115 -> 0 | O115: =SUMPRODUCT((Projects!$A$5:$A$2481='MDOT FTA Detail'!$M$3)*(Projects!$L$5:$L$2481='MDOT FTA Detail'!$A115)*(Projects!$Q$5:$Q$2481)) -> 0
A116: 5313 | B116: Section 5313 - Transit Cooperative Research Program | C116: Transit | D116: =SUMPRODUCT((Projects!$A$5:$A$2481='MDOT FTA Detail'!$D$3)*(Projects!$L$5:$L$2481='MDOT FTA Detail'!$A116)*(Projects!$K$5:$K$2481)) -> 0 | E116: 0 | F116: =SUMPRODUCT((Projects!$A$5:$A$2481='MDOT FTA Detail'!$D$3)*(Projects!$L$5:$L$2481='MDOT FTA Detail'!$A116)*(Projects!$Q$5:$Q$2481)) -> 0 | G116: =SUMPRODUCT((Projects!$A$5:$A$2481='MDOT FTA Detail'!$G$3)*(Projects!$L$5:$L$2481='MDOT FTA Detail'!$A116)*(Projects!$K$5:$K$2481)) -> 0 | H116: 0 | I116: =SUMPRODUCT((Projects!$A$5:$A$2481='MDOT FTA Detail'!$G$3)*(Projects!$L$5:$L$2481='MDOT FTA Detail'!$A116)*(Projects!$Q$5:$Q$2481)) -> 0 | J116: =SUMPRODUCT((Projects!$A$5:$A$2481='MDOT FTA Detail'!$J$3)*(Projects!$L$5:$L$2481='MDOT FTA Detail'!$A116)*(Projects!$K$5:$K$2481)) -> 0 | K116: 0 | L116: =SUMPRODUCT((Projects!$A$5:$A$2481='MDOT FTA Detail'!$J$3)*(Projects!$L$5:$L$2481='MDOT FTA Detail'!$A116)*(Projects!$Q$5:$Q$2481)) -> 0 | M116: =SUMPRODUCT((Projects!$A$5:$A$2481='MDOT FTA Detail'!$M$3)*(Projects!$L$5:$L$2481='MDOT FTA Detail'!$A116)*(Projects!$K$5:$K$2481)) -> 0 | N116: 0 | O116: =SUMPRODUCT((Projects!$A$5:$A$2481='MDOT FTA Detail'!$M$3)*(Projects!$L$5:$L$2481='MDOT FTA Detail'!$A116)*(Projects!$Q$5:$Q$2481)) -> 0
A117: 5314 | B117: Section 5314 - Technical Assistance and Standards | C117: Transit | D117: =SUMPRODUCT((Projects!$A$5:$A$2481='MDOT FTA Detail'!$D$3)*(Projects!$L$5:$L$2481='MDOT FTA Detail'!$A117)*(Projects!$K$5:$K$2481)) -> 0 | E117: 0 | F117: =SUMPRODUCT((Projects!$A$5:$A$2481='MDOT FTA Detail'!$D$3)*(Projects!$L$5:$L$2481='MDOT FTA Detail'!$A117)*(Projects!$Q$5:$Q$2481)) -> 0 | G117: =SUMPRODUCT((Projects!$A$5:$A$2481='MDOT FTA Detail'!$G$3)*(Projects!$L$5:$L$2481='MDOT FTA Detail'!$A117)*(Projects!$K$5:$K$2481)) -> 0 | H117: 0 | I117: =SUMPRODUCT((Projects!$A$5:$A$2481='MDOT FTA Detail'!$G$3)*(Projects!$L$5:$L$2481='MDOT FTA Detail'!$A117)*(Projects!$Q$5:$Q$2481)) -> 0 | J117: =SUMPRODUCT((Projects!$A$5:$A$2481='MDOT FTA Detail'!$J$3)*(Projects!$L$5:$L$2481='MDOT FTA Detail'!$A117)*(Projects!$K$5:$K$2481)) -> 0 | K117: 0 | L117: =SUMPRODUCT((Projects!$A$5:$A$2481='MDOT FTA Detail'!$J$3)*(Projects!$L$5:$L$2481='MDOT FTA Detail'!$A117)*(Projects!$Q$5:$Q$2481)) -> 0 | M117: =SUMPRODUCT((Projects!$A$5:$A$2481='MDOT FTA Detail'!$M$3)*(Projects!$L$5:$L$2481='MDOT FTA Detail'!$A117)*(Projects!$K$5:$K$2481)) -> 0 | N117: 0 | O117: =SUMPRODUCT((Projects!$A$5:$A$2481='MDOT FTA Detail'!$M$3)*(Projects!$L$5:$L$2481='MDOT FTA Detail'!$A117)*(Projects!$Q$5:$Q$2481)) -> 0
A118: 5316 | B118: Section 5316 - Transit - Section 5316 - Job Access/Reverse Commute | C118: Transit | D118: =SUMPRODUCT((Projects!$A$5:$A$2481='MDOT FTA Detail'!$D$3)*(Projects!$L$5:$L$2481='MDOT FTA Detail'!$A118)*(Projects!$K$5:$K$2481)) -> 193000 | E118: 106000 | F118: =SUMPRODUCT((Projects!$A$5:$A$2481='MDOT FTA Detail'!$D$3)*(Projects!$L$5:$L$2481='MDOT FTA Detail'!$A118)*(Projects!$Q$5:$Q$2481)) -> 299000 | G118: =SUMPRODUCT((Projects!$A$5:$A$2481='MDOT FTA Detail'!$G$3)*(Projects!$L$5:$L$2481='MDOT FTA Detail'!$A118)*(Projects!$K$5:$K$2481)) -> 0 | H118: 0 | I118: =SUMPRODUCT((Projects!$A$5:$A$2481='MDOT FTA Detail'!$G$3)*(Projects!$L$5:$L$2481='MDOT FTA Detail'!$A118)*(Projects!$Q$5:$Q$2481)) -> 0 | J118: =SUMPRODUCT((Projects!$A$5:$A$2481='MDOT FTA Detail'!$J$3)*(Projects!$L$5:$L$2481='MDOT FTA Detail'!$A118)*(Projects!$K$5:$K$2481)) -> 0 | K118: 0 | L118: =SUMPRODUCT((Projects!$A$5:$A$2481='MDOT FTA Detail'!$J$3)*(Projects!$L$5:$L$2481='MDOT FTA Detail'!$A118)*(Projects!$Q$5:$Q$2481)) -> 0 | M118: =SUMPRODUCT((Projects!$A$5:$A$2481='MDOT FTA Detail'!$M$3)*(Projects!$L$5:$L$2481='MDOT FTA Detail'!$A118)*(Projects!$K$5:$K$2481)) -> 0 | N118: 0 | O118: =SUMPRODUCT((Projects!$A$5:$A$2481='MDOT FTA Detail'!$M$3)*(Projects!$L$5:$L$2481='MDOT FTA Detail'!$A118)*(Projects!$Q$5:$Q$2481)) -> 0
A119: 5317 | B119: Section 5317 - Transit - Section 5317 - New Freedom Initiative | C119: Transit | D119: =SUMPRODUCT((Projects!$A$5:$A$2481='MDOT FTA Detail'!$D$3)*(Projects!$L$5:$L$2481='MDOT FTA Detail'!$A119)*(Projects!$K$5:$K$2481)) -> 75000 | E119: 0 | F119: =SUMPRODUCT((Projects!$A$5:$A$2481='MDOT FTA Detail'!$D$3)*(Projects!$L$5:$L$2481='MDOT FTA Detail'!$A119)*(Projects!$Q$5:$Q$2481)) -> 75000 | G119: =SUMPRODUCT((Projects!$A$5:$A$2481='MDOT FTA Detail'!$G$3)*(Projects!$L$5:$L$2481='MDOT FTA Detail'!$A119)*(Projects!$K$5:$K$2481)) -> 0 | H119: 0 | I119: =SUMPRODUCT((Projects!$A$5:$A$2481='MDOT FTA Detail'!$G$3)*(Projects!$L$5:$L$2481='MDOT FTA Detail'!$A119)*(Projects!$Q$5:$Q$2481)) -> 0 | J119: =SUMPRODUCT((Projects!$A$5:$A$2481='MDOT FTA Detail'!$J$3)*(Projects!$L$5:$L$2481='MDOT FTA Detail'!$A119)*(Projects!$K$5:$K$2481)) -> 0 | K119: 0 | L119: =SUMPRODUCT((Projects!$A$5:$A$2481='MDOT FTA Detail'!$J$3)*(Projects!$L$5:$L$2481='MDOT FTA Detail'!$A119)*(Projects!$Q$5:$Q$2481)) -> 0 | M119: =SUMPRODUCT((Projects!$A$5:$A$2481='MDOT FTA Detail'!$M$3)*(Projects!$L$5:$L$2481='MDOT FTA Detail'!$A119)*(Projects!$K$5:$K$2481)) -> 0 | N119: 0 | O119: =SUMPRODUCT((Projects!$A$5:$A$2481='MDOT FTA Detail'!$M$3)*(Projects!$L$5:$L$2481='MDOT FTA Detail'!$A119)*(Projects!$Q$5:$Q$2481)) -> 0
A120: 5320 | B120: Section 5320 - Alternative Transportation in Parks and Public Lands | C120: Transit | D120: =SUMPRODUCT((Projects!$A$5:$A$2481='MDOT FTA Detail'!$D$3)*(Projects!$L$5:$L$2481='MDOT FTA Detail'!$A120)*(Projects!$K$5:$K$2481)) -> 0 | E120: 0 | F120: =SUMPRODUCT((Projects!$A$5:$A$2481='MDOT FTA Detail'!$D$3)*(Projects!$L$5:$L$2481='MDOT FTA Detail'!$A120)*(Projects!$Q$5:$Q$2481)) -> 0 | G120: =SUMPRODUCT((Projects!$A$5:$A$2481='MDOT FTA Detail'!$G$3)*(Projects!$L$5:$L$2481='MDOT FTA Detail'!$A120)*(Projects!$K$5:$K$2481)) -> 0 | H120: 0 | I120: =SUMPRODUCT((Projects!$A$5:$A$2481='MDOT FTA Detail'!$G$3)*(Projects!$L$5:$L$2481='MDOT FTA Detail'!$A120)*(Projects!$Q$5:$Q$2481)) -> 0 | J120: =SUMPRODUCT((Projects!$A$5:$A$2481='MDOT FTA Detail'!$J$3)*(Projects!$L$5:$L$2481='MDOT FTA Detail'!$A120)*(Projects!$K$5:$K$2481)) -> 0 | K120: 0 | L120: =SUMPRODUCT((Projects!$A$5:$A$2481='MDOT FTA Detail'!$J$3)*(Projects!$L$5:$L$2481='MDOT FTA Detail'!$A120)*(Projects!$Q$5:$Q$2481)) -> 0 | M120: =SUMPRODUCT((Projects!$A$5:$A$2481='MDOT FTA Detail'!$M$3)*(Projects!$L$5:$L$2481='MDOT FTA Detail'!$A120)*(Projects!$K$5:$K$2481)) -> 0 | N120: 0 | O120: =SUMPRODUCT((Projects!$A$5:$A$2481='MDOT FTA Detail'!$M$3)*(Projects!$L$5:$L$2481='MDOT FTA Detail'!$A120)*(Projects!$Q$5:$Q$2481)) -> 0
A121: 5322 | B121: Section 5322 - Human Resources and Training | C121: Transit | D121: =SUMPRODUCT((Projects!$A$5:$A$2481='MDOT FTA Detail'!$D$3)*(Projects!$L$5:$L$2481='MDOT FTA Detail'!$A121)*(Projects!$K$5:$K$2481)) -> 0 | E121: =F121-D121 -> 0 | F121: =SUMPRODUCT((Projects!$A$5:$A$2481='MDOT FTA Detail'!$D$3)*(Projects!$L$5:$L$2481='MDOT FTA Detail'!$A121)*(Projects!$Q$5:$Q$2481)) -> 0 | G121: =SUMPRODUCT((Projects!$A$5:$A$2481='MDOT FTA Detail'!$G$3)*(Projects!$L$5:$L$2481='MDOT FTA Detail'!$A121)*(Projects!$K$5:$K$2481)) -> 0 | H121: =I121-G121 -> 0 | I121: =SUMPRODUCT((Projects!$A$5:$A$2481='MDOT FTA Detail'!$G$3)*(Projects!$L$5:$L$2481='MDOT FTA Detail'!$A121)*(Projects!$Q$5:$Q$2481)) -> 0 | J121: =SUMPRODUCT((Projects!$A$5:$A$2481='MDOT FTA Detail'!$J$3)*(Projects!$L$5:$L$2481='MDOT FTA Detail'!$A121)*(Projects!$K$5:$K$2481)) -> 0 | K121: =L121-J121 -> 0 | L121: =SUMPRODUCT((Projects!$A$5:$A$2481='MDOT FTA Detail'!$J$3)*(Projects!$L$5:$L$2481='MDOT FTA Detail'!$A121)*(Projects!$Q$5:$Q$2481)) -> 0 | M121: =SUMPRODUCT((Projects!$A$5:$A$2481='MDOT FTA Detail'!$M$3)*(Projects!$L$5:$L$2481='MDOT FTA Detail'!$A121)*(Projects!$K$5:$K$2481)) -> 0 | N121: =O121-M121 -> 0 | O121: =SUMPRODUCT((Projects!$A$5:$A$2481='MDOT FTA Detail'!$M$3)*(Projects!$L$5:$L$2481='MDOT FTA Detail'!$A121)*(Projects!$Q$5:$Q$2481)) -> 0
A122: 5324 | B122: Section 5324 - Emergency Relief | C122: Transit | D122: =SUMPRODUCT((Projects!$A$5:$A$2481='MDOT FTA Detail'!$D$3)*(Projects!$L$5:$L$2481='MDOT FTA Detail'!$A122)*(Projects!$K$5:$K$2481)) -> 0 | E122: 0 | F122: =SUMPRODUCT((Projects!$A$5:$A$2481='MDOT FTA Detail'!$D$3)*(Projects!$L$5:$L$2481='MDOT FTA Detail'!$A122)*(Projects!$Q$5:$Q$2481)) -> 0 | G122: =SUMPRODUCT((Projects!$A$5:$A$2481='MDOT FTA Detail'!$G$3)*(Projects!$L$5:$L$2481='MDOT FTA Detail'!$A122)*(Projects!$K$5:$K$2481)) -> 0 | H122: 0 | I122: =SUMPRODUCT((Projects!$A$5:$A$2481='MDOT FTA Detail'!$G$3)*(Projects!$L$5:$L$2481='MDOT FTA Detail'!$A122)*(Projects!$Q$5:$Q$2481)) -> 0 | J122: =SUMPRODUCT((Projects!$A$5:$A$2481='MDOT FTA Detail'!$J$3)*(Projects!$L$5:$L$2481='MDOT FTA Detail'!$A122)*(Projects!$K$5:$K$2481)) -> 0 | K122: 0 | L122: =SUMPRODUCT((Projects!$A$5:$A$2481='MDOT FTA Detail'!$J$3)*(Projects!$L$5:$L$2481='MDOT FTA Detail'!$A122)*(Projects!$Q$5:$Q$2481)) -> 0 | M122: =SUMPRODUCT((Projects!$A$5:$A$2481='MDOT FTA Detail'!$M$3)*(Projects!$L$5:$L$2481='MDOT FTA Detail'!$A122)*(Projects!$K$5:$K$2481)) -> 0 | N122: 0 | O122: =SUMPRODUCT((Projects!$A$5:$A$2481='MDOT FTA Detail'!$M$3)*(Projects!$L$5:$L$2481='MDOT FTA Detail'!$A122)*(Projects!$Q$5:$Q$2481)) -> 0
A123: 5326 | B123: Section 5326 - Asset Management Provisions | C123: Transit | D123: =SUMPRODUCT((Projects!$A$5:$A$2481='MDOT FTA Detail'!$D$3)*(Projects!$L$5:$L$2481='MDOT FTA Detail'!$A123)*(Projects!$K$5:$K$2481)) -> 0 | E123: 0 | F123: =SUMPRODUCT((Projects!$A$5:$A$2481='MDOT FTA Detail'!$D$3)*(Projects!$L$5:$L$2481='MDOT FTA Detail'!$A123)*(Projects!$Q$5:$Q$2481)) -> 0 | G123: =SUMPRODUCT((Projects!$A$5:$A$2481='MDOT FTA Detail'!$G$3)*(Projects!$L$5:$L$2481='MDOT FTA Detail'!$A123)*(Projects!$K$5:$K$2481)) -> 0 | H123: 0 | I123: =SUMPRODUCT((Projects!$A$5:$A$2481='MDOT FTA Detail'!$G$3)*(Projects!$L$5:$L$2481='MDOT FTA Detail'!$A123)*(Projects!$Q$5:$Q$2481)) -> 0 | J123: =SUMPRODUCT((Projects!$A$5:$A$2481='MDOT FTA Detail'!$J$3)*(Projects!$L$5:$L$2481='MDOT FTA Detail'!$A123)*(Projects!$K$5:$K$2481)) -> 0 | K123: 0 | L123: =SUMPRODUCT((Projects!$A$5:$A$2481='MDOT FTA Detail'!$J$3)*(Projects!$L$5:$L$2481='MDOT FTA Detail'!$A123)*(Projects!$Q$5:$Q$2481)) -> 0 | M123: =SUMPRODUCT((Projects!$A$5:$A$2481='MDOT FTA Detail'!$M$3)*(Projects!$L$5:$L$2481='MDOT FTA Detail'!$A123)*(Projects!$K$5:$K$2481)) -> 0 | N123: 0 | O123: =SUMPRODUCT((Projects!$A$5:$A$2481='MDOT FTA Detail'!$M$3)*(Projects!$L$5:$L$2481='MDOT FTA Detail'!$A123)*(Projects!$Q$5:$Q$2481)) -> 0
A124: 5329 | B124: Section 5329 - Safety | C124: Transit | D124: =SUMPRODUCT((Projects!$A$5:$A$2481='MDOT FTA Detail'!$D$3)*(Projects!$L$5:$L$2481='MDOT FTA Detail'!$A124)*(Projects!$K$5:$K$2481)) -> 0 | E124: 0 | F124: =SUMPRODUCT((Projects!$A$5:$A$2481='MDOT FTA Detail'!$D$3)*(Projects!$L$5:$L$2481='MDOT FTA Detail'!$A124)*(Projects!$Q$5:$Q$2481)) -> 0 | G124: =SUMPRODUCT((Projects!$A$5:$A$2481='MDOT FTA Detail'!$G$3)*(Projects!$L$5:$L$2481='MDOT FTA Detail'!$A124)*(Projects!$K$5:$K$2481)) -> 0 | H124: 0 | I124: =SUMPRODUCT((Projects!$A$5:$A$2481='MDOT FTA Detail'!$G$3)*(Projects!$L$5:$L$2481='MDOT FTA Detail'!$A124)*(Projects!$Q$5:$Q$2481)) -> 0 | J124: =SUMPRODUCT((Projects!$A$5:$A$2481='MDOT FTA Detail'!$J$3)*(Projects!$L$5:$L$2481='MDOT FTA Detail'!$A124)*(Projects!$K$5:$K$2481)) -> 0 | K124: 0 | L124: =SUMPRODUCT((Projects!$A$5:$A$2481='MDOT FTA Detail'!$J$3)*(Projects!$L$5:$L$2481='MDOT FTA Detail'!$A124)*(Projects!$Q$5:$Q$2481)) -> 0 | M124: =SUMPRODUCT((Projects!$A$5:$A$2481='MDOT FTA Detail'!$M$3)*(Projects!$L$5:$L$2481='MDOT FTA Detail'!$A124)*(Projects!$K$5:$K$2481)) -> 0 | N124: 0 | O124: =SUMPRODUCT((Projects!$A$5:$A$2481='MDOT FTA Detail'!$M$3)*(Projects!$L$5:$L$2481='MDOT FTA Detail'!$A124)*(Projects!$Q$5:$Q$2481)) -> 0
A125: 5337 | B125: Section 5337 - State of Good Repair Grants | C125: Transit | D125: =SUMPRODUCT((Projects!$A$5:$A$2481='MDOT FTA Detail'!$D$3)*(Projects!$L$5:$L$2481='MDOT FTA Detail'!$A125)*(Projects!$K$5:$K$2481)) -> 0 | E125: 0 | F125: =SUMPRODUCT((Projects!$A$5:$A$2481='MDOT FTA Detail'!$D$3)*(Projects!$L$5:$L$2481='MDOT FTA Detail'!$A125)*(Projects!$Q$5:$Q$2481)) -> 0 | G125: =SUMPRODUCT((Projects!$A$5:$A$2481='MDOT FTA Detail'!$G$3)*(Projects!$L$5:$L$2481='MDOT FTA Detail'!$A125)*(Projects!$K$5:$K$2481)) -> 0 | H125: 0 | I125: =SUMPRODUCT((Projects!$A$5:$A$2481='MDOT FTA Detail'!$G$3)*(Projects!$L$5:$L$2481='MDOT FTA Detail'!$A125)*(Projects!$Q$5:$Q$2481)) -> 0 | J125: =SUMPRODUCT((Projects!$A$5:$A$2481='MDOT FTA Detail'!$J$3)*(Projects!$L$5:$L$2481='MDOT FTA Detail'!$A125)*(Projects!$K$5:$K$2481)) -> 0 | K125: 0 | L125: =SUMPRODUCT((Projects!$A$5:$A$2481='MDOT FTA Detail'!$J$3)*(Projects!$L$5:$L$2481='MDOT FTA Detail'!$A125)*(Projects!$Q$5:$Q$2481)) -> 0 | M125: =SUMPRODUCT((Projects!$A$5:$A$2481='MDOT FTA Detail'!$M$3)*(Projects!$L$5:$L$2481='MDOT FTA Detail'!$A125)*(Projects!$K$5:$K$2481)) -> 0 | N125: 0 | O125: =SUMPRODUCT((Projects!$A$5:$A$2481='MDOT FTA Detail'!$M$3)*(Projects!$L$5:$L$2481='MDOT FTA Detail'!$A125)*(Projects!$Q$5:$Q$2481)) -> 0
A126: 5339 | B126: Section 5339 - Bus and Bus Facilities | C126: Transit | D126: =SUMPRODUCT((Projects!$A$5:$A$2481='MDOT FTA Detail'!$D$3)*(Projects!$L$5:$L$2481='MDOT FTA Detail'!$A126)*(Projects!$K$5:$K$2481)) -> 0 | E126: =F126-D126 -> 0 | F126: =SUMPRODUCT((Projects!$A$5:$A$2481='MDOT FTA Detail'!$D$3)*(Projects!$L$5:$L$2481='MDOT FTA Detail'!$A126)*(Projects!$Q$5:$Q$2481)) -> 0 | G126: =SUMPRODUCT((Projects!$A$5:$A$2481='MDOT FTA Detail'!$G$3)*(Projects!$L$5:$L$2481='MDOT FTA Detail'!$A126)*(Projects!$K$5:$K$2481)) -> 0 | H126: =I126-G126 -> 0 | I126: =SUMPRODUCT((Projects!$A$5:$A$2481='MDOT FTA Detail'!$G$3)*(Projects!$L$5:$L$2481='MDOT FTA Detail'!$A126)*(Projects!$Q$5:$Q$2481)) -> 0 | J126: =SUMPRODUCT((Projects!$A$5:$A$2481='MDOT FTA Detail'!$J$3)*(Projects!$L$5:$L$2481='MDOT FTA Detail'!$A126)*(Projects!$K$5:$K$2481)) -> 0 | K126: =L126-J126 -> 0 | L126: =SUMPRODUCT((Projects!$A$5:$A$2481='MDOT FTA Detail'!$J$3)*(Projects!$L$5:$L$2481='MDOT FTA Detail'!$A126)*(Projects!$Q$5:$Q$2481)) -> 0 | M126: =SUMPRODUCT((Projects!$A$5:$A$2481='MDOT FTA Detail'!$M$3)*(Projects!$L$5:$L$2481='MDOT FTA Detail'!$A126)*(Projects!$K$5:$K$2481)) -> 0 | N126: =O126-M126 -> 0 | O126: =SUMPRODUCT((Projects!$A$5:$A$2481='MDOT FTA Detail'!$M$3)*(Projects!$L$5:$L$2481='MDOT FTA Detail'!$A126)*(Projects!$Q$5:$Q$2481)) -> 0
A127: 5505 | B127: Section 5505 - University Transportation Centers Program | C127: Transit | D127: =SUMPRODUCT((Projects!$A$5:$A$2481='MDOT FTA Detail'!$D$3)*(Projects!$L$5:$L$2481='MDOT FTA Detail'!$A127)*(Projects!$K$5:$K$2481)) -> 0 | E127: 0 | F127: =SUMPRODUCT((Projects!$A$5:$A$2481='MDOT FTA Detail'!$D$3)*(Projects!$L$5:$L$2481='MDOT FTA Detail'!$A127)*(Projects!$Q$5:$Q$2481)) -> 0 | G127: =SUMPRODUCT((Projects!$A$5:$A$2481='MDOT FTA Detail'!$G$3)*(Projects!$L$5:$L$2481='MDOT FTA Detail'!$A127)*(Projects!$K$5:$K$2481)) -> 0 | H127: 0 | I127: =SUMPRODUCT((Projects!$A$5:$A$2481='MDOT FTA Detail'!$G$3)*(Projects!$L$5:$L$2481='MDOT FTA Detail'!$A127)*(Projects!$Q$5:$Q$2481)) -> 0 | J127: =SUMPRODUCT((Projects!$A$5:$A$2481='MDOT FTA Detail'!$J$3)*(Projects!$L$5:$L$2481='MDOT FTA Detail'!$A127)*(Projects!$K$5:$K$2481)) -> 0 | K127: 0 | L127: =SUMPRODUCT((Projects!$A$5:$A$2481='MDOT FTA Detail'!$J$3)*(Projects!$L$5:$L$2481='MDOT FTA Detail'!$A127)*(Projects!$Q$5:$Q$2481)) -> 0 | M127: =SUMPRODUCT((Projects!$A$5:$A$2481='MDOT FTA Detail'!$M$3)*(Projects!$L$5:$L$2481='MDOT FTA Detail'!$A127)*(Projects!$K$5:$K$2481)) -> 0 | N127: 0 | O127: =SUMPRODUCT((Projects!$A$5:$A$2481='MDOT FTA Detail'!$M$3)*(Projects!$L$5:$L$2481='MDOT FTA Detail'!$A127)*(Projects!$Q$5:$Q$2481)) -> 0
A128: CTF | B128: Comprehensive Transit Fund | C128: Transit | D128: No FF | E128: =SUMPRODUCT((Projects!$A$5:$A$2481='MDOT FTA Detail'!$D$3)*(Projects!$K$5:$K$2481=0)*(Projects!$C$5:$C$2481='MDOT FTA Detail'!$C$4)*(Projects!$N$5:$N$2481='MDOT FTA Detail'!$A128)*(Projects!$J$5:$J$2481<>'MDOT FTA Detail'!$A$159)*(Projects!$M$5:$M$2481)) -> 0 | F128: =E128 -> 0 | G128: No FF | H128: =SUMPRODUCT((Projects!$A$5:$A$2481='MDOT FTA Detail'!$G$3)*(Projects!$K$5:$K$2481=0)*(Projects!$C$5:$C$2481='MDOT FTA Detail'!$C$4)*(Projects!$N$5:$N$2481='MDOT FTA Detail'!$A128)*(Projects!$J$5:$J$2481<>'MDOT FTA Detail'!$A$159)*(Projects!$M$5:$M$2481)) -> 0 | I128: =H128 -> 0 | J128: No FF | K128: =SUMPRODUCT((Projects!$A$5:$A$2481='MDOT FTA Detail'!$J$3)*(Projects!$K$5:$K$2481=0)*(Projects!$C$5:$C$2481='MDOT FTA Detail'!$C$4)*(Projects!$N$5:$N$2481='MDOT FTA Detail'!$A128)*(Projects!$J$5:$J$2481<>'MDOT FTA Detail'!$A$159)*(Projects!$M$5:$M$2481)) -> 0 | L128: =K128 -> 0 | M128: No FF | N128: =SUMPRODUCT((Projects!$A$5:$A$2481='MDOT FTA Detail'!$M$3)*(Projects!$K$5:$K$2481=0)*(Projects!$C$5:$C$2481='MDOT FTA Detail'!$C$4)*(Projects!$N$5:$N$2481='MDOT FTA Detail'!$A128)*(Projects!$J$5:$J$2481<>'MDOT FTA Detail'!$A$159)*(Projects!$M$5:$M$2481)) -> 0 | O128: =N128 -> 0
A129: BI04 | B129: Build Michigan Bond Issue 2004 | C129: MDOT M | D129: No FF | E129: =SUMPRODUCT((Projects!$A$5:$A$2481='MDOT FTA Detail'!$D$3)*(Projects!$K$5:$K$2481=0)*(Projects!$C$5:$C$2481='MDOT FTA Detail'!$C$4)*(Projects!$N$5:$N$2481='MDOT FTA Detail'!$A129)*(Projects!$J$5:$J$2481<>'MDOT FTA Detail'!$A$159)*(Projects!$M$5:$M$2481)) -> 0 | F129: 0 | G129: No FF | H129: =SUMPRODUCT((Projects!$A$5:$A$2481='MDOT FTA Detail'!$G$3)*(Projects!$K$5:$K$2481=0)*(Projects!$C$5:$C$2481='MDOT FTA Detail'!$C$4)*(Projects!$N$5:$N$2481='MDOT FTA Detail'!$A129)*(Projects!$J$5:$J$2481<>'MDOT FTA Detail'!$A$159)*(Projects!$M$5:$M$2481)) -> 0 | I129: 0 | J129: No FF | K129: =SUMPRODUCT((Projects!$A$5:$A$2481='MDOT FTA Detail'!$J$3)*(Projects!$K$5:$K$2481=0)*(Projects!$C$5:$C$2481='MDOT FTA Detail'!$C$4)*(Projects!$N$5:$N$2481='MDOT FTA Detail'!$A129)*(Projects!$J$5:$J$2481<>'MDOT FTA Detail'!$A$159)*(Projects!$M$5:$M$2481)) -> 0 | L129: 0 | M129: No FF | N129: =SUMPRODUCT((Projects!$A$5:$A$2481='MDOT FTA Detail'!$M$3)*(Projects!$K$5:$K$2481=0)*(Projects!$C$5:$C$2481='MDOT FTA Detail'!$C$4)*(Projects!$N$5:$N$2481='MDOT FTA Detail'!$A129)*(Projects!$J$5:$J$2481<>'MDOT FTA Detail'!$A$159)*(Projects!$M$5:$M$2481)) -> 0 | O129: 0
A130: BI06 | B130: Build Michigan Bond Issue 2006 | C130: MDOT M | D130: No FF | E130: =SUMPRODUCT((Projects!$A$5:$A$2481='MDOT FTA Detail'!$D$3)*(Projects!$K$5:$K$2481=0)*(Projects!$C$5:$C$2481='MDOT FTA Detail'!$C$4)*(Projects!$N$5:$N$2481='MDOT FTA Detail'!$A130)*(Projects!$J$5:$J$2481<>'MDOT FTA Detail'!$A$159)*(Projects!$M$5:$M$2481)) -> 0 | F130: 0 | G130: No FF | H130: =SUMPRODUCT((Projects!$A$5:$A$2481='MDOT FTA Detail'!$G$3)*(Projects!$K$5:$K$2481=0)*(Projects!$C$5:$C$2481='MDOT FTA Detail'!$C$4)*(Projects!$N$5:$N$2481='MDOT FTA Detail'!$A130)*(Projects!$J$5:$J$2481<>'MDOT FTA Detail'!$A$159)*(Projects!$M$5:$M$2481)) -> 0 | I130: 0 | J130: No FF | K130: =SUMPRODUCT((Projects!$A$5:$A$2481='MDOT FTA Detail'!$J$3)*(Projects!$K$5:$K$2481=0)*(Projects!$C$5:$C$2481='MDOT FTA Detail'!$C$4)*(Projects!$N$5:$N$2481='MDOT FTA Detail'!$A130)*(Projects!$J$5:$J$2481<>'MDOT FTA Detail'!$A$159)*(Projects!$M$5:$M$2481)) -> 0 | L130: 0 | M130: No FF | N130: =SUMPRODUCT((Projects!$A$5:$A$2481='MDOT FTA Detail'!$M$3)*(Projects!$K$5:$K$2481=0)*(Projects!$C$5:$C$2481='MDOT FTA Detail'!$C$4)*(Projects!$N$5:$N$2481='MDOT FTA Detail'!$A130)*(Projects!$J$5:$J$2481<>'MDOT FTA Detail'!$A$159)*(Projects!$M$5:$M$2481)) -> 0 | O130: 0
A131: BI08 | B131: Build Michigan Bond Issue 2008 | C131: MDOT M | D131: No FF | E131: =SUMPRODUCT((Projects!$A$5:$A$2481='MDOT FTA Detail'!$D$3)*(Projects!$K$5:$K$2481=0)*(Projects!$C$5:$C$2481='MDOT FTA Detail'!$C$4)*(Projects!$N$5:$N$2481='MDOT FTA Detail'!$A131)*(Projects!$J$5:$J$2481<>'MDOT FTA Detail'!$A$159)*(Projects!$M$5:$M$2481)) -> 0 | F131: 0 | G131: No FF | H131: =SUMPRODUCT((Projects!$A$5:$A$2481='MDOT FTA Detail'!$G$3)*(Projects!$K$5:$K$2481=0)*(Projects!$C$5:$C$2481='MDOT FTA Detail'!$C$4)*(Projects!$N$5:$N$2481='MDOT FTA Detail'!$A131)*(Projects!$J$5:$J$2481<>'MDOT FTA Detail'!$A$159)*(Projects!$M$5:$M$2481)) -> 0 | I131: 0 | J131: No FF | K131: =SUMPRODUCT((Projects!$A$5:$A$2481='MDOT FTA Detail'!$J$3)*(Projects!$K$5:$K$2481=0)*(Projects!$C$5:$C$2481='MDOT FTA Detail'!$C$4)*(Projects!$N$5:$N$2481='MDOT FTA Detail'!$A131)*(Projects!$J$5:$J$2481<>'MDOT FTA Detail'!$A$159)*(Projects!$M$5:$M$2481)) -> 0 | L131: 0 | M131: No FF | N131: =SUMPRODUCT((Projects!$A$5:$A$2481='MDOT FTA Detail'!$M$3)*(Projects!$K$5:$K$2481=0)*(Projects!$C$5:$C$2481='MDOT FTA Detail'!$C$4)*(Projects!$N$5:$N$2481='MDOT FTA Detail'!$A131)*(Projects!$J$5:$J$2481<>'MDOT FTA Detail'!$A$159)*(Projects!$M$5:$M$2481)) -> 0 | O131: 0
A132: BT01 | B132: Bond Trunkline Roads for First Issue | C132: MDOT M | D132: No FF | E132: =SUMPRODUCT((Projects!$A$5:$A$2481='MDOT FTA Detail'!$D$3)*(Projects!$K$5:$K$2481=0)*(Projects!$C$5:$C$2481='MDOT FTA Detail'!$C$4)*(Projects!$N$5:$N$2481='MDOT FTA Detail'!$A132)*(Projects!$J$5:$J$2481<>'MDOT FTA Detail'!$A$159)*(Projects!$M$5:$M$2481)) -> 0 | F132: 0 | G132: No FF | H132: =SUMPRODUCT((Projects!$A$5:$A$2481='MDOT FTA Detail'!$G$3)*(Projects!$K$5:$K$2481=0)*(Projects!$C$5:$C$2481='MDOT FTA Detail'!$C$4)*(Projects!$N$5:$N$2481='MDOT FTA Detail'!$A132)*(Projects!$J$5:$J$2481<>'MDOT FTA Detail'!$A$159)*(Projects!$M$5:$M$2481)) -> 0 | I132: 0 | J132: No FF | K132: =SUMPRODUCT((Projects!$A$5:$A$2481='MDOT FTA Detail'!$J$3)*(Projects!$K$5:$K$2481=0)*(Projects!$C$5:$C$2481='MDOT FTA Detail'!$C$4)*(Projects!$N$5:$N$2481='MDOT FTA Detail'!$A132)*(Projects!$J$5:$J$2481<>'MDOT FTA Detail'!$A$159)*(Projects!$M$5:$M$2481)) -> 0 | L132: 0 | M132: No FF | N132: =SUMPRODUCT((Projects!$A$5:$A$2481='MDOT FTA Detail'!$M$3)*(Projects!$K$5:$K$2481=0)*(Projects!$C$5:$C$2481='MDOT FTA Detail'!$C$4)*(Projects!$N$5:$N$2481='MDOT FTA Detail'!$A132)*(Projects!$J$5:$J$2481<>'MDOT FTA Detail'!$A$159)*(Projects!$M$5:$M$2481)) -> 0 | O132: 0
A133: EDA | B133: Economic Development - Category A | C133: MDOT M | D133: No FF | E133: =SUMPRODUCT((Projects!$A$5:$A$2481='MDOT FTA Detail'!$D$3)*(Projects!$K$5:$K$2481=0)*(Projects!$C$5:$C$2481='MDOT FTA Detail'!$C$4)*(Projects!$N$5:$N$2481='MDOT FTA Detail'!$A133)*(Projects!$J$5:$J$2481<>'MDOT FTA Detail'!$A$159)*(Projects!$M$5:$M$2481)) -> 0 | F133: 0 | G133: No FF | H133: =SUMPRODUCT((Projects!$A$5:$A$2481='MDOT FTA Detail'!$G$3)*(Projects!$K$5:$K$2481=0)*(Projects!$C$5:$C$2481='MDOT FTA Detail'!$C$4)*(Projects!$N$5:$N$2481='MDOT FTA Detail'!$A133)*(Projects!$J$5:$J$2481<>'MDOT FTA Detail'!$A$159)*(Projects!$M$5:$M$2481)) -> 0 | I133: 0 | J133: No FF | K133: =SUMPRODUCT((Projects!$A$5:$A$2481='MDOT FTA Detail'!$J$3)*(Projects!$K$5:$K$2481=0)*(Projects!$C$5:$C$2481='MDOT FTA Detail'!$C$4)*(Projects!$N$5:$N$2481='MDOT FTA Detail'!$A133)*(Projects!$J$5:$J$2481<>'MDOT FTA Detail'!$A$159)*(Projects!$M$5:$M$2481)) -> 0 | L133: 0 | M133: No FF | N133: =SUMPRODUCT((Projects!$A$5:$A$2481='MDOT FTA Detail'!$M$3)*(Projects!$K$5:$K$2481=0)*(Projects!$C$5:$C$2481='MDOT FTA Detail'!$C$4)*(Projects!$N$5:$N$2481='MDOT FTA Detail'!$A133)*(Projects!$J$5:$J$2481<>'MDOT FTA Detail'!$A$159)*(Projects!$M$5:$M$2481)) -> 0 | O133: 0
A134: EDC | B134: Economic Development - Category C | C134: MDOT M | D134: No FF | E134: =SUMPRODUCT((Projects!$A$5:$A$2481='MDOT FTA Detail'!$D$3)*(Projects!$K$5:$K$2481=0)*(Projects!$C$5:$C$2481='MDOT FTA Detail'!$C$4)*(Projects!$N$5:$N$2481='MDOT FTA Detail'!$A134)*(Projects!$J$5:$J$2481<>'MDOT FTA Detail'!$A$159)*(Projects!$M$5:$M$2481)) -> 0 | F134: 0 | G134: No FF | H134: =SUMPRODUCT((Projects!$A$5:$A$2481='MDOT FTA Detail'!$G$3)*(Projects!$K$5:$K$2481=0)*(Projects!$C$5:$C$2481='MDOT FTA Detail'!$C$4)*(Projects!$N$5:$N$2481='MDOT FTA Detail'!$A134)*(Projects!$J$5:$J$2481<>'MDOT FTA Detail'!$A$159)*(Projects!$M$5:$M$2481)) -> 0 | I134: 0 | J134: No FF | K134: =SUMPRODUCT((Projects!$A$5:$A$2481='MDOT FTA Detail'!$J$3)*(Projects!$K$5:$K$2481=0)*(Projects!$C$5:$C$2481='MDOT FTA Detail'!$C$4)*(Projects!$N$5:$N$2481='MDOT FTA Detail'!$A134)*(Projects!$J$5:$J$2481<>'MDOT FTA Detail'!$A$159)*(Projects!$M$5:$M$2481)) -> 0 | L134: 0 | M134: No FF | N134: =SUMPRODUCT((Projects!$A$5:$A$2481='MDOT FTA Detail'!$M$3)*(Projects!$K$5:$K$2481=0)*(Projects!$C$5:$C$2481='MDOT FTA Detail'!$C$4)*(Projects!$N$5:$N$2481='MDOT FTA Detail'!$A134)*(Projects!$J$5:$J$2481<>'MDOT FTA Detail'!$A$159)*(Projects!$M$5:$M$2481)) -> 0 | O134: 0
A135: EDD | B135: Economic Development - Category D | C135: MDOT M | D135: No FF | E135: =SUMPRODUCT((Projects!$A$5:$A$2481='MDOT FTA Detail'!$D$3)*(Projects!$K$5:$K$2481=0)*(Projects!$C$5:$C$2481='MDOT FTA Detail'!$C$4)*(Projects!$N$5:$N$2481='MDOT FTA Detail'!$A135)*(Projects!$J$5:$J$2481<>'MDOT FTA Detail'!$A$159)*(Projects!$M$5:$M$2481)) -> 0 | F135: 0 | G135: No FF | H135: =SUMPRODUCT((Projects!$A$5:$A$2481='MDOT FTA Detail'!$G$3)*(Projects!$K$5:$K$2481=0)*(Projects!$C$5:$C$2481='MDOT FTA Detail'!$C$4)*(Projects!$N$5:$N$2481='MDOT FTA Detail'!$A135)*(Projects!$J$5:$J$2481<>'MDOT FTA Detail'!$A$159)*(Projects!$M$5:$M$2481)) -> 0 | I135: 0 | J135: No FF | K135: =SUMPRODUCT((Projects!$A$5:$A$2481='MDOT FTA Detail'!$J$3)*(Projects!$K$5:$K$2481=0)*(Projects!$C$5:$C$2481='MDOT FTA Detail'!$C$4)*(Projects!$N$5:$N$2481='MDOT FTA Detail'!$A135)*(Projects!$J$5:$J$2481<>'MDOT FTA Detail'!$A$159)*(Projects!$M$5:$M$2481)) -> 0 | L135: 0 | M135: No FF | N135: =SUMPRODUCT((Projects!$A$5:$A$2481='MDOT FTA Detail'!$M$3)*(Projects!$K$5:$K$2481=0)*(Projects!$C$5:$C$2481='MDOT FTA Detail'!$C$4)*(Projects!$N$5:$N$2481='MDOT FTA Detail'!$A135)*(Projects!$J$5:$J$2481<>'MDOT FTA Detail'!$A$159)*(Projects!$M$5:$M$2481)) -> 0 | O135: 0
